Workbook

Sheet Introduction
C4: Joint Monitoring Programme for Water Supply, Sanitation and Hygiene
C6: Estimates on household water, sanitation and hygiene by wealth quintile and sub-national region in
C7: =+Water!B5 -> Nigeria
C9: Updated April 2021
C11: Follow the links below to find the following information:
C13: JMP Estimates
C14: WASH status and trends by wealth quintile (customized quintiles made without water and sanitation assets)
C15: Water
C16: Sanitation
C17: Hygiene
C19: Data inputs
C20: customized wealth quintiles and subnational data:
C21: =IF(INDIRECT(CONCATENATE("Water","!B105"))=0,"",INDIRECT(CONCATENATE("Water","!B105"))) -> DHS03
C22: =IF(INDIRECT(CONCATENATE("Water","!B106"))=0,"",INDIRECT(CONCATENATE("Water","!B106"))) -> MICS07
C23: =IF(INDIRECT(CONCATENATE("Water","!B107"))=0,"",INDIRECT(CONCATENATE("Water","!B107"))) -> DHS08
C24: =IF(INDIRECT(CONCATENATE("Water","!B108"))=0,"",INDIRECT(CONCATENATE("Water","!B108"))) -> MIS10
C25: =IF(INDIRECT(CONCATENATE("Water","!B109"))=0,"",INDIRECT(CONCATENATE("Water","!B109"))) -> MICS11
C26: =IF(INDIRECT(CONCATENATE("Water","!B110"))=0,"",INDIRECT(CONCATENATE("Water","!B110"))) -> DHS13
C27: =IF(INDIRECT(CONCATENATE("Water","!B111"))=0,"",INDIRECT(CONCATENATE("Water","!B111"))) -> MIS15
C28: =IF(INDIRECT(CONCATENATE("Water","!B112"))=0,"",INDIRECT(CONCATENATE("Water","!B112"))) -> MICS17
C29: =IF(INDIRECT(CONCATENATE("Water","!B113"))=0,"",INDIRECT(CONCATENATE("Water","!B113"))) -> DHS18
C30: =IF(INDIRECT(CONCATENATE("Water","!B114"))=0,"",INDIRECT(CONCATENATE("Water","!B114"))) -> 
C31: =IF(INDIRECT(CONCATENATE("Water","!B115"))=0,"",INDIRECT(CONCATENATE("Water","!B115"))) -> 
C32: =IF(INDIRECT(CONCATENATE("Water","!B116"))=0,"",INDIRECT(CONCATENATE("Water","!B116"))) -> 
L55: =+IF(ISNUMBER(M48), "", "Insufficient data to estimate safely managed sanitation services at national level") -> Insufficient data to estimate safely managed sanitation services at national level

Sheet Water
A1: BGD
B4: Summary of trends in use of drinking water by wealth quintile (%)
B5: =IF(ISERROR(INDIRECT(CONCATENATE($B105,"!A2"))),"",INDIRECT(CONCATENATE($B105,"!A2"))) -> Nigeria
B7: =B118 -> National use of drinking water sources, 2000–2020 | J7: =B218 -> Urban use of drinking water sources, 2000–2020 | R7: =B318 -> Rural use of drinking water sources, 2000–2020
B31: =IF(ISERROR(INDIRECT(CONCATENATE($B105,"!A2"))),"",INDIRECT(CONCATENATE($B105,"!A2"))) -> Nigeria | F31: Poorest | J31: Poor | N31: Middle | R31: Rich | V31: Richest
F32: Basic | G32: Limited | H32: Unimproved | I32: Surface water | J32: Basic | K32: Limited | L32: Unimproved | M32: Surface water | N32: Basic | O32: Limited | P32: Unimproved | Q32: Surface water | R32: Basic | S32: Limited | T32: Unimproved | U32: Surface water | V32: Basic | W32: Limited | X32: Unimproved | Y32: Surface water
B33: NATIONAL | D33: Estimate | E33: =C99 -> 2000 | F33: =E99 -> 19.09047502 | G33: =F99 -> 3.077488383 | H33: 48.87932873 | I33: 28.95270786 | J33: =J99 -> 20.64673229 | K33: =K99 -> 2.191545204 | L33: 40.62944521 | M33: 36.5322773 | N33: =O99 -> 33.83362479 | O33: =P99 -> 3.813327356 | P33: 29.55197178 | Q33: 32.80107608 | R33: =T99 -> 58.92843993 | S33: =U99 -> 5.15137085 | T33: 18.8119436 | U33: 17.10824563 | V33: =Y99 -> 81.71950169 | W33: =Z99 -> 3.655172649 | X33: 10.37608939 | Y33: 4.24923627
E34: =C100 -> 2020 | F34: =E100 -> 42.14622726 | G34: 6.794201014 | H34: 38.07340957 | I34: 12.98616215 | J34: =J100 -> 55.2887556 | K34: 5.868619086 | L34: 27.74068784 | M34: 11.10193748 | N34: =O100 -> 72.3837964 | O34: 8.158248271 | P34: 11.71587154 | Q34: 7.742083792 | R34: =T100 -> 87.05476719 | S34: 7.610101176 | T34: 2.693981608 | U34: 2.64115003 | V34: =Y100 -> 95.34350829 | W34: 4.264551014 | X34: 0 | Y34: 0.3919407011
B36: URBAN | D36: Estimate | E36: =C199 -> 2000 | F36: =E199 -> 46.14116137 | G36: =F199 -> 7.442238889 | H36: 28.87515761 | I36: 17.54144213 | J36: =J199 -> 62.1758645 | K36: =K199 -> 6.700414681 | L36: 18.4889637 | M36: 12.63475712 | N36: =O199 -> 72.22723305 | O36: =P199 -> 6.261496915 | P36: 17.87055398 | Q36: 3.640716059 | R36: =T199 -> 80.66465163 | S36: =U199 -> 4.894756322 | T36: 13.12647799 | U36: 1.314114058 | V36: =Y199 -> 89.02670818 | W36: =Z199 -> 3.689299933 | X36: 6.554432211 | Y36: 0.7295596714
E37: =C200 -> 2020 | F37: =E200 -> 71.28885493 | G37: 11.49838176 | H37: 11.66292837 | I37: 5.549834937 | J37: =J200 -> 87.95101562 | K37: 9.478087374 | L37: 2.570897003 | M37: 0 | N37: =O200 -> 91.29829993 | O37: 7.914798881 | P37: 0 | Q37: 0.7869011937 | R37: =T200 -> 93.8600945 | S37: 5.695459927 | T37: 0 | U37: 0.4444455753 | V37: =Y200 -> 95.94586335 | W37: 3.976032299 | X37: 0 | Y37: 0.07810434928
B39: RURAL | D39: Estimate | E39: =C299 -> 2000 | F39: =E299 -> 27.89012511 | G39: =F299 -> 4.380051966 | H39: 44.23327106 | I39: 23.49655186 | J39: =J299 -> 36.04204722 | K39: =K299 -> 3.881279107 | L39: 33.59017746 | M39: 26.4864962 | N39: =O299 -> 38.68350721 | O39: =P299 -> 3.260777298 | P39: 28.03238281 | Q39: 30.02333268 | R39: =T299 -> 46.72186247 | S39: =U299 -> 3.978687656 | T39: 21.79612777 | U39: 27.50332211 | V39: =Y299 -> 64.82237685 | W39: =Z299 -> 3.975164874 | X39: 14.60078156 | Y39: 16.60167672
E40: =C300 -> 2020 | F40: =E300 -> 39.66657005 | G40: 6.229503721 | H40: 41.23906373 | I40: 12.86486249 | J40: =J300 -> 42.82624439 | K40: 4.611852555 | L40: 37.82004195 | M40: 14.7418611 | N40: =O300 -> 50.52825692 | O40: 4.259215488 | P40: 31.3690671 | Q40: 13.8434605 | R40: =T300 -> 62.39391128 | S40: 5.313270308 | T40: 17.15540964 | U40: 15.13740877 | V40: =Y300 -> 82.8695283 | W40: 5.081887676 | X40: 4.694208245 | Y40: 7.354375783
A97: NATIONAL | D97: Poorest | I97: Poor | N97: Middle | S97: Rich | X97: Richest
D98: Improved | E98: Basic | F98: Limited | G98: Unimproved | H98: Surface water | I98: Improved | J98: Basic | K98: Limited | L98: Unimproved | M98: Surface water | N98: Improved | O98: Basic | P98: Limited | Q98: Unimproved | R98: Surface water | S98: Improved | T98: Basic | U98: Limited | V98: Unimproved | W98: Surface water | X98: Improved | Y98: Basic | Z98: Limited | AA98: Unimproved | AB98: Surface water
A99: Forecast period: | C99: 2000 | D99: =IF((D101+H101)>100,D101*100/(D101+H101),D101) -> 22.1679634 | E99: =D99*AVERAGEIF(E105:E116,">0")/100 -> 19.09047502 | F99: =D99*(100-AVERAGEIF(E105:E116,">0"))/100 -> 3.077488383 | G99: =100-(E99+F99+H99) -> 48.87932873 | H99: =IF((D101+H101)>100,H101*100/(D101+H101),H101) -> 28.95270786 | I99: =IF((I101+M101)>100,I101*100/(I101+M101),I101) -> 22.83827749 | J99: =I99*AVERAGEIF(J105:J116,">0")/100 -> 20.64673229 | K99: =I99*(100-AVERAGEIF(J105:J116,">0"))/100 -> 2.191545204 | L99: =100-(J99+K99+M99) -> 40.62944521 | M99: =IF((I101+M101)>100,M101*100/(I101+M101),M101) -> 36.5322773 | N99: =IF((N101+R101)>100,N101*100/(N101+R101),N101) -> 37.64695214 | O99: =N99*AVERAGEIF(O105:O116,">0")/100 -> 33.83362479 | P99: =N99*(100-AVERAGEIF(O105:O116,">0"))/100 -> 3.813327356 | Q99: =100-(O99+P99+R99) -> 29.55197178 | R99: =IF((N101+R101)>100,R101*100/(N101+R101),R101) -> 32.80107608 | S99: =IF((S101+W101)>100,S101*100/(S101+W101),S101) -> 64.07981078 | T99: =S99*AVERAGEIF(T105:T116,">0")/100 -> 58.92843993 | U99: =S99*(100-AVERAGEIF(T105:T116,">0"))/100 -> 5.15137085 | V99: =100-(T99+U99+W99) -> 18.8119436 | W99: =IF((S101+W101)>100,W101*100/(S101+W101),W101) -> 17.10824563 | X99: =IF((X101+AB101)>100,X101*100/(X101+AB101),X101) -> 85.37467434 | Y99: =X99*AVERAGEIF(Y105:Y116,">0")/100 -> 81.71950169 | Z99: =X99*(100-AVERAGEIF(Y105:Y116,">0"))/100 -> 3.655172649 | AA99: =100-(Y99+Z99+AB99) -> 10.37608939 | AB99: =IF((X101+AB101)>100,AB101*100/(X101+AB101),AB101) -> 4.24923627
C100: 2020 | D100: =IF((D102+H102)>100,D102*100/(D102+H102),D102) -> 48.94042828 | E100: =D100*AVERAGEIF(E105:E116,">0")/100 -> 42.14622726 | F100: =D100*(100-AVERAGEIF(E105:E116,">0"))/100 -> 6.794201014 | G100: =100-(E100+F100+H100) -> 38.07340957 | H100: =IF((D102+H102)>100,H102*100/(D102+H102),H102) -> 12.98616215 | I100: =IF((I102+M102)>100,I102*100/(I102+M102),I102) -> 61.15737468 | J100: =I100*AVERAGEIF(J105:J116,">0")/100 -> 55.2887556 | K100: =I100*(100-AVERAGEIF(J105:J116,">0"))/100 -> 5.868619086 | L100: =100-(J100+K100+M100) -> 27.74068784 | M100: =IF((I102+M102)>100,M102*100/(I102+M102),M102) -> 11.10193748 | N100: =IF((N102+R102)>100,N102*100/(N102+R102),N102) -> 80.54204467 | O100: =N100*AVERAGEIF(O105:O116,">0")/100 -> 72.3837964 | P100: =N100*(100-AVERAGEIF(O105:O116,">0"))/100 -> 8.158248271 | Q100: =100-(O100+P100+R100) -> 11.71587154 | R100: =IF((N102+R102)>100,R102*100/(N102+R102),R102) -> 7.742083792 | S100: =IF((S102+W102)>100,S102*100/(S102+W102),S102) -> 94.66486836 | T100: =S100*AVERAGEIF(T105:T116,">0")/100 -> 87.05476719 | U100: =S100*(100-AVERAGEIF(T105:T116,">0"))/100 -> 7.610101176 | V100: =100-(T100+U100+W100) -> 2.693981608 | W100: =IF((S102+W102)>100,W102*100/(S102+W102),W102) -> 2.64115003 | X100: =IF((X102+AB102)>100,X102*100/(X102+AB102),X102) -> 99.6080593 | Y100: =X100*AVERAGEIF(Y105:Y116,">0")/100 -> 95.34350829 | Z100: =X100*(100-AVERAGEIF(Y105:Y116,">0"))/100 -> 4.264551014 | AA100: =100-(Y100+Z100+AB100) -> 0 | AB100: =IF((X102+AB102)>100,AB102*100/(X102+AB102),AB102) -> 0.3919407011
A101: Regression period: | C101: =MinRegYear(C99,C105:C116) -> 2001 | D101: =IF(MAX(C105:C116)-MIN(C105:C116)<5,AVERAGEIF(C105:C116,">0",D105:D116), IF(FORECAST($C101,D$105:D$116,$C$105:$C$116)<0,0, IF(FORECAST($C101,D$105:D$116,$C$105:$C$116)>100,100, FORECAST($C101,D$105:D$116,$C$105:$C$116)))) -> 22.1679634 | H101: =IF(MAX(C105:C116)-MIN(C105:C116)<5,AVERAGEIF(C105:C116,">0",H105:H116), IF(FORECAST($C101,H$105:H$116,$C$105:$C$116)<0,0, IF(FORECAST($C101,H$105:H$116,$C$105:$C$116)>100,100, FORECAST($C101,H$105:H$116,$C$105:$C$116)))) -> 28.95270786 | I101: =IF(MAX(C105:C116)-MIN(C105:C116)<5,AVERAGEIF(C105:C116,">0",I105:I116), IF(FORECAST($C101,I$105:I$116,$C$105:$C$116)<0,0, IF(FORECAST($C101,I$105:I$116,$C$105:$C$116)>100,100, FORECAST($C101,I$105:I$116,$C$105:$C$116)))) -> 22.83827749 | M101: =IF(MAX(C105:C116)-MIN(C105:C116)<5,AVERAGEIF(C105:C116,">0",M105:M116), IF(FORECAST($C101,M$105:M$116,$C$105:$C$116)<0,0, IF(FORECAST($C101,M$105:M$116,$C$105:$C$116)>100,100, FORECAST($C101,M$105:M$116,$C$105:$C$116)))) -> 36.5322773 | N101: =IF(MAX(C105:C116)-MIN(C105:C116)<5,AVERAGEIF(C105:C116,">0",N105:N116), IF(FORECAST($C101,N$105:N$116,$C$105:$C$116)<0,0, IF(FORECAST($C101,N$105:N$116,$C$105:$C$116)>100,100, FORECAST($C101,N$105:N$116,$C$105:$C$116)))) -> 37.64695214 | R101: =IF(MAX(C105:C116)-MIN(C105:C116)<5,AVERAGEIF(C105:C116,">0",R105:R116), IF(FORECAST($C101,R$105:R$116,$C$105:$C$116)<0,0, IF(FORECAST($C101,R$105:R$116,$C$105:$C$116)>100,100, FORECAST($C101,R$105:R$116,$C$105:$C$116)))) -> 32.80107608 | S101: =IF(MAX(C105:C116)-MIN(C105:C116)<5,AVERAGEIF(C105:C116,">0",S105:S116), IF(FORECAST($C101,S$105:S$116,$C$105:$C$116)<0,0, IF(FORECAST($C101,S$105:S$116,$C$105:$C$116)>100,100, FORECAST($C101,S$105:S$116,$C$105:$C$116)))) -> 64.07981078 | W101: =IF(MAX(C105:C116)-MIN(C105:C116)<5,AVERAGEIF(C105:C116,">0",W105:W116), IF(FORECAST($C101,W$105:W$116,$C$105:$C$116)<0,0, IF(FORECAST($C101,W$105:W$116,$C$105:$C$116)>100,100, FORECAST($C101,W$105:W$116,$C$105:$C$116)))) -> 17.10824563 | X101: =IF(MAX(C105:C116)-MIN(C105:C116)<5,AVERAGEIF(C105:C116,">0",X105:X116), IF(FORECAST($C101,X$105:X$116,$C$105:$C$116)<0,0, IF(FORECAST($C101,X$105:X$116,$C$105:$C$116)>100,100, FORECAST($C101,X$105:X$116,$C$105:$C$116)))) -> 85.37467434 | AB101: =IF(MAX(C105:C116)-MIN(C105:C116)<5,AVERAGEIF(C105:C116,">0",AB105:AB116), IF(FORECAST($C101,AB$105:AB$116,$C$105:$C$116)<0,0, IF(FORECAST($C101,AB$105:AB$116,$C$105:$C$116)>100,100, FORECAST($C101,AB$105:AB$116,$C$105:$C$116)))) -> 4.24923627
C102: =MaxRegYear(C100,C105:C116) -> 2020 | D102: =IF(MAX(C105:C116)-MIN(C105:C116)<5,AVERAGEIF(C105:C116,">0",D105:D116), IF(FORECAST($C102,D$105:D$116,$C$105:$C$116)<0,0, IF(FORECAST($C102,D$105:D$116,$C$105:$C$116)>100,100, FORECAST($C102,D$105:D$116,$C$105:$C$116)))) -> 48.94042828 | H102: =IF(MAX(C105:C116)-MIN(C105:C116)<5,AVERAGEIF(C105:C116,">0",H105:H116), IF(FORECAST($C102,H$105:H$116,$C$105:$C$116)<0,0, IF(FORECAST($C102,H$105:H$116,$C$105:$C$116)>100,100, FORECAST($C102,H$105:H$116,$C$105:$C$116)))) -> 12.98616215 | I102: =IF(MAX(C105:C116)-MIN(C105:C116)<5,AVERAGEIF(C105:C116,">0",I105:I116), IF(FORECAST($C102,I$105:I$116,$C$105:$C$116)<0,0, IF(FORECAST($C102,I$105:I$116,$C$105:$C$116)>100,100, FORECAST($C102,I$105:I$116,$C$105:$C$116)))) -> 61.15737468 | M102: =IF(MAX(C105:C116)-MIN(C105:C116)<5,AVERAGEIF(C105:C116,">0",M105:M116), IF(FORECAST($C102,M$105:M$116,$C$105:$C$116)<0,0, IF(FORECAST($C102,M$105:M$116,$C$105:$C$116)>100,100, FORECAST($C102,M$105:M$116,$C$105:$C$116)))) -> 11.10193748 | N102: =IF(MAX(C105:C116)-MIN(C105:C116)<5,AVERAGEIF(C105:C116,">0",N105:N116), IF(FORECAST($C102,N$105:N$116,$C$105:$C$116)<0,0, IF(FORECAST($C102,N$105:N$116,$C$105:$C$116)>100,100, FORECAST($C102,N$105:N$116,$C$105:$C$116)))) -> 80.54204467 | R102: =IF(MAX(C105:C116)-MIN(C105:C116)<5,AVERAGEIF(C105:C116,">0",R105:R116), IF(FORECAST($C102,R$105:R$116,$C$105:$C$116)<0,0, IF(FORECAST($C102,R$105:R$116,$C$105:$C$116)>100,100, FORECAST($C102,R$105:R$116,$C$105:$C$116)))) -> 7.742083792 | S102: =IF(MAX(C105:C116)-MIN(C105:C116)<5,AVERAGEIF(C105:C116,">0",S105:S116), IF(FORECAST($C102,S$105:S$116,$C$105:$C$116)<0,0, IF(FORECAST($C102,S$105:S$116,$C$105:$C$116)>100,100, FORECAST($C102,S$105:S$116,$C$105:$C$116)))) -> 94.66486836 | W102: =IF(MAX(C105:C116)-MIN(C105:C116)<5,AVERAGEIF(C105:C116,">0",W105:W116), IF(FORECAST($C102,W$105:W$116,$C$105:$C$116)<0,0, IF(FORECAST($C102,W$105:W$116,$C$105:$C$116)>100,100, FORECAST($C102,W$105:W$116,$C$105:$C$116)))) -> 2.64115003 | X102: =IF(MAX(C105:C116)-MIN(C105:C116)<5,AVERAGEIF(C105:C116,">0",X105:X116), IF(FORECAST($C102,X$105:X$116,$C$105:$C$116)<0,0, IF(FORECAST($C102,X$105:X$116,$C$105:$C$116)>100,100, FORECAST($C102,X$105:X$116,$C$105:$C$116)))) -> 100 | AB102: =IF(MAX(C105:C116)-MIN(C105:C116)<5,AVERAGEIF(C105:C116,">0",AB105:AB116), IF(FORECAST($C102,AB$105:AB$116,$C$105:$C$116)<0,0, IF(FORECAST($C102,AB$105:AB$116,$C$105:$C$116)>100,100, FORECAST($C102,AB$105:AB$116,$C$105:$C$116)))) -> 0.3934829209
B104: Survey | C104: Year | D104: Improved | E104: % Improved < = 30min | H104: Surface water | I104: Improved | J104: % Improved < = 30min | M104: Surface water | N104: Improved | O104: % Improved < = 30min | R104: Surface water | S104: Improved | T104: % Improved < = 30min | W104: Surface water | X104: Improved | Y104: % Improved < = 30min | AB104: Surface water
B105: DHS03 | C105: 2003 | D105: =IF(ISERROR(INDIRECT(CONCATENATE($B105,"!C16"))),"",INDIRECT(CONCATENATE($B105,"!C16"))) -> 25.66766538 | E105: =IF(ISERROR(INDIRECT(CONCATENATE($B105,"!C23"))),"",INDIRECT(CONCATENATE($B105,"!C23"))) -> N/A | H105: =IF(ISERROR(INDIRECT(CONCATENATE($B105,"!C21"))),"",INDIRECT(CONCATENATE($B105,"!C21"))) -> 26.58404345 | I105: =IF(ISERROR(INDIRECT(CONCATENATE($B105,"!D16"))),"",INDIRECT(CONCATENATE($B105,"!D16"))) -> 25.68227204 | J105: =IF(ISERROR(INDIRECT(CONCATENATE($B105,"!D23"))),"",INDIRECT(CONCATENATE($B105,"!D23"))) -> N/A | M105: =IF(ISERROR(INDIRECT(CONCATENATE($B105,"!D21"))),"",INDIRECT(CONCATENATE($B105,"!D21"))) -> 32.82860001 | N105: =IF(ISERROR(INDIRECT(CONCATENATE($B105,"!E16"))),"",INDIRECT(CONCATENATE($B105,"!E16"))) -> 36.82748916 | O105: =IF(ISERROR(INDIRECT(CONCATENATE($B105,"!E23"))),"",INDIRECT(CONCATENATE($B105,"!E23"))) -> N/A | R105: =IF(ISERROR(INDIRECT(CONCATENATE($B105,"!E21"))),"",INDIRECT(CONCATENATE($B105,"!E21"))) -> 30.33389337 | S105: =IF(ISERROR(INDIRECT(CONCATENATE($B105,"!F16"))),"",INDIRECT(CONCATENATE($B105,"!F16"))) -> 62.04457174 | T105: =IF(ISERROR(INDIRECT(CONCATENATE($B105,"!F23"))),"",INDIRECT(CONCATENATE($B105,"!F23"))) -> N/A | W105: =IF(ISERROR(INDIRECT(CONCATENATE($B105,"!F21"))),"",INDIRECT(CONCATENATE($B105,"!F21"))) -> 16.88271268 | X105: =IF(ISERROR(INDIRECT(CONCATENATE($B105,"!G16"))),"",INDIRECT(CONCATENATE($B105,"!G16"))) -> 84.23618276 | Y105: =IF(ISERROR(INDIRECT(CONCATENATE($B105,"!G23"))),"",INDIRECT(CONCATENATE($B105,"!G23"))) -> N/A | AB105: =IF(ISERROR(INDIRECT(CONCATENATE($B105,"!G221"))),"",INDIRECT(CONCATENATE($B105,"!G21"))) -> 4.587342247
B106: MICS07 | D106: 23.80700506 | E106: 74.45034636 | H106: 29.42797014 | I106: 33.03533599 | J106: 83.94572872 | M106: 29.49255982 | N106: 48.25024763 | O106: 83.39577766 | R106: 25.24983411 | S106: 70.70427257 | T106: 86.94327008 | W106: 16.27099554 | X106: 85.88515123 | Y106: 92.61149266 | AB106: 4.571852667
B107: DHS08 | C107: 2008 | D107: 32.15620428 | E107: 85.7 | H107: 24.40980612 | I107: 35.08920679 | J107: 90.3 | M107: 28.34289771 | N107: 52.86939463 | O107: 91 | R107: 25.6389965 | S107: 77.06066972 | T107: 92.4 | W107: 12.16233435 | X107: 92.55213325 | Y107: 95.4 | AB107: 2.279758862
B108: MIS10 | D108: 40.0742011 | E108: N/A | H108: 20.34866378 | I108: 36.26388799 | J108: N/A | M108: 21.40004447 | N108: 50.09895632 | O108: N/A | R108: 25.84972244 | S108: 70.54045272 | T108: N/A | W108: 15.42073093 | X108: 88.01156481 | Y108: N/A | AB108: 5.004453884
B109: MICS11 | C109: 2011 | D109: 34.64293265 | E109: 81.09984898 | H109: 19.20632129 | I109: 48.23502457 | J109: 85.97855723 | M109: 24.58179864 | N109: 71.27052788 | O109: 89.76196045 | R109: 16.11327971 | S109: 89.59099405 | T109: 91.2177877 | W109: 6.2348946 | X109: 97.39996752 | Y109: 96.0059292 | AB109: 1.208928238
B110: DHS13 | C110: 2013 | D110: 35.85828377 | E110: 83.9 | H110: 21.40718086 | I110: 46.1087957 | J110: 88.9 | M110: 20.56413922 | N110: 65.66711991 | O110: 85 | R110: 18.37986936 | S110: 83.47407733 | T110: 89.3 | W110: 7.712859667 | X110: 95.19739733 | Y110: 93.9 | AB110: 1.762033556
B111: MIS15 | C111: 2015 | D111: =IF(ISERROR(INDIRECT(CONCATENATE($B111,"!C16"))),"",INDIRECT(CONCATENATE($B111,"!C16"))) -> 47.85021362 | E111: =IF(ISERROR(INDIRECT(CONCATENATE($B111,"!C23"))),"",INDIRECT(CONCATENATE($B111,"!C23"))) -> 94.69008195 | H111: =IF(ISERROR(INDIRECT(CONCATENATE($B111,"!C21"))),"",INDIRECT(CONCATENATE($B111,"!C21"))) -> 15.26912563 | I111: =IF(ISERROR(INDIRECT(CONCATENATE($B111,"!D16"))),"",INDIRECT(CONCATENATE($B111,"!D16"))) -> 53.47809319 | J111: =IF(ISERROR(INDIRECT(CONCATENATE($B111,"!D23"))),"",INDIRECT(CONCATENATE($B111,"!D23"))) -> 96.3457094 | M111: =IF(ISERROR(INDIRECT(CONCATENATE($B111,"!D21"))),"",INDIRECT(CONCATENATE($B111,"!D21"))) -> 15.34405407 | N111: =IF(ISERROR(INDIRECT(CONCATENATE($B111,"!E16"))),"",INDIRECT(CONCATENATE($B111,"!E16"))) -> 73.05486306 | O111: =IF(ISERROR(INDIRECT(CONCATENATE($B111,"!E23"))),"",INDIRECT(CONCATENATE($B111,"!E23"))) -> 93.21934211 | R111: =IF(ISERROR(INDIRECT(CONCATENATE($B111,"!E21"))),"",INDIRECT(CONCATENATE($B111,"!E21"))) -> 11.57839173 | S111: =IF(ISERROR(INDIRECT(CONCATENATE($B111,"!F16"))),"",INDIRECT(CONCATENATE($B111,"!F16"))) -> 86.26625502 | T111: =IF(ISERROR(INDIRECT(CONCATENATE($B111,"!F23"))),"",INDIRECT(CONCATENATE($B111,"!F23"))) -> 96.57912605 | W111: =IF(ISERROR(INDIRECT(CONCATENATE($B111,"!F21"))),"",INDIRECT(CONCATENATE($B111,"!F21"))) -> 6.162424003 | X111: =IF(ISERROR(INDIRECT(CONCATENATE($B111,"!G16"))),"",INDIRECT(CONCATENATE($B111,"!G16"))) -> 96.8847602 | Y111: =IF(ISERROR(INDIRECT(CONCATENATE($B111,"!G23"))),"",INDIRECT(CONCATENATE($B111,"!G23"))) -> 98.1186048 | AB111: =IF(ISERROR(INDIRECT(CONCATENATE($B111,"!G221"))),"",INDIRECT(CONCATENATE($B111,"!G21"))) -> 1.900846038
B112: MICS17 | C112: 2017 | D112: =IF(ISERROR(INDIRECT(CONCATENATE($B112,"!C16"))),"",INDIRECT(CONCATENATE($B112,"!C16"))) -> 42.78109218 | E112: =IF(ISERROR(INDIRECT(CONCATENATE($B112,"!C23"))),"",INDIRECT(CONCATENATE($B112,"!C23"))) -> 90.48210559 | H112: =IF(ISERROR(INDIRECT(CONCATENATE($B112,"!C21"))),"",INDIRECT(CONCATENATE($B112,"!C21"))) -> 14.89556004 | I112: =IF(ISERROR(INDIRECT(CONCATENATE($B112,"!D16"))),"",INDIRECT(CONCATENATE($B112,"!D16"))) -> 52.45664034 | J112: =IF(ISERROR(INDIRECT(CONCATENATE($B112,"!D23"))),"",INDIRECT(CONCATENATE($B112,"!D23"))) -> 92.54212755 | M112: =IF(ISERROR(INDIRECT(CONCATENATE($B112,"!D21"))),"",INDIRECT(CONCATENATE($B112,"!D21"))) -> 15.56952896 | N112: =IF(ISERROR(INDIRECT(CONCATENATE($B112,"!E16"))),"",INDIRECT(CONCATENATE($B112,"!E16"))) -> 66.22416764 | O112: =IF(ISERROR(INDIRECT(CONCATENATE($B112,"!E23"))),"",INDIRECT(CONCATENATE($B112,"!E23"))) -> 92.29192352 | R112: =IF(ISERROR(INDIRECT(CONCATENATE($B112,"!E21"))),"",INDIRECT(CONCATENATE($B112,"!E21"))) -> 14.17670644 | S112: =IF(ISERROR(INDIRECT(CONCATENATE($B112,"!F16"))),"",INDIRECT(CONCATENATE($B112,"!F16"))) -> 86.2959419 | T112: =IF(ISERROR(INDIRECT(CONCATENATE($B112,"!F23"))),"",INDIRECT(CONCATENATE($B112,"!F23"))) -> 92.42144369 | W112: =IF(ISERROR(INDIRECT(CONCATENATE($B112,"!F21"))),"",INDIRECT(CONCATENATE($B112,"!F21"))) -> 6.587492297 | X112: =IF(ISERROR(INDIRECT(CONCATENATE($B112,"!G16"))),"",INDIRECT(CONCATENATE($B112,"!G16"))) -> 97.09708167 | Y112: =IF(ISERROR(INDIRECT(CONCATENATE($B112,"!G23"))),"",INDIRECT(CONCATENATE($B112,"!G23"))) -> 96.85024315 | AB112: =IF(ISERROR(INDIRECT(CONCATENATE($B112,"!G221"))),"",INDIRECT(CONCATENATE($B112,"!G21"))) -> 1.190657788
B113: DHS18 | C113: 2018 | D113: 46.12736563 | E113: 92.49945833 | H113: 15.3500458 | I113: 56.12788777 | J113: 94.81636456 | M113: 14.09668531 | N113: 73.71074574 | O113: 94.42673982 | R113: 10.51263763 | S113: 89.38587577 | T113: 94.86542862 | W113: 4.623767238 | X113: 97.69534593 | Y113: 97.14441113 | AB113: 0.9862049915
B118: =CONCATENATE("National use of drinking water sources, ",C99,"–",C100) -> National use of drinking water sources, 2000–2020 | S118: Data points used for regression
E153: =IF(ISERROR(INDIRECT(CONCATENATE($B153,"!M18"))),"",INDIRECT(CONCATENATE($B153,"!M18"))) ->  | F153: =IF(ISERROR(INDIRECT(CONCATENATE($B153,"!M19"))),"",INDIRECT(CONCATENATE($B153,"!M19"))) ->  | G153: =IF(ISERROR(INDIRECT(CONCATENATE($B153,"!M20"))),"",INDIRECT(CONCATENATE($B153,"!M20"))) ->  | H153: =IF(ISERROR(INDIRECT(CONCATENATE($B153,"!M21"))),"",INDIRECT(CONCATENATE($B153,"!M21"))) ->  | J153: =IF(ISERROR(INDIRECT(CONCATENATE($B153,"!N18"))),"",INDIRECT(CONCATENATE($B153,"!N18"))) ->  | K153: =IF(ISERROR(INDIRECT(CONCATENATE($B153,"!N19"))),"",INDIRECT(CONCATENATE($B153,"!N19"))) ->  | L153: =IF(ISERROR(INDIRECT(CONCATENATE($B153,"!N20"))),"",INDIRECT(CONCATENATE($B153,"!N20"))) ->  | M153: =IF(ISERROR(INDIRECT(CONCATENATE($B153,"!N21"))),"",INDIRECT(CONCATENATE($B153,"!N21"))) ->  | O153: =IF(ISERROR(INDIRECT(CONCATENATE($B153,"!O18"))),"",INDIRECT(CONCATENATE($B153,"!O18"))) ->  | P153: =IF(ISERROR(INDIRECT(CONCATENATE($B153,"!O19"))),"",INDIRECT(CONCATENATE($B153,"!O19"))) ->  | Q153: =IF(ISERROR(INDIRECT(CONCATENATE($B153,"!O20"))),"",INDIRECT(CONCATENATE($B153,"!O20"))) ->  | R153: =IF(ISERROR(INDIRECT(CONCATENATE($B153,"!O21"))),"",INDIRECT(CONCATENATE($B153,"!O21"))) ->  | T153: =IF(ISERROR(INDIRECT(CONCATENATE($B153,"!P18"))),"",INDIRECT(CONCATENATE($B153,"!P18"))) ->  | U153: =IF(ISERROR(INDIRECT(CONCATENATE($B153,"!P19"))),"",INDIRECT(CONCATENATE($B153,"!P19"))) ->  | V153: =IF(ISERROR(INDIRECT(CONCATENATE($B153,"!P20"))),"",INDIRECT(CONCATENATE($B153,"!P20"))) ->  | W153: =IF(ISERROR(INDIRECT(CONCATENATE($B153,"!P21"))),"",INDIRECT(CONCATENATE($B153,"!P21"))) ->  | Y153: =IF(ISERROR(INDIRECT(CONCATENATE($B153,"!Q18"))),"",INDIRECT(CONCATENATE($B153,"!Q18"))) ->  | Z153: =IF(ISERROR(INDIRECT(CONCATENATE($B153,"!Q19"))),"",INDIRECT(CONCATENATE($B153,"!Q19"))) ->  | AA153: =IF(ISERROR(INDIRECT(CONCATENATE($B153,"!Q20"))),"",INDIRECT(CONCATENATE($B153,"!Q20"))) ->  | AB153: =IF(ISERROR(INDIRECT(CONCATENATE($B153,"!Q21"))),"",INDIRECT(CONCATENATE($B153,"!Q1"))) -> 
A197: URBAN | D197: Poorest | I197: Poor | N197: Middle | S197: Rich | X197: Richest
D198: Improved | E198: Basic | F198: Limited | G198: Unimproved | H198: Surface water | I198: Improved | J198: Basic | K198: Limited | L198: Unimproved | M198: Surface water | N198: Improved | O198: Basic | P198: Limited | Q198: Unimproved | R198: Surface water | S198: Improved | T198: Basic | U198: Limited | V198: Unimproved | W198: Surface water | X198: Improved | Y198: Basic | Z198: Limited | AA198: Unimproved | AB198: Surface water
A199: Forecast period: | C199: 2000 | D199: =IF((D201+H201)>100,D201*100/(D201+H201),D201) -> 53.58340026 | E199: =D199*AVERAGEIF(E205:E216,">0")/100 -> 46.14116137 | F199: =D199*(100-AVERAGEIF(E205:E216,">0"))/100 -> 7.442238889 | G199: =100-(E199+F199+H199) -> 28.87515761 | H199: =IF((D201+H201)>100,H201*100/(D201+H201),H201) -> 17.54144213 | I199: =IF((I201+M201)>100,I201*100/(I201+M201),I201) -> 68.87627918 | J199: =I199*AVERAGEIF(J205:J216,">0")/100 -> 62.1758645 | K199: =I199*(100-AVERAGEIF(J205:J216,">0"))/100 -> 6.700414681 | L199: =100-(J199+K199+M199) -> 18.4889637 | M199: =IF((I201+M201)>100,M201*100/(I201+M201),M201) -> 12.63475712 | N199: =IF((N201+R201)>100,N201*100/(N201+R201),N201) -> 78.48872997 | O199: =N199*AVERAGEIF(O205:O216,">0")/100 -> 72.22723305 | P199: =N199*(100-AVERAGEIF(O205:O216,">0"))/100 -> 6.261496915 | Q199: =100-(O199+P199+R199) -> 17.87055398 | R199: =IF((N201+R201)>100,R201*100/(N201+R201),R201) -> 3.640716059 | S199: =IF((S201+W201)>100,S201*100/(S201+W201),S201) -> 85.55940796 | T199: =S199*AVERAGEIF(T205:T216,">0")/100 -> 80.66465163 | U199: =S199*(100-AVERAGEIF(T205:T216,">0"))/100 -> 4.894756322 | V199: =100-(T199+U199+W199) -> 13.12647799 | W199: =IF((S201+W201)>100,W201*100/(S201+W201),W201) -> 1.314114058 | X199: =IF((X201+AB201)>100,X201*100/(X201+AB201),X201) -> 92.71600812 | Y199: =X199*AVERAGEIF(Y205:Y216,">0")/100 -> 89.02670818 | Z199: =X199*(100-AVERAGEIF(Y205:Y216,">0"))/100 -> 3.689299933 | AA199: =100-(Y199+Z199+AB199) -> 6.554432211 | AB199: =IF((X201+AB201)>100,AB201*100/(X201+AB201),AB201) -> 0.7295596714
C200: 2020 | D200: =IF((D202+H202)>100,D202*100/(D202+H202),D202) -> 82.78723669 | E200: =D200*AVERAGEIF(E205:E216,">0")/100 -> 71.28885493 | F200: =D200*(100-AVERAGEIF(E205:E216,">0"))/100 -> 11.49838176 | G200: =100-(E200+F200+H200) -> 11.66292837 | H200: =IF((D202+H202)>100,H202*100/(D202+H202),H202) -> 5.549834937 | I200: =IF((I202+M202)>100,I202*100/(I202+M202),I202) -> 97.429103 | J200: =I200*AVERAGEIF(J205:J216,">0")/100 -> 87.95101562 | K200: =I200*(100-AVERAGEIF(J205:J216,">0"))/100 -> 9.478087374 | L200: =100-(J200+K200+M200) -> 2.570897003 | M200: =IF((I202+M202)>100,M202*100/(I202+M202),M202) -> 0 | N200: =IF((N202+R202)>100,N202*100/(N202+R202),N202) -> 99.21309881 | O200: =N200*AVERAGEIF(O205:O216,">0")/100 -> 91.29829993 | P200: =N200*(100-AVERAGEIF(O205:O216,">0"))/100 -> 7.914798881 | Q200: =100-(O200+P200+R200) -> 0 | R200: =IF((N202+R202)>100,R202*100/(N202+R202),R202) -> 0.7869011937 | S200: =IF((S202+W202)>100,S202*100/(S202+W202),S202) -> 99.55555442 | T200: =S200*AVERAGEIF(T205:T216,">0")/100 -> 93.8600945 | U200: =S200*(100-AVERAGEIF(T205:T216,">0"))/100 -> 5.695459927 | V200: =100-(T200+U200+W200) -> 0 | W200: =IF((S202+W202)>100,W202*100/(S202+W202),W202) -> 0.4444455753 | X200: =IF((X202+AB202)>100,X202*100/(X202+AB202),X202) -> 99.92189565 | Y200: =X200*AVERAGEIF(Y205:Y216,">0")/100 -> 95.94586335 | Z200: =X200*(100-AVERAGEIF(Y205:Y216,">0"))/100 -> 3.976032299 | AA200: =100-(Y200+Z200+AB200) -> 0 | AB200: =IF((X202+AB202)>100,AB202*100/(X202+AB202),AB202) -> 0.07810434928
A201: Regression period: | C201: =MinRegYear(C199,C205:C216) -> 2001 | D201: =IF(MAX(C205:C216)-MIN(C205:C216)<5,AVERAGEIF(C205:C216,">0",D205:D216), IF(FORECAST($C201,D$205:D$216,$C$205:$C$216)<0,0, IF(FORECAST($C201,D$205:D$216,$C$205:$C$216)>100,100, FORECAST($C201,D$205:D$216,$C$205:$C$216)))) -> 53.58340026 | H201: =IF(MAX(C205:C216)-MIN(C205:C216)<5,AVERAGEIF(C205:C216,">0",H205:H216), IF(FORECAST($C201,H$205:H$216,$C$205:$C$216)<0,0, IF(FORECAST($C201,H$205:H$216,$C$205:$C$216)>100,100, FORECAST($C201,H$205:H$216,$C$205:$C$216)))) -> 17.54144213 | I201: =IF(MAX(C205:C216)-MIN(C205:C216)<5,AVERAGEIF(C205:C216,">0",I205:I216), IF(FORECAST($C201,I$205:I$216,$C$205:$C$216)<0,0, IF(FORECAST($C201,I$205:I$216,$C$205:$C$216)>100,100, FORECAST($C201,I$205:I$216,$C$205:$C$216)))) -> 68.87627918 | M201: =IF(MAX(C205:C216)-MIN(C205:C216)<5,AVERAGEIF(C205:C216,">0",M205:M216), IF(FORECAST($C201,M$205:M$216,$C$205:$C$216)<0,0, IF(FORECAST($C201,M$205:M$216,$C$205:$C$216)>100,100, FORECAST($C201,M$205:M$216,$C$205:$C$216)))) -> 12.63475712 | N201: =IF(MAX(C205:C216)-MIN(C205:C216)<5,AVERAGEIF(C205:C216,">0",N205:N216), IF(FORECAST($C201,N$205:N$216,$C$205:$C$216)<0,0, IF(FORECAST($C201,N$205:N$216,$C$205:$C$216)>100,100, FORECAST($C201,N$205:N$216,$C$205:$C$216)))) -> 78.48872997 | R201: =IF(MAX(C205:C216)-MIN(C205:C216)<5,AVERAGEIF(C205:C216,">0",R205:R216), IF(FORECAST($C201,R$205:R$216,$C$205:$C$216)<0,0, IF(FORECAST($C201,R$205:R$216,$C$205:$C$216)>100,100, FORECAST($C201,R$205:R$216,$C$205:$C$216)))) -> 3.640716059 | S201: =IF(MAX(C205:C216)-MIN(C205:C216)<5,AVERAGEIF(C205:C216,">0",S205:S216), IF(FORECAST($C201,S$205:S$216,$C$205:$C$216)<0,0, IF(FORECAST($C201,S$205:S$216,$C$205:$C$216)>100,100, FORECAST($C201,S$205:S$216,$C$205:$C$216)))) -> 85.55940796 | W201: =IF(MAX(C205:C216)-MIN(C205:C216)<5,AVERAGEIF(C205:C216,">0",W205:W216), IF(FORECAST($C201,W$205:W$216,$C$205:$C$216)<0,0, IF(FORECAST($C201,W$205:W$216,$C$205:$C$216)>100,100, FORECAST($C201,W$205:W$216,$C$205:$C$216)))) -> 1.314114058 | X201: =IF(MAX(C205:C216)-MIN(C205:C216)<5,AVERAGEIF(C205:C216,">0",X205:X216), IF(FORECAST($C201,X$205:X$216,$C$205:$C$216)<0,0, IF(FORECAST($C201,X$205:X$216,$C$205:$C$216)>100,100, FORECAST($C201,X$205:X$216,$C$205:$C$216)))) -> 92.71600812 | AB201: =IF(MAX(C205:C216)-MIN(C205:C216)<5,AVERAGEIF(C205:C216,">0",AB205:AB216), IF(FORECAST($C201,AB$205:AB$216,$C$205:$C$216)<0,0, IF(FORECAST($C201,AB$205:AB$216,$C$205:$C$216)>100,100, FORECAST($C201,AB$205:AB$216,$C$205:$C$216)))) -> 0.7295596714
C202: =MaxRegYear(C200,C205:C216) -> 2020 | D202: =IF(MAX(C205:C216)-MIN(C205:C216)<5,AVERAGEIF(C205:C216,">0",D205:D216), IF(FORECAST($C202,D$205:D$216,$C$205:$C$216)<0,0, IF(FORECAST($C202,D$205:D$216,$C$205:$C$216)>100,100, FORECAST($C202,D$205:D$216,$C$205:$C$216)))) -> 82.78723669 | H202: =IF(MAX(C205:C216)-MIN(C205:C216)<5,AVERAGEIF(C205:C216,">0",H205:H216), IF(FORECAST($C202,H$205:H$216,$C$205:$C$216)<0,0, IF(FORECAST($C202,H$205:H$216,$C$205:$C$216)>100,100, FORECAST($C202,H$205:H$216,$C$205:$C$216)))) -> 5.549834937 | I202: =IF(MAX(C205:C216)-MIN(C205:C216)<5,AVERAGEIF(C205:C216,">0",I205:I216), IF(FORECAST($C202,I$205:I$216,$C$205:$C$216)<0,0, IF(FORECAST($C202,I$205:I$216,$C$205:$C$216)>100,100, FORECAST($C202,I$205:I$216,$C$205:$C$216)))) -> 97.429103 | M202: =IF(MAX(C205:C216)-MIN(C205:C216)<5,AVERAGEIF(C205:C216,">0",M205:M216), IF(FORECAST($C202,M$205:M$216,$C$205:$C$216)<0,0, IF(FORECAST($C202,M$205:M$216,$C$205:$C$216)>100,100, FORECAST($C202,M$205:M$216,$C$205:$C$216)))) -> 0 | N202: =IF(MAX(C205:C216)-MIN(C205:C216)<5,AVERAGEIF(C205:C216,">0",N205:N216), IF(FORECAST($C202,N$205:N$216,$C$205:$C$216)<0,0, IF(FORECAST($C202,N$205:N$216,$C$205:$C$216)>100,100, FORECAST($C202,N$205:N$216,$C$205:$C$216)))) -> 100 | R202: =IF(MAX(C205:C216)-MIN(C205:C216)<5,AVERAGEIF(C205:C216,">0",R205:R216), IF(FORECAST($C202,R$205:R$216,$C$205:$C$216)<0,0, IF(FORECAST($C202,R$205:R$216,$C$205:$C$216)>100,100, FORECAST($C202,R$205:R$216,$C$205:$C$216)))) -> 0.793142441 | S202: =IF(MAX(C205:C216)-MIN(C205:C216)<5,AVERAGEIF(C205:C216,">0",S205:S216), IF(FORECAST($C202,S$205:S$216,$C$205:$C$216)<0,0, IF(FORECAST($C202,S$205:S$216,$C$205:$C$216)>100,100, FORECAST($C202,S$205:S$216,$C$205:$C$216)))) -> 100 | W202: =IF(MAX(C205:C216)-MIN(C205:C216)<5,AVERAGEIF(C205:C216,">0",W205:W216), IF(FORECAST($C202,W$205:W$216,$C$205:$C$216)<0,0, IF(FORECAST($C202,W$205:W$216,$C$205:$C$216)>100,100, FORECAST($C202,W$205:W$216,$C$205:$C$216)))) -> 0.4464297124 | X202: =IF(MAX(C205:C216)-MIN(C205:C216)<5,AVERAGEIF(C205:C216,">0",X205:X216), IF(FORECAST($C202,X$205:X$216,$C$205:$C$216)<0,0, IF(FORECAST($C202,X$205:X$216,$C$205:$C$216)>100,100, FORECAST($C202,X$205:X$216,$C$205:$C$216)))) -> 100 | AB202: =IF(MAX(C205:C216)-MIN(C205:C216)<5,AVERAGEIF(C205:C216,">0",AB205:AB216), IF(FORECAST($C202,AB$205:AB$216,$C$205:$C$216)<0,0, IF(FORECAST($C202,AB$205:AB$216,$C$205:$C$216)>100,100, FORECAST($C202,AB$205:AB$216,$C$205:$C$216)))) -> 0.07816539986
B204: Survey | C204: Year | D204: Improved | E204: % Improved < = 30min | H204: Surface water | I204: Improved | J204: % Improved < = 30min | M204: Surface water | N204: Improved | O204: % Improved < = 30min | R204: Surface water | S204: Improved | T204: % Improved < = 30min | W204: Surface water | X204: Improved | Y204: % Improved < = 30min | AB204: Surface water
B205: DHS03 | C205: 2003 | D205: =IF(ISERROR(INDIRECT(CONCATENATE($B205,"!H16"))),"",INDIRECT(CONCATENATE($B205,"!H16"))) -> 55.44832279 | E205: =IF(ISERROR(INDIRECT(CONCATENATE($B205,"!H23"))),"",INDIRECT(CONCATENATE($B205,"!H23"))) -> N/A | H205: =IF(ISERROR(INDIRECT(CONCATENATE($B205,"!H21"))),"",INDIRECT(CONCATENATE($B205,"!H21"))) -> 18.66764822 | I205: =IF(ISERROR(INDIRECT(CONCATENATE($B205,"!I16"))),"",INDIRECT(CONCATENATE($B205,"!I16"))) -> 65.52567754 | J205: =IF(ISERROR(INDIRECT(CONCATENATE($B205,"!I23"))),"",INDIRECT(CONCATENATE($B205,"!I23"))) -> N/A | M205: =IF(ISERROR(INDIRECT(CONCATENATE($B205,"!I21"))),"",INDIRECT(CONCATENATE($B205,"!I21"))) -> 13.74210043 | N205: =IF(ISERROR(INDIRECT(CONCATENATE($B205,"!J16"))),"",INDIRECT(CONCATENATE($B205,"!J16"))) -> 75.30064829 | O205: =IF(ISERROR(INDIRECT(CONCATENATE($B205,"!J23"))),"",INDIRECT(CONCATENATE($B205,"!J23"))) -> N/A | R205: =IF(ISERROR(INDIRECT(CONCATENATE($B205,"!J21"))),"",INDIRECT(CONCATENATE($B205,"!J21"))) -> 3.853390238 | S205: =IF(ISERROR(INDIRECT(CONCATENATE($B205,"!K16"))),"",INDIRECT(CONCATENATE($B205,"!K16"))) -> 83.45063407 | T205: =IF(ISERROR(INDIRECT(CONCATENATE($B205,"!K23"))),"",INDIRECT(CONCATENATE($B205,"!K23"))) -> N/A | W205: =IF(ISERROR(INDIRECT(CONCATENATE($B205,"!K21"))),"",INDIRECT(CONCATENATE($B205,"!K21"))) -> 1.215864855 | X205: =IF(ISERROR(INDIRECT(CONCATENATE($B205,"!L16"))),"",INDIRECT(CONCATENATE($B205,"!L16"))) -> 92.13056887 | Y205: =IF(ISERROR(INDIRECT(CONCATENATE($B205,"!L23"))),"",INDIRECT(CONCATENATE($B205,"!L23"))) -> N/A | AB205: =IF(ISERROR(INDIRECT(CONCATENATE($B205,"!L221"))),"",INDIRECT(CONCATENATE($B205,"!L21"))) -> 0.9527339907
B206: MICS07 | D206: 22.38831522 | E206: 69.71719895 | H206: 27.66544662 | I206: 27.05474492 | J206: 82.01227834 | M206: 33.76223887 | N206: 35.05633155 | O206: 83.98767135 | R206: 29.93440344 | S206: 44.014177 | T206: 84.41162579 | W206: 29.87081207 | X206: 64.83260296 | Y206: 89.09632392 | AB206: 21.95458445
B207: DHS08 | C207: 2008 | D207: 58.37788656 | E207: 90 | H207: 12.7656357 | I207: 81.07594116 | J207: 91.8 | M207: 7.014730942 | N207: 89.17110313 | O207: 93.5 | R207: 3.018804094 | S207: 94.11010991 | T207: 94.4 | W207: 1.341280065 | X207: 96.27132956 | Y207: 96.3 | AB207: 0.1944306038
B208: MIS10 | D208: 53.7995214 | E208: N/A | H208: 7.703632979 | I208: 77.14196019 | J208: N/A | M208: 3.686587157 | N208: 87.21522444 | O208: N/A | R208: 1.995707429 | S208: 93.56824249 | T208: N/A | W208: 1.667746091 | X208: 96.45247561 | Y208: N/A | AB208: 0.1149126324
B209: MICS11 | C209: 2011 | D209: 75.63405013 | E209: 90.9132289 | H209: 5.425958848 | I209: 95.05387428 | J209: 91.13707638 | M209: 1.935087925 | N209: 97.52340777 | O209: 92.6309647 | R209: 0.672660837 | S209: 98.39643224 | T209: 96.77709515 | W209: 0.260939 | X209: 99.4580131 | Y209: 98.1138341 | AB209: 0.1495768214
B210: DHS13 | C210: 2013 | D210: 73.87167262 | E210: 74.3 | H210: 14.63815744 | I210: 88.16119253 | J210: 83.7 | M210: 3.7855948 | N210: 92.80200716 | O210: 89.3 | R210: 1.65588046 | S210: 96.16703882 | T210: 93.2 | W210: 0.7614726489 | X210: 97.88128002 | Y210: 94.6 | AB210: 0.1820296517
B211: MIS15 | C211: 2015 | D211: 83.64204141 | E211: 94.39857691 | H211: 4.247141576 | I211: 88.64860306 | J211: 95.13083645 | M211: 1.71578987 | N211: 93.88583518 | O211: 97.31638179 | R211: 1.292856058 | S211: 97.57605214 | T211: 98.36336249 | W211: 1.08499281 | X211: 99.00783561 | Y211: 98.18370597 | AB211: 0.5517190968
B212: MICS17 | C212: 2017 | D212: 74.36154355 | E212: 91.10966928 | H212: 5.846603675 | I212: 90.95467778 | J212: 94.1572911 | M212: 2.753286968 | N212: 94.71067829 | O212: 92.67530275 | R212: 1.250646402 | S212: 98.28979229 | T212: 97.02717775 | W212: 0.1867202408 | X212: 98.88597392 | Y212: 97.90390313 | AB212: 0.1905215308
B213: DHS18 | C213: 2018 | D213: 73.63771854 | E213: 92.33779786 | H213: 11.97024624 | I213: 89.93084359 | J213: 93.96519405 | M213: 2.958464289 | N213: 94.38000734 | O213: 94.74665783 | R213: 2.050735259 | S213: 97.42974793 | T213: 95.77453576 | W213: 0.7854562084 | X213: 99.18720342 | Y213: 97.94825161 | AB213: 0.2117611005
B218: =CONCATENATE("Urban use of drinking water sources, ",C199,"–",C200) -> Urban use of drinking water sources, 2000–2020 | S218: Data points used for regression
E253: =IF(ISERROR(INDIRECT(CONCATENATE($B253,"!M18"))),"",INDIRECT(CONCATENATE($B253,"!M18"))) ->  | F253: =IF(ISERROR(INDIRECT(CONCATENATE($B253,"!M19"))),"",INDIRECT(CONCATENATE($B253,"!M19"))) ->  | G253: =IF(ISERROR(INDIRECT(CONCATENATE($B253,"!M20"))),"",INDIRECT(CONCATENATE($B253,"!M20"))) ->  | H253: =IF(ISERROR(INDIRECT(CONCATENATE($B253,"!M21"))),"",INDIRECT(CONCATENATE($B253,"!M21"))) ->  | J253: =IF(ISERROR(INDIRECT(CONCATENATE($B253,"!N18"))),"",INDIRECT(CONCATENATE($B253,"!N18"))) ->  | K253: =IF(ISERROR(INDIRECT(CONCATENATE($B253,"!N19"))),"",INDIRECT(CONCATENATE($B253,"!N19"))) ->  | L253: =IF(ISERROR(INDIRECT(CONCATENATE($B253,"!N20"))),"",INDIRECT(CONCATENATE($B253,"!N20"))) ->  | M253: =IF(ISERROR(INDIRECT(CONCATENATE($B253,"!N21"))),"",INDIRECT(CONCATENATE($B253,"!N21"))) ->  | O253: =IF(ISERROR(INDIRECT(CONCATENATE($B253,"!O18"))),"",INDIRECT(CONCATENATE($B253,"!O18"))) ->  | P253: =IF(ISERROR(INDIRECT(CONCATENATE($B253,"!O19"))),"",INDIRECT(CONCATENATE($B253,"!O19"))) ->  | Q253: =IF(ISERROR(INDIRECT(CONCATENATE($B253,"!O20"))),"",INDIRECT(CONCATENATE($B253,"!O20"))) ->  | R253: =IF(ISERROR(INDIRECT(CONCATENATE($B253,"!O21"))),"",INDIRECT(CONCATENATE($B253,"!O21"))) ->  | T253: =IF(ISERROR(INDIRECT(CONCATENATE($B253,"!P18"))),"",INDIRECT(CONCATENATE($B253,"!P18"))) ->  | U253: =IF(ISERROR(INDIRECT(CONCATENATE($B253,"!P19"))),"",INDIRECT(CONCATENATE($B253,"!P19"))) ->  | V253: =IF(ISERROR(INDIRECT(CONCATENATE($B253,"!P20"))),"",INDIRECT(CONCATENATE($B253,"!P20"))) ->  | W253: =IF(ISERROR(INDIRECT(CONCATENATE($B253,"!P21"))),"",INDIRECT(CONCATENATE($B253,"!P21"))) ->  | Y253: =IF(ISERROR(INDIRECT(CONCATENATE($B253,"!Q18"))),"",INDIRECT(CONCATENATE($B253,"!Q18"))) ->  | Z253: =IF(ISERROR(INDIRECT(CONCATENATE($B253,"!Q19"))),"",INDIRECT(CONCATENATE($B253,"!Q19"))) ->  | AA253: =IF(ISERROR(INDIRECT(CONCATENATE($B253,"!Q20"))),"",INDIRECT(CONCATENATE($B253,"!Q20"))) ->  | AB253: =IF(ISERROR(INDIRECT(CONCATENATE($B253,"!Q21"))),"",INDIRECT(CONCATENATE($B253,"!Q1"))) -> 
E254: =IF(ISERROR(INDIRECT(CONCATENATE($B254,"!M18"))),"",INDIRECT(CONCATENATE($B254,"!M18"))) ->  | F254: =IF(ISERROR(INDIRECT(CONCATENATE($B254,"!M19"))),"",INDIRECT(CONCATENATE($B254,"!M19"))) ->  | G254: =IF(ISERROR(INDIRECT(CONCATENATE($B254,"!M20"))),"",INDIRECT(CONCATENATE($B254,"!M20"))) ->  | H254: =IF(ISERROR(INDIRECT(CONCATENATE($B254,"!M21"))),"",INDIRECT(CONCATENATE($B254,"!M21"))) ->  | J254: =IF(ISERROR(INDIRECT(CONCATENATE($B254,"!N18"))),"",INDIRECT(CONCATENATE($B254,"!N18"))) ->  | K254: =IF(ISERROR(INDIRECT(CONCATENATE($B254,"!N19"))),"",INDIRECT(CONCATENATE($B254,"!N19"))) ->  | L254: =IF(ISERROR(INDIRECT(CONCATENATE($B254,"!N20"))),"",INDIRECT(CONCATENATE($B254,"!N20"))) ->  | M254: =IF(ISERROR(INDIRECT(CONCATENATE($B254,"!N21"))),"",INDIRECT(CONCATENATE($B254,"!N21"))) ->  | O254: =IF(ISERROR(INDIRECT(CONCATENATE($B254,"!O18"))),"",INDIRECT(CONCATENATE($B254,"!O18"))) ->  | P254: =IF(ISERROR(INDIRECT(CONCATENATE($B254,"!O19"))),"",INDIRECT(CONCATENATE($B254,"!O19"))) ->  | Q254: =IF(ISERROR(INDIRECT(CONCATENATE($B254,"!O20"))),"",INDIRECT(CONCATENATE($B254,"!O20"))) ->  | R254: =IF(ISERROR(INDIRECT(CONCATENATE($B254,"!O21"))),"",INDIRECT(CONCATENATE($B254,"!O21"))) ->  | T254: =IF(ISERROR(INDIRECT(CONCATENATE($B254,"!P18"))),"",INDIRECT(CONCATENATE($B254,"!P18"))) ->  | U254: =IF(ISERROR(INDIRECT(CONCATENATE($B254,"!P19"))),"",INDIRECT(CONCATENATE($B254,"!P19"))) ->  | V254: =IF(ISERROR(INDIRECT(CONCATENATE($B254,"!P20"))),"",INDIRECT(CONCATENATE($B254,"!P20"))) ->  | W254: =IF(ISERROR(INDIRECT(CONCATENATE($B254,"!P21"))),"",INDIRECT(CONCATENATE($B254,"!P21"))) ->  | Y254: =IF(ISERROR(INDIRECT(CONCATENATE($B254,"!Q18"))),"",INDIRECT(CONCATENATE($B254,"!Q18"))) ->  | Z254: =IF(ISERROR(INDIRECT(CONCATENATE($B254,"!Q19"))),"",INDIRECT(CONCATENATE($B254,"!Q19"))) ->  | AA254: =IF(ISERROR(INDIRECT(CONCATENATE($B254,"!Q20"))),"",INDIRECT(CONCATENATE($B254,"!Q20"))) ->  | AB254: =IF(ISERROR(INDIRECT(CONCATENATE($B254,"!Q21"))),"",INDIRECT(CONCATENATE($B254,"!Q1"))) -> 
E255: =IF(ISERROR(INDIRECT(CONCATENATE($B255,"!M18"))),"",INDIRECT(CONCATENATE($B255,"!M18"))) ->  | F255: =IF(ISERROR(INDIRECT(CONCATENATE($B255,"!M19"))),"",INDIRECT(CONCATENATE($B255,"!M19"))) ->  | G255: =IF(ISERROR(INDIRECT(CONCATENATE($B255,"!M20"))),"",INDIRECT(CONCATENATE($B255,"!M20"))) ->  | H255: =IF(ISERROR(INDIRECT(CONCATENATE($B255,"!M21"))),"",INDIRECT(CONCATENATE($B255,"!M21"))) ->  | J255: =IF(ISERROR(INDIRECT(CONCATENATE($B255,"!N18"))),"",INDIRECT(CONCATENATE($B255,"!N18"))) ->  | K255: =IF(ISERROR(INDIRECT(CONCATENATE($B255,"!N19"))),"",INDIRECT(CONCATENATE($B255,"!N19"))) ->  | L255: =IF(ISERROR(INDIRECT(CONCATENATE($B255,"!N20"))),"",INDIRECT(CONCATENATE($B255,"!N20"))) ->  | M255: =IF(ISERROR(INDIRECT(CONCATENATE($B255,"!N21"))),"",INDIRECT(CONCATENATE($B255,"!N21"))) ->  | O255: =IF(ISERROR(INDIRECT(CONCATENATE($B255,"!O18"))),"",INDIRECT(CONCATENATE($B255,"!O18"))) ->  | P255: =IF(ISERROR(INDIRECT(CONCATENATE($B255,"!O19"))),"",INDIRECT(CONCATENATE($B255,"!O19"))) ->  | Q255: =IF(ISERROR(INDIRECT(CONCATENATE($B255,"!O20"))),"",INDIRECT(CONCATENATE($B255,"!O20"))) ->  | R255: =IF(ISERROR(INDIRECT(CONCATENATE($B255,"!O21"))),"",INDIRECT(CONCATENATE($B255,"!O21"))) ->  | T255: =IF(ISERROR(INDIRECT(CONCATENATE($B255,"!P18"))),"",INDIRECT(CONCATENATE($B255,"!P18"))) ->  | U255: =IF(ISERROR(INDIRECT(CONCATENATE($B255,"!P19"))),"",INDIRECT(CONCATENATE($B255,"!P19"))) ->  | V255: =IF(ISERROR(INDIRECT(CONCATENATE($B255,"!P20"))),"",INDIRECT(CONCATENATE($B255,"!P20"))) ->  | W255: =IF(ISERROR(INDIRECT(CONCATENATE($B255,"!P21"))),"",INDIRECT(CONCATENATE($B255,"!P21"))) ->  | Y255: =IF(ISERROR(INDIRECT(CONCATENATE($B255,"!Q18"))),"",INDIRECT(CONCATENATE($B255,"!Q18"))) ->  | Z255: =IF(ISERROR(INDIRECT(CONCATENATE($B255,"!Q19"))),"",INDIRECT(CONCATENATE($B255,"!Q19"))) ->  | AA255: =IF(ISERROR(INDIRECT(CONCATENATE($B255,"!Q20"))),"",INDIRECT(CONCATENATE($B255,"!Q20"))) ->  | AB255: =IF(ISERROR(INDIRECT(CONCATENATE($B255,"!Q21"))),"",INDIRECT(CONCATENATE($B255,"!Q1"))) -> 
E256: =IF(ISERROR(INDIRECT(CONCATENATE($B256,"!M18"))),"",INDIRECT(CONCATENATE($B256,"!M18"))) ->  | F256: =IF(ISERROR(INDIRECT(CONCATENATE($B256,"!M19"))),"",INDIRECT(CONCATENATE($B256,"!M19"))) ->  | G256: =IF(ISERROR(INDIRECT(CONCATENATE($B256,"!M20"))),"",INDIRECT(CONCATENATE($B256,"!M20"))) ->  | H256: =IF(ISERROR(INDIRECT(CONCATENATE($B256,"!M21"))),"",INDIRECT(CONCATENATE($B256,"!M21"))) ->  | J256: =IF(ISERROR(INDIRECT(CONCATENATE($B256,"!N18"))),"",INDIRECT(CONCATENATE($B256,"!N18"))) ->  | K256: =IF(ISERROR(INDIRECT(CONCATENATE($B256,"!N19"))),"",INDIRECT(CONCATENATE($B256,"!N19"))) ->  | L256: =IF(ISERROR(INDIRECT(CONCATENATE($B256,"!N20"))),"",INDIRECT(CONCATENATE($B256,"!N20"))) ->  | M256: =IF(ISERROR(INDIRECT(CONCATENATE($B256,"!N21"))),"",INDIRECT(CONCATENATE($B256,"!N21"))) ->  | O256: =IF(ISERROR(INDIRECT(CONCATENATE($B256,"!O18"))),"",INDIRECT(CONCATENATE($B256,"!O18"))) ->  | P256: =IF(ISERROR(INDIRECT(CONCATENATE($B256,"!O19"))),"",INDIRECT(CONCATENATE($B256,"!O19"))) ->  | Q256: =IF(ISERROR(INDIRECT(CONCATENATE($B256,"!O20"))),"",INDIRECT(CONCATENATE($B256,"!O20"))) ->  | R256: =IF(ISERROR(INDIRECT(CONCATENATE($B256,"!O21"))),"",INDIRECT(CONCATENATE($B256,"!O21"))) ->  | T256: =IF(ISERROR(INDIRECT(CONCATENATE($B256,"!P18"))),"",INDIRECT(CONCATENATE($B256,"!P18"))) ->  | U256: =IF(ISERROR(INDIRECT(CONCATENATE($B256,"!P19"))),"",INDIRECT(CONCATENATE($B256,"!P19"))) ->  | V256: =IF(ISERROR(INDIRECT(CONCATENATE($B256,"!P20"))),"",INDIRECT(CONCATENATE($B256,"!P20"))) ->  | W256: =IF(ISERROR(INDIRECT(CONCATENATE($B256,"!P21"))),"",INDIRECT(CONCATENATE($B256,"!P21"))) ->  | Y256: =IF(ISERROR(INDIRECT(CONCATENATE($B256,"!Q18"))),"",INDIRECT(CONCATENATE($B256,"!Q18"))) ->  | Z256: =IF(ISERROR(INDIRECT(CONCATENATE($B256,"!Q19"))),"",INDIRECT(CONCATENATE($B256,"!Q19"))) ->  | AA256: =IF(ISERROR(INDIRECT(CONCATENATE($B256,"!Q20"))),"",INDIRECT(CONCATENATE($B256,"!Q20"))) ->  | AB256: =IF(ISERROR(INDIRECT(CONCATENATE($B256,"!Q21"))),"",INDIRECT(CONCATENATE($B256,"!Q1"))) -> 
E257: =IF(ISERROR(INDIRECT(CONCATENATE($B257,"!M18"))),"",INDIRECT(CONCATENATE($B257,"!M18"))) ->  | F257: =IF(ISERROR(INDIRECT(CONCATENATE($B257,"!M19"))),"",INDIRECT(CONCATENATE($B257,"!M19"))) ->  | G257: =IF(ISERROR(INDIRECT(CONCATENATE($B257,"!M20"))),"",INDIRECT(CONCATENATE($B257,"!M20"))) ->  | H257: =IF(ISERROR(INDIRECT(CONCATENATE($B257,"!M21"))),"",INDIRECT(CONCATENATE($B257,"!M21"))) ->  | J257: =IF(ISERROR(INDIRECT(CONCATENATE($B257,"!N18"))),"",INDIRECT(CONCATENATE($B257,"!N18"))) ->  | K257: =IF(ISERROR(INDIRECT(CONCATENATE($B257,"!N19"))),"",INDIRECT(CONCATENATE($B257,"!N19"))) ->  | L257: =IF(ISERROR(INDIRECT(CONCATENATE($B257,"!N20"))),"",INDIRECT(CONCATENATE($B257,"!N20"))) ->  | M257: =IF(ISERROR(INDIRECT(CONCATENATE($B257,"!N21"))),"",INDIRECT(CONCATENATE($B257,"!N21"))) ->  | O257: =IF(ISERROR(INDIRECT(CONCATENATE($B257,"!O18"))),"",INDIRECT(CONCATENATE($B257,"!O18"))) ->  | P257: =IF(ISERROR(INDIRECT(CONCATENATE($B257,"!O19"))),"",INDIRECT(CONCATENATE($B257,"!O19"))) ->  | Q257: =IF(ISERROR(INDIRECT(CONCATENATE($B257,"!O20"))),"",INDIRECT(CONCATENATE($B257,"!O20"))) ->  | R257: =IF(ISERROR(INDIRECT(CONCATENATE($B257,"!O21"))),"",INDIRECT(CONCATENATE($B257,"!O21"))) ->  | T257: =IF(ISERROR(INDIRECT(CONCATENATE($B257,"!P18"))),"",INDIRECT(CONCATENATE($B257,"!P18"))) ->  | U257: =IF(ISERROR(INDIRECT(CONCATENATE($B257,"!P19"))),"",INDIRECT(CONCATENATE($B257,"!P19"))) ->  | V257: =IF(ISERROR(INDIRECT(CONCATENATE($B257,"!P20"))),"",INDIRECT(CONCATENATE($B257,"!P20"))) ->  | W257: =IF(ISERROR(INDIRECT(CONCATENATE($B257,"!P21"))),"",INDIRECT(CONCATENATE($B257,"!P21"))) ->  | Y257: =IF(ISERROR(INDIRECT(CONCATENATE($B257,"!Q18"))),"",INDIRECT(CONCATENATE($B257,"!Q18"))) ->  | Z257: =IF(ISERROR(INDIRECT(CONCATENATE($B257,"!Q19"))),"",INDIRECT(CONCATENATE($B257,"!Q19"))) ->  | AA257: =IF(ISERROR(INDIRECT(CONCATENATE($B257,"!Q20"))),"",INDIRECT(CONCATENATE($B257,"!Q20"))) ->  | AB257: =IF(ISERROR(INDIRECT(CONCATENATE($B257,"!Q21"))),"",INDIRECT(CONCATENATE($B257,"!Q1"))) -> 
A297: RURAL | D297: Poorest | I297: Poor | N297: Middle | S297: Rich | X297: Richest
D298: Improved | E298: Basic | F298: Limited | G298: Unimproved | H298: Surface water | I298: Improved | J298: Basic | K298: Limited | L298: Unimproved | M298: Surface water | N298: Improved | O298: Basic | P298: Limited | Q298: Unimproved | R298: Surface water | S298: Improved | T298: Basic | U298: Limited | V298: Unimproved | W298: Surface water | X298: Improved | Y298: Basic | Z298: Limited | AA298: Unimproved | AB298: Surface water
A299: Forecast period: | C299: 2000 | D299: =IF((D301+H301)>100,D301*100/(D301+H301),D301) -> 32.27017707 | E299: =D299*AVERAGEIF(E305:E316,">0")/100 -> 27.89012511 | F299: =D299*(100-AVERAGEIF(E305:E316,">0"))/100 -> 4.380051966 | G299: =100-(E299+F299+H299) -> 44.23327106 | H299: =IF((D301+H301)>100,H301*100/(D301+H301),H301) -> 23.49655186 | I299: =IF((I301+M301)>100,I301*100/(I301+M301),I301) -> 39.92332633 | J299: =I299*AVERAGEIF(J305:J316,">0")/100 -> 36.04204722 | K299: =I299*(100-AVERAGEIF(J305:J316,">0"))/100 -> 3.881279107 | L299: =100-(J299+K299+M299) -> 33.59017746 | M299: =IF((I301+M301)>100,M301*100/(I301+M301),M301) -> 26.4864962 | N299: =IF((N301+R301)>100,N301*100/(N301+R301),N301) -> 41.94428451 | O299: =N299*AVERAGEIF(O305:O316,">0")/100 -> 38.68350721 | P299: =N299*(100-AVERAGEIF(O305:O316,">0"))/100 -> 3.260777298 | Q299: =100-(O299+P299+R299) -> 28.03238281 | R299: =IF((N301+R301)>100,R301*100/(N301+R301),R301) -> 30.02333268 | S299: =IF((S301+W301)>100,S301*100/(S301+W301),S301) -> 50.70055013 | T299: =S299*AVERAGEIF(T305:T316,">0")/100 -> 46.72186247 | U299: =S299*(100-AVERAGEIF(T305:T316,">0"))/100 -> 3.978687656 | V299: =100-(T299+U299+W299) -> 21.79612777 | W299: =IF((S301+W301)>100,W301*100/(S301+W301),W301) -> 27.50332211 | X299: =IF((X301+AB301)>100,X301*100/(X301+AB301),X301) -> 68.79754172 | Y299: =X299*AVERAGEIF(Y305:Y316,">0")/100 -> 64.82237685 | Z299: =X299*(100-AVERAGEIF(Y305:Y316,">0"))/100 -> 3.975164874 | AA299: =100-(Y299+Z299+AB299) -> 14.60078156 | AB299: =IF((X301+AB301)>100,AB301*100/(X301+AB301),AB301) -> 16.60167672
C300: 2020 | D300: =IF((D302+H302)>100,D302*100/(D302+H302),D302) -> 45.89607377 | E300: =D300*AVERAGEIF(E305:E316,">0")/100 -> 39.66657005 | F300: =D300*(100-AVERAGEIF(E305:E316,">0"))/100 -> 6.229503721 | G300: =100-(E300+F300+H300) -> 41.23906373 | H300: =IF((D302+H302)>100,H302*100/(D302+H302),H302) -> 12.86486249 | I300: =IF((I302+M302)>100,I302*100/(I302+M302),I302) -> 47.43809695 | J300: =I300*AVERAGEIF(J305:J316,">0")/100 -> 42.82624439 | K300: =I300*(100-AVERAGEIF(J305:J316,">0"))/100 -> 4.611852555 | L300: =100-(J300+K300+M300) -> 37.82004195 | M300: =IF((I302+M302)>100,M302*100/(I302+M302),M302) -> 14.7418611 | N300: =IF((N302+R302)>100,N302*100/(N302+R302),N302) -> 54.78747241 | O300: =N300*AVERAGEIF(O305:O316,">0")/100 -> 50.52825692 | P300: =N300*(100-AVERAGEIF(O305:O316,">0"))/100 -> 4.259215488 | Q300: =100-(O300+P300+R300) -> 31.3690671 | R300: =IF((N302+R302)>100,R302*100/(N302+R302),R302) -> 13.8434605 | S300: =IF((S302+W302)>100,S302*100/(S302+W302),S302) -> 67.70718159 | T300: =S300*AVERAGEIF(T305:T316,">0")/100 -> 62.39391128 | U300: =S300*(100-AVERAGEIF(T305:T316,">0"))/100 -> 5.313270308 | V300: =100-(T300+U300+W300) -> 17.15540964 | W300: =IF((S302+W302)>100,W302*100/(S302+W302),W302) -> 15.13740877 | X300: =IF((X302+AB302)>100,X302*100/(X302+AB302),X302) -> 87.95141597 | Y300: =X300*AVERAGEIF(Y305:Y316,">0")/100 -> 82.8695283 | Z300: =X300*(100-AVERAGEIF(Y305:Y316,">0"))/100 -> 5.081887676 | AA300: =100-(Y300+Z300+AB300) -> 4.694208245 | AB300: =IF((X302+AB302)>100,AB302*100/(X302+AB302),AB302) -> 7.354375783
A301: Regression period: | C301: =MinRegYear(C299,C305:C316) -> 2001 | D301: =IF(MAX(C305:C316)-MIN(C305:C316)<5,AVERAGEIF(C305:C316,">0",D305:D316), IF(FORECAST($C301,D$305:D$316,$C$305:$C$316)<0,0, IF(FORECAST($C301,D$305:D$316,$C$305:$C$316)>100,100, FORECAST($C301,D$305:D$316,$C$305:$C$316)))) -> 32.27017707 | H301: =IF(MAX(C305:C316)-MIN(C305:C316)<5,AVERAGEIF(C305:C316,">0",H305:H316), IF(FORECAST($C301,H$305:H$316,$C$305:$C$316)<0,0, IF(FORECAST($C301,H$305:H$316,$C$305:$C$316)>100,100, FORECAST($C301,H$305:H$316,$C$305:$C$316)))) -> 23.49655186 | I301: =IF(MAX(C305:C316)-MIN(C305:C316)<5,AVERAGEIF(C305:C316,">0",I305:I316), IF(FORECAST($C301,I$305:I$316,$C$305:$C$316)<0,0, IF(FORECAST($C301,I$305:I$316,$C$305:$C$316)>100,100, FORECAST($C301,I$305:I$316,$C$305:$C$316)))) -> 39.92332633 | M301: =IF(MAX(C305:C316)-MIN(C305:C316)<5,AVERAGEIF(C305:C316,">0",M305:M316), IF(FORECAST($C301,M$305:M$316,$C$305:$C$316)<0,0, IF(FORECAST($C301,M$305:M$316,$C$305:$C$316)>100,100, FORECAST($C301,M$305:M$316,$C$305:$C$316)))) -> 26.4864962 | N301: =IF(MAX(C305:C316)-MIN(C305:C316)<5,AVERAGEIF(C305:C316,">0",N305:N316), IF(FORECAST($C301,N$305:N$316,$C$305:$C$316)<0,0, IF(FORECAST($C301,N$305:N$316,$C$305:$C$316)>100,100, FORECAST($C301,N$305:N$316,$C$305:$C$316)))) -> 41.94428451 | R301: =IF(MAX(C305:C316)-MIN(C305:C316)<5,AVERAGEIF(C305:C316,">0",R305:R316), IF(FORECAST($C301,R$305:R$316,$C$305:$C$316)<0,0, IF(FORECAST($C301,R$305:R$316,$C$305:$C$316)>100,100, FORECAST($C301,R$305:R$316,$C$305:$C$316)))) -> 30.02333268 | S301: =IF(MAX(C305:C316)-MIN(C305:C316)<5,AVERAGEIF(C305:C316,">0",S305:S316), IF(FORECAST($C301,S$305:S$316,$C$305:$C$316)<0,0, IF(FORECAST($C301,S$305:S$316,$C$305:$C$316)>100,100, FORECAST($C301,S$305:S$316,$C$305:$C$316)))) -> 50.70055013 | W301: =IF(MAX(C305:C316)-MIN(C305:C316)<5,AVERAGEIF(C305:C316,">0",W305:W316), IF(FORECAST($C301,W$305:W$316,$C$305:$C$316)<0,0, IF(FORECAST($C301,W$305:W$316,$C$305:$C$316)>100,100, FORECAST($C301,W$305:W$316,$C$305:$C$316)))) -> 27.50332211 | X301: =IF(MAX(C305:C316)-MIN(C305:C316)<5,AVERAGEIF(C305:C316,">0",X305:X316), IF(FORECAST($C301,X$305:X$316,$C$305:$C$316)<0,0, IF(FORECAST($C301,X$305:X$316,$C$305:$C$316)>100,100, FORECAST($C301,X$305:X$316,$C$305:$C$316)))) -> 68.79754172 | AB301: =IF(MAX(C305:C316)-MIN(C305:C316)<5,AVERAGEIF(C305:C316,">0",AB305:AB316), IF(FORECAST($C301,AB$305:AB$316,$C$305:$C$316)<0,0, IF(FORECAST($C301,AB$305:AB$316,$C$305:$C$316)>100,100, FORECAST($C301,AB$305:AB$316,$C$305:$C$316)))) -> 16.60167672
C302: =MaxRegYear(C300,C305:C316) -> 2020 | D302: =IF(MAX(C305:C316)-MIN(C305:C316)<5,AVERAGEIF(C305:C316,">0",D305:D316), IF(FORECAST($C302,D$305:D$316,$C$305:$C$316)<0,0, IF(FORECAST($C302,D$305:D$316,$C$305:$C$316)>100,100, FORECAST($C302,D$305:D$316,$C$305:$C$316)))) -> 45.89607377 | H302: =IF(MAX(C305:C316)-MIN(C305:C316)<5,AVERAGEIF(C305:C316,">0",H305:H316), IF(FORECAST($C302,H$305:H$316,$C$305:$C$316)<0,0, IF(FORECAST($C302,H$305:H$316,$C$305:$C$316)>100,100, FORECAST($C302,H$305:H$316,$C$305:$C$316)))) -> 12.86486249 | I302: =IF(MAX(C305:C316)-MIN(C305:C316)<5,AVERAGEIF(C305:C316,">0",I305:I316), IF(FORECAST($C302,I$305:I$316,$C$305:$C$316)<0,0, IF(FORECAST($C302,I$305:I$316,$C$305:$C$316)>100,100, FORECAST($C302,I$305:I$316,$C$305:$C$316)))) -> 47.43809695 | M302: =IF(MAX(C305:C316)-MIN(C305:C316)<5,AVERAGEIF(C305:C316,">0",M305:M316), IF(FORECAST($C302,M$305:M$316,$C$305:$C$316)<0,0, IF(FORECAST($C302,M$305:M$316,$C$305:$C$316)>100,100, FORECAST($C302,M$305:M$316,$C$305:$C$316)))) -> 14.7418611 | N302: =IF(MAX(C305:C316)-MIN(C305:C316)<5,AVERAGEIF(C305:C316,">0",N305:N316), IF(FORECAST($C302,N$305:N$316,$C$305:$C$316)<0,0, IF(FORECAST($C302,N$305:N$316,$C$305:$C$316)>100,100, FORECAST($C302,N$305:N$316,$C$305:$C$316)))) -> 54.78747241 | R302: =IF(MAX(C305:C316)-MIN(C305:C316)<5,AVERAGEIF(C305:C316,">0",R305:R316), IF(FORECAST($C302,R$305:R$316,$C$305:$C$316)<0,0, IF(FORECAST($C302,R$305:R$316,$C$305:$C$316)>100,100, FORECAST($C302,R$305:R$316,$C$305:$C$316)))) -> 13.8434605 | S302: =IF(MAX(C305:C316)-MIN(C305:C316)<5,AVERAGEIF(C305:C316,">0",S305:S316), IF(FORECAST($C302,S$305:S$316,$C$305:$C$316)<0,0, IF(FORECAST($C302,S$305:S$316,$C$305:$C$316)>100,100, FORECAST($C302,S$305:S$316,$C$305:$C$316)))) -> 67.70718159 | W302: =IF(MAX(C305:C316)-MIN(C305:C316)<5,AVERAGEIF(C305:C316,">0",W305:W316), IF(FORECAST($C302,W$305:W$316,$C$305:$C$316)<0,0, IF(FORECAST($C302,W$305:W$316,$C$305:$C$316)>100,100, FORECAST($C302,W$305:W$316,$C$305:$C$316)))) -> 15.13740877 | X302: =IF(MAX(C305:C316)-MIN(C305:C316)<5,AVERAGEIF(C305:C316,">0",X305:X316), IF(FORECAST($C302,X$305:X$316,$C$305:$C$316)<0,0, IF(FORECAST($C302,X$305:X$316,$C$305:$C$316)>100,100, FORECAST($C302,X$305:X$316,$C$305:$C$316)))) -> 87.95141597 | AB302: =IF(MAX(C305:C316)-MIN(C305:C316)<5,AVERAGEIF(C305:C316,">0",AB305:AB316), IF(FORECAST($C302,AB$305:AB$316,$C$305:$C$316)<0,0, IF(FORECAST($C302,AB$305:AB$316,$C$305:$C$316)>100,100, FORECAST($C302,AB$305:AB$316,$C$305:$C$316)))) -> 7.354375783
B304: Survey | C304: Year | D304: Improved | E304: % Improved < = 30min | H304: Surface water | I304: Improved | J304: % Improved < = 30min | M304: Surface water | N304: Improved | O304: % Improved < = 30min | R304: Surface water | S304: Improved | T304: % Improved < = 30min | W304: Surface water | X304: Improved | Y304: % Improved < = 30min | AB304: Surface water
B305: DHS03 | C305: 2003 | D305: =IF(ISERROR(INDIRECT(CONCATENATE($B305,"!M16"))),"",INDIRECT(CONCATENATE($B305,"!M16"))) -> 20.64918284 | E305: =IF(ISERROR(INDIRECT(CONCATENATE($B305,"!M23"))),"",INDIRECT(CONCATENATE($B305,"!M23"))) -> N/A | H305: =IF(ISERROR(INDIRECT(CONCATENATE($B305,"!M21"))),"",INDIRECT(CONCATENATE($B305,"!M21"))) -> 25.33580586 | I305: =IF(ISERROR(INDIRECT(CONCATENATE($B305,"!N16"))),"",INDIRECT(CONCATENATE($B305,"!N16"))) -> 23.66074596 | J305: =IF(ISERROR(INDIRECT(CONCATENATE($B305,"!N23"))),"",INDIRECT(CONCATENATE($B305,"!N23"))) -> N/A | M305: =IF(ISERROR(INDIRECT(CONCATENATE($B305,"!N21"))),"",INDIRECT(CONCATENATE($B305,"!N21"))) -> 32.69578115 | N305: =IF(ISERROR(INDIRECT(CONCATENATE($B305,"!O16"))),"",INDIRECT(CONCATENATE($B305,"!O16"))) -> 24.95591989 | O305: =IF(ISERROR(INDIRECT(CONCATENATE($B305,"!O23"))),"",INDIRECT(CONCATENATE($B305,"!O23"))) -> N/A | R305: =IF(ISERROR(INDIRECT(CONCATENATE($B305,"!O21"))),"",INDIRECT(CONCATENATE($B305,"!O21"))) -> 35.27610524 | S305: =IF(ISERROR(INDIRECT(CONCATENATE($B305,"!P16"))),"",INDIRECT(CONCATENATE($B305,"!P16"))) -> 34.36423928 | T305: =IF(ISERROR(INDIRECT(CONCATENATE($B305,"!P23"))),"",INDIRECT(CONCATENATE($B305,"!P23"))) -> N/A | W305: =IF(ISERROR(INDIRECT(CONCATENATE($B305,"!P21"))),"",INDIRECT(CONCATENATE($B305,"!P21"))) -> 32.73321325 | X305: =IF(ISERROR(INDIRECT(CONCATENATE($B305,"!Q16"))),"",INDIRECT(CONCATENATE($B305,"!Q16"))) -> 62.48317033 | Y305: =IF(ISERROR(INDIRECT(CONCATENATE($B305,"!Q23"))),"",INDIRECT(CONCATENATE($B305,"!Q23"))) -> N/A | AB305: =IF(ISERROR(INDIRECT(CONCATENATE($B305,"!Q221"))),"",INDIRECT(CONCATENATE($B305,"!Q21"))) -> 22.18596421
B306: MICS07 | C306: 2007 | D306: 66.02515936 | E306: 83.741454 | H306: 7.886408879 | I306: 85.19981092 | J306: 84.70633524 | M306: 4.823430923 | N306: 87.55868269 | O306: 89.57203051 | R306: 3.479376096 | S306: 91.12818482 | T306: 93.73027053 | W306: 1.745100277 | X306: 87.22759286 | Y306: 94.29625354 | AB306: 0.2387713927
B307: DHS08 | C307: 2008 | D307: 30.87973928 | E307: 83.8 | H307: 24.60254763 | I307: 32.6305381 | J307: 89.5 | M307: 26.03224627 | N307: 36.02742666 | O307: 90.9 | R307: 32.44799928 | S307: 50.67577355 | T307: 91.5 | W307: 29.16826785 | X307: 74.99900389 | Y307: 93.8 | AB307: 14.64057096
B308: MIS10 | C308: 2010 | D308: 38.96095106 | E308: N/A | H308: 21.22351859 | I308: 35.69487767 | J308: N/A | M308: 23.9060767 | N308: 42.04841443 | O308: N/A | R308: 22.4345334 | S308: 48.52219726 | T308: N/A | W308: 30.35872233 | X308: 75.06422231 | Y308: N/A | AB308: 16.48765719
B309: MICS11 | C309: 2011 | D309: 33.61636736 | E309: 80.55176479 | H309: 18.21149674 | I309: 39.56423181 | J309: 83.31614901 | M309: 23.24837143 | N309: 49.7793836 | O309: 86.80786601 | R309: 27.61032861 | S309: 67.48827264 | T309: 89.31603833 | W309: 19.62646748 | X309: 86.4108694 | Y309: 90.87393944 | AB309: 8.667282703
B310: DHS13 | C310: 2013 | D310: 33.90373704 | E310: 81.9 | H310: 20.40964904 | I310: 38.00770246 | J310: 90.9 | M310: 20.53465376 | N310: 43.70439836 | O310: 92.1 | R310: 21.43991887 | S310: 55.13955406 | T310: 91.6 | W310: 24.98777242 | X310: 74.3408074 | Y310: 93.6 | AB310: 14.69020567
B311: MIS15 | C311: 2015 | D311: 46.12792515 | E311: 92.31282022 | H311: 14.759948 | I311: 48.9787895 | J311: 96.89906011 | M311: 16.45257643 | N311: 50.18917816 | O311: 96.26147826 | R311: 16.62764386 | S311: 66.75413548 | T311: 93.12293037 | W311: 16.3513809 | X311: 82.9535705 | Y311: 97.25345582 | AB311: 10.64033058
B312: MICS17 | C312: 2017 | D312: 42.00104248 | E312: 91.02215428 | H312: 15.00966784 | I312: 45.99063202 | J312: 91.75643586 | M312: 16.02755882 | N312: 52.92376106 | O312: 94.23294712 | R312: 16.90439328 | S312: 62.15256561 | T312: 90.78230576 | W312: 16.81749653 | X312: 84.6067979 | Y312: 93.22781923 | AB312: 9.000467628
B313: DHS18 | C313: 2018 | D313: 44.96266768 | E313: 91.66035483 | H313: 11.99060253 | I313: 46.36543314 | J313: 94.86918891 | M313: 17.17087223 | N313: 53.17542072 | O313: 95.70720047 | R313: 14.79347902 | S313: 63.32301401 | T313: 95.01647986 | W313: 15.21358632 | X313: 84.84501487 | Y313: 96.50209533 | AB313: 7.600735564
B318: =CONCATENATE("Rural use of drinking water sources, ",C299,"–",C300) -> Rural use of drinking water sources, 2000–2020 | S318: Data points used for regression

Sheet Sanitation
B4: Summary of trends in use of sanitation facilities by wealth quintile (%)
B5: =IF(ISERROR(INDIRECT(CONCATENATE($B105,"!A2"))),"",INDIRECT(CONCATENATE($B105,"!A2"))) -> Nigeria
B7: =B118 -> National use of sanitation facilities, 2000–2020 | J7: =B218 -> Urban use of sanitation facilities, 2000–2020 | R7: =B318 -> Rural use of sanitation facilities, 2000–2020
B31: =IF(ISERROR(INDIRECT(CONCATENATE($B105,"!A2"))),"",INDIRECT(CONCATENATE($B105,"!A2"))) -> Nigeria | F31: Poorest | J31: Poor | N31: Middle | R31: Rich | V31: Richest
F32: Basic | G32: Limited | H32: Unimproved | I32: Open defecation | J32: Basic | K32: Limited | L32: Unimproved | M32: Open defecation | N32: Basic | O32: Limited | P32: Unimproved | Q32: Open defecation | R32: Basic | S32: Limited | T32: Unimproved | U32: Open defecation | V32: Basic | W32: Limited | X32: Unimproved | Y32: Open defecation
B33: NATIONAL | D33: Estimate | E33: =C99 -> 2000 | F33: =E99 -> 15.64628359 | G33: =F99 -> 3.183941001 | H33: 31.49853267 | I33: 49.67124274 | J33: =J99 -> 21.25656621 | K33: =K99 -> 6.34719786 | L33: 33.18001417 | M33: 39.21622176 | N33: =O99 -> 23.38397889 | O33: =P99 -> 11.79520405 | P33: 34.09478065 | Q33: 30.72603641 | R33: =T99 -> 32.22915744 | S33: =U99 -> 27.02367189 | T33: 22.80689375 | U33: 17.94027693 | V33: =Y99 -> 50.79484511 | W33: =Z99 -> 34.85194755 | X33: 7.607499383 | Y33: 6.745707958
E34: =C100 -> 2020 | F34: =E100 -> 15.71357655 | G34: 3.197634784 | H34: 36.09151919 | I34: 44.99726947 | J34: =J100 -> 26.45534989 | K34: 7.899551534 | L34: 33.95921314 | M34: 31.68588544 | N34: =O100 -> 34.75114486 | O34: 17.5289606 | P34: 19.28542585 | Q34: 28.43446869 | R34: =T100 -> 39.79987334 | S34: 33.3716052 | T34: 9.815502334 | U34: 17.01301912 | V34: =Y100 -> 54.48249562 | W34: 37.38216103 | X34: 4.890890976 | Y34: 3.244452377
B36: URBAN | D36: Estimate | E36: =C199 -> 2000 | F36: =E199 -> 21.99100219 | G36: =F199 -> 9.803873387 | H36: 44.36150388 | I36: 23.84362054 | J36: =J199 -> 27.52219178 | K36: =K199 -> 19.18124645 | L36: 41.79424735 | M36: 11.50231442 | N36: =O199 -> 31.56319543 | O36: =P199 -> 28.40260605 | P36: 31.34725267 | Q36: 8.686945845 | R36: =T199 -> 36.37506994 | S36: =U199 -> 37.83115627 | T36: 18.99431915 | U36: 6.799454649 | V36: =Y199 -> 66.15205579 | W36: =Z199 -> 27.00502225 | X36: 5.364153433 | Y36: 1.478768529
E37: =C200 -> 2020 | F37: =E200 -> 36.32102083 | G37: 16.19238116 | H37: 21.55380321 | I37: 25.9327948 | J37: =J200 -> 45.56638658 | K37: 31.75692176 | L37: 5.362579494 | M37: 17.31411217 | N37: =O200 -> 47.28858249 | O37: 42.55332709 | P37: 0 | Q37: 10.15809043 | R37: =T200 -> 46.54378824 | S37: 48.4069262 | T37: 1.425778586 | U37: 3.62350697 | V37: =Y200 -> 69.24037645 | W37: 28.26575659 | X37: 1.751888994 | Y37: 0.7419779597
B39: RURAL | D39: Estimate | E39: =C299 -> 2000 | F39: =E299 -> 22.85150481 | G39: =F299 -> 5.325821955 | H39: 15.9516425 | I39: 55.87103074 | J39: =J299 -> 28.55563459 | K39: =K299 -> 9.486747658 | L39: 13.60348157 | M39: 48.35413618 | N39: =O299 -> 34.54886141 | O39: =P299 -> 14.82161335 | P39: 14.56070362 | Q39: 36.06882161 | R39: =T299 -> 36.56473086 | S39: =U299 -> 21.8535007 | T39: 10.08555931 | U39: 31.49620914 | V39: =Y299 -> 47.49250691 | W39: =Z299 -> 24.92759154 | X39: 11.214752 | Y39: 16.36514955
E40: =C300 -> 2020 | F40: =E300 -> 9.492517203 | G40: 2.212346931 | H40: 38.91404333 | I40: 49.38109254 | J40: =J300 -> 16.00239227 | K40: 5.316311809 | L40: 45.60381041 | M40: 33.07748551 | N40: =O300 -> 18.86472328 | O40: 8.093049175 | P40: 39.67190644 | Q40: 33.37032111 | R40: =T300 -> 23.31593503 | S40: 13.93514435 | T40: 29.26261056 | U40: 33.48631006 | V40: =Y300 -> 43.60976028 | W40: 22.88963802 | X40: 13.97739071 | Y40: 19.523211
A97: NATIONAL | D97: Poorest | I97: Poor | N97: Middle | S97: Rich | X97: Richest
D98: Improved | E98: Basic | F98: Limited | G98: Unimproved | H98: Open defecation | I98: Improved | J98: Basic | K98: Limited | L98: Unimproved | M98: Open defecation | N98: Improved | O98: Basic | P98: Limited | Q98: Unimproved | R98: Open defecation | S98: Improved | T98: Basic | U98: Limited | V98: Unimproved | W98: Open defecation | X98: Improved | Y98: Basic | Z98: Limited | AA98: Unimproved | AB98: Open defecation
A99: Forecast period: | C99: 2000 | D99: =IF((D101+H101)>100,D101*100/(D101+H101),D101) -> 18.83022459 | E99: =D99*AVERAGEIF(E105:E116,">0")/100 -> 15.64628359 | F99: =D99*(100-AVERAGEIF(E105:E116,">0"))/100 -> 3.183941001 | G99: =100-(E99+F99+H99) -> 31.49853267 | H99: =IF((D101+H101)>100,H101*100/(D101+H101),H101) -> 49.67124274 | I99: =IF((I101+M101)>100,I101*100/(I101+M101),I101) -> 27.60376407 | J99: =I99*AVERAGEIF(J105:J116,">0")/100 -> 21.25656621 | K99: =I99*(100-AVERAGEIF(J105:J116,">0"))/100 -> 6.34719786 | L99: =100-(J99+K99+M99) -> 33.18001417 | M99: =IF((I101+M101)>100,M101*100/(I101+M101),M101) -> 39.21622176 | N99: =IF((N101+R101)>100,N101*100/(N101+R101),N101) -> 35.17918295 | O99: =N99*AVERAGEIF(O105:O116,">0")/100 -> 23.38397889 | P99: =N99*(100-AVERAGEIF(O105:O116,">0"))/100 -> 11.79520405 | Q99: =100-(O99+P99+R99) -> 34.09478065 | R99: =IF((N101+R101)>100,R101*100/(N101+R101),R101) -> 30.72603641 | S99: =IF((S101+W101)>100,S101*100/(S101+W101),S101) -> 59.25282933 | T99: =S99*AVERAGEIF(T105:T116,">0")/100 -> 32.22915744 | U99: =S99*(100-AVERAGEIF(T105:T116,">0"))/100 -> 27.02367189 | V99: =100-(T99+U99+W99) -> 22.80689375 | W99: =IF((S101+W101)>100,W101*100/(S101+W101),W101) -> 17.94027693 | X99: =IF((X101+AB101)>100,X101*100/(X101+AB101),X101) -> 85.64679266 | Y99: =X99*AVERAGEIF(Y105:Y116,">0")/100 -> 50.79484511 | Z99: =X99*(100-AVERAGEIF(Y105:Y116,">0"))/100 -> 34.85194755 | AA99: =100-(Y99+Z99+AB99) -> 7.607499383 | AB99: =IF((X101+AB101)>100,AB101*100/(X101+AB101),AB101) -> 6.745707958
C100: 2020 | D100: =IF((D102+H102)>100,D102*100/(D102+H102),D102) -> 18.91121134 | E100: =D100*AVERAGEIF(E105:E116,">0")/100 -> 15.71357655 | F100: =D100*(100-AVERAGEIF(E105:E116,">0"))/100 -> 3.197634784 | G100: =100-(E100+F100+H100) -> 36.09151919 | H100: =IF((D102+H102)>100,H102*100/(D102+H102),H102) -> 44.99726947 | I100: =IF((I102+M102)>100,I102*100/(I102+M102),I102) -> 34.35490143 | J100: =I100*AVERAGEIF(J105:J116,">0")/100 -> 26.45534989 | K100: =I100*(100-AVERAGEIF(J105:J116,">0"))/100 -> 7.899551534 | L100: =100-(J100+K100+M100) -> 33.95921314 | M100: =IF((I102+M102)>100,M102*100/(I102+M102),M102) -> 31.68588544 | N100: =IF((N102+R102)>100,N102*100/(N102+R102),N102) -> 52.28010546 | O100: =N100*AVERAGEIF(O105:O116,">0")/100 -> 34.75114486 | P100: =N100*(100-AVERAGEIF(O105:O116,">0"))/100 -> 17.5289606 | Q100: =100-(O100+P100+R100) -> 19.28542585 | R100: =IF((N102+R102)>100,R102*100/(N102+R102),R102) -> 28.43446869 | S100: =IF((S102+W102)>100,S102*100/(S102+W102),S102) -> 73.17147854 | T100: =S100*AVERAGEIF(T105:T116,">0")/100 -> 39.79987334 | U100: =S100*(100-AVERAGEIF(T105:T116,">0"))/100 -> 33.3716052 | V100: =100-(T100+U100+W100) -> 9.815502334 | W100: =IF((S102+W102)>100,W102*100/(S102+W102),W102) -> 17.01301912 | X100: =IF((X102+AB102)>100,X102*100/(X102+AB102),X102) -> 91.86465665 | Y100: =X100*AVERAGEIF(Y105:Y116,">0")/100 -> 54.48249562 | Z100: =X100*(100-AVERAGEIF(Y105:Y116,">0"))/100 -> 37.38216103 | AA100: =100-(Y100+Z100+AB100) -> 4.890890976 | AB100: =IF((X102+AB102)>100,AB102*100/(X102+AB102),AB102) -> 3.244452377
A101: Regression period: | C101: =MinRegYear(C99,C105:C116) -> 2001 | D101: =IF(MAX(C105:C116)-MIN(C105:C116)<5,AVERAGEIF(C105:C116,">0",D105:D116), IF(FORECAST($C101,D$105:D$116,$C$105:$C$116)<0,0, IF(FORECAST($C101,D$105:D$116,$C$105:$C$116)>100,100, FORECAST($C101,D$105:D$116,$C$105:$C$116)))) -> 18.83022459 | H101: =IF(MAX(C105:C116)-MIN(C105:C116)<5,AVERAGEIF(C105:C116,">0",H105:H116), IF(FORECAST($C101,H$105:H$116,$C$105:$C$116)<0,0, IF(FORECAST($C101,H$105:H$116,$C$105:$C$116)>100,100, FORECAST($C101,H$105:H$116,$C$105:$C$116)))) -> 49.67124274 | I101: =IF(MAX(C105:C116)-MIN(C105:C116)<5,AVERAGEIF(C105:C116,">0",I105:I116), IF(FORECAST($C101,I$105:I$116,$C$105:$C$116)<0,0, IF(FORECAST($C101,I$105:I$116,$C$105:$C$116)>100,100, FORECAST($C101,I$105:I$116,$C$105:$C$116)))) -> 27.60376407 | M101: =IF(MAX(C105:C116)-MIN(C105:C116)<5,AVERAGEIF(C105:C116,">0",M105:M116), IF(FORECAST($C101,M$105:M$116,$C$105:$C$116)<0,0, IF(FORECAST($C101,M$105:M$116,$C$105:$C$116)>100,100, FORECAST($C101,M$105:M$116,$C$105:$C$116)))) -> 39.21622176 | N101: =IF(MAX(C105:C116)-MIN(C105:C116)<5,AVERAGEIF(C105:C116,">0",N105:N116), IF(FORECAST($C101,N$105:N$116,$C$105:$C$116)<0,0, IF(FORECAST($C101,N$105:N$116,$C$105:$C$116)>100,100, FORECAST($C101,N$105:N$116,$C$105:$C$116)))) -> 35.17918295 | R101: =IF(MAX(C105:C116)-MIN(C105:C116)<5,AVERAGEIF(C105:C116,">0",R105:R116), IF(FORECAST($C101,R$105:R$116,$C$105:$C$116)<0,0, IF(FORECAST($C101,R$105:R$116,$C$105:$C$116)>100,100, FORECAST($C101,R$105:R$116,$C$105:$C$116)))) -> 30.72603641 | S101: =IF(MAX(C105:C116)-MIN(C105:C116)<5,AVERAGEIF(C105:C116,">0",S105:S116), IF(FORECAST($C101,S$105:S$116,$C$105:$C$116)<0,0, IF(FORECAST($C101,S$105:S$116,$C$105:$C$116)>100,100, FORECAST($C101,S$105:S$116,$C$105:$C$116)))) -> 59.25282933 | W101: =IF(MAX(C105:C116)-MIN(C105:C116)<5,AVERAGEIF(C105:C116,">0",W105:W116), IF(FORECAST($C101,W$105:W$116,$C$105:$C$116)<0,0, IF(FORECAST($C101,W$105:W$116,$C$105:$C$116)>100,100, FORECAST($C101,W$105:W$116,$C$105:$C$116)))) -> 17.94027693 | X101: =IF(MAX(C105:C116)-MIN(C105:C116)<5,AVERAGEIF(C105:C116,">0",X105:X116), IF(FORECAST($C101,X$105:X$116,$C$105:$C$116)<0,0, IF(FORECAST($C101,X$105:X$116,$C$105:$C$116)>100,100, FORECAST($C101,X$105:X$116,$C$105:$C$116)))) -> 85.64679266 | AB101: =IF(MAX(C105:C116)-MIN(C105:C116)<5,AVERAGEIF(C105:C116,">0",AB105:AB116), IF(FORECAST($C101,AB$105:AB$116,$C$105:$C$116)<0,0, IF(FORECAST($C101,AB$105:AB$116,$C$105:$C$116)>100,100, FORECAST($C101,AB$105:AB$116,$C$105:$C$116)))) -> 6.745707958
C102: =MaxRegYear(C100,C105:C116) -> 2020 | D102: =IF(MAX(C105:C116)-MIN(C105:C116)<5,AVERAGEIF(C105:C116,">0",D105:D116), IF(FORECAST($C102,D$105:D$116,$C$105:$C$116)<0,0, IF(FORECAST($C102,D$105:D$116,$C$105:$C$116)>100,100, FORECAST($C102,D$105:D$116,$C$105:$C$116)))) -> 18.91121134 | H102: =IF(MAX(C105:C116)-MIN(C105:C116)<5,AVERAGEIF(C105:C116,">0",H105:H116), IF(FORECAST($C102,H$105:H$116,$C$105:$C$116)<0,0, IF(FORECAST($C102,H$105:H$116,$C$105:$C$116)>100,100, FORECAST($C102,H$105:H$116,$C$105:$C$116)))) -> 44.99726947 | I102: =IF(MAX(C105:C116)-MIN(C105:C116)<5,AVERAGEIF(C105:C116,">0",I105:I116), IF(FORECAST($C102,I$105:I$116,$C$105:$C$116)<0,0, IF(FORECAST($C102,I$105:I$116,$C$105:$C$116)>100,100, FORECAST($C102,I$105:I$116,$C$105:$C$116)))) -> 34.35490143 | M102: =IF(MAX(C105:C116)-MIN(C105:C116)<5,AVERAGEIF(C105:C116,">0",M105:M116), IF(FORECAST($C102,M$105:M$116,$C$105:$C$116)<0,0, IF(FORECAST($C102,M$105:M$116,$C$105:$C$116)>100,100, FORECAST($C102,M$105:M$116,$C$105:$C$116)))) -> 31.68588544 | N102: =IF(MAX(C105:C116)-MIN(C105:C116)<5,AVERAGEIF(C105:C116,">0",N105:N116), IF(FORECAST($C102,N$105:N$116,$C$105:$C$116)<0,0, IF(FORECAST($C102,N$105:N$116,$C$105:$C$116)>100,100, FORECAST($C102,N$105:N$116,$C$105:$C$116)))) -> 52.28010546 | R102: =IF(MAX(C105:C116)-MIN(C105:C116)<5,AVERAGEIF(C105:C116,">0",R105:R116), IF(FORECAST($C102,R$105:R$116,$C$105:$C$116)<0,0, IF(FORECAST($C102,R$105:R$116,$C$105:$C$116)>100,100, FORECAST($C102,R$105:R$116,$C$105:$C$116)))) -> 28.43446869 | S102: =IF(MAX(C105:C116)-MIN(C105:C116)<5,AVERAGEIF(C105:C116,">0",S105:S116), IF(FORECAST($C102,S$105:S$116,$C$105:$C$116)<0,0, IF(FORECAST($C102,S$105:S$116,$C$105:$C$116)>100,100, FORECAST($C102,S$105:S$116,$C$105:$C$116)))) -> 73.17147854 | W102: =IF(MAX(C105:C116)-MIN(C105:C116)<5,AVERAGEIF(C105:C116,">0",W105:W116), IF(FORECAST($C102,W$105:W$116,$C$105:$C$116)<0,0, IF(FORECAST($C102,W$105:W$116,$C$105:$C$116)>100,100, FORECAST($C102,W$105:W$116,$C$105:$C$116)))) -> 17.01301912 | X102: =IF(MAX(C105:C116)-MIN(C105:C116)<5,AVERAGEIF(C105:C116,">0",X105:X116), IF(FORECAST($C102,X$105:X$116,$C$105:$C$116)<0,0, IF(FORECAST($C102,X$105:X$116,$C$105:$C$116)>100,100, FORECAST($C102,X$105:X$116,$C$105:$C$116)))) -> 91.86465665 | AB102: =IF(MAX(C105:C116)-MIN(C105:C116)<5,AVERAGEIF(C105:C116,">0",AB105:AB116), IF(FORECAST($C102,AB$105:AB$116,$C$105:$C$116)<0,0, IF(FORECAST($C102,AB$105:AB$116,$C$105:$C$116)>100,100, FORECAST($C102,AB$105:AB$116,$C$105:$C$116)))) -> 3.244452377
B104: Survey | C104: Year | D104: Improved | E104: Not shared | H104: Open defecation | I104: Improved | J104: Not shared | M104: Open defecation | N104: Improved | O104: Not shared | R104: Open defecation | S104: Improved | T104: Not shared | W104: Open defecation | X104: Improved | Y104: Not shared | AB104: Open defecation
B105: DHS03 | C105: 2003 | D105: =IF(ISERROR(INDIRECT(CONCATENATE($B105,"!C122"))),"",INDIRECT(CONCATENATE($B105,"!C122"))) -> 13.57304802 | E105: =IF(ISERROR(INDIRECT(CONCATENATE($B105,"!C129"))),"",INDIRECT(CONCATENATE($B105,"!C129"))) -> N/A | H105: =IF(ISERROR(INDIRECT(CONCATENATE($B105,"!C127"))),"",INDIRECT(CONCATENATE($B105,"!C127"))) -> 48.78539711 | I105: =IF(ISERROR(INDIRECT(CONCATENATE($B105,"!D122"))),"",INDIRECT(CONCATENATE($B105,"!D122"))) -> 26.68944827 | J105: =IF(ISERROR(INDIRECT(CONCATENATE($B105,"!D129"))),"",INDIRECT(CONCATENATE($B105,"!D129"))) -> N/A | M105: =IF(ISERROR(INDIRECT(CONCATENATE($B105,"!D127"))),"",INDIRECT(CONCATENATE($B105,"!D127"))) -> 33.17257954 | N105: =IF(ISERROR(INDIRECT(CONCATENATE($B105,"!E122"))),"",INDIRECT(CONCATENATE($B105,"!E122"))) -> 37.99708367 | O105: =IF(ISERROR(INDIRECT(CONCATENATE($B105,"!E129"))),"",INDIRECT(CONCATENATE($B105,"!E129"))) -> N/A | R105: =IF(ISERROR(INDIRECT(CONCATENATE($B105,"!E127"))),"",INDIRECT(CONCATENATE($B105,"!E127"))) -> 24.06590063 | S105: =IF(ISERROR(INDIRECT(CONCATENATE($B105,"!F122"))),"",INDIRECT(CONCATENATE($B105,"!F122"))) -> 63.95755157 | T105: =IF(ISERROR(INDIRECT(CONCATENATE($B105,"!F129"))),"",INDIRECT(CONCATENATE($B105,"!F129"))) -> N/A | W105: =IF(ISERROR(INDIRECT(CONCATENATE($B105,"!F127"))),"",INDIRECT(CONCATENATE($B105,"!F127"))) -> 11.57616267 | X105: =IF(ISERROR(INDIRECT(CONCATENATE($B105,"!G122"))),"",INDIRECT(CONCATENATE($B105,"!G122"))) -> 87.65898161 | Y105: =IF(ISERROR(INDIRECT(CONCATENATE($B105,"!G129"))),"",INDIRECT(CONCATENATE($B105,"!G129"))) -> N/A | AB105: =IF(ISERROR(INDIRECT(CONCATENATE($B105,"!G2127"))),"",INDIRECT(CONCATENATE($B105,"!G127"))) -> 4.987391412
B106: MICS07 | C106: 2007 | D106: 15.94419213 | E106: 87.40165382 | H106: 42.22616897 | I106: 25.99151902 | J106: 83.10503438 | M106: 35.6306841 | N106: 34.20892603 | O106: 70.92343775 | R106: 29.9844316 | S106: 54.7167031 | T106: 48.55030322 | W106: 23.62303851 | X106: 83.82690643 | Y106: 47.84289762 | AB106: 7.2722803
B107: DHS08 | C107: 2008 | D107: 29.48508754 | E107: 77.01207049 | H107: 48.96981018 | I107: 36.98793422 | J107: 76.41543644 | M107: 42.26925679 | N107: 43.38375513 | O107: 63.28072504 | R107: 37.61999279 | S107: 66.86261993 | T107: 52.68525209 | W107: 19.62125815 | X107: 88.52101375 | Y107: 48.78925279 | AB107: 5.611655666
B108: MIS10 | D108: 19.48738695 | E108: N/A | H108: 46.50007128 | I108: 32.08552787 | J108: N/A | M108: 40.44510575 | N108: 35.89320012 | O108: N/A | R108: 37.90740186 | S108: 44.68051445 | T108: N/A | W108: 28.0877194 | X108: 75.43971286 | Y108: N/A | AB108: 11.68561849
B109: MICS11 | C109: 2011 | D109: 17.40651701 | E109: 84.07194484 | H109: 51.51219805 | I109: 27.60356049 | J109: 70.54993336 | M109: 40.62575425 | N109: 48.84091761 | O109: 64.51839671 | R109: 29.87091473 | S109: 70.68217401 | T109: 51.7663079 | W109: 16.44039103 | X109: 91.86622318 | Y109: 56.37766474 | AB109: 4.108286131
B110: DHS13 | C110: 2013 | D110: 23.33375837 | E110: 82.81391693 | H110: 50.89239419 | I110: 39.61114143 | J110: 79.25822093 | M110: 31.43640005 | N110: 48.77569321 | O110: 64.34358279 | R110: 33.88140358 | S110: 69.13994857 | T110: 49.43675597 | W110: 21.13674287 | X110: 88.53390027 | Y110: 60.78110924 | AB110: 6.456852588
B111: MIS15 | C111: 2015 | D111: 16.08122305 | E111: 83.76887317 | H111: 51.08438966 | I111: 27.6660565 | J111: 78.98040894 | M111: 37.64695346 | N111: 45.34332537 | O111: 70.77037698 | R111: 27.94103659 | S111: 66.72455046 | T111: 62.0855773 | W111: 16.76146221 | X111: 90.23912277 | Y111: 64.39335641 | AB111: 3.457866469
B112: MICS17 | C112: 2017 | D112: 20.08980054 | E112: 85.54086137 | H112: 41.55367706 | I112: 30.77350483 | J112: 82.70511928 | M112: 32.21954935 | N112: 46.04784291 | O112: 70.82810868 | R112: 25.7146526 | S112: 69.95171762 | T112: 63.26226258 | W112: 14.85883988 | X112: 90.84057778 | Y112: 66.02150057 | AB112: 3.204517616
B113: DHS18 | C113: 2018 | D113: 15.08621674 | E113: 81.02997215 | H113: 41.68202488 | I113: 35.35408139 | J113: 68.02814213 | M113: 27.43658332 | N113: 52.43999812 | O113: 60.63285356 | R113: 26.59881724 | S113: 73.52245011 | T113: 52.96177636 | W113: 15.40486454 | X113: 91.17711943 | Y113: 70.9456852 | AB113: 3.387578278
B118: =CONCATENATE("National use of sanitation facilities, ",C99,"–",C100) -> National use of sanitation facilities, 2000–2020 | S118: Data points used for regression
A197: URBAN | D197: Poorest | I197: Poor | N197: Middle | S197: Rich | X197: Richest
D198: Improved | E198: Basic | F198: Limited | G198: Unimproved | H198: Open defecation | I198: Improved | J198: Basic | K198: Limited | L198: Unimproved | M198: Open defecation | N198: Improved | O198: Basic | P198: Limited | Q198: Unimproved | R198: Open defecation | S198: Improved | T198: Basic | U198: Limited | V198: Unimproved | W198: Open defecation | X198: Improved | Y198: Basic | Z198: Limited | AA198: Unimproved | AB198: Open defecation
A199: Forecast period: | C199: =MinBase(C205:C216) -> 2000 | D199: =IF((D201+H201)>100,D201*100/(D201+H201),D201) -> 31.79487558 | E199: =D199*AVERAGEIF(E205:E216,">0")/100 -> 21.99100219 | F199: =D199*(100-AVERAGEIF(E205:E216,">0"))/100 -> 9.803873387 | G199: =100-(E199+F199+H199) -> 44.36150388 | H199: =IF((D201+H201)>100,H201*100/(D201+H201),H201) -> 23.84362054 | I199: =IF((I201+M201)>100,I201*100/(I201+M201),I201) -> 46.70343823 | J199: =I199*AVERAGEIF(J205:J216,">0")/100 -> 27.52219178 | K199: =I199*(100-AVERAGEIF(J205:J216,">0"))/100 -> 19.18124645 | L199: =100-(J199+K199+M199) -> 41.79424735 | M199: =IF((I201+M201)>100,M201*100/(I201+M201),M201) -> 11.50231442 | N199: =IF((N201+R201)>100,N201*100/(N201+R201),N201) -> 59.96580148 | O199: =N199*AVERAGEIF(O205:O216,">0")/100 -> 31.56319543 | P199: =N199*(100-AVERAGEIF(O205:O216,">0"))/100 -> 28.40260605 | Q199: =100-(O199+P199+R199) -> 31.34725267 | R199: =IF((N201+R201)>100,R201*100/(N201+R201),R201) -> 8.686945845 | S199: =IF((S201+W201)>100,S201*100/(S201+W201),S201) -> 74.20622621 | T199: =S199*AVERAGEIF(T205:T216,">0")/100 -> 36.37506994 | U199: =S199*(100-AVERAGEIF(T205:T216,">0"))/100 -> 37.83115627 | V199: =100-(T199+U199+W199) -> 18.99431915 | W199: =IF((S201+W201)>100,W201*100/(S201+W201),W201) -> 6.799454649 | X199: =IF((X201+AB201)>100,X201*100/(X201+AB201),X201) -> 93.15707804 | Y199: =X199*AVERAGEIF(Y205:Y216,">0")/100 -> 66.15205579 | Z199: =X199*(100-AVERAGEIF(Y205:Y216,">0"))/100 -> 27.00502225 | AA199: =100-(Y199+Z199+AB199) -> 5.364153433 | AB199: =IF((X201+AB201)>100,AB201*100/(X201+AB201),AB201) -> 1.478768529
C200: =MaxTarget(C205:C216) -> 2020 | D200: =IF((D202+H202)>100,D202*100/(D202+H202),D202) -> 52.51340199 | E200: =D200*AVERAGEIF(E205:E216,">0")/100 -> 36.32102083 | F200: =D200*(100-AVERAGEIF(E205:E216,">0"))/100 -> 16.19238116 | G200: =100-(E200+F200+H200) -> 21.55380321 | H200: =IF((D202+H202)>100,H202*100/(D202+H202),H202) -> 25.9327948 | I200: =IF((I202+M202)>100,I202*100/(I202+M202),I202) -> 77.32330834 | J200: =I200*AVERAGEIF(J205:J216,">0")/100 -> 45.56638658 | K200: =I200*(100-AVERAGEIF(J205:J216,">0"))/100 -> 31.75692176 | L200: =100-(J200+K200+M200) -> 5.362579494 | M200: =IF((I202+M202)>100,M202*100/(I202+M202),M202) -> 17.31411217 | N200: =IF((N202+R202)>100,N202*100/(N202+R202),N202) -> 89.84190957 | O200: =N200*AVERAGEIF(O205:O216,">0")/100 -> 47.28858249 | P200: =N200*(100-AVERAGEIF(O205:O216,">0"))/100 -> 42.55332709 | Q200: =100-(O200+P200+R200) -> 0 | R200: =IF((N202+R202)>100,R202*100/(N202+R202),R202) -> 10.15809043 | S200: =IF((S202+W202)>100,S202*100/(S202+W202),S202) -> 94.95071444 | T200: =S200*AVERAGEIF(T205:T216,">0")/100 -> 46.54378824 | U200: =S200*(100-AVERAGEIF(T205:T216,">0"))/100 -> 48.4069262 | V200: =100-(T200+U200+W200) -> 1.425778586 | W200: =IF((S202+W202)>100,W202*100/(S202+W202),W202) -> 3.62350697 | X200: =IF((X202+AB202)>100,X202*100/(X202+AB202),X202) -> 97.50613305 | Y200: =X200*AVERAGEIF(Y205:Y216,">0")/100 -> 69.24037645 | Z200: =X200*(100-AVERAGEIF(Y205:Y216,">0"))/100 -> 28.26575659 | AA200: =100-(Y200+Z200+AB200) -> 1.751888994 | AB200: =IF((X202+AB202)>100,AB202*100/(X202+AB202),AB202) -> 0.7419779597
A201: Regression period: | C201: =MinRegYear(C199,C205:C216) -> 2001 | D201: =IF(MAX(C205:C216)-MIN(C205:C216)<5,AVERAGEIF(C205:C216,">0",D205:D216), IF(FORECAST($C201,D$205:D$216,$C$205:$C$216)<0,0, IF(FORECAST($C201,D$205:D$216,$C$205:$C$216)>100,100, FORECAST($C201,D$205:D$216,$C$205:$C$216)))) -> 31.79487558 | H201: =IF(MAX(C205:C216)-MIN(C205:C216)<5,AVERAGEIF(C205:C216,">0",H205:H216), IF(FORECAST($C201,H$205:H$216,$C$205:$C$216)<0,0, IF(FORECAST($C201,H$205:H$216,$C$205:$C$216)>100,100, FORECAST($C201,H$205:H$216,$C$205:$C$216)))) -> 23.84362054 | I201: =IF(MAX(C205:C216)-MIN(C205:C216)<5,AVERAGEIF(C205:C216,">0",I205:I216), IF(FORECAST($C201,I$205:I$216,$C$205:$C$216)<0,0, IF(FORECAST($C201,I$205:I$216,$C$205:$C$216)>100,100, FORECAST($C201,I$205:I$216,$C$205:$C$216)))) -> 46.70343823 | M201: =IF(MAX(C205:C216)-MIN(C205:C216)<5,AVERAGEIF(C205:C216,">0",M205:M216), IF(FORECAST($C201,M$205:M$216,$C$205:$C$216)<0,0, IF(FORECAST($C201,M$205:M$216,$C$205:$C$216)>100,100, FORECAST($C201,M$205:M$216,$C$205:$C$216)))) -> 11.50231442 | N201: =IF(MAX(C205:C216)-MIN(C205:C216)<5,AVERAGEIF(C205:C216,">0",N205:N216), IF(FORECAST($C201,N$205:N$216,$C$205:$C$216)<0,0, IF(FORECAST($C201,N$205:N$216,$C$205:$C$216)>100,100, FORECAST($C201,N$205:N$216,$C$205:$C$216)))) -> 59.96580148 | R201: =IF(MAX(C205:C216)-MIN(C205:C216)<5,AVERAGEIF(C205:C216,">0",R205:R216), IF(FORECAST($C201,R$205:R$216,$C$205:$C$216)<0,0, IF(FORECAST($C201,R$205:R$216,$C$205:$C$216)>100,100, FORECAST($C201,R$205:R$216,$C$205:$C$216)))) -> 8.686945845 | S201: =IF(MAX(C205:C216)-MIN(C205:C216)<5,AVERAGEIF(C205:C216,">0",S205:S216), IF(FORECAST($C201,S$205:S$216,$C$205:$C$216)<0,0, IF(FORECAST($C201,S$205:S$216,$C$205:$C$216)>100,100, FORECAST($C201,S$205:S$216,$C$205:$C$216)))) -> 74.20622621 | W201: =IF(MAX(C205:C216)-MIN(C205:C216)<5,AVERAGEIF(C205:C216,">0",W205:W216), IF(FORECAST($C201,W$205:W$216,$C$205:$C$216)<0,0, IF(FORECAST($C201,W$205:W$216,$C$205:$C$216)>100,100, FORECAST($C201,W$205:W$216,$C$205:$C$216)))) -> 6.799454649 | X201: =IF(MAX(C205:C216)-MIN(C205:C216)<5,AVERAGEIF(C205:C216,">0",X205:X216), IF(FORECAST($C201,X$205:X$216,$C$205:$C$216)<0,0, IF(FORECAST($C201,X$205:X$216,$C$205:$C$216)>100,100, FORECAST($C201,X$205:X$216,$C$205:$C$216)))) -> 93.15707804 | AB201: =IF(MAX(C205:C216)-MIN(C205:C216)<5,AVERAGEIF(C205:C216,">0",AB205:AB216), IF(FORECAST($C201,AB$205:AB$216,$C$205:$C$216)<0,0, IF(FORECAST($C201,AB$205:AB$216,$C$205:$C$216)>100,100, FORECAST($C201,AB$205:AB$216,$C$205:$C$216)))) -> 1.478768529
C202: =MaxRegYear(C200,C205:C216) -> 2020 | D202: =IF(MAX(C205:C216)-MIN(C205:C216)<5,AVERAGEIF(C205:C216,">0",D205:D216), IF(FORECAST($C202,D$205:D$216,$C$205:$C$216)<0,0, IF(FORECAST($C202,D$205:D$216,$C$205:$C$216)>100,100, FORECAST($C202,D$205:D$216,$C$205:$C$216)))) -> 52.51340199 | H202: =IF(MAX(C205:C216)-MIN(C205:C216)<5,AVERAGEIF(C205:C216,">0",H205:H216), IF(FORECAST($C202,H$205:H$216,$C$205:$C$216)<0,0, IF(FORECAST($C202,H$205:H$216,$C$205:$C$216)>100,100, FORECAST($C202,H$205:H$216,$C$205:$C$216)))) -> 25.9327948 | I202: =IF(MAX(C205:C216)-MIN(C205:C216)<5,AVERAGEIF(C205:C216,">0",I205:I216), IF(FORECAST($C202,I$205:I$216,$C$205:$C$216)<0,0, IF(FORECAST($C202,I$205:I$216,$C$205:$C$216)>100,100, FORECAST($C202,I$205:I$216,$C$205:$C$216)))) -> 77.32330834 | M202: =IF(MAX(C205:C216)-MIN(C205:C216)<5,AVERAGEIF(C205:C216,">0",M205:M216), IF(FORECAST($C202,M$205:M$216,$C$205:$C$216)<0,0, IF(FORECAST($C202,M$205:M$216,$C$205:$C$216)>100,100, FORECAST($C202,M$205:M$216,$C$205:$C$216)))) -> 17.31411217 | N202: =IF(MAX(C205:C216)-MIN(C205:C216)<5,AVERAGEIF(C205:C216,">0",N205:N216), IF(FORECAST($C202,N$205:N$216,$C$205:$C$216)<0,0, IF(FORECAST($C202,N$205:N$216,$C$205:$C$216)>100,100, FORECAST($C202,N$205:N$216,$C$205:$C$216)))) -> 90.01612514 | R202: =IF(MAX(C205:C216)-MIN(C205:C216)<5,AVERAGEIF(C205:C216,">0",R205:R216), IF(FORECAST($C202,R$205:R$216,$C$205:$C$216)<0,0, IF(FORECAST($C202,R$205:R$216,$C$205:$C$216)>100,100, FORECAST($C202,R$205:R$216,$C$205:$C$216)))) -> 10.17778833 | S202: =IF(MAX(C205:C216)-MIN(C205:C216)<5,AVERAGEIF(C205:C216,">0",S205:S216), IF(FORECAST($C202,S$205:S$216,$C$205:$C$216)<0,0, IF(FORECAST($C202,S$205:S$216,$C$205:$C$216)>100,100, FORECAST($C202,S$205:S$216,$C$205:$C$216)))) -> 94.95071444 | W202: =IF(MAX(C205:C216)-MIN(C205:C216)<5,AVERAGEIF(C205:C216,">0",W205:W216), IF(FORECAST($C202,W$205:W$216,$C$205:$C$216)<0,0, IF(FORECAST($C202,W$205:W$216,$C$205:$C$216)>100,100, FORECAST($C202,W$205:W$216,$C$205:$C$216)))) -> 3.62350697 | X202: =IF(MAX(C205:C216)-MIN(C205:C216)<5,AVERAGEIF(C205:C216,">0",X205:X216), IF(FORECAST($C202,X$205:X$216,$C$205:$C$216)<0,0, IF(FORECAST($C202,X$205:X$216,$C$205:$C$216)>100,100, FORECAST($C202,X$205:X$216,$C$205:$C$216)))) -> 97.50613305 | AB202: =IF(MAX(C205:C216)-MIN(C205:C216)<5,AVERAGEIF(C205:C216,">0",AB205:AB216), IF(FORECAST($C202,AB$205:AB$216,$C$205:$C$216)<0,0, IF(FORECAST($C202,AB$205:AB$216,$C$205:$C$216)>100,100, FORECAST($C202,AB$205:AB$216,$C$205:$C$216)))) -> 0.7419779597
B204: Survey | C204: Year | D204: Improved | E204: Not shared | H204: Open defecation | I204: Improved | J204: Not shared | M204: Open defecation | N204: Improved | O204: Not shared | R204: Open defecation | S204: Improved | T204: Not shared | W204: Open defecation | X204: Improved | Y204: Not shared | AB204: Open defecation
B205: DHS03 | C205: 2003 | D205: =IF(ISERROR(INDIRECT(CONCATENATE($B205,"!H122"))),"",INDIRECT(CONCATENATE($B205,"!H122"))) -> 23.72452677 | E205: =IF(ISERROR(INDIRECT(CONCATENATE($B205,"!H129"))),"",INDIRECT(CONCATENATE($B205,"!H129"))) -> N/A | H205: =IF(ISERROR(INDIRECT(CONCATENATE($B205,"!H127"))),"",INDIRECT(CONCATENATE($B205,"!H127"))) -> 19.55383129 | I205: =IF(ISERROR(INDIRECT(CONCATENATE($B205,"!I122"))),"",INDIRECT(CONCATENATE($B205,"!I122"))) -> 37.13991088 | J205: =IF(ISERROR(INDIRECT(CONCATENATE($B205,"!I129"))),"",INDIRECT(CONCATENATE($B205,"!I129"))) -> N/A | M205: =IF(ISERROR(INDIRECT(CONCATENATE($B205,"!I127"))),"",INDIRECT(CONCATENATE($B205,"!I127"))) -> 9.328274363 | N205: =IF(ISERROR(INDIRECT(CONCATENATE($B205,"!J122"))),"",INDIRECT(CONCATENATE($B205,"!J122"))) -> 53.51694736 | O205: =IF(ISERROR(INDIRECT(CONCATENATE($B205,"!J129"))),"",INDIRECT(CONCATENATE($B205,"!J129"))) -> N/A | R205: =IF(ISERROR(INDIRECT(CONCATENATE($B205,"!J127"))),"",INDIRECT(CONCATENATE($B205,"!J127"))) -> 7.270317998 | S205: =IF(ISERROR(INDIRECT(CONCATENATE($B205,"!K122"))),"",INDIRECT(CONCATENATE($B205,"!K122"))) -> 68.6161424 | T205: =IF(ISERROR(INDIRECT(CONCATENATE($B205,"!K129"))),"",INDIRECT(CONCATENATE($B205,"!K129"))) -> N/A | W205: =IF(ISERROR(INDIRECT(CONCATENATE($B205,"!K127"))),"",INDIRECT(CONCATENATE($B205,"!K127"))) -> 6.387023858 | X205: =IF(ISERROR(INDIRECT(CONCATENATE($B205,"!L122"))),"",INDIRECT(CONCATENATE($B205,"!L122"))) -> 91.80664586 | Y205: =IF(ISERROR(INDIRECT(CONCATENATE($B205,"!L129"))),"",INDIRECT(CONCATENATE($B205,"!L129"))) -> N/A | AB205: =IF(ISERROR(INDIRECT(CONCATENATE($B205,"!L2127"))),"",INDIRECT(CONCATENATE($B205,"!L127"))) -> 1.362152703
B206: MICS07 | D206: 14.63970241 | E206: 89.34974815 | H206: 42.70703542 | I206: 20.96170603 | J206: 86.07501467 | M206: 38.63563157 | N206: 25.70351417 | O206: 82.4901923 | R206: 36.11022156 | S206: 34.92606139 | T206: 71.36147193 | W206: 30.1006494 | X206: 58.85351621 | Y206: 60.10668345 | AB206: 22.16751879
B207: DHS08 | C207: 2008 | D207: 49.69618691 | E207: 63.03018323 | H207: 27.52377635 | I207: 70.29080668 | J207: 52.59722664 | M207: 15.35836972 | N207: 78.67312547 | O207: 43.68684069 | R207: 10.47446265 | S207: 88.59939413 | T207: 32.08324569 | W207: 5.164317233 | X207: 95.5499494 | Y207: 59.84850016 | AB207: 0.9139671032
B208: MIS10 | D208: 22.56724159 | E208: N/A | H208: 44.65816364 | I208: 52.25767525 | J208: N/A | M208: 26.2004135 | N208: 66.39395904 | O208: N/A | R208: 17.45055881 | S208: 78.46435079 | T208: N/A | W208: 9.591274396 | X208: 87.51764634 | Y208: N/A | AB208: 2.582288358
B209: MICS11 | C209: 2011 | D209: 47.22692753 | E209: 60.42793502 | H209: 26.37524072 | I209: 70.22185046 | J209: 50.15876905 | M209: 17.6819984 | N209: 84.0966178 | O209: 42.08584374 | R209: 9.829805047 | S209: 92.39526347 | T209: 39.64825077 | W209: 4.822210993 | X209: 98.67279083 | Y209: 66.3230395 | AB209: 0.9890162905
B210: DHS13 | C210: 2013 | D210: 50.0363366 | E210: 65.46204054 | H210: 32.30077237 | I210: 71.82423432 | J210: 51.85483096 | M210: 17.74790634 | N210: 80.17759309 | O210: 42.73325891 | R210: 13.34660492 | S210: 87.17126868 | T210: 42.4725239 | W210: 7.403664835 | X210: 95.28228261 | Y210: 76.17946316 | AB210: 2.334297793
B211: MIS15 | C211: 2015 | D211: 44.00508277 | E211: 74.67725483 | H211: 28.23163164 | I211: 65.41047129 | J211: 63.97698887 | M211: 14.51166406 | N211: 83.80223442 | O211: 57.93561304 | R211: 7.452526146 | S211: 89.73671251 | T211: 49.83578626 | W211: 3.267488707 | X211: 95.85280227 | Y211: 75.54576476 | AB211: 0.3136216526
B212: MICS17 | C212: 2017 | D212: 52.02394639 | E212: 73.69362221 | H212: 9.885251205 | I212: 72.0614667 | J212: 54.71355027 | M212: 10.13318428 | N212: 83.64104514 | O212: 54.14217647 | R212: 7.064178298 | S212: 89.82864104 | T212: 52.0280143 | W212: 2.612162564 | X212: 98.08417989 | Y212: 77.39602197 | AB212: 0.3538862508
B213: DHS18 | C213: 2018 | D213: 40.90612523 | E213: 57.51590017 | H213: 31.61145036 | I213: 65.67795194 | J213: 53.13145569 | M213: 19.61376294 | N213: 79.21753369 | O213: 45.37336072 | R213: 11.49102659 | S213: 88.25774451 | T213: 55.7029517 | W213: 4.901213357 | X213: 94.7049107 | Y213: 81.67965428 | AB213: 1.05971873
B218: =CONCATENATE("Urban use of sanitation facilities, ",C199,"–",C200) -> Urban use of sanitation facilities, 2000–2020 | S218: Data points used for regression
A297: RURAL | D297: Poorest | I297: Poor | N297: Middle | S297: Rich | X297: Richest
D298: Improved | E298: Basic | F298: Limited | G298: Unimproved | H298: Open defecation | I298: Improved | J298: Basic | K298: Limited | L298: Unimproved | M298: Open defecation | N298: Improved | O298: Basic | P298: Limited | Q298: Unimproved | R298: Open defecation | S298: Improved | T298: Basic | U298: Limited | V298: Unimproved | W298: Open defecation | X298: Improved | Y298: Basic | Z298: Limited | AA298: Unimproved | AB298: Open defecation
A299: Forecast period: | C299: 2000 | D299: =IF((D301+H301)>100,D301*100/(D301+H301),D301) -> 28.17732676 | E299: =D299*AVERAGEIF(E305:E316,">0")/100 -> 22.85150481 | F299: =D299*(100-AVERAGEIF(E305:E316,">0"))/100 -> 5.325821955 | G299: =100-(E299+F299+H299) -> 15.9516425 | H299: =IF((D301+H301)>100,H301*100/(D301+H301),H301) -> 55.87103074 | I299: =IF((I301+M301)>100,I301*100/(I301+M301),I301) -> 38.04238225 | J299: =I299*AVERAGEIF(J305:J316,">0")/100 -> 28.55563459 | K299: =I299*(100-AVERAGEIF(J305:J316,">0"))/100 -> 9.486747658 | L299: =100-(J299+K299+M299) -> 13.60348157 | M299: =IF((I301+M301)>100,M301*100/(I301+M301),M301) -> 48.35413618 | N299: =IF((N301+R301)>100,N301*100/(N301+R301),N301) -> 49.37047476 | O299: =N299*AVERAGEIF(O305:O316,">0")/100 -> 34.54886141 | P299: =N299*(100-AVERAGEIF(O305:O316,">0"))/100 -> 14.82161335 | Q299: =100-(O299+P299+R299) -> 14.56070362 | R299: =IF((N301+R301)>100,R301*100/(N301+R301),R301) -> 36.06882161 | S299: =IF((S301+W301)>100,S301*100/(S301+W301),S301) -> 58.41823156 | T299: =S299*AVERAGEIF(T305:T316,">0")/100 -> 36.56473086 | U299: =S299*(100-AVERAGEIF(T305:T316,">0"))/100 -> 21.8535007 | V299: =100-(T299+U299+W299) -> 10.08555931 | W299: =IF((S301+W301)>100,W301*100/(S301+W301),W301) -> 31.49620914 | X299: =IF((X301+AB301)>100,X301*100/(X301+AB301),X301) -> 72.42009845 | Y299: =X299*AVERAGEIF(Y305:Y316,">0")/100 -> 47.49250691 | Z299: =X299*(100-AVERAGEIF(Y305:Y316,">0"))/100 -> 24.92759154 | AA299: =100-(Y299+Z299+AB299) -> 11.214752 | AB299: =IF((X301+AB301)>100,AB301*100/(X301+AB301),AB301) -> 16.36514955
C300: 2020 | D300: =IF((D302+H302)>100,D302*100/(D302+H302),D302) -> 11.70486413 | E300: =D300*AVERAGEIF(E305:E316,">0")/100 -> 9.492517203 | F300: =D300*(100-AVERAGEIF(E305:E316,">0"))/100 -> 2.212346931 | G300: =100-(E300+F300+H300) -> 38.91404333 | H300: =IF((D302+H302)>100,H302*100/(D302+H302),H302) -> 49.38109254 | I300: =IF((I302+M302)>100,I302*100/(I302+M302),I302) -> 21.31870408 | J300: =I300*AVERAGEIF(J305:J316,">0")/100 -> 16.00239227 | K300: =I300*(100-AVERAGEIF(J305:J316,">0"))/100 -> 5.316311809 | L300: =100-(J300+K300+M300) -> 45.60381041 | M300: =IF((I302+M302)>100,M302*100/(I302+M302),M302) -> 33.07748551 | N300: =IF((N302+R302)>100,N302*100/(N302+R302),N302) -> 26.95777245 | O300: =N300*AVERAGEIF(O305:O316,">0")/100 -> 18.86472328 | P300: =N300*(100-AVERAGEIF(O305:O316,">0"))/100 -> 8.093049175 | Q300: =100-(O300+P300+R300) -> 39.67190644 | R300: =IF((N302+R302)>100,R302*100/(N302+R302),R302) -> 33.37032111 | S300: =IF((S302+W302)>100,S302*100/(S302+W302),S302) -> 37.25107938 | T300: =S300*AVERAGEIF(T305:T316,">0")/100 -> 23.31593503 | U300: =S300*(100-AVERAGEIF(T305:T316,">0"))/100 -> 13.93514435 | V300: =100-(T300+U300+W300) -> 29.26261056 | W300: =IF((S302+W302)>100,W302*100/(S302+W302),W302) -> 33.48631006 | X300: =IF((X302+AB302)>100,X302*100/(X302+AB302),X302) -> 66.4993983 | Y300: =X300*AVERAGEIF(Y305:Y316,">0")/100 -> 43.60976028 | Z300: =X300*(100-AVERAGEIF(Y305:Y316,">0"))/100 -> 22.88963802 | AA300: =100-(Y300+Z300+AB300) -> 13.97739071 | AB300: =IF((X302+AB302)>100,AB302*100/(X302+AB302),AB302) -> 19.523211
A301: Regression period: | C301: =MinRegYear(C299,C305:C316) -> 2001 | D301: =IF(MAX(C305:C316)-MIN(C305:C316)<5,AVERAGEIF(C305:C316,">0",D305:D316), IF(FORECAST($C301,D$305:D$316,$C$305:$C$316)<0,0, IF(FORECAST($C301,D$305:D$316,$C$305:$C$316)>100,100, FORECAST($C301,D$305:D$316,$C$305:$C$316)))) -> 28.17732676 | H301: =IF(MAX(C305:C316)-MIN(C305:C316)<5,AVERAGEIF(C305:C316,">0",H305:H316), IF(FORECAST($C301,H$305:H$316,$C$305:$C$316)<0,0, IF(FORECAST($C301,H$305:H$316,$C$305:$C$316)>100,100, FORECAST($C301,H$305:H$316,$C$305:$C$316)))) -> 55.87103074 | I301: =IF(MAX(C305:C316)-MIN(C305:C316)<5,AVERAGEIF(C305:C316,">0",I305:I316), IF(FORECAST($C301,I$305:I$316,$C$305:$C$316)<0,0, IF(FORECAST($C301,I$305:I$316,$C$305:$C$316)>100,100, FORECAST($C301,I$305:I$316,$C$305:$C$316)))) -> 38.04238225 | M301: =IF(MAX(C305:C316)-MIN(C305:C316)<5,AVERAGEIF(C305:C316,">0",M305:M316), IF(FORECAST($C301,M$305:M$316,$C$305:$C$316)<0,0, IF(FORECAST($C301,M$305:M$316,$C$305:$C$316)>100,100, FORECAST($C301,M$305:M$316,$C$305:$C$316)))) -> 48.35413618 | N301: =IF(MAX(C305:C316)-MIN(C305:C316)<5,AVERAGEIF(C305:C316,">0",N305:N316), IF(FORECAST($C301,N$305:N$316,$C$305:$C$316)<0,0, IF(FORECAST($C301,N$305:N$316,$C$305:$C$316)>100,100, FORECAST($C301,N$305:N$316,$C$305:$C$316)))) -> 49.37047476 | R301: =IF(MAX(C305:C316)-MIN(C305:C316)<5,AVERAGEIF(C305:C316,">0",R305:R316), IF(FORECAST($C301,R$305:R$316,$C$305:$C$316)<0,0, IF(FORECAST($C301,R$305:R$316,$C$305:$C$316)>100,100, FORECAST($C301,R$305:R$316,$C$305:$C$316)))) -> 36.06882161 | S301: =IF(MAX(C305:C316)-MIN(C305:C316)<5,AVERAGEIF(C305:C316,">0",S305:S316), IF(FORECAST($C301,S$305:S$316,$C$305:$C$316)<0,0, IF(FORECAST($C301,S$305:S$316,$C$305:$C$316)>100,100, FORECAST($C301,S$305:S$316,$C$305:$C$316)))) -> 58.41823156 | W301: =IF(MAX(C305:C316)-MIN(C305:C316)<5,AVERAGEIF(C305:C316,">0",W305:W316), IF(FORECAST($C301,W$305:W$316,$C$305:$C$316)<0,0, IF(FORECAST($C301,W$305:W$316,$C$305:$C$316)>100,100, FORECAST($C301,W$305:W$316,$C$305:$C$316)))) -> 31.49620914 | X301: =IF(MAX(C305:C316)-MIN(C305:C316)<5,AVERAGEIF(C305:C316,">0",X305:X316), IF(FORECAST($C301,X$305:X$316,$C$305:$C$316)<0,0, IF(FORECAST($C301,X$305:X$316,$C$305:$C$316)>100,100, FORECAST($C301,X$305:X$316,$C$305:$C$316)))) -> 72.42009845 | AB301: =IF(MAX(C305:C316)-MIN(C305:C316)<5,AVERAGEIF(C305:C316,">0",AB305:AB316), IF(FORECAST($C301,AB$305:AB$316,$C$305:$C$316)<0,0, IF(FORECAST($C301,AB$305:AB$316,$C$305:$C$316)>100,100, FORECAST($C301,AB$305:AB$316,$C$305:$C$316)))) -> 16.36514955
C302: =MaxRegYear(C300,C305:C316) -> 2020 | D302: =IF(MAX(C305:C316)-MIN(C305:C316)<5,AVERAGEIF(C305:C316,">0",D305:D316), IF(FORECAST($C302,D$305:D$316,$C$305:$C$316)<0,0, IF(FORECAST($C302,D$305:D$316,$C$305:$C$316)>100,100, FORECAST($C302,D$305:D$316,$C$305:$C$316)))) -> 11.70486413 | H302: =IF(MAX(C305:C316)-MIN(C305:C316)<5,AVERAGEIF(C305:C316,">0",H305:H316), IF(FORECAST($C302,H$305:H$316,$C$305:$C$316)<0,0, IF(FORECAST($C302,H$305:H$316,$C$305:$C$316)>100,100, FORECAST($C302,H$305:H$316,$C$305:$C$316)))) -> 49.38109254 | I302: =IF(MAX(C305:C316)-MIN(C305:C316)<5,AVERAGEIF(C305:C316,">0",I305:I316), IF(FORECAST($C302,I$305:I$316,$C$305:$C$316)<0,0, IF(FORECAST($C302,I$305:I$316,$C$305:$C$316)>100,100, FORECAST($C302,I$305:I$316,$C$305:$C$316)))) -> 21.31870408 | M302: =IF(MAX(C305:C316)-MIN(C305:C316)<5,AVERAGEIF(C305:C316,">0",M305:M316), IF(FORECAST($C302,M$305:M$316,$C$305:$C$316)<0,0, IF(FORECAST($C302,M$305:M$316,$C$305:$C$316)>100,100, FORECAST($C302,M$305:M$316,$C$305:$C$316)))) -> 33.07748551 | N302: =IF(MAX(C305:C316)-MIN(C305:C316)<5,AVERAGEIF(C305:C316,">0",N305:N316), IF(FORECAST($C302,N$305:N$316,$C$305:$C$316)<0,0, IF(FORECAST($C302,N$305:N$316,$C$305:$C$316)>100,100, FORECAST($C302,N$305:N$316,$C$305:$C$316)))) -> 26.95777245 | R302: =IF(MAX(C305:C316)-MIN(C305:C316)<5,AVERAGEIF(C305:C316,">0",R305:R316), IF(FORECAST($C302,R$305:R$316,$C$305:$C$316)<0,0, IF(FORECAST($C302,R$305:R$316,$C$305:$C$316)>100,100, FORECAST($C302,R$305:R$316,$C$305:$C$316)))) -> 33.37032111 | S302: =IF(MAX(C305:C316)-MIN(C305:C316)<5,AVERAGEIF(C305:C316,">0",S305:S316), IF(FORECAST($C302,S$305:S$316,$C$305:$C$316)<0,0, IF(FORECAST($C302,S$305:S$316,$C$305:$C$316)>100,100, FORECAST($C302,S$305:S$316,$C$305:$C$316)))) -> 37.25107938 | W302: =IF(MAX(C305:C316)-MIN(C305:C316)<5,AVERAGEIF(C305:C316,">0",W305:W316), IF(FORECAST($C302,W$305:W$316,$C$305:$C$316)<0,0, IF(FORECAST($C302,W$305:W$316,$C$305:$C$316)>100,100, FORECAST($C302,W$305:W$316,$C$305:$C$316)))) -> 33.48631006 | X302: =IF(MAX(C305:C316)-MIN(C305:C316)<5,AVERAGEIF(C305:C316,">0",X305:X316), IF(FORECAST($C302,X$305:X$316,$C$305:$C$316)<0,0, IF(FORECAST($C302,X$305:X$316,$C$305:$C$316)>100,100, FORECAST($C302,X$305:X$316,$C$305:$C$316)))) -> 66.4993983 | AB302: =IF(MAX(C305:C316)-MIN(C305:C316)<5,AVERAGEIF(C305:C316,">0",AB305:AB316), IF(FORECAST($C302,AB$305:AB$316,$C$305:$C$316)<0,0, IF(FORECAST($C302,AB$305:AB$316,$C$305:$C$316)>100,100, FORECAST($C302,AB$305:AB$316,$C$305:$C$316)))) -> 19.523211
B304: Survey | C304: Year | D304: Improved | E304: Not shared | H304: Open defecation | I304: Improved | J304: Not shared | M304: Open defecation | N304: Improved | O304: Not shared | R304: Open defecation | S304: Improved | T304: Not shared | W304: Open defecation | X304: Improved | Y304: Not shared | AB304: Open defecation
B305: DHS03 | C305: 2003 | D305: =IF(ISERROR(INDIRECT(CONCATENATE($B305,"!M122"))),"",INDIRECT(CONCATENATE($B305,"!M122"))) -> 23.93484938 | E305: =IF(ISERROR(INDIRECT(CONCATENATE($B305,"!M129"))),"",INDIRECT(CONCATENATE($B305,"!M129"))) -> N/A | H305: =IF(ISERROR(INDIRECT(CONCATENATE($B305,"!M127"))),"",INDIRECT(CONCATENATE($B305,"!M127"))) -> 52.77308928 | I305: =IF(ISERROR(INDIRECT(CONCATENATE($B305,"!N122"))),"",INDIRECT(CONCATENATE($B305,"!N122"))) -> 36.03979854 | J305: =IF(ISERROR(INDIRECT(CONCATENATE($B305,"!N129"))),"",INDIRECT(CONCATENATE($B305,"!N129"))) -> N/A | M305: =IF(ISERROR(INDIRECT(CONCATENATE($B305,"!N127"))),"",INDIRECT(CONCATENATE($B305,"!N127"))) -> 45.19569092 | N305: =IF(ISERROR(INDIRECT(CONCATENATE($B305,"!O122"))),"",INDIRECT(CONCATENATE($B305,"!O122"))) -> 54.3111462 | O305: =IF(ISERROR(INDIRECT(CONCATENATE($B305,"!O129"))),"",INDIRECT(CONCATENATE($B305,"!O129"))) -> N/A | R305: =IF(ISERROR(INDIRECT(CONCATENATE($B305,"!O127"))),"",INDIRECT(CONCATENATE($B305,"!O127"))) -> 26.66442521 | S305: =IF(ISERROR(INDIRECT(CONCATENATE($B305,"!P122"))),"",INDIRECT(CONCATENATE($B305,"!P122"))) -> 64.78669087 | T305: =IF(ISERROR(INDIRECT(CONCATENATE($B305,"!P129"))),"",INDIRECT(CONCATENATE($B305,"!P129"))) -> N/A | W305: =IF(ISERROR(INDIRECT(CONCATENATE($B305,"!P127"))),"",INDIRECT(CONCATENATE($B305,"!P127"))) -> 24.45621563 | X305: =IF(ISERROR(INDIRECT(CONCATENATE($B305,"!Q122"))),"",INDIRECT(CONCATENATE($B305,"!Q122"))) -> 75.9517299 | Y305: =IF(ISERROR(INDIRECT(CONCATENATE($B305,"!Q129"))),"",INDIRECT(CONCATENATE($B305,"!Q129"))) -> N/A | AB305: =IF(ISERROR(INDIRECT(CONCATENATE($B305,"!Q2127"))),"",INDIRECT(CONCATENATE($B305,"!Q127"))) -> 13.42433736
B306: MICS07 | D306: 41.75723937 | E306: 62.9408299 | H306: 25.79459961 | I306: 56.57353046 | J306: 42.67623842 | M306: 21.64844656 | N306: 73.07616697 | O306: 33.954496 | R306: 12.24988289 | S306: 84.74545826 | T306: 30.06570825 | W306: 6.867717534 | X306: 94.14070058 | Y306: 60.83324952 | AB306: 1.681631666
B307: DHS08 | C307: 2008 | D307: 28.09593829 | E307: 78.2348783 | H307: 51.34716921 | I307: 35.30784348 | J307: 77.90921418 | M307: 43.30822525 | N307: 34.26773641 | O307: 75.39953624 | R307: 45.45733353 | S307: 40.80449731 | T307: 63.22191615 | W307: 40.81765011 | X307: 68.09201341 | Y307: 58.77973125 | AB307: 20.41530679
B308: MIS10 | D308: 19.72495219 | E308: N/A | H308: 46.93503586 | I308: 28.56087081 | J308: N/A | M308: 42.37704777 | N308: 40.55242935 | O308: N/A | R308: 34.35835829 | S308: 29.2887088 | T308: N/A | W308: 40.93610721 | X308: 53.35653115 | Y308: N/A | AB308: 23.2822695
B309: MICS11 | C309: 2011 | D309: 15.02405168 | E309: 84.99554275 | H309: 56.66032172 | I309: 23.62611188 | J309: 80.76492229 | M309: 40.90509431 | N309: 29.18021465 | O309: 70.27972579 | R309: 42.10813658 | S309: 47.1692285 | T309: 66.11753861 | W309: 31.39888822 | X309: 71.32625067 | Y309: 64.72575545 | AB309: 14.12056645
B310: DHS13 | C310: 2013 | D310: 19.96599415 | E310: 85.21994097 | H310: 56.41279532 | I310: 31.90277356 | J310: 82.31365877 | M310: 36.44854858 | N310: 41.15615627 | O310: 80.07250751 | R310: 30.0166973 | S310: 40.19908294 | T310: 68.00998951 | W310: 40.28611635 | X310: 59.91691248 | Y310: 62.64572182 | AB310: 27.46597039
B311: MIS15 | C311: 2015 | D311: 14.46568597 | E311: 85.12409308 | H311: 54.37808793 | I311: 20.57695685 | J311: 78.98806006 | M311: 45.10401233 | N311: 28.66910851 | O311: 78.92308123 | R311: 34.77529386 | S311: 39.9640282 | T311: 70.80327377 | W311: 31.71445188 | X311: 63.50176412 | Y311: 68.99350272 | AB311: 20.30314087
B312: MICS17 | C312: 2017 | D312: 17.20502863 | E312: 84.62914566 | H312: 45.44993652 | I312: 25.93898428 | J312: 85.34353547 | M312: 36.04966425 | N312: 31.06591644 | O312: 81.89468873 | R312: 34.21206208 | S312: 43.38059423 | T312: 73.07441766 | W312: 30.12442444 | X312: 69.90899475 | Y312: 74.29477537 | AB312: 16.23932651
B313: DHS18 | C313: 2018 | D313: 10.92594528 | E313: 86.54793774 | H313: 47.43291101 | I313: 24.24910727 | J313: 77.44318487 | M313: 28.75304646 | N313: 34.9330038 | O313: 69.32750241 | R313: 28.16974805 | S313: 45.72676884 | T313: 66.84625949 | W313: 29.84560534 | X313: 73.93699163 | Y313: 68.78152569 | AB313: 15.55207179
B318: =CONCATENATE("Rural use of sanitation facilities, ",C299,"–",C300) -> Rural use of sanitation facilities, 2000–2020 | S318: Data points used for regression

Sheet Hygiene
B4: Access to hygiene facilities by wealth quintile (%)
B5: =IF(ISERROR(INDIRECT(CONCATENATE($E$32,"!A2"))),"",INDIRECT(CONCATENATE($E$32,"!A2"))) -> 
B7: =CONCATENATE("National ",IF(ISERROR(INDIRECT(CONCATENATE($E$32,"!A2"))),"",INDIRECT(CONCATENATE($E$32,"!A210")))) -> National | K7: =CONCATENATE("Urban ",IF(ISERROR(INDIRECT(CONCATENATE($E$32,"!A2"))),"",INDIRECT(CONCATENATE($E$32,"!A210")))) -> Urban | S7: =CONCATENATE("Rural ",IF(ISERROR(INDIRECT(CONCATENATE($E$32,"!A2"))),"",INDIRECT(CONCATENATE($E$32,"!A210")))) -> Rural
E32: =INDEX(B88:B100,A88) -> 0 | G32: =IF(ISERROR(INDIRECT(CONCATENATE($E$32,"!A2"))),"",INDIRECT(CONCATENATE($E$32,"!A2"))) ->  | K32: Poorest | N32: Poor | Q32: Middle | T32: Rich | W32: Richest
K33: Basic | L33: Limited | M33: No facility | N33: Basic | O33: Limited | P33: No facility | Q33: Basic | R33: Limited | S33: No facility | T33: Basic | U33: Limited | V33: No facility | W33: Basic | X33: Limited | Y33: No facility
B34: >>> Select Survey : | G34: NATIONAL | J34: =IF(ISERROR(INDIRECT(CONCATENATE(#REF!,"!A2"))),"",INDIRECT(CONCATENATE(#REF!,"!A210"))) ->  | K34: =IF(ISERROR(INDIRECT(CONCATENATE($E$32,"!C222"))),"",INDIRECT(CONCATENATE($E$32,"!C222"))) ->  | L34: =IF(ISERROR(INDIRECT(CONCATENATE($E$32,"!C223"))),"",INDIRECT(CONCATENATE($E$32,"!C223"))) ->  | M34: =IF(ISERROR(INDIRECT(CONCATENATE($E$32,"!C224"))),"",INDIRECT(CONCATENATE($E$32,"!C224"))) ->  | N34: =IF(ISERROR(INDIRECT(CONCATENATE($E$32,"!D222"))),"",INDIRECT(CONCATENATE($E$32,"!D222"))) ->  | O34: =IF(ISERROR(INDIRECT(CONCATENATE($E$32,"!D223"))),"",INDIRECT(CONCATENATE($E$32,"!D223"))) ->  | P34: =IF(ISERROR(INDIRECT(CONCATENATE($E$32,"!D224"))),"",INDIRECT(CONCATENATE($E$32,"!D224"))) ->  | Q34: =IF(ISERROR(INDIRECT(CONCATENATE($E$32,"!E222"))),"",INDIRECT(CONCATENATE($E$32,"!E222"))) ->  | R34: =IF(ISERROR(INDIRECT(CONCATENATE($E$32,"!E223"))),"",INDIRECT(CONCATENATE($E$32,"!E223"))) ->  | S34: =IF(ISERROR(INDIRECT(CONCATENATE($E$32,"!E224"))),"",INDIRECT(CONCATENATE($E$32,"!E224"))) ->  | T34: =IF(ISERROR(INDIRECT(CONCATENATE($E$32,"!F222"))),"",INDIRECT(CONCATENATE($E$32,"!F222"))) ->  | U34: =IF(ISERROR(INDIRECT(CONCATENATE($E$32,"!F223"))),"",INDIRECT(CONCATENATE($E$32,"!F223"))) ->  | V34: =IF(ISERROR(INDIRECT(CONCATENATE($E$32,"!F224"))),"",INDIRECT(CONCATENATE($E$32,"!F224"))) ->  | W34: =IF(ISERROR(INDIRECT(CONCATENATE($E$32,"!G222"))),"",INDIRECT(CONCATENATE($E$32,"!G222"))) ->  | X34: =IF(ISERROR(INDIRECT(CONCATENATE($E$32,"!G223"))),"",INDIRECT(CONCATENATE($E$32,"!G223"))) ->  | Y34: =IF(ISERROR(INDIRECT(CONCATENATE($E$32,"!G224"))),"",INDIRECT(CONCATENATE($E$32,"!G224"))) -> 
G37: URBAN | J37: =IF(ISERROR(INDIRECT(CONCATENATE(#REF!,"!A2"))),"",INDIRECT(CONCATENATE(#REF!,"!A210"))) ->  | K37: =IF(ISERROR(INDIRECT(CONCATENATE($E$32,"!H222"))),"",INDIRECT(CONCATENATE($E$32,"!H222"))) ->  | L37: =IF(ISERROR(INDIRECT(CONCATENATE($E$32,"!H223"))),"",INDIRECT(CONCATENATE($E$32,"!H223"))) ->  | M37: =IF(ISERROR(INDIRECT(CONCATENATE($E$32,"!H224"))),"",INDIRECT(CONCATENATE($E$32,"!H224"))) ->  | N37: =IF(ISERROR(INDIRECT(CONCATENATE($E$32,"!I222"))),"",INDIRECT(CONCATENATE($E$32,"!I222"))) ->  | O37: =IF(ISERROR(INDIRECT(CONCATENATE($E$32,"!I223"))),"",INDIRECT(CONCATENATE($E$32,"!I223"))) ->  | P37: =IF(ISERROR(INDIRECT(CONCATENATE($E$32,"!I224"))),"",INDIRECT(CONCATENATE($E$32,"!I224"))) ->  | Q37: =IF(ISERROR(INDIRECT(CONCATENATE($E$32,"!J222"))),"",INDIRECT(CONCATENATE($E$32,"!J222"))) ->  | R37: =IF(ISERROR(INDIRECT(CONCATENATE($E$32,"!J223"))),"",INDIRECT(CONCATENATE($E$32,"!J223"))) ->  | S37: =IF(ISERROR(INDIRECT(CONCATENATE($E$32,"!J224"))),"",INDIRECT(CONCATENATE($E$32,"!J224"))) ->  | T37: =IF(ISERROR(INDIRECT(CONCATENATE($E$32,"!K222"))),"",INDIRECT(CONCATENATE($E$32,"!K222"))) ->  | U37: =IF(ISERROR(INDIRECT(CONCATENATE($E$32,"!K223"))),"",INDIRECT(CONCATENATE($E$32,"!K223"))) ->  | V37: =IF(ISERROR(INDIRECT(CONCATENATE($E$32,"!K224"))),"",INDIRECT(CONCATENATE($E$32,"!K224"))) ->  | W37: =IF(ISERROR(INDIRECT(CONCATENATE($E$32,"!L222"))),"",INDIRECT(CONCATENATE($E$32,"!L222"))) ->  | X37: =IF(ISERROR(INDIRECT(CONCATENATE($E$32,"!L223"))),"",INDIRECT(CONCATENATE($E$32,"!L223"))) ->  | Y37: =IF(ISERROR(INDIRECT(CONCATENATE($E$32,"!L224"))),"",INDIRECT(CONCATENATE($E$32,"!L224"))) -> 
G40: RURAL | J40: =IF(ISERROR(INDIRECT(CONCATENATE(#REF!,"!A2"))),"",INDIRECT(CONCATENATE(#REF!,"!A210"))) ->  | K40: =IF(ISERROR(INDIRECT(CONCATENATE($E$32,"!M222"))),"",INDIRECT(CONCATENATE($E$32,"!M222"))) ->  | L40: =IF(ISERROR(INDIRECT(CONCATENATE($E$32,"!M223"))),"",INDIRECT(CONCATENATE($E$32,"!M223"))) ->  | M40: =IF(ISERROR(INDIRECT(CONCATENATE($E$32,"!M224"))),"",INDIRECT(CONCATENATE($E$32,"!M224"))) ->  | N40: =IF(ISERROR(INDIRECT(CONCATENATE($E$32,"!N222"))),"",INDIRECT(CONCATENATE($E$32,"!N222"))) ->  | O40: =IF(ISERROR(INDIRECT(CONCATENATE($E$32,"!N223"))),"",INDIRECT(CONCATENATE($E$32,"!N223"))) ->  | P40: =IF(ISERROR(INDIRECT(CONCATENATE($E$32,"!N224"))),"",INDIRECT(CONCATENATE($E$32,"!N224"))) ->  | Q40: =IF(ISERROR(INDIRECT(CONCATENATE($E$32,"!O222"))),"",INDIRECT(CONCATENATE($E$32,"!O222"))) ->  | R40: =IF(ISERROR(INDIRECT(CONCATENATE($E$32,"!O223"))),"",INDIRECT(CONCATENATE($E$32,"!O223"))) ->  | S40: =IF(ISERROR(INDIRECT(CONCATENATE($E$32,"!O224"))),"",INDIRECT(CONCATENATE($E$32,"!O224"))) ->  | T40: =IF(ISERROR(INDIRECT(CONCATENATE($E$32,"!P222"))),"",INDIRECT(CONCATENATE($E$32,"!P222"))) ->  | U40: =IF(ISERROR(INDIRECT(CONCATENATE($E$32,"!P223"))),"",INDIRECT(CONCATENATE($E$32,"!P223"))) ->  | V40: =IF(ISERROR(INDIRECT(CONCATENATE($E$32,"!P224"))),"",INDIRECT(CONCATENATE($E$32,"!P224"))) ->  | W40: =IF(ISERROR(INDIRECT(CONCATENATE($E$32,"!Q222"))),"",INDIRECT(CONCATENATE($E$32,"!Q222"))) ->  | X40: =IF(ISERROR(INDIRECT(CONCATENATE($E$32,"!Q223"))),"",INDIRECT(CONCATENATE($E$32,"!Q223"))) ->  | Y40: =IF(ISERROR(INDIRECT(CONCATENATE($E$32,"!Q224"))),"",INDIRECT(CONCATENATE($E$32,"!Q224"))) -> 
A88: 2 | B88: Template

Sheet DHS03
A2: =A1026 -> Nigeria
A3: =A1034 -> 2003
A4: Use of drinking water sources
A5: by wealth quintile and sub-national region
A6: Notes:
A7: WHO/UNICEF JMP customised wealth index excludes water,
A8: sanitation and hygiene assets.
A9: Survey used for analysis: | B9: =A1025 -> DHS03
A10: Improved springs based on: | B10: MICS07
A11: Time to source based on: | B11: MICS07
A14: Use of drinking water sources | C14: NATIONAL wealth index quintile | H14: URBAN wealth index quintile | M14: RURAL wealth index quintile | R14: SUB-REGIONS: | BA14: Raw numbers of respondents: | BB14: Use of drinking water sources | BC14: NATIONAL wealth index quintile | BH14: URBAN wealth index quintile | BM14: RURAL wealth index quintile | BR14: SUB-REGIONS:
A15: Weighted percentage (used in graphs) | C15: Poorest | D15: Poor | E15: Middle | F15: Rich | G15: Richest | H15: Poorest | I15: Poor | J15: Middle | K15: Rich | L15: Richest | M15: Poorest | N15: Poor | O15: Middle | P15: Rich | Q15: Richest | R15: North Central | S15: North East | T15: North West | U15: South East | V15: South South | W15: South West | BA15: Water data, raw numbers (weighted) | BC15: Poorest | BD15: Poor | BE15: Middle | BF15: Rich | BG15: Richest | BH15: Poorest | BI15: Poor | BJ15: Middle | BK15: Rich | BL15: Richest | BM15: Poorest | BN15: Poor | BO15: Middle | BP15: Rich | BQ15: Richest | BR15: North Central | BS15: North East | BT15: North West | BU15: South East | BV15: South South | BW15: South West
A16: Water | B16: Improved | C16: =C58+C59+C60+C64+C65+C66+C71+C72+C73+C74+C67*MICS07!C25/100 -> 25.66766538 | D16: =D58+D59+D60+D64+D65+D66+D71+D72+D73+D74+D67*MICS07!D25/100 -> 25.68227204 | E16: =E58+E59+E60+E64+E65+E66+E71+E72+E73+E74+E67*MICS07!E25/100 -> 36.82748916 | F16: =F58+F59+F60+F64+F65+F66+F71+F72+F73+F74+F67*MICS07!F25/100 -> 62.04457174 | G16: =G58+G59+G60+G64+G65+G66+G71+G72+G73+G74+G67*MICS07!G25/100 -> 84.23618276 | H16: =H58+H59+H60+H64+H65+H66+H71+H72+H73+H74+H67*MICS07!H25/100 -> 55.44832279 | I16: =I58+I59+I60+I64+I65+I66+I71+I72+I73+I74+I67*MICS07!I25/100 -> 65.52567754 | J16: =J58+J59+J60+J64+J65+J66+J71+J72+J73+J74+J67*MICS07!J25/100 -> 75.30064829 | K16: =K58+K59+K60+K64+K65+K66+K71+K72+K73+K74+K67*MICS07!K25/100 -> 83.45063407 | L16: =L58+L59+L60+L64+L65+L66+L71+L72+L73+L74+L67*MICS07!L25/100 -> 92.13056887 | M16: =M58+M59+M60+M64+M65+M66+M71+M72+M73+M74+M67*MICS07!M25/100 -> 20.64918284 | N16: =N58+N59+N60+N64+N65+N66+N71+N72+N73+N74+N67*MICS07!N25/100 -> 23.66074596 | O16: =O58+O59+O60+O64+O65+O66+O71+O72+O73+O74+O67*MICS07!O25/100 -> 24.95591989 | P16: =P58+P59+P60+P64+P65+P66+P71+P72+P73+P74+P67*MICS07!P25/100 -> 34.36423928 | Q16: =Q58+Q59+Q60+Q64+Q65+Q66+Q71+Q72+Q73+Q74+Q67*MICS07!Q25/100 -> 62.48317033 | R16: =R58+R59+R60+R64+R65+R66+R71+R72+R73+R74+R67*MICS07!R25/100 -> 36.65414052 | S16: =S58+S59+S60+S64+S65+S66+S71+S72+S73+S74+S67*MICS07!S25/100 -> 35.52686327 | T16: =T58+T59+T60+T64+T65+T66+T71+T72+T73+T74+T67*MICS07!T25/100 -> 40.05906791 | U16: =U58+U59+U60+U64+U65+U66+U71+U72+U73+U74+U67*MICS07!U25/100 -> 80.53460101 | V16: =V58+V59+V60+V64+V65+V66+V71+V72+V73+V74+V67*MICS07!V25/100 -> 53.33074042 | W16: =W58+W59+W60+W64+W65+W66+W71+W72+W73+W74+W67*MICS07!W25/100 -> 62.49904826 | BA16: Water | BB16: Improved | BC16: N/A | BD16: N/A | BE16: N/A | BF16: N/A | BG16: N/A | BH16: N/A | BI16: N/A | BJ16: N/A | BK16: N/A | BL16: N/A | BM16: N/A | BN16: N/A | BO16: N/A | BP16: N/A | BQ16: N/A | BR16: N/A | BS16: N/A | BT16: N/A | BU16: N/A | BV16: N/A | BW16: N/A
B17: Not Improved | C17: =100-C16 -> 74.33233462 | D17: =100-D16 -> 74.31772796 | E17: 63.17251084 | F17: 37.95542826 | G17: 15.76381724 | H17: 44.55167721 | I17: 34.47432246 | J17: 24.69935171 | K17: 16.54936593 | L17: 7.869431131 | M17: 79.35081716 | N17: 76.33925404 | O17: 75.04408011 | P17: 65.63576072 | Q17: 37.51682967 | R17: 63.34585948 | S17: 64.47313673 | T17: 59.94093209 | U17: 19.46539899 | V17: 46.66925958 | W17: 37.50095174 | BB17: Not Improved | BC17: N/A | BD17: N/A | BE17: N/A | BF17: N/A | BG17: N/A | BH17: N/A | BI17: N/A | BJ17: N/A | BK17: N/A | BL17: N/A | BM17: N/A | BN17: N/A | BO17: N/A | BP17: N/A | BQ17: N/A | BR17: N/A | BS17: N/A | BT17: N/A | BU17: N/A | BV17: N/A | BW17: N/A
A18: Water ladder | B18: Basic | C18: =C16*MICS07!C23/100 -> 19.10966577 | D18: =D16*MICS07!D23/100 -> 21.55917042 | E18: =E16*MICS07!E23/100 -> 30.71257097 | F18: =F16*MICS07!F23/100 -> 53.94357958 | G18: =G16*MICS07!G23/100 -> 78.01238622 | H18: =H16*MICS07!H23/100 -> 38.65701751 | I18: =I16*MICS07!I23/100 -> 53.73910105 | J18: =J16*MICS07!J23/100 -> 63.24326102 | K18: =K16*MICS07!K23/100 -> 70.44203694 | L18: =L16*MICS07!L23/100 -> 82.08495007 | M18: =M16*MICS07!M23/100 -> 17.29192595 | N18: =N16*MICS07!N23/100 -> 20.04215079 | O18: =O16*MICS07!O23/100 -> 22.35352418 | P18: =P16*MICS07!P23/100 -> 32.20969444 | Q18: =Q16*MICS07!Q23/100 -> 58.91928872 | R18: =R16*MICS07!R23/100 -> 31.50970986 | S18: =S16*MICS07!S23/100 -> 24.97480296 | T18: =T16*MICS07!T23/100 -> 36.33891021 | U18: =U16*MICS07!U23/100 -> 64.87755302 | V18: =V16*MICS07!V23/100 -> 47.54938513 | W18: =W16*MICS07!W23/100 -> 56.802134 | BA18: Water ladder | BB18: Basic | BC18: N/A | BD18: N/A | BE18: N/A | BF18: N/A | BG18: N/A | BH18: N/A | BI18: N/A | BJ18: N/A | BK18: N/A | BL18: N/A | BM18: N/A | BN18: N/A | BO18: N/A | BP18: N/A | BQ18: N/A | BR18: N/A | BS18: N/A | BT18: N/A | BU18: N/A | BV18: N/A | BW18: N/A
B19: Limited | C19: =C16*MICS07!C22/100 -> 6.557999602 | D19: =D16*MICS07!D22/100 -> 4.123101624 | E19: =E16*MICS07!E22/100 -> 6.11491818 | F19: =F16*MICS07!F22/100 -> 8.100992162 | G19: =G16*MICS07!G22/100 -> 6.223796543 | H19: =H16*MICS07!H22/100 -> 16.79130528 | I19: =I16*MICS07!I22/100 -> 11.78657649 | J19: =J16*MICS07!J22/100 -> 12.05738728 | K19: =K16*MICS07!K22/100 -> 13.00859712 | L19: =L16*MICS07!L22/100 -> 10.0456188 | M19: =M16*MICS07!M22/100 -> 3.357256891 | N19: =N16*MICS07!N22/100 -> 3.618595168 | O19: =O16*MICS07!O22/100 -> 2.602395711 | P19: =P16*MICS07!P22/100 -> 2.154544837 | Q19: =Q16*MICS07!Q22/100 -> 3.563881615 | R19: =R16*MICS07!R22/100 -> 5.144430659 | S19: =S16*MICS07!S22/100 -> 10.55206032 | T19: =T16*MICS07!T22/100 -> 3.720157702 | U19: =U16*MICS07!U22/100 -> 15.65704799 | V19: =V16*MICS07!V22/100 -> 5.781355292 | W19: =W16*MICS07!W22/100 -> 5.696914252 | BB19: Limited | BC19: N/A | BD19: N/A | BE19: N/A | BF19: N/A | BG19: N/A | BH19: N/A | BI19: N/A | BJ19: N/A | BK19: N/A | BL19: N/A | BM19: N/A | BN19: N/A | BO19: N/A | BP19: N/A | BQ19: N/A | BR19: N/A | BS19: N/A | BT19: N/A | BU19: N/A | BV19: N/A | BW19: N/A
B20: Unimproved | C20: =100-(C18+C19+C21) -> 47.74829117 | D20: =100-(D18+D19+D21) -> 41.48912794 | E20: 32.83861748 | F20: 21.07271558 | G20: 11.17647499 | H20: 25.88402899 | I20: 20.73222203 | J20: 20.84596147 | K20: 15.33350108 | L20: 6.916697141 | M20: 54.0150113 | N20: 43.64347289 | O20: 39.76797488 | P20: 32.90254747 | Q20: 15.33086546 | R20: 23.25330522 | S20: 46.33265887 | T20: 48.92412221 | U20: 7.632864479 | V20: 7.997074124 | W20: 23.03190898 | BB20: Unimproved | BC20: N/A | BD20: N/A | BE20: N/A | BF20: N/A | BG20: N/A | BH20: N/A | BI20: N/A | BJ20: N/A | BK20: N/A | BL20: N/A | BM20: N/A | BN20: N/A | BO20: N/A | BP20: N/A | BQ20: N/A | BR20: N/A | BS20: N/A | BT20: N/A | BU20: N/A | BV20: N/A | BW20: N/A
B21: Surface water | C21: =C68+C69+C70 -> 26.58404345 | D21: 32.82860001 | E21: 30.33389337 | F21: 16.88271268 | G21: 4.587342247 | H21: 18.66764822 | I21: 13.74210043 | J21: 3.853390238 | K21: 1.215864855 | L21: 0.9527339907 | M21: 25.33580586 | N21: 32.69578115 | O21: 35.27610524 | P21: 32.73321325 | Q21: 22.18596421 | R21: 40.09255426 | S21: 18.14047786 | T21: 11.01680988 | U21: 11.83253451 | V21: 38.67218545 | W21: 14.46904277 | BB21: Surface water | BC21: N/A | BD21: N/A | BE21: N/A | BF21: N/A | BG21: N/A | BH21: N/A | BI21: N/A | BJ21: N/A | BK21: N/A | BL21: N/A | BM21: N/A | BN21: N/A | BO21: N/A | BP21: N/A | BQ21: N/A | BR21: N/A | BS21: N/A | BT21: N/A | BU21: N/A | BV21: N/A | BW21: N/A
A22: Improved water point at more than 30 minutes | B22: Yes | C22: N/A | D22: N/A | E22: N/A | F22: N/A | G22: N/A | H22: N/A | I22: N/A | J22: N/A | K22: N/A | L22: N/A | M22: N/A | N22: N/A | O22: N/A | P22: N/A | Q22: N/A | R22: N/A | S22: N/A | T22: N/A | U22: N/A | V22: N/A | W22: N/A | BA22: Improved water point at more than 30 minutes | BB22: Yes | BC22: N/A | BD22: N/A | BE22: N/A | BF22: N/A | BG22: N/A | BH22: N/A | BI22: N/A | BJ22: N/A | BK22: N/A | BL22: N/A | BM22: N/A | BN22: N/A | BO22: N/A | BP22: N/A | BQ22: N/A | BR22: N/A | BS22: N/A | BT22: N/A | BU22: N/A | BV22: N/A | BW22: N/A
B23: No | C23: N/A | D23: N/A | E23: N/A | F23: N/A | G23: N/A | H23: N/A | I23: N/A | J23: N/A | K23: N/A | L23: N/A | M23: N/A | N23: N/A | O23: N/A | P23: N/A | Q23: N/A | R23: N/A | S23: N/A | T23: N/A | U23: N/A | V23: N/A | W23: N/A | BB23: No | BC23: N/A | BD23: N/A | BE23: N/A | BF23: N/A | BG23: N/A | BH23: N/A | BI23: N/A | BJ23: N/A | BK23: N/A | BL23: N/A | BM23: N/A | BN23: N/A | BO23: N/A | BP23: N/A | BQ23: N/A | BR23: N/A | BS23: N/A | BT23: N/A | BU23: N/A | BV23: N/A | BW23: N/A
A24: Manually calculated ratios | B24: Improved wells
B25: Improved springs
B26: Other
C27: NATIONAL wealth index quintile | H27: URBAN wealth index quintile | M27: RURAL wealth index quintile | R27: SUB-REGIONS: | BA27: Raw numbers of respondents: | BB27: Use of drinking water sources | BC27: NATIONAL wealth index quintile | BH27: URBAN wealth index quintile | BM27: RURAL wealth index quintile | BR27: SUB-REGIONS:
A28: Percentage based on weighted population | C28: Poorest | D28: Poor | E28: Middle | F28: Rich | G28: Richest | H28: Poorest | I28: Poor | J28: Middle | K28: Rich | L28: Richest | M28: Poorest | N28: Poor | O28: Middle | P28: Rich | Q28: Richest | R28: North Central | S28: North East | T28: North West | U28: South East | V28: South South | W28: South West | BA28: Water data, raw numbers (weighted) | BC28: Poorest | BD28: Poor | BE28: Middle | BF28: Rich | BG28: Richest | BH28: Poorest | BI28: Poor | BJ28: Middle | BK28: Rich | BL28: Richest | BM28: Poorest | BN28: Poor | BO28: Middle | BP28: Rich | BQ28: Richest | BR28: North Central | BS28: North East | BT28: North West | BU28: South East | BV28: South South | BW28: South West
A29: Piped water | B29: Yes | C29: 9.001756886 | D29: 5.589585631 | E29: 10.75615476 | F29: 24.21303118 | G29: 31.545325 | H29: 21.75025968 | I29: 32.62485827 | J29: 36.55774148 | K29: 38.26551529 | L29: 32.59216776 | M29: 7.488779568 | N29: 4.910566501 | O29: 4.529332261 | P29: 8.622868844 | Q29: 14.57592564 | R29: 13.01578746 | S29: 13.87288565 | T29: 21.40701013 | U29: 17.55219798 | V29: 7.795381128 | W29: 23.67908822 | BA29: Piped water | BB29: Yes | BC29: N/A | BD29: N/A | BE29: N/A | BF29: N/A | BG29: N/A | BH29: N/A | BI29: N/A | BJ29: N/A | BK29: N/A | BL29: N/A | BM29: N/A | BN29: N/A | BO29: N/A | BP29: N/A | BQ29: N/A | BR29: N/A | BS29: N/A | BT29: N/A | BU29: N/A | BV29: N/A | BW29: N/A
B30: No | C30: 90.99824311 | D30: 94.41041437 | E30: 89.24384524 | F30: 75.78696882 | G30: 68.454675 | H30: 78.24974032 | I30: 67.37514173 | J30: 63.44225852 | K30: 61.73448471 | L30: 67.40783224 | M30: 92.51122043 | N30: 95.0894335 | O30: 95.47066774 | P30: 91.37713116 | Q30: 85.42407436 | R30: 86.98421254 | S30: 86.12711435 | T30: 78.59298987 | U30: 82.44780202 | V30: 92.20461887 | W30: 76.32091178 | BB30: No | BC30: N/A | BD30: N/A | BE30: N/A | BF30: N/A | BG30: N/A | BH30: N/A | BI30: N/A | BJ30: N/A | BK30: N/A | BL30: N/A | BM30: N/A | BN30: N/A | BO30: N/A | BP30: N/A | BQ30: N/A | BR30: N/A | BS30: N/A | BT30: N/A | BU30: N/A | BV30: N/A | BW30: N/A
A31: Piped water on premises | B31: Yes | C31: 1.231042212 | D31: 1.197585377 | E31: 3.167258865 | F31: 10.90809904 | G31: 17.84549444 | H31: 5.110700701 | I31: 11.66713073 | J31: 17.97954817 | K31: 23.05381031 | L31: 19.3549657 | M31: 0.5177548228 | N31: 0.6906833697 | O31: 1.20878992 | P31: 2.779018571 | Q31: 7.388807836 | R31: 7.129943829 | S31: 5.394396353 | T31: 10.22784411 | U31: 9.797025889 | V31: 2.772187239 | W31: 5.186559747 | BA31: Piped water on premises | BB31: Yes | BC31: N/A | BD31: N/A | BE31: N/A | BF31: N/A | BG31: N/A | BH31: N/A | BI31: N/A | BJ31: N/A | BK31: N/A | BL31: N/A | BM31: N/A | BN31: N/A | BO31: N/A | BP31: N/A | BQ31: N/A | BR31: N/A | BS31: N/A | BT31: N/A | BU31: N/A | BV31: N/A | BW31: N/A
B32: No | C32: 98.76895779 | D32: 98.80241462 | E32: 96.83274113 | F32: 89.09190096 | G32: 82.15450556 | H32: 94.8892993 | I32: 88.33286927 | J32: 82.02045183 | K32: 76.94618969 | L32: 80.6450343 | M32: 99.48224518 | N32: 99.30931663 | O32: 98.79121008 | P32: 97.22098143 | Q32: 92.61119216 | R32: 92.87005617 | S32: 94.60560365 | T32: 89.77215589 | U32: 90.20297411 | V32: 97.22781276 | W32: 94.81344025 | BB32: No | BC32: N/A | BD32: N/A | BE32: N/A | BF32: N/A | BG32: N/A | BH32: N/A | BI32: N/A | BJ32: N/A | BK32: N/A | BL32: N/A | BM32: N/A | BN32: N/A | BO32: N/A | BP32: N/A | BQ32: N/A | BR32: N/A | BS32: N/A | BT32: N/A | BU32: N/A | BV32: N/A | BW32: N/A
A33: Piped water into dwelling | B33: Yes | C33: N/A | D33: N/A | E33: N/A | F33: N/A | G33: N/A | H33: N/A | I33: N/A | J33: N/A | K33: N/A | L33: N/A | M33: N/A | N33: N/A | O33: N/A | P33: N/A | Q33: N/A | R33: N/A | S33: N/A | T33: N/A | U33: N/A | V33: N/A | W33: N/A | BA33: Piped water into dwelling | BB33: Yes | BC33: N/A | BD33: N/A | BE33: N/A | BF33: N/A | BG33: N/A | BH33: N/A | BI33: N/A | BJ33: N/A | BK33: N/A | BL33: N/A | BM33: N/A | BN33: N/A | BO33: N/A | BP33: N/A | BQ33: N/A | BR33: N/A | BS33: N/A | BT33: N/A | BU33: N/A | BV33: N/A | BW33: N/A
B34: No | C34: N/A | D34: N/A | E34: N/A | F34: N/A | G34: N/A | H34: N/A | I34: N/A | J34: N/A | K34: N/A | L34: N/A | M34: N/A | N34: N/A | O34: N/A | P34: N/A | Q34: N/A | R34: N/A | S34: N/A | T34: N/A | U34: N/A | V34: N/A | W34: N/A | BB34: No | BC34: N/A | BD34: N/A | BE34: N/A | BF34: N/A | BG34: N/A | BH34: N/A | BI34: N/A | BJ34: N/A | BK34: N/A | BL34: N/A | BM34: N/A | BN34: N/A | BO34: N/A | BP34: N/A | BQ34: N/A | BR34: N/A | BS34: N/A | BT34: N/A | BU34: N/A | BV34: N/A | BW34: N/A
A35: Water source on premises | B35: Yes | C35: 3.556953859 | D35: 2.853452013 | E35: 5.535812629 | F35: 14.74176661 | G35: 20.00768032 | H35: 14.30530258 | I35: 15.04203375 | J35: 22.12301135 | K35: 25.99127385 | L35: 21.3378754 | M35: 0.9491468362 | N35: 1.789377622 | O35: 2.814376434 | P35: 4.734162657 | Q35: 9.941359025 | R35: 9.026439664 | S35: 14.91169597 | T35: 10.39330137 | U35: 11.65402462 | V35: 3.243251587 | W35: 5.731422578 | BA35: Water source on premises | BB35: Yes | BC35: N/A | BD35: N/A | BE35: N/A | BF35: N/A | BG35: N/A | BH35: N/A | BI35: N/A | BJ35: N/A | BK35: N/A | BL35: N/A | BM35: N/A | BN35: N/A | BO35: N/A | BP35: N/A | BQ35: N/A | BR35: N/A | BS35: N/A | BT35: N/A | BU35: N/A | BV35: N/A | BW35: N/A
B36: No | C36: 96.44304614 | D36: 97.14654799 | E36: 94.46418737 | F36: 85.25823339 | G36: 79.99231968 | H36: 85.69469742 | I36: 84.95796625 | J36: 77.87698865 | K36: 74.00872615 | L36: 78.6621246 | M36: 99.05085316 | N36: 98.21062238 | O36: 97.18562357 | P36: 95.26583734 | Q36: 90.05864097 | R36: 90.97356034 | S36: 85.08830403 | T36: 89.60669863 | U36: 88.34597538 | V36: 96.75674841 | W36: 94.26857742 | BB36: No | BC36: N/A | BD36: N/A | BE36: N/A | BF36: N/A | BG36: N/A | BH36: N/A | BI36: N/A | BJ36: N/A | BK36: N/A | BL36: N/A | BM36: N/A | BN36: N/A | BO36: N/A | BP36: N/A | BQ36: N/A | BR36: N/A | BS36: N/A | BT36: N/A | BU36: N/A | BV36: N/A | BW36: N/A
A37: Improved Water source on premises | B37: Yes | C37: 0 | D37: 0 | E37: 0 | F37: 0 | G37: 0 | H37: 0 | I37: 0 | J37: 0 | K37: 0 | L37: 0 | M37: 0 | N37: 0 | O37: 0 | P37: 0 | Q37: 0 | R37: 0 | S37: 0 | T37: 0 | U37: 0 | V37: 0 | W37: 0 | BA37: Improved water source on premises | BB37: Yes | BC37: N/A | BD37: N/A | BE37: N/A | BF37: N/A | BG37: N/A | BH37: N/A | BI37: N/A | BJ37: N/A | BK37: N/A | BL37: N/A | BM37: N/A | BN37: N/A | BO37: N/A | BP37: N/A | BQ37: N/A | BR37: N/A | BS37: N/A | BT37: N/A | BU37: N/A | BV37: N/A | BW37: N/A
B38: No | C38: 0 | D38: 0 | E38: 0 | F38: 0 | G38: 0 | H38: 0 | I38: 0 | J38: 0 | K38: 0 | L38: 0 | M38: 0 | N38: 0 | O38: 0 | P38: 0 | Q38: 0 | R38: 0 | S38: 0 | T38: 0 | U38: 0 | V38: 0 | W38: 0 | BB38: No | BC38: N/A | BD38: N/A | BE38: N/A | BF38: N/A | BG38: N/A | BH38: N/A | BI38: N/A | BJ38: N/A | BK38: N/A | BL38: N/A | BM38: N/A | BN38: N/A | BO38: N/A | BP38: N/A | BQ38: N/A | BR38: N/A | BS38: N/A | BT38: N/A | BU38: N/A | BV38: N/A | BW38: N/A
A39: Piped water on premises available when needed | B39: Yes | C39: N/A | D39: N/A | E39: N/A | F39: N/A | G39: N/A | H39: N/A | I39: N/A | J39: N/A | K39: N/A | L39: N/A | M39: N/A | N39: N/A | O39: N/A | P39: N/A | Q39: N/A | R39: N/A | S39: N/A | T39: N/A | U39: N/A | V39: N/A | W39: N/A | BA39: Piped water on premises available when needed | BB39: Yes | BC39: N/A | BD39: N/A | BE39: N/A | BF39: N/A | BG39: N/A | BH39: N/A | BI39: N/A | BJ39: N/A | BK39: N/A | BL39: N/A | BM39: N/A | BN39: N/A | BO39: N/A | BP39: N/A | BQ39: N/A | BR39: N/A | BS39: N/A | BT39: N/A | BU39: N/A | BV39: N/A | BW39: N/A
B40: No | C40: N/A | D40: N/A | E40: N/A | F40: N/A | G40: N/A | H40: N/A | I40: N/A | J40: N/A | K40: N/A | L40: N/A | M40: N/A | N40: N/A | O40: N/A | P40: N/A | Q40: N/A | R40: N/A | S40: N/A | T40: N/A | U40: N/A | V40: N/A | W40: N/A | BB40: No | BC40: N/A | BD40: N/A | BE40: N/A | BF40: N/A | BG40: N/A | BH40: N/A | BI40: N/A | BJ40: N/A | BK40: N/A | BL40: N/A | BM40: N/A | BN40: N/A | BO40: N/A | BP40: N/A | BQ40: N/A | BR40: N/A | BS40: N/A | BT40: N/A | BU40: N/A | BV40: N/A | BW40: N/A
A41: Water point at more than 30 minutes | B41: Yes | C41: 27.47740941 | D41: 28.58722404 | E41: 33.4789532 | F41: 22.57122616 | G41: 12.38213543 | H41: 18.90841879 | I41: 24.40923811 | J41: 16.21138245 | K41: 14.33230487 | L41: 8.763728649 | M41: 30.28727978 | N41: 25.87643911 | O41: 34.13255037 | P41: 35.98244758 | Q41: 20.12696497 | R41: 22.93037174 | S41: 21.01503608 | T41: 21.76742458 | U41: 23.75765542 | V41: 38.5682355 | W41: 19.59830351 | BA41: Water point at more than 30 minutes | BB41: Yes | BC41: N/A | BD41: N/A | BE41: N/A | BF41: N/A | BG41: N/A | BH41: N/A | BI41: N/A | BJ41: N/A | BK41: N/A | BL41: N/A | BM41: N/A | BN41: N/A | BO41: N/A | BP41: N/A | BQ41: N/A | BR41: N/A | BS41: N/A | BT41: N/A | BU41: N/A | BV41: N/A | BW41: N/A
B42: No | C42: 72.52259059 | D42: 71.41277596 | E42: 66.5210468 | F42: 77.42877384 | G42: 87.61786457 | H42: 81.09158121 | I42: 75.59076189 | J42: 83.78861755 | K42: 85.66769513 | L42: 91.23627135 | M42: 69.71272022 | N42: 74.12356089 | O42: 65.86744963 | P42: 64.01755242 | Q42: 79.87303503 | R42: 77.06962826 | S42: 78.98496392 | T42: 78.23257542 | U42: 76.24234458 | V42: 61.4317645 | W42: 80.40169649 | BB42: No | BC42: N/A | BD42: N/A | BE42: N/A | BF42: N/A | BG42: N/A | BH42: N/A | BI42: N/A | BJ42: N/A | BK42: N/A | BL42: N/A | BM42: N/A | BN42: N/A | BO42: N/A | BP42: N/A | BQ42: N/A | BR42: N/A | BS42: N/A | BT42: N/A | BU42: N/A | BV42: N/A | BW42: N/A
A43: Water source available when needed | B43: Yes | C43: N/A | D43: N/A | E43: N/A | F43: N/A | G43: N/A | H43: N/A | I43: N/A | J43: N/A | K43: N/A | L43: N/A | M43: N/A | N43: N/A | O43: N/A | P43: N/A | Q43: N/A | R43: N/A | S43: N/A | T43: N/A | U43: N/A | V43: N/A | W43: N/A | BA43: Water source available when needed | BB43: Yes | BC43: N/A | BD43: N/A | BE43: N/A | BF43: N/A | BG43: N/A | BH43: N/A | BI43: N/A | BJ43: N/A | BK43: N/A | BL43: N/A | BM43: N/A | BN43: N/A | BO43: N/A | BP43: N/A | BQ43: N/A | BR43: N/A | BS43: N/A | BT43: N/A | BU43: N/A | BV43: N/A | BW43: N/A
B44: No | C44: N/A | D44: N/A | E44: N/A | F44: N/A | G44: N/A | H44: N/A | I44: N/A | J44: N/A | K44: N/A | L44: N/A | M44: N/A | N44: N/A | O44: N/A | P44: N/A | Q44: N/A | R44: N/A | S44: N/A | T44: N/A | U44: N/A | V44: N/A | W44: N/A | BB44: No | BC44: N/A | BD44: N/A | BE44: N/A | BF44: N/A | BG44: N/A | BH44: N/A | BI44: N/A | BJ44: N/A | BK44: N/A | BL44: N/A | BM44: N/A | BN44: N/A | BO44: N/A | BP44: N/A | BQ44: N/A | BR44: N/A | BS44: N/A | BT44: N/A | BU44: N/A | BV44: N/A | BW44: N/A
A45: Improved water source available when needed | B45: Yes | C45: N/A | D45: N/A | E45: N/A | F45: N/A | G45: N/A | H45: N/A | I45: N/A | J45: N/A | K45: N/A | L45: N/A | M45: N/A | N45: N/A | O45: N/A | P45: N/A | Q45: N/A | R45: N/A | S45: N/A | T45: N/A | U45: N/A | V45: N/A | W45: N/A | BA45: Improved water source available when needed | BB45: Yes | BC45: N/A | BD45: N/A | BE45: N/A | BF45: N/A | BG45: N/A | BH45: N/A | BI45: N/A | BJ45: N/A | BK45: N/A | BL45: N/A | BM45: N/A | BN45: N/A | BO45: N/A | BP45: N/A | BQ45: N/A | BR45: N/A | BS45: N/A | BT45: N/A | BU45: N/A | BV45: N/A | BW45: N/A
B46: No | C46: N/A | D46: N/A | E46: N/A | F46: N/A | G46: N/A | H46: N/A | I46: N/A | J46: N/A | K46: N/A | L46: N/A | M46: N/A | N46: N/A | O46: N/A | P46: N/A | Q46: N/A | R46: N/A | S46: N/A | T46: N/A | U46: N/A | V46: N/A | W46: N/A | BB46: No | BC46: N/A | BD46: N/A | BE46: N/A | BF46: N/A | BG46: N/A | BH46: N/A | BI46: N/A | BJ46: N/A | BK46: N/A | BL46: N/A | BM46: N/A | BN46: N/A | BO46: N/A | BP46: N/A | BQ46: N/A | BR46: N/A | BS46: N/A | BT46: N/A | BU46: N/A | BV46: N/A | BW46: N/A
A47: Microbiological quality at point of collection | B47: Not contaminated (No E. coli in 100 mL) | C47: N/A | D47: N/A | E47: N/A | F47: N/A | G47: N/A | H47: N/A | I47: N/A | J47: N/A | K47: N/A | L47: N/A | M47: N/A | N47: N/A | O47: N/A | P47: N/A | Q47: N/A | R47: N/A | S47: N/A | T47: N/A | U47: N/A | V47: N/A | W47: N/A | BA47: Microbiological quality at point of collection | BB47: Not contaminated (No E. coli in 100 mL) | BC47: N/A | BD47: N/A | BE47: N/A | BF47: N/A | BG47: N/A | BH47: N/A | BI47: N/A | BJ47: N/A | BK47: N/A | BL47: N/A | BM47: N/A | BN47: N/A | BO47: N/A | BP47: N/A | BQ47: N/A | BR47: N/A | BS47: N/A | BT47: N/A | BU47: N/A | BV47: N/A | BW47: N/A
B48: Contaminated (E. coli detected in 100 mL) | C48: N/A | D48: N/A | E48: N/A | F48: N/A | G48: N/A | H48: N/A | I48: N/A | J48: N/A | K48: N/A | L48: N/A | M48: N/A | N48: N/A | O48: N/A | P48: N/A | Q48: N/A | R48: N/A | S48: N/A | T48: N/A | U48: N/A | V48: N/A | W48: N/A | BB48: Contaminated (E. coli detected in 100 mL) | BC48: N/A | BD48: N/A | BE48: N/A | BF48: N/A | BG48: N/A | BH48: N/A | BI48: N/A | BJ48: N/A | BK48: N/A | BL48: N/A | BM48: N/A | BN48: N/A | BO48: N/A | BP48: N/A | BQ48: N/A | BR48: N/A | BS48: N/A | BT48: N/A | BU48: N/A | BV48: N/A | BW48: N/A
B49: Highly contaminated (>100 CFU/100 mL) | C49: N/A | D49: N/A | E49: N/A | F49: N/A | G49: N/A | H49: N/A | I49: N/A | J49: N/A | K49: N/A | L49: N/A | M49: N/A | N49: N/A | O49: N/A | P49: N/A | Q49: N/A | R49: N/A | S49: N/A | T49: N/A | U49: N/A | V49: N/A | W49: N/A | BB49: Highly contaminated (>100 CFU/100 mL) | BC49: N/A | BD49: N/A | BE49: N/A | BF49: N/A | BG49: N/A | BH49: N/A | BI49: N/A | BJ49: N/A | BK49: N/A | BL49: N/A | BM49: N/A | BN49: N/A | BO49: N/A | BP49: N/A | BQ49: N/A | BR49: N/A | BS49: N/A | BT49: N/A | BU49: N/A | BV49: N/A | BW49: N/A
A50: Microbiological quality of improved water sources at point of collection | B50: Not contaminated (No E. coli in 100 mL) | C50: N/A | D50: N/A | E50: N/A | F50: N/A | G50: N/A | H50: N/A | I50: N/A | J50: N/A | K50: N/A | L50: N/A | M50: N/A | N50: N/A | O50: N/A | P50: N/A | Q50: N/A | R50: N/A | S50: N/A | T50: N/A | U50: N/A | V50: N/A | W50: N/A | BA50: Microbiological quality of improved water sources at point of collection | BB50: Not contaminated (No E. coli in 100 mL) | BC50: N/A | BD50: N/A | BE50: N/A | BF50: N/A | BG50: N/A | BH50: N/A | BI50: N/A | BJ50: N/A | BK50: N/A | BL50: N/A | BM50: N/A | BN50: N/A | BO50: N/A | BP50: N/A | BQ50: N/A | BR50: N/A | BS50: N/A | BT50: N/A | BU50: N/A | BV50: N/A | BW50: N/A
B51: Contaminated (E. coli detected in 100 mL) | C51: N/A | D51: N/A | E51: N/A | F51: N/A | G51: N/A | H51: N/A | I51: N/A | J51: N/A | K51: N/A | L51: N/A | M51: N/A | N51: N/A | O51: N/A | P51: N/A | Q51: N/A | R51: N/A | S51: N/A | T51: N/A | U51: N/A | V51: N/A | W51: N/A | BB51: Contaminated (E. coli detected in 100 mL) | BC51: N/A | BD51: N/A | BE51: N/A | BF51: N/A | BG51: N/A | BH51: N/A | BI51: N/A | BJ51: N/A | BK51: N/A | BL51: N/A | BM51: N/A | BN51: N/A | BO51: N/A | BP51: N/A | BQ51: N/A | BR51: N/A | BS51: N/A | BT51: N/A | BU51: N/A | BV51: N/A | BW51: N/A
B52: Highly contaminated (>100 CFU/100 mL) | C52: N/A | D52: N/A | E52: N/A | F52: N/A | G52: N/A | H52: N/A | I52: N/A | J52: N/A | K52: N/A | L52: N/A | M52: N/A | N52: N/A | O52: N/A | P52: N/A | Q52: N/A | R52: N/A | S52: N/A | T52: N/A | U52: N/A | V52: N/A | W52: N/A | BB52: Highly contaminated (>100 CFU/100 mL) | BC52: N/A | BD52: N/A | BE52: N/A | BF52: N/A | BG52: N/A | BH52: N/A | BI52: N/A | BJ52: N/A | BK52: N/A | BL52: N/A | BM52: N/A | BN52: N/A | BO52: N/A | BP52: N/A | BQ52: N/A | BR52: N/A | BS52: N/A | BT52: N/A | BU52: N/A | BV52: N/A | BW52: N/A
A53: Microbiological quality of piped on premises at point of collection | B53: Not contaminated (No E. coli in 100 mL) | C53: N/A | D53: N/A | E53: N/A | F53: N/A | G53: N/A | H53: N/A | I53: N/A | J53: N/A | K53: N/A | L53: N/A | M53: N/A | N53: N/A | O53: N/A | P53: N/A | Q53: N/A | R53: N/A | S53: N/A | T53: N/A | U53: N/A | V53: N/A | W53: N/A | BA53: Microbiological quality of piped on premises at point of collection | BB53: Not contaminated (No E. coli in 100 mL) | BC53: N/A | BD53: N/A | BE53: N/A | BF53: N/A | BG53: N/A | BH53: N/A | BI53: N/A | BJ53: N/A | BK53: N/A | BL53: N/A | BM53: N/A | BN53: N/A | BO53: N/A | BP53: N/A | BQ53: N/A | BR53: N/A | BS53: N/A | BT53: N/A | BU53: N/A | BV53: N/A | BW53: N/A
B54: Contaminated (E. coli detected in 100 mL) | C54: N/A | D54: N/A | E54: N/A | F54: N/A | G54: N/A | H54: N/A | I54: N/A | J54: N/A | K54: N/A | L54: N/A | M54: N/A | N54: N/A | O54: N/A | P54: N/A | Q54: N/A | R54: N/A | S54: N/A | T54: N/A | U54: N/A | V54: N/A | W54: N/A | BB54: Contaminated (E. coli detected in 100 mL) | BC54: N/A | BD54: N/A | BE54: N/A | BF54: N/A | BG54: N/A | BH54: N/A | BI54: N/A | BJ54: N/A | BK54: N/A | BL54: N/A | BM54: N/A | BN54: N/A | BO54: N/A | BP54: N/A | BQ54: N/A | BR54: N/A | BS54: N/A | BT54: N/A | BU54: N/A | BV54: N/A | BW54: N/A
B55: Highly contaminated (>100 CFU/100 mL) | C55: N/A | D55: N/A | E55: N/A | F55: N/A | G55: N/A | H55: N/A | I55: N/A | J55: N/A | K55: N/A | L55: N/A | M55: N/A | N55: N/A | O55: N/A | P55: N/A | Q55: N/A | R55: N/A | S55: N/A | T55: N/A | U55: N/A | V55: N/A | W55: N/A | BB55: Highly contaminated (>100 CFU/100 mL) | BC55: N/A | BD55: N/A | BE55: N/A | BF55: N/A | BG55: N/A | BH55: N/A | BI55: N/A | BJ55: N/A | BK55: N/A | BL55: N/A | BM55: N/A | BN55: N/A | BO55: N/A | BP55: N/A | BQ55: N/A | BR55: N/A | BS55: N/A | BT55: N/A | BU55: N/A | BV55: N/A | BW55: N/A
C56: NATIONAL wealth index quintile | H56: URBAN wealth index quintile | M56: RURAL wealth index quintile | R56: SUB-REGIONS: | BA56: Raw numbers of respondents: | BB56: Use of drinking water sources | BC56: NATIONAL wealth index quintile | BH56: URBAN wealth index quintile | BM56: RURAL wealth index quintile | BR56: SUB-REGIONS:
A57: Percentage based on weighted population | C57: Poorest | D57: Poor | E57: Middle | F57: Rich | G57: Richest | H57: Poorest | I57: Poor | J57: Middle | K57: Rich | L57: Richest | M57: Poorest | N57: Poor | O57: Middle | P57: Rich | Q57: Richest | R57: North Central | S57: North East | T57: North West | U57: South East | V57: South South | W57: South West | BA57: Water data, raw numbers (weighted) | BC57: Poorest | BD57: Poor | BE57: Middle | BF57: Rich | BG57: Richest | BH57: Poorest | BI57: Poor | BJ57: Middle | BK57: Rich | BL57: Richest | BM57: Poorest | BN57: Poor | BO57: Middle | BP57: Rich | BQ57: Richest | BR57: North Central | BS57: North East | BT57: North West | BU57: South East | BV57: South South | BW57: South West
A58: Source of drinking water | B58: Piped into dwelling | C58: 0.3803502565 | D58: 1.117326819 | E58: 1.420880004 | F58: 6.574958729 | G58: 9.249953825 | H58: 4.019453374 | I58: 6.244752057 | J58: 9.372331032 | K58: 9.859043948 | L58: 11.78643297 | M58: 0 | N58: 0 | O58: 1.185978868 | P58: 0.8383910789 | Q58: 5.240295791 | R58: 4.125045448 | S58: 4.442395213 | T58: 3.486624642 | U58: 6.708136307 | V58: 1.81044609 | W58: 3.59238685
B59: Piped into yard /plot | C59: 0.8514100884 | D59: 0.08025855736 | E59: 1.750627925 | F59: 4.348552306 | G59: 8.598048704 | H59: 1.092820988 | I59: 5.422378671 | J59: 8.637565593 | K59: 13.19476636 | L59: 7.56853273 | M59: 0.5182113454 | N59: 0.6906833697 | O59: 0.02281105207 | P59: 1.946803834 | Q59: 2.157060029 | R59: 3.015138969 | S59: 0.9551883833 | T59: 6.741219465 | U59: 3.129595166 | V59: 0.9621872921 | W59: 1.594172897
B60: Public tap | C60: 7.77524775 | D60: 4.392000254 | E60: 7.599076839 | F60: 13.3237306 | G60: 13.701756 | H60: 16.64468255 | I60: 20.95772754 | J60: 18.60955225 | K60: 15.21170497 | L60: 13.23720206 | M60: 6.977171343 | N60: 4.219883132 | O60: 3.320542341 | P60: 5.856838175 | Q60: 7.19543246 | R60: 5.894297339 | S60: 8.483498761 | T60: 11.17916603 | U60: 7.787393993 | V60: 5.024002299 | W60: 18.49252848
B61: Open well in dwelling | C61: 8.508028843 | D61: 10.16660269 | E61: 7.883515913 | F61: 5.425627859 | G61: 3.246569333 | H61: 8.811983341 | I61: 8.478737061 | J61: 5.242214599 | K61: 4.931582269 | L61: 2.47285998 | M61: 9.036933384 | N61: 7.842452328 | O61: 9.48786568 | P61: 8.528363862 | Q61: 2.999084492 | R61: 5.333295913 | S61: 8.782751114 | T61: 12.62213098 | U61: 1.3551539 | V61: 1.415752334 | W61: 5.581423717
B62: Open well in yard /plot | C62: 4.315477901 | D62: 9.46064133 | E62: 8.893087756 | F62: 6.572462652 | G62: 2.653475898 | H62: 5.716365247 | I62: 5.593604234 | J62: 7.465766484 | K62: 4.511514172 | L62: 0.9829470165 | M62: 5.142508021 | N62: 4.600206877 | O62: 14.26939046 | P62: 7.553284398 | Q62: 4.205906179 | R62: 7.039405844 | S62: 5.777686671 | T62: 12.31290895 | U62: 0.6772859142 | V62: 1.29706182 | W62: 3.97880095
B63: Open public well | C63: 34.69881789 | D63: 21.10158044 | E63: 14.98654534 | F63: 7.846938575 | G63: 4.628885661 | H63: 10.60397405 | I63: 6.327949151 | J63: 6.914409507 | K63: 5.447015455 | L63: 3.311700421 | M63: 39.73960659 | N63: 30.71894404 | O63: 15.23817673 | P63: 15.87607421 | Q63: 7.401788336 | R63: 9.25911105 | S63: 31.54990449 | T63: 23.46698499 | U63: 2.322455267 | V63: 5.140847438 | W63: 12.9297389
B64: Protected well / borehole in dwelling | C64: 0.5811245144 | D64: 2.434850134 | E64: 2.559874973 | F64: 2.905433564 | G64: 6.263194298 | H64: 2.467874202 | I64: 2.797226627 | J64: 2.536765142 | K64: 4.504872313 | L64: 8.303579118 | M64: 0.3338632933 | N64: 1.940704266 | O64: 1.976494051 | P64: 3.363395632 | Q64: 4.141935959 | R64: 2.701903428 | S64: 1.650975126 | T64: 2.432713123 | U64: 6.505249034 | V64: 4.658672527 | W64: 1.675855425
B65: Protected well / borehole in yard /plot | C65: 1.104666545 | D65: 1.046135252 | E65: 1.111500072 | F65: 1.998891083 | G65: 3.821393777 | H65: 1.038456548 | I65: 1.245032892 | J65: 1.954566027 | K65: 2.572932166 | L65: 6.789914456 | M65: 1.101953222 | N65: 0.9252119702 | O65: 1.497837773 | P65: 1.026069724 | Q65: 2.230447827 | R65: 2.28504853 | S65: 0.3339005763 | T65: 1.169418117 | U65: 5.64113313 | V65: 2.354732262 | W65: 1.743058877
B66: Protected public well / borehole | C66: 9.80220248 | D66: 12.7721422 | E66: 13.29911387 | F66: 20.12248772 | G66: 32.29338471 | H66: 13.89725093 | I66: 18.75379067 | J66: 20.93731457 | K66: 27.60808971 | L66: 34.94770442 | M66: 9.556876316 | N66: 11.86879189 | O66: 12.81944072 | P66: 11.6938955 | Q66: 28.13817665 | R66: 11.29417803 | S66: 6.772050066 | T66: 10.69606171 | U66: 34.78359285 | V66: 32.89628028 | W66: 25.83269869
B67: Spring | C67: 0.2356724276 | D67: 0.8911898537 | E67: 1.189008677 | F67: 1.65732099 | G67: 1.010297631 | H67: 0.8587214651 | I67: 0.3847542545 | J67: 1.47567957 | K67: 0.3702475321 | L67: 0.05270951777 | M67: 0.119146659 | N67: 0.6796957118 | O67: 1.356716572 | P67: 0.8894310451 | Q67: 2.875755251 | R67: 1.765642804 | S67: 0.1334654575 | T67: 0.544542332 | U67: 4.740472583 | V67: 0.2255981176 | W67: 1.050392386
B68: River / stream | C68: 24.57295392 | D68: 30.53753333 | E68: 28.59638583 | F68: 15.9168203 | G68: 4.459818965 | H68: 17.11456227 | I68: 11.96299723 | J68: 2.932645433 | K68: 0.9798087573 | L68: 0.9527339907 | M68: 23.24472892 | N68: 30.16929438 | O68: 33.01833821 | P68: 31.36603126 | Q68: 21.95976947 | R68: 37.63162932 | S68: 16.13765549 | T68: 10.57596734 | U68: 10.54576281 | V68: 37.37080084 | W68: 12.77360768
B69: Pond / lake | C69: 1.959459424 | D69: 1.822755984 | E69: 1.175123149 | F69: 0.5530685857 | G69: 0.04156024036 | H69: 1.171795191 | I69: 1.268081681 | J69: 0.1507421685 | K69: 0.123450715 | L69: 0 | M69: 2.013038387 | N69: 2.496163535 | O69: 1.446363061 | P69: 0.8441091291 | Q69: 0.1841746886 | R69: 2.460924939 | S69: 0.8880571874 | T69: 0.1383210084 | U69: 1.063196459 | V69: 1.301384616 | W69: 1.695435084
B70: Dam | C70: 0.05163011459 | D70: 0.4683106998 | E70: 0.5623843844 | F70: 0.4128237929 | G70: 0.08596304227 | H70: 0.3812907583 | I70: 0.5110215141 | J70: 0.7700026367 | K70: 0.1126053831 | L70: 0 | M70: 0.07803855376 | N70: 0.03032322569 | O70: 0.8114039616 | P70: 0.5230728592 | Q70: 0.04202005119 | R70: 0 | S70: 1.114765177 | T70: 0.3025215273 | U70: 0.2235752411 | V70: 0 | W70: 0
B71: Rainwater | C71: 0.7971362797 | D71: 1.296355783 | E71: 1.149020575 | F71: 2.210411833 | G71: 0.9870065319 | H71: 0.5719296075 | I71: 0.5634887151 | J71: 0.4051110299 | K71: 0.3270828501 | L71: 0 | M71: 0.3781257426 | N71: 1.453312435 | O71: 1.150741099 | P71: 1.762842174 | Q71: 4.011646456 | R71: 0.009833830368 | S71: 0.004745410221 | T71: 0.007688553123 | U71: 5.611072687 | V71: 4.370934089 | W71: 0.580274882
B72: Tanker truck | C72: 0.7866460147 | D72: 1.084132111 | E72: 3.841328851 | F72: 5.837885821 | G72: 5.334642848 | H72: 5.562285936 | I72: 5.833914096 | J72: 7.894811825 | K72: 5.514185738 | L72: 4.89630776 | M72: 0.2193888879 | N72: 0.5897324101 | O72: 1.344089308 | P72: 4.20370212 | Q72: 4.05358522 | R72: 6.871227513 | S72: 3.917966432 | T72: 0.6319913253 | U72: 7.865320265 | V72: 0.989399842 | W72: 4.818998571
B73: Water vendor | C73: 3.559826583 | D73: 1.321940155 | E73: 3.736250824 | F73: 3.90274679 | G73: 1.148155346 | H73: 9.893029759 | I73: 3.336108873 | J73: 3.746826131 | K73: 1.818132939 | L73: 0.7900834642 | M73: 1.540409334 | N73: 1.73611422 | O73: 1.053810116 | P73: 3.428729269 | Q73: 2.95636576 | R73: 0.06780648431 | S73: 8.956520557 | T73: 3.63146147 | U73: 0 | V73: 0 | W73: 0
B74: Bottled water | C74: 0 | D74: 0.006244407708 | E74: 0.05104626709 | F74: 0.3898387915 | G74: 2.381120407 | H74: 0.1535237786 | I74: 0.3184347381 | J74: 0.953696003 | K74: 2.744056639 | L74: 3.794933545 | M74: 0 | N74: 0.009280683874 | O74: 0 | P74: 0 | Q74: 0.206555381 | R74: 0.04883394941 | S74: 0 | T74: 0.02842997531 | U74: 1.040604395 | V74: 0.1596988381 | W74: 3.660626608
B75: Other | C75: 0.0193489707 | D75: 0 | E75: 0.1952287533 | F75: 0 | G75: 0.09477277605 | H75: 0 | I75: 0 | J75: 0 | K75: 0.1689080746 | L75: 0.1123585503 | M75: 0 | N75: 0.02920551788 | O75: 0 | P75: 0.298965734 | Q75: 0 | R75: 0.1966766074 | S75: 0.09847388633 | T75: 0.03184845982 | U75: 0 | V75: 0.02220131693 | W75: 0
A108: =A1026 -> Nigeria
A109: =A1034 -> 2003
A110: Use of sanitation facilities
A111: by wealth quintile and sub-national region
A112: Notes:
A113: WHO/UNICEF JMP customised wealth index excludes water,
A114: sanitation and hygiene assets.
A115: Survey used for analysis: | B115: =A1025 -> DHS03
A116: =B1030 -> Ratio of Improved latrines based on: | B116: MICS07
A117: =B1029 -> Ratio of Shared improved based on: | B117: MICS07
A120: Use of sanitation facilities | C120: NATIONAL wealth index quintile | H120: URBAN wealth index quintile | M120: RURAL wealth index quintile | R120: SUB-REGIONS: | BA120: Raw numbers of respondents: | BB120: Use of sanitation facilities | BC120: NATIONAL wealth index quintile | BH120: URBAN wealth index quintile | BM120: RURAL wealth index quintile | BR120: SUB-REGIONS:
A121: Weighted percentage (used in graphs) | C121: Poorest | D121: Poor | E121: Middle | F121: Rich | G121: Richest | H121: Poorest | I121: Poor | J121: Middle | K121: Rich | L121: Richest | M121: Poorest | N121: Poor | O121: Middle | P121: Rich | Q121: Richest | R121: North Central | S121: North East | T121: North West | U121: South East | V121: South South | W121: South West | BA121: Sanitation data, raw numbers (weighted) | BC121: Poorest | BD121: Poor | BE121: Middle | BF121: Rich | BG121: Richest | BH121: Poorest | BI121: Poor | BJ121: Middle | BK121: Rich | BL121: Richest | BM121: Poorest | BN121: Poor | BO121: Middle | BP121: Rich | BQ121: Richest | BR121: North Central | BS121: North East | BT121: North West | BU121: South East | BV121: South South | BW121: South West
A122: Sanitation | B122: Improved | C122: =C153+C155+C154*MICS07!C130/100 -> 13.57304802 | D122: =D153+D155+D154*MICS07!D130/100 -> 26.68944827 | E122: =E153+E155+E154*MICS07!E130/100 -> 37.99708367 | F122: =F153+F155+F154*MICS07!F130/100 -> 63.95755157 | G122: =G153+G155+G154*MICS07!G130/100 -> 87.65898161 | H122: =H153+H155+H154*MICS07!H130/100 -> 23.72452677 | I122: =I153+I155+I154*MICS07!I130/100 -> 37.13991088 | J122: =J153+J155+J154*MICS07!J130/100 -> 53.51694736 | K122: =K153+K155+K154*MICS07!K130/100 -> 68.6161424 | L122: =L153+L155+L154*MICS07!L130/100 -> 91.80664586 | M122: =M153+M155+M154*MICS07!M130/100 -> 23.93484938 | N122: =N153+N155+N154*MICS07!N130/100 -> 36.03979854 | O122: =O153+O155+O154*MICS07!O130/100 -> 54.3111462 | P122: =P153+P155+P154*MICS07!P130/100 -> 64.78669087 | Q122: =Q153+Q155+Q154*MICS07!Q130/100 -> 75.9517299 | R122: =R153+R155+R154*MICS07!R130/100 -> 37.34831459 | S122: =S153+S155+S154*MICS07!S130/100 -> 34.72410628 | T122: =T153+T155+T154*MICS07!T130/100 -> 33.0878799 | U122: =U153+U155+U154*MICS07!U130/100 -> 66.25499557 | V122: =V153+V155+V154*MICS07!V130/100 -> 56.54031796 | W122: =W153+W155+W154*MICS07!W130/100 -> 64.62402225 | BA122: Sanitation | BB122: Improved | BC122: N/A | BD122: N/A | BE122: N/A | BF122: N/A | BG122: N/A | BH122: N/A | BI122: N/A | BJ122: N/A | BK122: N/A | BL122: N/A | BM122: N/A | BN122: N/A | BO122: N/A | BP122: N/A | BQ122: N/A | BR122: N/A | BS122: N/A | BT122: N/A | BU122: N/A | BV122: N/A | BW122: N/A
B123: Not Improved | C123: =100-C122 -> 86.42695198 | D123: =100-D122 -> 73.31055173 | E123: 62.00291633 | F123: 36.04244843 | G123: 12.34101839 | H123: 76.27547323 | I123: 62.86008912 | J123: 46.48305264 | K123: 31.3838576 | L123: 8.193354136 | M123: 76.06515062 | N123: 63.96020146 | O123: 45.6888538 | P123: 35.21330913 | Q123: 24.0482701 | R123: 62.65168541 | S123: 65.27589372 | T123: 66.9121201 | U123: 33.74500443 | V123: 43.45968204 | W123: 35.37597775 | BB123: Not Improved | BC123: N/A | BD123: N/A | BE123: N/A | BF123: N/A | BG123: N/A | BH123: N/A | BI123: N/A | BJ123: N/A | BK123: N/A | BL123: N/A | BM123: N/A | BN123: N/A | BO123: N/A | BP123: N/A | BQ123: N/A | BR123: N/A | BS123: N/A | BT123: N/A | BU123: N/A | BV123: N/A | BW123: N/A
A124: Sanitation ladder | B124: Basic | C124: =C122*MICS07!C129/100 -> 11.86306844 | D124: =D122*MICS07!D129/100 -> 22.18027516 | E124: =E122*MICS07!E129/100 -> 26.94883798 | F124: =F122*MICS07!F129/100 -> 31.05158522 | G124: =G122*MICS07!G129/100 -> 41.93859682 | H124: =H122*MICS07!H129/100 -> 21.19780492 | I124: =I122*MICS07!I129/100 -> 31.96818374 | J124: =J122*MICS07!J129/100 -> 44.1462328 | K124: =K122*MICS07!K129/100 -> 48.96548919 | L124: =L122*MICS07!L129/100 -> 55.18193001 | M124: =M122*MICS07!M129/100 -> 15.06479284 | N124: =N122*MICS07!N129/100 -> 15.38043035 | O124: =O122*MICS07!O129/100 -> 18.44107596 | P124: =P122*MICS07!P129/100 -> 19.47857747 | Q124: =Q122*MICS07!Q129/100 -> 46.20390537 | R124: =R122*MICS07!R129/100 -> 19.20437812 | S124: =S122*MICS07!S129/100 -> 31.89110975 | T124: =T122*MICS07!T129/100 -> 28.23088308 | U124: =U122*MICS07!U129/100 -> 46.63150268 | V124: =V122*MICS07!V129/100 -> 28.45133661 | W124: =W122*MICS07!W129/100 -> 17.11324564 | BA124: Sanitation ladder | BB124: Basic | BC124: N/A | BD124: N/A | BE124: N/A | BF124: N/A | BG124: N/A | BH124: N/A | BI124: N/A | BJ124: N/A | BK124: N/A | BL124: N/A | BM124: N/A | BN124: N/A | BO124: N/A | BP124: N/A | BQ124: N/A | BR124: N/A | BS124: N/A | BT124: N/A | BU124: N/A | BV124: N/A | BW124: N/A
B125: Limited | C125: =C122*MICS07!C128/100 -> 1.709979577 | D125: =D122*MICS07!D128/100 -> 4.509173109 | E125: =E122*MICS07!E128/100 -> 11.04824569 | F125: =F122*MICS07!F128/100 -> 32.90596635 | G125: =G122*MICS07!G128/100 -> 45.72038478 | H125: =H122*MICS07!H128/100 -> 2.526721851 | I125: =I122*MICS07!I128/100 -> 5.171727143 | J125: =J122*MICS07!J128/100 -> 9.370714568 | K125: =K122*MICS07!K128/100 -> 19.6506532 | L125: =L122*MICS07!L128/100 -> 36.62471585 | M125: =M122*MICS07!M128/100 -> 8.870056544 | N125: =N122*MICS07!N128/100 -> 20.65936819 | O125: =O122*MICS07!O128/100 -> 35.87007023 | P125: =P122*MICS07!P128/100 -> 45.30811341 | Q125: =Q122*MICS07!Q128/100 -> 29.74782453 | R125: =R122*MICS07!R128/100 -> 18.14393647 | S125: =S122*MICS07!S128/100 -> 2.832996526 | T125: =T122*MICS07!T128/100 -> 4.856996822 | U125: =U122*MICS07!U128/100 -> 19.6234929 | V125: =V122*MICS07!V128/100 -> 28.08898135 | W125: =W122*MICS07!W128/100 -> 47.51077661 | BB125: Limited | BC125: N/A | BD125: N/A | BE125: N/A | BF125: N/A | BG125: N/A | BH125: N/A | BI125: N/A | BJ125: N/A | BK125: N/A | BL125: N/A | BM125: N/A | BN125: N/A | BO125: N/A | BP125: N/A | BQ125: N/A | BR125: N/A | BS125: N/A | BT125: N/A | BU125: N/A | BV125: N/A | BW125: N/A
B126: Unimproved | C126: =100-(C124+C125+C127) -> 37.64155487 | D126: =100-(D124+D125+D127) -> 40.13797219 | E126: 37.9370157 | F126: 24.46628577 | G126: 7.353626982 | H126: 56.72164194 | I126: 53.53181475 | J126: 39.21273464 | K126: 24.99683375 | L126: 6.831201432 | M126: 23.29206134 | N126: 18.76451054 | O126: 19.0244286 | P126: 10.7570935 | Q126: 10.62393274 | R126: 23.86340292 | S126: 47.06808821 | T126: 49.5095323 | U126: 13.71108054 | V126: 15.38838491 | W126: 5.193079281 | BB126: Unimproved | BC126: N/A | BD126: N/A | BE126: N/A | BF126: N/A | BG126: N/A | BH126: N/A | BI126: N/A | BJ126: N/A | BK126: N/A | BL126: N/A | BM126: N/A | BN126: N/A | BO126: N/A | BP126: N/A | BQ126: N/A | BR126: N/A | BS126: N/A | BT126: N/A | BU126: N/A | BV126: N/A | BW126: N/A
B127: Open defecation | C127: =C156+C157 -> 48.78539711 | D127: =D156+D157 -> 33.17257954 | E127: 24.06590063 | F127: 11.57616267 | G127: 4.987391412 | H127: 19.55383129 | I127: 9.328274363 | J127: 7.270317998 | K127: 6.387023858 | L127: 1.362152703 | M127: 52.77308928 | N127: 45.19569092 | O127: 26.66442521 | P127: 24.45621563 | Q127: 13.42433736 | R127: 38.78828248 | S127: 18.20780552 | T127: 17.4025878 | U127: 20.03392389 | V127: 28.07129713 | W127: 30.18289847 | BB127: Open defecation | BC127: N/A | BD127: N/A | BE127: N/A | BF127: N/A | BG127: N/A | BH127: N/A | BI127: N/A | BJ127: N/A | BK127: N/A | BL127: N/A | BM127: N/A | BN127: N/A | BO127: N/A | BP127: N/A | BQ127: N/A | BR127: N/A | BS127: N/A | BT127: N/A | BU127: N/A | BV127: N/A | BW127: N/A
A128: Shared among Improved Sanitation | B128: Yes | C128: N/A | D128: N/A | E128: N/A | F128: N/A | G128: N/A | H128: N/A | I128: N/A | J128: N/A | K128: N/A | L128: N/A | M128: N/A | N128: N/A | O128: N/A | P128: N/A | Q128: N/A | R128: N/A | S128: N/A | T128: N/A | U128: N/A | V128: N/A | W128: N/A | BA128: Shared among improved sanitation facilities | BB128: Yes | BC128: N/A | BD128: N/A | BE128: N/A | BF128: N/A | BG128: N/A | BH128: N/A | BI128: N/A | BJ128: N/A | BK128: N/A | BL128: N/A | BM128: N/A | BN128: N/A | BO128: N/A | BP128: N/A | BQ128: N/A | BR128: N/A | BS128: N/A | BT128: N/A | BU128: N/A | BV128: N/A | BW128: N/A
B129: No | C129: N/A | D129: N/A | E129: N/A | F129: N/A | G129: N/A | H129: N/A | I129: N/A | J129: N/A | K129: N/A | L129: N/A | M129: N/A | N129: N/A | O129: N/A | P129: N/A | Q129: N/A | R129: N/A | S129: N/A | T129: N/A | U129: N/A | V129: N/A | W129: N/A | BB129: No | BC129: N/A | BD129: N/A | BE129: N/A | BF129: N/A | BG129: N/A | BH129: N/A | BI129: N/A | BJ129: N/A | BK129: N/A | BL129: N/A | BM129: N/A | BN129: N/A | BO129: N/A | BP129: N/A | BQ129: N/A | BR129: N/A | BS129: N/A | BT129: N/A | BU129: N/A | BV129: N/A | BW129: N/A
A130: Manually calculated ratios | B130: Improved latrines
B131: Other
B132: Other
C133: NATIONAL wealth index quintile | H133: URBAN wealth index quintile | M133: RURAL wealth index quintile | R133: SUB-REGIONS: | BA133: Raw numbers of respondents: | BB133: Use of sanitation facilities | BC133: NATIONAL wealth index quintile | BH133: URBAN wealth index quintile | BM133: RURAL wealth index quintile | BR133: SUB-REGIONS:
A134: Percentage based on weighted population | C134: Poorest | D134: Poor | E134: Middle | F134: Rich | G134: Richest | H134: Poorest | I134: Poor | J134: Middle | K134: Rich | L134: Richest | M134: Poorest | N134: Poor | O134: Middle | P134: Rich | Q134: Richest | R134: North Central | S134: North East | T134: North West | U134: South East | V134: South South | W134: South West | BA134: Sanitation data, raw numbers (weighted) | BC134: Poorest | BD134: Poor | BE134: Middle | BF134: Rich | BG134: Richest | BH134: Poorest | BI134: Poor | BJ134: Middle | BK134: Rich | BL134: Richest | BM134: Poorest | BN134: Poor | BO134: Middle | BP134: Rich | BQ134: Richest | BR134: North Central | BS134: North East | BT134: North West | BU134: South East | BV134: South South | BW134: South West
A135: Sanitation type | B135: Sewer connection | C135: N/A | D135: N/A | E135: N/A | F135: N/A | G135: N/A | H135: N/A | I135: N/A | J135: N/A | K135: N/A | L135: N/A | M135: N/A | N135: N/A | O135: N/A | P135: N/A | Q135: N/A | R135: N/A | S135: N/A | T135: N/A | U135: N/A | V135: N/A | W135: N/A | BA135: Sanitation type | BB135: Sewer connection | BC135: N/A | BD135: N/A | BE135: N/A | BF135: N/A | BG135: N/A | BH135: N/A | BI135: N/A | BJ135: N/A | BK135: N/A | BL135: N/A | BM135: N/A | BN135: N/A | BO135: N/A | BP135: N/A | BQ135: N/A | BR135: N/A | BS135: N/A | BT135: N/A | BU135: N/A | BV135: N/A | BW135: N/A
B136: Septic tank connection | C136: N/A | D136: N/A | E136: N/A | F136: N/A | G136: N/A | H136: N/A | I136: N/A | J136: N/A | K136: N/A | L136: N/A | M136: N/A | N136: N/A | O136: N/A | P136: N/A | Q136: N/A | R136: N/A | S136: N/A | T136: N/A | U136: N/A | V136: N/A | W136: N/A | BB136: Septic tank connection | BC136: N/A | BD136: N/A | BE136: N/A | BF136: N/A | BG136: N/A | BH136: N/A | BI136: N/A | BJ136: N/A | BK136: N/A | BL136: N/A | BM136: N/A | BN136: N/A | BO136: N/A | BP136: N/A | BQ136: N/A | BR136: N/A | BS136: N/A | BT136: N/A | BU136: N/A | BV136: N/A | BW136: N/A
B137: Improved latrines | C137: N/A | D137: N/A | E137: N/A | F137: N/A | G137: N/A | H137: N/A | I137: N/A | J137: N/A | K137: N/A | L137: N/A | M137: N/A | N137: N/A | O137: N/A | P137: N/A | Q137: N/A | R137: N/A | S137: N/A | T137: N/A | U137: N/A | V137: N/A | W137: N/A | BB137: Improved latrines | BC137: N/A | BD137: N/A | BE137: N/A | BF137: N/A | BG137: N/A | BH137: N/A | BI137: N/A | BJ137: N/A | BK137: N/A | BL137: N/A | BM137: N/A | BN137: N/A | BO137: N/A | BP137: N/A | BQ137: N/A | BR137: N/A | BS137: N/A | BT137: N/A | BU137: N/A | BV137: N/A | BW137: N/A
B138: Unimproved facilities | C138: N/A | D138: N/A | E138: N/A | F138: N/A | G138: N/A | H138: N/A | I138: N/A | J138: N/A | K138: N/A | L138: N/A | M138: N/A | N138: N/A | O138: N/A | P138: N/A | Q138: N/A | R138: N/A | S138: N/A | T138: N/A | U138: N/A | V138: N/A | W138: N/A | BB138: Unimproved facilities | BC138: N/A | BD138: N/A | BE138: N/A | BF138: N/A | BG138: N/A | BH138: N/A | BI138: N/A | BJ138: N/A | BK138: N/A | BL138: N/A | BM138: N/A | BN138: N/A | BO138: N/A | BP138: N/A | BQ138: N/A | BR138: N/A | BS138: N/A | BT138: N/A | BU138: N/A | BV138: N/A | BW138: N/A
B139: Open defecation | C139: =C156+C157 -> 48.78539711 | D139: =D156+D157 -> 33.17257954 | E139: 24.06590063 | F139: 11.57616267 | G139: 4.987391412 | H139: 19.55383129 | I139: 9.328274363 | J139: 7.270317998 | K139: 6.387023858 | L139: 1.362152703 | M139: 52.77308928 | N139: 45.19569092 | O139: 26.66442521 | P139: 24.45621563 | Q139: 13.42433736 | R139: 38.78828248 | S139: 18.20780552 | T139: 17.4025878 | U139: 20.03392389 | V139: 28.07129713 | W139: 30.18289847 | BB139: Open defecation | BC139: N/A | BD139: N/A | BE139: N/A | BF139: N/A | BG139: N/A | BH139: N/A | BI139: N/A | BJ139: N/A | BK139: N/A | BL139: N/A | BM139: N/A | BN139: N/A | BO139: N/A | BP139: N/A | BQ139: N/A | BR139: N/A | BS139: N/A | BT139: N/A | BU139: N/A | BV139: N/A | BW139: N/A
A140: Septic tank emptying practices | B140: Not emptied/treated and disposed in situ | C140: N/A | D140: N/A | E140: N/A | F140: N/A | G140: N/A | H140: N/A | I140: N/A | J140: N/A | K140: N/A | L140: N/A | M140: N/A | N140: N/A | O140: N/A | P140: N/A | Q140: N/A | R140: N/A | S140: N/A | T140: N/A | U140: N/A | V140: N/A | W140: N/A | BA140: Septic tank emptying practices | BB140: Not emptied/treated and disposed in situ | BC140: N/A | BD140: N/A | BE140: N/A | BF140: N/A | BG140: N/A | BH140: N/A | BI140: N/A | BJ140: N/A | BK140: N/A | BL140: N/A | BM140: N/A | BN140: N/A | BO140: N/A | BP140: N/A | BQ140: N/A | BR140: N/A | BS140: N/A | BT140: N/A | BU140: N/A | BV140: N/A | BW140: N/A
B141: Emptied and buried on site | C141: N/A | D141: N/A | E141: N/A | F141: N/A | G141: N/A | H141: N/A | I141: N/A | J141: N/A | K141: N/A | L141: N/A | M141: N/A | N141: N/A | O141: N/A | P141: N/A | Q141: N/A | R141: N/A | S141: N/A | T141: N/A | U141: N/A | V141: N/A | W141: N/A | BB141: Emptied and buried on site | BC141: N/A | BD141: N/A | BE141: N/A | BF141: N/A | BG141: N/A | BH141: N/A | BI141: N/A | BJ141: N/A | BK141: N/A | BL141: N/A | BM141: N/A | BN141: N/A | BO141: N/A | BP141: N/A | BQ141: N/A | BR141: N/A | BS141: N/A | BT141: N/A | BU141: N/A | BV141: N/A | BW141: N/A
B142: Emptied and discharged locally | C142: N/A | D142: N/A | E142: N/A | F142: N/A | G142: N/A | H142: N/A | I142: N/A | J142: N/A | K142: N/A | L142: N/A | M142: N/A | N142: N/A | O142: N/A | P142: N/A | Q142: N/A | R142: N/A | S142: N/A | T142: N/A | U142: N/A | V142: N/A | W142: N/A | BB142: Emptied and discharged locally | BC142: N/A | BD142: N/A | BE142: N/A | BF142: N/A | BG142: N/A | BH142: N/A | BI142: N/A | BJ142: N/A | BK142: N/A | BL142: N/A | BM142: N/A | BN142: N/A | BO142: N/A | BP142: N/A | BQ142: N/A | BR142: N/A | BS142: N/A | BT142: N/A | BU142: N/A | BV142: N/A | BW142: N/A
B143: Emptied and removed offsite | C143: N/A | D143: N/A | E143: N/A | F143: N/A | G143: N/A | H143: N/A | I143: N/A | J143: N/A | K143: N/A | L143: N/A | M143: N/A | N143: N/A | O143: N/A | P143: N/A | Q143: N/A | R143: N/A | S143: N/A | T143: N/A | U143: N/A | V143: N/A | W143: N/A | BB143: Emptied and removed offsite | BC143: N/A | BD143: N/A | BE143: N/A | BF143: N/A | BG143: N/A | BH143: N/A | BI143: N/A | BJ143: N/A | BK143: N/A | BL143: N/A | BM143: N/A | BN143: N/A | BO143: N/A | BP143: N/A | BQ143: N/A | BR143: N/A | BS143: N/A | BT143: N/A | BU143: N/A | BV143: N/A | BW143: N/A
A144: Latrine emptying practices | B144: Not emptied/treated and disposed in situ | C144: N/A | D144: N/A | E144: N/A | F144: N/A | G144: N/A | H144: N/A | I144: N/A | J144: N/A | K144: N/A | L144: N/A | M144: N/A | N144: N/A | O144: N/A | P144: N/A | Q144: N/A | R144: N/A | S144: N/A | T144: N/A | U144: N/A | V144: N/A | W144: N/A | BA144: Latrine emptying practices | BB144: Not emptied/treated and disposed in situ | BC144: N/A | BD144: N/A | BE144: N/A | BF144: N/A | BG144: N/A | BH144: N/A | BI144: N/A | BJ144: N/A | BK144: N/A | BL144: N/A | BM144: N/A | BN144: N/A | BO144: N/A | BP144: N/A | BQ144: N/A | BR144: N/A | BS144: N/A | BT144: N/A | BU144: N/A | BV144: N/A | BW144: N/A
B145: Emptied and buried on site | C145: N/A | D145: N/A | E145: N/A | F145: N/A | G145: N/A | H145: N/A | I145: N/A | J145: N/A | K145: N/A | L145: N/A | M145: N/A | N145: N/A | O145: N/A | P145: N/A | Q145: N/A | R145: N/A | S145: N/A | T145: N/A | U145: N/A | V145: N/A | W145: N/A | BB145: Emptied and buried on site | BC145: N/A | BD145: N/A | BE145: N/A | BF145: N/A | BG145: N/A | BH145: N/A | BI145: N/A | BJ145: N/A | BK145: N/A | BL145: N/A | BM145: N/A | BN145: N/A | BO145: N/A | BP145: N/A | BQ145: N/A | BR145: N/A | BS145: N/A | BT145: N/A | BU145: N/A | BV145: N/A | BW145: N/A
B146: Emptied and discharged locally | C146: N/A | D146: N/A | E146: N/A | F146: N/A | G146: N/A | H146: N/A | I146: N/A | J146: N/A | K146: N/A | L146: N/A | M146: N/A | N146: N/A | O146: N/A | P146: N/A | Q146: N/A | R146: N/A | S146: N/A | T146: N/A | U146: N/A | V146: N/A | W146: N/A | BB146: Emptied and discharged locally | BC146: N/A | BD146: N/A | BE146: N/A | BF146: N/A | BG146: N/A | BH146: N/A | BI146: N/A | BJ146: N/A | BK146: N/A | BL146: N/A | BM146: N/A | BN146: N/A | BO146: N/A | BP146: N/A | BQ146: N/A | BR146: N/A | BS146: N/A | BT146: N/A | BU146: N/A | BV146: N/A | BW146: N/A
B147: Emptied and removed offsite | C147: N/A | D147: N/A | E147: N/A | F147: N/A | G147: N/A | H147: N/A | I147: N/A | J147: N/A | K147: N/A | L147: N/A | M147: N/A | N147: N/A | O147: N/A | P147: N/A | Q147: N/A | R147: N/A | S147: N/A | T147: N/A | U147: N/A | V147: N/A | W147: N/A | BB147: Emptied and removed offsite | BC147: N/A | BD147: N/A | BE147: N/A | BF147: N/A | BG147: N/A | BH147: N/A | BI147: N/A | BJ147: N/A | BK147: N/A | BL147: N/A | BM147: N/A | BN147: N/A | BO147: N/A | BP147: N/A | BQ147: N/A | BR147: N/A | BS147: N/A | BT147: N/A | BU147: N/A | BV147: N/A | BW147: N/A
A148: Shared among improved sanitation facilities | B148: Yes | C148: N/A | D148: N/A | E148: N/A | F148: N/A | G148: N/A | H148: N/A | I148: N/A | J148: N/A | K148: N/A | L148: N/A | M148: N/A | N148: N/A | O148: N/A | P148: N/A | Q148: N/A | R148: N/A | S148: N/A | T148: N/A | U148: N/A | V148: N/A | W148: N/A | BA148: Shared among improved sanitation facilities | BB148: Yes | BC148: N/A | BD148: N/A | BE148: N/A | BF148: N/A | BG148: N/A | BH148: N/A | BI148: N/A | BJ148: N/A | BK148: N/A | BL148: N/A | BM148: N/A | BN148: N/A | BO148: N/A | BP148: N/A | BQ148: N/A | BR148: N/A | BS148: N/A | BT148: N/A | BU148: N/A | BV148: N/A | BW148: N/A
B149: No | C149: N/A | D149: N/A | E149: N/A | F149: N/A | G149: N/A | H149: N/A | I149: N/A | J149: N/A | K149: N/A | L149: N/A | M149: N/A | N149: N/A | O149: N/A | P149: N/A | Q149: N/A | R149: N/A | S149: N/A | T149: N/A | U149: N/A | V149: N/A | W149: N/A | BB149: No | BC149: N/A | BD149: N/A | BE149: N/A | BF149: N/A | BG149: N/A | BH149: N/A | BI149: N/A | BJ149: N/A | BK149: N/A | BL149: N/A | BM149: N/A | BN149: N/A | BO149: N/A | BP149: N/A | BQ149: N/A | BR149: N/A | BS149: N/A | BT149: N/A | BU149: N/A | BV149: N/A | BW149: N/A
B150: DK/missing | C150: N/A | D150: N/A | E150: N/A | F150: N/A | G150: N/A | H150: N/A | I150: N/A | J150: N/A | K150: N/A | L150: N/A | M150: N/A | N150: N/A | O150: N/A | P150: N/A | Q150: N/A | R150: N/A | S150: N/A | T150: N/A | U150: N/A | V150: N/A | W150: N/A | BB150: DK/missing | BC150: N/A | BD150: N/A | BE150: N/A | BF150: N/A | BG150: N/A | BH150: N/A | BI150: N/A | BJ150: N/A | BK150: N/A | BL150: N/A | BM150: N/A | BN150: N/A | BO150: N/A | BP150: N/A | BQ150: N/A | BR150: N/A | BS150: N/A | BT150: N/A | BU150: N/A | BV150: N/A | BW150: N/A
A151: Shared among all sanitation facilities | B151: Yes | C151: 32.79668629 | D151: 32.72634444 | E151: 38.19366186 | F151: 49.20945692 | G151: 50.79980618 | H151: 34.07478391 | I151: 47.50792607 | J151: 58.09063378 | K151: 65.76853138 | L151: 41.04350665 | M151: 31.25720633 | N151: 35.31920908 | O151: 33.12280078 | P151: 35.33343932 | Q151: 46.58476212 | R151: 50.32530058 | S151: 20.53759312 | T151: 35.26360989 | U151: 37.10036788 | V151: 56.12444835 | W151: 75.93172545 | BA151: Shared among all sanitation facilities | BB151: Yes | BC151: N/A | BD151: N/A | BE151: N/A | BF151: N/A | BG151: N/A | BH151: N/A | BI151: N/A | BJ151: N/A | BK151: N/A | BL151: N/A | BM151: N/A | BN151: N/A | BO151: N/A | BP151: N/A | BQ151: N/A | BR151: N/A | BS151: N/A | BT151: N/A | BU151: N/A | BV151: N/A | BW151: N/A
B152: No | C152: 66.34676451 | D152: 66.11565872 | E152: 60.45366079 | F152: 48.79758147 | G152: 47.33003365 | H152: 65.29772883 | I152: 49.85184544 | J152: 39.28171484 | K152: 30.80554121 | L152: 57.79857429 | M152: 67.51968569 | N152: 64.01091315 | O152: 65.33029708 | P152: 63.26898345 | Q152: 52.65658471 | R152: 48.98762539 | S152: 78.58625816 | T152: 62.82655493 | U152: 60.44931154 | V152: 42.74935413 | W152: 21.46697205 | BB152: No | BC152: N/A | BD152: N/A | BE152: N/A | BF152: N/A | BG152: N/A | BH152: N/A | BI152: N/A | BJ152: N/A | BK152: N/A | BL152: N/A | BM152: N/A | BN152: N/A | BO152: N/A | BP152: N/A | BQ152: N/A | BR152: N/A | BS152: N/A | BT152: N/A | BU152: N/A | BV152: N/A | BW152: N/A
A153: Type of toilet facility | B153: flush toilet | C153: 0.1542325577 | D153: 0.2259612464 | E153: 2.654337556 | F153: 10.49049513 | G153: 52.66022818 | H153: 1.927235334 | I153: 5.97702506 | J153: 19.38302054 | K153: 40.36716641 | L153: 72.0294356 | M153: 0 | N153: 0.2343672356 | O153: 0.5359083934 | P153: 2.647703356 | Q153: 25.37008803 | R153: 8.851295172 | S153: 4.803310356 | T153: 4.116112595 | U153: 38.11894111 | V153: 20.94276166 | W153: 25.72244095 | BA153: Type of toilet facility | BB153: flush toilet | BC153: 11.26679 | BD153: 16.232589 | BE153: 195.648485 | BF153: 763.999531 | BG153: 3837.001608 | BH153: 47.236883 | BI153: 147.338167 | BJ153: 476.56038 | BK153: 990.147067 | BL153: 1770.188385 | BM153: 0 | BN153: 11.336023 | BO153: 25.803623 | BP153: 127.54273 | BQ153: 1227.995745 | BR153: 503.779817 | BS153: 337.013033 | BT153: 414.523409 | BU153: 1112.599985 | BV153: 1332.765782 | BW153: 1123.466977
B154: Traditional pit toilet | C154: 50.55374756 | D154: 65.97778183 | E154: 70.46385254 | F154: 72.82483816 | G154: 36.8127232 | H154: 74.40992659 | I154: 79.81385693 | J154: 64.64665743 | K154: 48.08603352 | L154: 22.89253949 | M154: 46.84010723 | N154: 54.25833604 | O154: 72.05552695 | P154: 70.79613711 | Q154: 56.21671045 | R154: 50.826216 | S154: 76.01223391 | T154: 76.80415614 | U154: 41.12835946 | V154: 43.56392022 | W154: 38.439494 | BB154: Traditional pit toilet | BC154: 3692.984582 | BD154: 4739.707505 | BE154: 5193.817933 | BF154: 5303.671707 | BG154: 2682.299014 | BH154: 1823.80062 | BI154: 1967.471654 | BJ154: 1589.434194 | BK154: 1179.479495 | BL154: 562.604818 | BM154: 2264.463823 | BN154: 2624.401588 | BO154: 3469.424393 | BP154: 3410.32638 | BQ154: 2721.073776 | BR154: 2892.822044 | BS154: 5333.220549 | BT154: 7734.754551 | BU154: 1200.437651 | BV154: 2772.342213 | BW154: 1678.903733
B155: Ventilated improved pit (vip) latrine | C155: 0.506622766 | D155: 0.5654763717 | E155: 2.815909277 | F155: 5.030651756 | G155: 5.530312565 | H155: 4.109006793 | I155: 4.880843647 | J155: 8.469397279 | K155: 5.132017433 | L155: 3.715872208 | M155: 0.3868034905 | N155: 0.3116058033 | O155: 0.6573045708 | P155: 2.099943911 | Q155: 4.98886416 | R155: 1.534206348 | S155: 0.9766502108 | T155: 1.635626791 | U155: 0.7187755392 | V155: 7.41132178 | W155: 5.525352933 | BB155: Ventilated improved pit (vip) latrine | BC155: 37.009127 | BD155: 40.622654 | BE155: 207.55777 | BF155: 366.371228 | BG155: 402.957202 | BH155: 100.712492 | BI155: 120.31647 | BJ155: 208.232725 | BK155: 125.88082 | BL155: 91.320913 | BM155: 18.69984 | BN155: 15.071947 | BO155: 31.648766 | BP155: 101.156566 | BQ155: 241.477442 | BR155: 87.320802 | BS155: 68.524377 | BT155: 164.719885 | BU155: 20.979325 | BV155: 471.645346 | BW155: 241.328246
B156: Bush / field | C156: 46.61937922 | D156: 31.16159464 | E156: 21.91775342 | F156: 9.025014075 | G156: 4.550249708 | H156: 18.87784177 | I156: 8.747868842 | J156: 7.074722181 | K156: 6.155872172 | L156: 1.362152703 | M156: 50.18194557 | N156: 43.47845894 | O156: 24.20523677 | P156: 21.90852554 | Q156: 9.543156461 | R156: 38.46600896 | S156: 17.60946096 | T156: 17.17241968 | U156: 19.87490144 | V156: 19.54296169 | W156: 29.08843486 | BB156: Bush / field | BC156: 3405.576381 | BD156: 2238.584564 | BE156: 1615.535011 | BF156: 657.271791 | BG156: 331.546521 | BH156: 462.699281 | BI156: 215.641552 | BJ156: 173.942564 | BK156: 150.994467 | BL156: 33.476132 | BM156: 2426.023488 | BN156: 2102.99366 | BO156: 1165.465613 | BP156: 1055.357335 | BQ156: 461.920176 | BR156: 2189.329197 | BS156: 1235.526628 | BT156: 1729.391454 | BU156: 580.100454 | BV156: 1243.684622 | BW156: 1270.481913
B157: River | C157: 2.166017896 | D157: 2.010984906 | E157: 2.148147204 | F157: 2.551148593 | G157: 0.4371417035 | H157: 0.6759895144 | I157: 0.5804055211 | J157: 0.1955958175 | K157: 0.2311516859 | L157: 0 | M157: 2.591143709 | N157: 1.717231983 | O157: 2.459188435 | P157: 2.54769009 | Q157: 3.881180896 | R157: 0.3222735289 | S157: 0.5983445582 | T157: 0.2301681207 | U157: 0.1590224532 | V157: 8.528335447 | W157: 1.094463604 | BB157: River | BC157: 158.229035 | BD157: 144.465 | BE157: 158.337716 | BF157: 185.794503 | BG157: 31.851617 | BH157: 16.568624 | BI157: 14.307433 | BJ157: 4.809014 | BK157: 5.66981 | BL157: 0 | BM157: 125.267672 | BN157: 83.060165 | BO157: 118.408243 | BP157: 122.724983 | BQ157: 187.861927 | BR157: 18.342502 | BS157: 41.981446 | BT157: 23.179656 | BU157: 4.641482 | BV157: 542.730412 | BW157: 47.802373
B158: OTHER | C158: 0 | D158: 0.058201006 | E158: 0 | F158: 0.07785229148 | G158: 0.009344640724 | H158: 0 | I158: 0 | J158: 0.2306067569 | K158: 0.02775878242 | L158: 0 | M158: 0 | N158: 0 | O158: 0.086834877 | P158: 0 | Q158: 0 | R158: 0 | S158: 0 | T158: 0.04151666958 | U158: 0 | V158: 0.01069921635 | W158: 0.1298136535 | BB158: OTHER | BC158: 0 | BD158: 4.18104 | BE158: 0 | BF158: 5.66981 | BG158: 0.680882 | BH158: 0 | BI158: 0 | BJ158: 5.66981 | BK158: 0.680882 | BL158: 0 | BM158: 0 | BN158: 0 | BO158: 4.18104 | BP158: 0 | BQ158: 0 | BR158: 0 | BS158: 0 | BT158: 4.18104 | BU158: 0 | BV158: 0.680882 | BW158: 5.66981
BB159: Total | BC159: 7305.065915 | BD159: 7183.793352 | BE159: 7370.896915 | BF159: 7282.77857 | BG159: 7286.336844 | BH159: 2451.0179 | BI159: 2465.075276 | BJ159: 2458.648687 | BK159: 2452.852541 | BL159: 2457.590248 | BM159: 4834.454823 | BN159: 4836.863383 | BO159: 4814.931678 | BP159: 4817.107994 | BQ159: 4840.329066 | BR159: 5691.594362 | BS159: 7016.266033 | BT159: 10070.74999 | BU159: 2918.758897 | BV159: 6363.849257 | BW159: 4367.653052
A208: =A1026 -> Nigeria
A209: =A1034 -> 2003
A210: Access to hygiene facilities
A211: by wealth quintile and sub-national region
A212: Notes:
A213: WHO/UNICEF JMP customised wealth index excludes water,
A214: sanitation and hygiene assets.
A215: Survey used for analysis: | B215: =A1025 -> DHS03
A220: Access to handwashing | C220: NATIONAL wealth index quintile | H220: URBAN wealth index quintile | M220: RURAL wealth index quintile | R220: SUB-REGIONS: | BA220: Raw numbers of respondents: | BB220: Access to handwashing | BC220: NATIONAL wealth index quintile | BH220: URBAN wealth index quintile | BM220: RURAL wealth index quintile | BR220: SUB-REGIONS:
A221: Weighted percentage (used in graphs) | C221: Poorest | D221: Poor | E221: Middle | F221: Rich | G221: Richest | H221: Poorest | I221: Poor | J221: Middle | K221: Rich | L221: Richest | M221: Poorest | N221: Poor | O221: Middle | P221: Rich | Q221: Richest | R221: North Central | S221: North East | T221: North West | U221: South East | V221: South South | W221: South West | BA221: Hygiene data, raw numbers (weighted) | BC221: Poorest | BD221: Poor | BE221: Middle | BF221: Rich | BG221: Richest | BH221: Poorest | BI221: Poor | BJ221: Middle | BK221: Rich | BL221: Richest | BM221: Poorest | BN221: Poor | BO221: Middle | BP221: Rich | BQ221: Richest | BR221: North Central | BS221: North East | BT221: North West | BU221: South East | BV221: South South | BW221: South West
A222: Hygiene ladder | B222: Basic | C222: N/A | D222: N/A | E222: N/A | F222: N/A | G222: N/A | H222: N/A | I222: N/A | J222: N/A | K222: N/A | L222: N/A | M222: N/A | N222: N/A | O222: N/A | P222: N/A | Q222: N/A | R222: N/A | S222: N/A | T222: N/A | U222: N/A | V222: N/A | W222: N/A | BA222: Hygiene ladder | BB222: Basic | BC222: N/A | BD222: N/A | BE222: N/A | BF222: N/A | BG222: N/A | BH222: N/A | BI222: N/A | BJ222: N/A | BK222: N/A | BL222: N/A | BM222: N/A | BN222: N/A | BO222: N/A | BP222: N/A | BQ222: N/A | BR222: N/A | BS222: N/A | BT222: N/A | BU222: N/A | BV222: N/A | BW222: N/A
B223: Limited | C223: N/A | D223: N/A | E223: N/A | F223: N/A | G223: N/A | H223: N/A | I223: N/A | J223: N/A | K223: N/A | L223: N/A | M223: N/A | N223: N/A | O223: N/A | P223: N/A | Q223: N/A | R223: N/A | S223: N/A | T223: N/A | U223: N/A | V223: N/A | W223: N/A | BB223: Limited | BC223: N/A | BD223: N/A | BE223: N/A | BF223: N/A | BG223: N/A | BH223: N/A | BI223: N/A | BJ223: N/A | BK223: N/A | BL223: N/A | BM223: N/A | BN223: N/A | BO223: N/A | BP223: N/A | BQ223: N/A | BR223: N/A | BS223: N/A | BT223: N/A | BU223: N/A | BV223: N/A | BW223: N/A
B224: No facility | C224: N/A | D224: N/A | E224: N/A | F224: N/A | G224: N/A | H224: N/A | I224: N/A | J224: N/A | K224: N/A | L224: N/A | M224: N/A | N224: N/A | O224: N/A | P224: N/A | Q224: N/A | R224: N/A | S224: N/A | T224: N/A | U224: N/A | V224: N/A | W224: N/A | BB224: No facility | BC224: N/A | BD224: N/A | BE224: N/A | BF224: N/A | BG224: N/A | BH224: N/A | BI224: N/A | BJ224: N/A | BK224: N/A | BL224: N/A | BM224: N/A | BN224: N/A | BO224: N/A | BP224: N/A | BQ224: N/A | BR224: N/A | BS224: N/A | BT224: N/A | BU224: N/A | BV224: N/A | BW224: N/A
BA225: Observed handwashing place | BB225: Fixed | BC225: N/A | BD225: N/A | BE225: N/A | BF225: N/A | BG225: N/A | BH225: N/A | BI225: N/A | BJ225: N/A | BK225: N/A | BL225: N/A | BM225: N/A | BN225: N/A | BO225: N/A | BP225: N/A | BQ225: N/A | BR225: N/A | BS225: N/A | BT225: N/A | BU225: N/A | BV225: N/A | BW225: N/A
BB226: Mobile | BC226: N/A | BD226: N/A | BE226: N/A | BF226: N/A | BG226: N/A | BH226: N/A | BI226: N/A | BJ226: N/A | BK226: N/A | BL226: N/A | BM226: N/A | BN226: N/A | BO226: N/A | BP226: N/A | BQ226: N/A | BR226: N/A | BS226: N/A | BT226: N/A | BU226: N/A | BV226: N/A | BW226: N/A
BA227: Water / Soap | BB227: Water and soap | BC227: N/A | BD227: N/A | BE227: N/A | BF227: N/A | BG227: N/A | BH227: N/A | BI227: N/A | BJ227: N/A | BK227: N/A | BL227: N/A | BM227: N/A | BN227: N/A | BO227: N/A | BP227: N/A | BQ227: N/A | BR227: N/A | BS227: N/A | BT227: N/A | BU227: N/A | BV227: N/A | BW227: N/A
BB228: Water only | BC228: N/A | BD228: N/A | BE228: N/A | BF228: N/A | BG228: N/A | BH228: N/A | BI228: N/A | BJ228: N/A | BK228: N/A | BL228: N/A | BM228: N/A | BN228: N/A | BO228: N/A | BP228: N/A | BQ228: N/A | BR228: N/A | BS228: N/A | BT228: N/A | BU228: N/A | BV228: N/A | BW228: N/A
BB229: Soap only | BC229: N/A | BD229: N/A | BE229: N/A | BF229: N/A | BG229: N/A | BH229: N/A | BI229: N/A | BJ229: N/A | BK229: N/A | BL229: N/A | BM229: N/A | BN229: N/A | BO229: N/A | BP229: N/A | BQ229: N/A | BR229: N/A | BS229: N/A | BT229: N/A | BU229: N/A | BV229: N/A | BW229: N/A
BB230: Neither | BC230: N/A | BD230: N/A | BE230: N/A | BF230: N/A | BG230: N/A | BH230: N/A | BI230: N/A | BJ230: N/A | BK230: N/A | BL230: N/A | BM230: N/A | BN230: N/A | BO230: N/A | BP230: N/A | BQ230: N/A | BR230: N/A | BS230: N/A | BT230: N/A | BU230: N/A | BV230: N/A | BW230: N/A
BA259: Raw numbers of respondents: | BB259: Menstrual health and hygiene | BC259: NATIONAL wealth index quintile | BH259: URBAN wealth index quintile | BM259: RURAL wealth index quintile | BR259: SUB-REGIONS:
BA260: MHH data, raw numbers (weighted) | BC260: Poorest | BD260: Poor | BE260: Middle | BF260: Rich | BG260: Richest | BH260: Poorest | BI260: Poor | BJ260: Middle | BK260: Rich | BL260: Richest | BM260: Poorest | BN260: Poor | BO260: Middle | BP260: Rich | BQ260: Richest | BR260: North Central | BS260: North East | BT260: North West | BU260: South East | BV260: South South | BW260: South West
BA261: Private place to wash and change | BB261: Yes | BC261: N/A | BD261: N/A | BE261: N/A | BF261: N/A | BG261: N/A | BH261: N/A | BI261: N/A | BJ261: N/A | BK261: N/A | BL261: N/A | BM261: N/A | BN261: N/A | BO261: N/A | BP261: N/A | BQ261: N/A | BR261: N/A | BS261: N/A | BT261: N/A | BU261: N/A | BV261: N/A | BW261: N/A
BB262: No | BC262: N/A | BD262: N/A | BE262: N/A | BF262: N/A | BG262: N/A | BH262: N/A | BI262: N/A | BJ262: N/A | BK262: N/A | BL262: N/A | BM262: N/A | BN262: N/A | BO262: N/A | BP262: N/A | BQ262: N/A | BR262: N/A | BS262: N/A | BT262: N/A | BU262: N/A | BV262: N/A | BW262: N/A
BB263: DK/not sure/missing | BC263: N/A | BD263: N/A | BE263: N/A | BF263: N/A | BG263: N/A | BH263: N/A | BI263: N/A | BJ263: N/A | BK263: N/A | BL263: N/A | BM263: N/A | BN263: N/A | BO263: N/A | BP263: N/A | BQ263: N/A | BR263: N/A | BS263: N/A | BT263: N/A | BU263: N/A | BV263: N/A | BW263: N/A
BA264: Use of menstrual materials | BB264: Materials reusable | BC264: N/A | BD264: N/A | BE264: N/A | BF264: N/A | BG264: N/A | BH264: N/A | BI264: N/A | BJ264: N/A | BK264: N/A | BL264: N/A | BM264: N/A | BN264: N/A | BO264: N/A | BP264: N/A | BQ264: N/A | BR264: N/A | BS264: N/A | BT264: N/A | BU264: N/A | BV264: N/A | BW264: N/A
BB265: Materials not reusable | BC265: N/A | BD265: N/A | BE265: N/A | BF265: N/A | BG265: N/A | BH265: N/A | BI265: N/A | BJ265: N/A | BK265: N/A | BL265: N/A | BM265: N/A | BN265: N/A | BO265: N/A | BP265: N/A | BQ265: N/A | BR265: N/A | BS265: N/A | BT265: N/A | BU265: N/A | BV265: N/A | BW265: N/A
BB266: No materials used | BC266: N/A | BD266: N/A | BE266: N/A | BF266: N/A | BG266: N/A | BH266: N/A | BI266: N/A | BJ266: N/A | BK266: N/A | BL266: N/A | BM266: N/A | BN266: N/A | BO266: N/A | BP266: N/A | BQ266: N/A | BR266: N/A | BS266: N/A | BT266: N/A | BU266: N/A | BV266: N/A | BW266: N/A
BB267: DK/not sure/missing | BC267: N/A | BD267: N/A | BE267: N/A | BF267: N/A | BG267: N/A | BH267: N/A | BI267: N/A | BJ267: N/A | BK267: N/A | BL267: N/A | BM267: N/A | BN267: N/A | BO267: N/A | BP267: N/A | BQ267: N/A | BR267: N/A | BS267: N/A | BT267: N/A | BU267: N/A | BV267: N/A | BW267: N/A
BA268: Use of menstrual materials with private place to wash and change | BB268: Materials reusable | BC268: N/A | BD268: N/A | BE268: N/A | BF268: N/A | BG268: N/A | BH268: N/A | BI268: N/A | BJ268: N/A | BK268: N/A | BL268: N/A | BM268: N/A | BN268: N/A | BO268: N/A | BP268: N/A | BQ268: N/A | BR268: N/A | BS268: N/A | BT268: N/A | BU268: N/A | BV268: N/A | BW268: N/A
BB269: Materials not reusable | BC269: N/A | BD269: N/A | BE269: N/A | BF269: N/A | BG269: N/A | BH269: N/A | BI269: N/A | BJ269: N/A | BK269: N/A | BL269: N/A | BM269: N/A | BN269: N/A | BO269: N/A | BP269: N/A | BQ269: N/A | BR269: N/A | BS269: N/A | BT269: N/A | BU269: N/A | BV269: N/A | BW269: N/A
BB270: No materials used | BC270: N/A | BD270: N/A | BE270: N/A | BF270: N/A | BG270: N/A | BH270: N/A | BI270: N/A | BJ270: N/A | BK270: N/A | BL270: N/A | BM270: N/A | BN270: N/A | BO270: N/A | BP270: N/A | BQ270: N/A | BR270: N/A | BS270: N/A | BT270: N/A | BU270: N/A | BV270: N/A | BW270: N/A
BA271: Awareness of menstruation before menarche | BB271: Yes | BC271: N/A | BD271: N/A | BE271: N/A | BF271: N/A | BG271: N/A | BH271: N/A | BI271: N/A | BJ271: N/A | BK271: N/A | BL271: N/A | BM271: N/A | BN271: N/A | BO271: N/A | BP271: N/A | BQ271: N/A | BR271: N/A | BS271: N/A | BT271: N/A | BU271: N/A | BV271: N/A | BW271: N/A
BB272: No | BC272: N/A | BD272: N/A | BE272: N/A | BF272: N/A | BG272: N/A | BH272: N/A | BI272: N/A | BJ272: N/A | BK272: N/A | BL272: N/A | BM272: N/A | BN272: N/A | BO272: N/A | BP272: N/A | BQ272: N/A | BR272: N/A | BS272: N/A | BT272: N/A | BU272: N/A | BV272: N/A | BW272: N/A
BB273: DK/not sure/missing | BC273: N/A | BD273: N/A | BE273: N/A | BF273: N/A | BG273: N/A | BH273: N/A | BI273: N/A | BJ273: N/A | BK273: N/A | BL273: N/A | BM273: N/A | BN273: N/A | BO273: N/A | BP273: N/A | BQ273: N/A | BR273: N/A | BS273: N/A | BT273: N/A | BU273: N/A | BV273: N/A | BW273: N/A
BA274: Participation in (all) activities during menstruation | BB274: Yes | BC274: N/A | BD274: N/A | BE274: N/A | BF274: N/A | BG274: N/A | BH274: N/A | BI274: N/A | BJ274: N/A | BK274: N/A | BL274: N/A | BM274: N/A | BN274: N/A | BO274: N/A | BP274: N/A | BQ274: N/A | BR274: N/A | BS274: N/A | BT274: N/A | BU274: N/A | BV274: N/A | BW274: N/A
BB275: No | BC275: N/A | BD275: N/A | BE275: N/A | BF275: N/A | BG275: N/A | BH275: N/A | BI275: N/A | BJ275: N/A | BK275: N/A | BL275: N/A | BM275: N/A | BN275: N/A | BO275: N/A | BP275: N/A | BQ275: N/A | BR275: N/A | BS275: N/A | BT275: N/A | BU275: N/A | BV275: N/A | BW275: N/A
BB276: DK/not sure/missing/no such activity | BC276: N/A | BD276: N/A | BE276: N/A | BF276: N/A | BG276: N/A | BH276: N/A | BI276: N/A | BJ276: N/A | BK276: N/A | BL276: N/A | BM276: N/A | BN276: N/A | BO276: N/A | BP276: N/A | BQ276: N/A | BR276: N/A | BS276: N/A | BT276: N/A | BU276: N/A | BV276: N/A | BW276: N/A
BA277: Participation in specific activities during menstruation | BB277: Did not go to school (amongst those usually attending school) | BC277: N/A | BD277: N/A | BE277: N/A | BF277: N/A | BG277: N/A | BH277: N/A | BI277: N/A | BJ277: N/A | BK277: N/A | BL277: N/A | BM277: N/A | BN277: N/A | BO277: N/A | BP277: N/A | BQ277: N/A | BR277: N/A | BS277: N/A | BT277: N/A | BU277: N/A | BV277: N/A | BW277: N/A
BB278: Did not go to work (amongst those who usually work) | BC278: N/A | BD278: N/A | BE278: N/A | BF278: N/A | BG278: N/A | BH278: N/A | BI278: N/A | BJ278: N/A | BK278: N/A | BL278: N/A | BM278: N/A | BN278: N/A | BO278: N/A | BP278: N/A | BQ278: N/A | BR278: N/A | BS278: N/A | BT278: N/A | BU278: N/A | BV278: N/A | BW278: N/A
BB279: Did not participate in social activities | BC279: N/A | BD279: N/A | BE279: N/A | BF279: N/A | BG279: N/A | BH279: N/A | BI279: N/A | BJ279: N/A | BK279: N/A | BL279: N/A | BM279: N/A | BN279: N/A | BO279: N/A | BP279: N/A | BQ279: N/A | BR279: N/A | BS279: N/A | BT279: N/A | BU279: N/A | BV279: N/A | BW279: N/A
BB280: Did not cook food | BC280: N/A | BD280: N/A | BE280: N/A | BF280: N/A | BG280: N/A | BH280: N/A | BI280: N/A | BJ280: N/A | BK280: N/A | BL280: N/A | BM280: N/A | BN280: N/A | BO280: N/A | BP280: N/A | BQ280: N/A | BR280: N/A | BS280: N/A | BT280: N/A | BU280: N/A | BV280: N/A | BW280: N/A
BB281: Did not eat with others | BC281: N/A | BD281: N/A | BE281: N/A | BF281: N/A | BG281: N/A | BH281: N/A | BI281: N/A | BJ281: N/A | BK281: N/A | BL281: N/A | BM281: N/A | BN281: N/A | BO281: N/A | BP281: N/A | BQ281: N/A | BR281: N/A | BS281: N/A | BT281: N/A | BU281: N/A | BV281: N/A | BW281: N/A
BB282: Did not bathe in regular place | BC282: N/A | BD282: N/A | BE282: N/A | BF282: N/A | BG282: N/A | BH282: N/A | BI282: N/A | BJ282: N/A | BK282: N/A | BL282: N/A | BM282: N/A | BN282: N/A | BO282: N/A | BP282: N/A | BQ282: N/A | BR282: N/A | BS282: N/A | BT282: N/A | BU282: N/A | BV282: N/A | BW282: N/A
BB283: Did not participate in other activities | BC283: N/A | BD283: N/A | BE283: N/A | BF283: N/A | BG283: N/A | BH283: N/A | BI283: N/A | BJ283: N/A | BK283: N/A | BL283: N/A | BM283: N/A | BN283: N/A | BO283: N/A | BP283: N/A | BQ283: N/A | BR283: N/A | BS283: N/A | BT283: N/A | BU283: N/A | BV283: N/A | BW283: N/A
BB284: DK/not sure/missing/no such activity | BC284: N/A | BD284: N/A | BE284: N/A | BF284: N/A | BG284: N/A | BH284: N/A | BI284: N/A | BJ284: N/A | BK284: N/A | BL284: N/A | BM284: N/A | BN284: N/A | BO284: N/A | BP284: N/A | BQ284: N/A | BR284: N/A | BS284: N/A | BT284: N/A | BU284: N/A | BV284: N/A | BW284: N/A
BA339: Raw numbers of respondents: | BB339: Basic water, sanitation and hygiene | BC339: NATIONAL wealth index quintile | BH339: URBAN wealth index quintile | BM339: RURAL wealth index quintile | BR339: SUB-REGIONS:
BA340: WatSan data, raw numbers (weighted) | BC340: Poorest | BD340: Poor | BE340: Middle | BF340: Rich | BG340: Richest | BH340: Poorest | BI340: Poor | BJ340: Middle | BK340: Rich | BL340: Richest | BM340: Poorest | BN340: Poor | BO340: Middle | BP340: Rich | BQ340: Richest | BR340: North Central | BS340: North East | BT340: North West | BU340: South East | BV340: South South | BW340: South West
BA341: Use of Basic Water Sanitation and Hygiene | BB341: Yes | BC341: N/A | BD341: N/A | BE341: N/A | BF341: N/A | BG341: N/A | BH341: N/A | BI341: N/A | BJ341: N/A | BK341: N/A | BL341: N/A | BM341: N/A | BN341: N/A | BO341: N/A | BP341: N/A | BQ341: N/A | BR341: N/A | BS341: N/A | BT341: N/A | BU341: N/A | BV341: N/A | BW341: N/A
BB342: No | BC342: N/A | BD342: N/A | BE342: N/A | BF342: N/A | BG342: N/A | BH342: N/A | BI342: N/A | BJ342: N/A | BK342: N/A | BL342: N/A | BM342: N/A | BN342: N/A | BO342: N/A | BP342: N/A | BQ342: N/A | BR342: N/A | BS342: N/A | BT342: N/A | BU342: N/A | BV342: N/A | BW342: N/A
BA343: Use of Basic Water and Sanitation | BB343: Yes | BC343: N/A | BD343: N/A | BE343: N/A | BF343: N/A | BG343: N/A | BH343: N/A | BI343: N/A | BJ343: N/A | BK343: N/A | BL343: N/A | BM343: N/A | BN343: N/A | BO343: N/A | BP343: N/A | BQ343: N/A | BR343: N/A | BS343: N/A | BT343: N/A | BU343: N/A | BV343: N/A | BW343: N/A
BB344: No | BC344: N/A | BD344: N/A | BE344: N/A | BF344: N/A | BG344: N/A | BH344: N/A | BI344: N/A | BJ344: N/A | BK344: N/A | BL344: N/A | BM344: N/A | BN344: N/A | BO344: N/A | BP344: N/A | BQ344: N/A | BR344: N/A | BS344: N/A | BT344: N/A | BU344: N/A | BV344: N/A | BW344: N/A
BA345: Use of Basic Water and Hygiene | BB345: Yes | BC345: N/A | BD345: N/A | BE345: N/A | BF345: N/A | BG345: N/A | BH345: N/A | BI345: N/A | BJ345: N/A | BK345: N/A | BL345: N/A | BM345: N/A | BN345: N/A | BO345: N/A | BP345: N/A | BQ345: N/A | BR345: N/A | BS345: N/A | BT345: N/A | BU345: N/A | BV345: N/A | BW345: N/A
BB346: No | BC346: N/A | BD346: N/A | BE346: N/A | BF346: N/A | BG346: N/A | BH346: N/A | BI346: N/A | BJ346: N/A | BK346: N/A | BL346: N/A | BM346: N/A | BN346: N/A | BO346: N/A | BP346: N/A | BQ346: N/A | BR346: N/A | BS346: N/A | BT346: N/A | BU346: N/A | BV346: N/A | BW346: N/A
BA347: Use of Basic Sanitation and Hygiene | BB347: Yes | BC347: N/A | BD347: N/A | BE347: N/A | BF347: N/A | BG347: N/A | BH347: N/A | BI347: N/A | BJ347: N/A | BK347: N/A | BL347: N/A | BM347: N/A | BN347: N/A | BO347: N/A | BP347: N/A | BQ347: N/A | BR347: N/A | BS347: N/A | BT347: N/A | BU347: N/A | BV347: N/A | BW347: N/A
BB348: No | BC348: N/A | BD348: N/A | BE348: N/A | BF348: N/A | BG348: N/A | BH348: N/A | BI348: N/A | BJ348: N/A | BK348: N/A | BL348: N/A | BM348: N/A | BN348: N/A | BO348: N/A | BP348: N/A | BQ348: N/A | BR348: N/A | BS348: N/A | BT348: N/A | BU348: N/A | BV348: N/A | BW348: N/A
BA349: Use of Basic Water | BB349: Yes | BC349: N/A | BD349: N/A | BE349: N/A | BF349: N/A | BG349: N/A | BH349: N/A | BI349: N/A | BJ349: N/A | BK349: N/A | BL349: N/A | BM349: N/A | BN349: N/A | BO349: N/A | BP349: N/A | BQ349: N/A | BR349: N/A | BS349: N/A | BT349: N/A | BU349: N/A | BV349: N/A | BW349: N/A
BB350: No | BC350: N/A | BD350: N/A | BE350: N/A | BF350: N/A | BG350: N/A | BH350: N/A | BI350: N/A | BJ350: N/A | BK350: N/A | BL350: N/A | BM350: N/A | BN350: N/A | BO350: N/A | BP350: N/A | BQ350: N/A | BR350: N/A | BS350: N/A | BT350: N/A | BU350: N/A | BV350: N/A | BW350: N/A
BA351: Use of Basic Sanitation | BB351: Yes | BC351: N/A | BD351: N/A | BE351: N/A | BF351: N/A | BG351: N/A | BH351: N/A | BI351: N/A | BJ351: N/A | BK351: N/A | BL351: N/A | BM351: N/A | BN351: N/A | BO351: N/A | BP351: N/A | BQ351: N/A | BR351: N/A | BS351: N/A | BT351: N/A | BU351: N/A | BV351: N/A | BW351: N/A
BB352: No | BC352: N/A | BD352: N/A | BE352: N/A | BF352: N/A | BG352: N/A | BH352: N/A | BI352: N/A | BJ352: N/A | BK352: N/A | BL352: N/A | BM352: N/A | BN352: N/A | BO352: N/A | BP352: N/A | BQ352: N/A | BR352: N/A | BS352: N/A | BT352: N/A | BU352: N/A | BV352: N/A | BW352: N/A
BA353: Access to Basic Hygiene | BB353: Yes | BC353: N/A | BD353: N/A | BE353: N/A | BF353: N/A | BG353: N/A | BH353: N/A | BI353: N/A | BJ353: N/A | BK353: N/A | BL353: N/A | BM353: N/A | BN353: N/A | BO353: N/A | BP353: N/A | BQ353: N/A | BR353: N/A | BS353: N/A | BT353: N/A | BU353: N/A | BV353: N/A | BW353: N/A
BB354: No | BC354: N/A | BD354: N/A | BE354: N/A | BF354: N/A | BG354: N/A | BH354: N/A | BI354: N/A | BJ354: N/A | BK354: N/A | BL354: N/A | BM354: N/A | BN354: N/A | BO354: N/A | BP354: N/A | BQ354: N/A | BR354: N/A | BS354: N/A | BT354: N/A | BU354: N/A | BV354: N/A | BW354: N/A
C399: INITIAL (national) Wealth Index | H399: URBAN Wealth Index | M399: RURAL Wealth Index
C400: Component Matrix | H400: Component Matrix | M400: Component Matrix
E401: Component | J401: Component | O401: Component
B402: Note: The INITIAL (national) Wealth Index is based on the first component of the Principal Component Analysis (PCA) which has been obtained at national level. The final national-level (NATIONAL) Wealth Index is based on the URBAN and RURAL specific wealth indexes. Regression procedures are used to establish the relationships between the two sets of scores (urban and rural) and the initial (national) wealth factors. This allows best use of the available information for each area and a better precision of the FINAL (NATIONAL) Wealth Index. For dependency reasons, all WASH variables (contained in the generic MICS and DHS scripts) have been excluded from the sets of asset variables used in the PCAs. The PCA can extracts as many components as there are asset variables in the input. Only the first of the components is used to represent the Wealth Index. The scores represent the weights of the asset variables on the Wealth Index (correlations between the variables and the component). The communalities are the proportion of each variable's variance that can be explained by the component. Proportion of explained variance is the part of the model's total variance that is explained by the component. For more information on the procedure used: The DHS Wealth Index, DHS Comparative Reports No. 6, Shea Oscar Rutstein, Kiersten Johnson, ORC Macro International Inc., 2004. The DHS Wealth Index: Approaches for Rural and Urban Areas, Shea O. Rutstein, ORC Macro International Inc., 2008. MICS Methodological Paper No. 4, Review of options for reporting water, sanitation and hygiene coverage by wealth quintile, UNICEF, 2016. | E402: 1 | J402: 1 | O402: 1
C403: Electric Fan | E403: 0.8471570267 | H403: Electric Fan | J403: 0.8017808378 | M403: Electric Fan | O403: 0.8167437677
C404: Electric iron | E404: 0.8123593668 | H404: Electric iron | J404: 0.7681100794 | M404: Electric iron | O404: 0.7866632969
C405: Has television | E405: 0.8036814029 | H405: Has television | J405: 0.753922981 | M405: Has television | O405: 0.773665766
C406: Household fuel type: wood, straw | E406: -0.7466685691 | H406: Household fuel type: wood, straw | J406: -0.7183198038 | M406: Has refrigerator | O406: 0.7129323349
C407: Has electricity | E407: 0.7434934776 | H407: Has electricity | J407: 0.6796025035 | M407: Has electricity | O407: 0.6710175422
C408: Has refrigerator | E408: 0.7061562354 | H408: Household fuel type: kerosene | J408: 0.6469334478 | M408: Household fuel type: wood, straw | O408: -0.6529507037
C409: Household fuel type: kerosene | E409: 0.6984302141 | H409: Has refrigerator | J409: 0.639524595 | M409: Household fuel type: kerosene | O409: 0.6210161941
C410: Has carpet floor | E410: 0.6238422413 | H410: Has carpet floor | J410: 0.6126177892 | M410: Has carpet floor | O410: 0.5641528907
C411: Has earth/sand floor | E411: -0.5507751324 | H411: Has earth/sand floor | J411: -0.4804817928 | M411: Gas cooker | O411: 0.5540170109
C412: Has telephone | E412: 0.4958912919 | H412: Has telephone | J412: 0.4638239535 | M412: Has telephone | O412: 0.5192308529
C413: Has car/truck | E413: 0.4808190316 | H413: Has radio | J413: 0.4447191886 | M413: Has car/truck | O413: 0.5053320878
C414: Gas cooker | E414: 0.4495271676 | H414: Has car/truck | J414: 0.4275469932 | M414: Has earth/sand floor | O414: -0.4915387955
C415: Has radio | E415: 0.4248480927 | H415: Gas cooker | J415: 0.3972465489 | M415: Has radio | O415: 0.3643006415
... 144 more rows

Sheet MICS07
A2: =A1026 -> Nigeria
A3: =A1034 -> 2007
A4: Use of drinking water sources
A5: by wealth quintile and sub-national region
A6: Notes:
A7: WHO/UNICEF JMP customised wealth index excludes water,
A8: sanitation and hygiene assets.
A9: Survey used for analysis: | B9: =A1025 -> MICS07
A10: =B1028 -> 
A11: =B1027 -> 
A14: Use of drinking water sources | C14: NATIONAL wealth index quintile | H14: URBAN wealth index quintile | M14: RURAL wealth index quintile | R14: SUB-REGIONS: | BA14: Raw numbers of respondents: | BB14: Use of drinking water sources | BC14: NATIONAL wealth index quintile | BH14: URBAN wealth index quintile | BM14: RURAL wealth index quintile | BR14: SUB-REGIONS:
A15: Weighted percentage (used in graphs) | C15: Poorest | D15: Poor | E15: Middle | F15: Rich | G15: Richest | H15: Poorest | I15: Poor | J15: Middle | K15: Rich | L15: Richest | M15: Poorest | N15: Poor | O15: Middle | P15: Rich | Q15: Richest | R15: North central | S15: North east | T15: North west | U15: South east | V15: South south | W15: South west | BA15: Water data, raw numbers (weighted) | BC15: Poorest | BD15: Poor | BE15: Middle | BF15: Rich | BG15: Richest | BH15: Poorest | BI15: Poor | BJ15: Middle | BK15: Rich | BL15: Richest | BM15: Poorest | BN15: Poor | BO15: Middle | BP15: Rich | BQ15: Richest | BR15: North central | BS15: North east | BT15: North west | BU15: South east | BV15: South south | BW15: South west
A16: Water | B16: Improved | C16: 23.80700506 | D16: 33.03533599 | E16: 48.25024763 | F16: 70.70427257 | G16: 85.88515123 | H16: 22.38831522 | I16: 27.05474492 | J16: 35.05633155 | K16: 44.014177 | L16: 64.83260296 | M16: 66.02515936 | N16: 85.19981092 | O16: 87.55868269 | P16: 91.12818482 | Q16: 87.22759286 | R16: 43.8128021 | S16: 34.20045113 | T16: 43.79987059 | U16: 59.88481503 | V16: 56.28867634 | W16: 75.93471394 | BA16: Water | BB16: Improved | BC16: N/A | BD16: N/A | BE16: N/A | BF16: N/A | BG16: N/A | BH16: N/A | BI16: N/A | BJ16: N/A | BK16: N/A | BL16: N/A | BM16: N/A | BN16: N/A | BO16: N/A | BP16: N/A | BQ16: N/A | BR16: N/A | BS16: N/A | BT16: N/A | BU16: N/A | BV16: N/A | BW16: N/A
B17: Not Improved | C17: 76.19299494 | D17: 66.96466401 | E17: 51.74975237 | F17: 29.29572743 | G17: 14.11484877 | H17: 77.61168478 | I17: 72.94525508 | J17: 64.94366845 | K17: 55.985823 | L17: 35.16739704 | M17: 33.97484064 | N17: 14.80018908 | O17: 12.44131731 | P17: 8.871815178 | Q17: 12.77240714 | R17: 56.1871979 | S17: 65.79954887 | T17: 56.20012941 | U17: 40.11518497 | V17: 43.71132366 | W17: 24.06528606 | BB17: Not Improved | BC17: N/A | BD17: N/A | BE17: N/A | BF17: N/A | BG17: N/A | BH17: N/A | BI17: N/A | BJ17: N/A | BK17: N/A | BL17: N/A | BM17: N/A | BN17: N/A | BO17: N/A | BP17: N/A | BQ17: N/A | BR17: N/A | BS17: N/A | BT17: N/A | BU17: N/A | BV17: N/A | BW17: N/A
A18: Water ladder | B18: Basic | C18: 17.72439773 | D18: 27.73175354 | E18: 40.23866924 | F18: 61.47260666 | G18: 79.53952053 | H18: 15.60850627 | I18: 22.18821271 | J18: 29.44299653 | K18: 37.15308238 | L18: 57.76346594 | M18: 55.29042845 | N18: 72.16963746 | O18: 78.42808998 | P18: 85.41469416 | Q18: 82.25235212 | R18: 37.66364898 | S18: 24.04235695 | T18: 39.73231649 | U18: 48.24237302 | V18: 50.18666399 | W18: 69.01311168 | BA18: Water ladder | BB18: Basic | BC18: N/A | BD18: N/A | BE18: N/A | BF18: N/A | BG18: N/A | BH18: N/A | BI18: N/A | BJ18: N/A | BK18: N/A | BL18: N/A | BM18: N/A | BN18: N/A | BO18: N/A | BP18: N/A | BQ18: N/A | BR18: N/A | BS18: N/A | BT18: N/A | BU18: N/A | BV18: N/A | BW18: N/A
B19: Limited | C19: 6.082607337 | D19: 5.303582457 | E19: 8.011578395 | F19: 9.231665911 | G19: 6.345630699 | H19: 6.779808959 | I19: 4.866532211 | J19: 5.613335019 | K19: 6.861094618 | L19: 7.069137018 | M19: 10.7347309 | N19: 13.03017346 | O19: 9.130592714 | P19: 5.713490658 | Q19: 4.975240738 | R19: 6.149153116 | S19: 10.15809418 | T19: 4.067554101 | U19: 11.64244202 | V19: 6.102012353 | W19: 6.921602267 | BB19: Limited | BC19: N/A | BD19: N/A | BE19: N/A | BF19: N/A | BG19: N/A | BH19: N/A | BI19: N/A | BJ19: N/A | BK19: N/A | BL19: N/A | BM19: N/A | BN19: N/A | BO19: N/A | BP19: N/A | BQ19: N/A | BR19: N/A | BS19: N/A | BT19: N/A | BU19: N/A | BV19: N/A | BW19: N/A
B20: Unimproved | C20: 46.76502479 | D20: 37.47210418 | E20: 26.49991825 | F20: 13.02473189 | G20: 9.542996101 | H20: 49.94623816 | I20: 39.18301621 | J20: 35.00926501 | K20: 26.11501093 | L20: 13.21281259 | M20: 26.08843176 | N20: 9.976758156 | O20: 8.96194121 | P20: 7.126714901 | Q20: 12.53363575 | R20: 17.81304446 | S20: 46.4123811 | T20: 47.06824551 | U20: 8.668240394 | V20: 11.45632304 | W20: 9.900267258 | BB20: Unimproved | BC20: N/A | BD20: N/A | BE20: N/A | BF20: N/A | BG20: N/A | BH20: N/A | BI20: N/A | BJ20: N/A | BK20: N/A | BL20: N/A | BM20: N/A | BN20: N/A | BO20: N/A | BP20: N/A | BQ20: N/A | BR20: N/A | BS20: N/A | BT20: N/A | BU20: N/A | BV20: N/A | BW20: N/A
B21: Surface water | C21: 29.42797014 | D21: 29.49255982 | E21: 25.24983411 | F21: 16.27099554 | G21: 4.571852667 | H21: 27.66544662 | I21: 33.76223887 | J21: 29.93440344 | K21: 29.87081207 | L21: 21.95458445 | M21: 7.886408879 | N21: 4.823430923 | O21: 3.479376096 | P21: 1.745100277 | Q21: 0.2387713927 | R21: 38.37415345 | S21: 19.38716777 | T21: 9.131883898 | U21: 31.44694457 | V21: 32.25500062 | W21: 14.1650188 | BB21: Surface water | BC21: N/A | BD21: N/A | BE21: N/A | BF21: N/A | BG21: N/A | BH21: N/A | BI21: N/A | BJ21: N/A | BK21: N/A | BL21: N/A | BM21: N/A | BN21: N/A | BO21: N/A | BP21: N/A | BQ21: N/A | BR21: N/A | BS21: N/A | BT21: N/A | BU21: N/A | BV21: N/A | BW21: N/A
A22: Improved water point at more than 30 minutes | B22: Yes | C22: 25.54965364 | D22: 16.05427128 | E22: 16.60422234 | F22: 13.05672992 | G22: 7.388507335 | H22: 30.28280105 | I22: 17.98772166 | J22: 16.01232865 | K22: 15.58837421 | L22: 10.90367608 | M22: 16.258546 | N22: 15.29366476 | O22: 10.42796949 | P22: 6.269729468 | Q22: 5.703746458 | R22: 14.03506012 | S22: 29.70163798 | T22: 9.286680636 | U22: 19.44139263 | V22: 10.84056821 | W22: 9.115201609 | BA22: Improved water point at more than 30 minutes | BB22: Yes | BC22: N/A | BD22: N/A | BE22: N/A | BF22: N/A | BG22: N/A | BH22: N/A | BI22: N/A | BJ22: N/A | BK22: N/A | BL22: N/A | BM22: N/A | BN22: N/A | BO22: N/A | BP22: N/A | BQ22: N/A | BR22: N/A | BS22: N/A | BT22: N/A | BU22: N/A | BV22: N/A | BW22: N/A
B23: No | C23: 74.45034636 | D23: 83.94572872 | E23: 83.39577766 | F23: 86.94327008 | G23: 92.61149266 | H23: 69.71719895 | I23: 82.01227834 | J23: 83.98767135 | K23: 84.41162579 | L23: 89.09632392 | M23: 83.741454 | N23: 84.70633524 | O23: 89.57203051 | P23: 93.73027053 | Q23: 94.29625354 | R23: 85.96493988 | S23: 70.29836202 | T23: 90.71331936 | U23: 80.55860737 | V23: 89.15943179 | W23: 90.88479839 | BB23: No | BC23: N/A | BD23: N/A | BE23: N/A | BF23: N/A | BG23: N/A | BH23: N/A | BI23: N/A | BJ23: N/A | BK23: N/A | BL23: N/A | BM23: N/A | BN23: N/A | BO23: N/A | BP23: N/A | BQ23: N/A | BR23: N/A | BS23: N/A | BT23: N/A | BU23: N/A | BV23: N/A | BW23: N/A
A24: Manually calculated ratios | B24: Improved wells
B25: Improved springs | C25: =C64/(C64+C65)*100 -> 12.32849524 | D25: 14.68669912 | E25: 25.9686044 | F25: 25.92343301 | G25: 45.2862893 | H25: 12.46214487 | I25: 13.72893628 | J25: 17.0842436 | K25: 25.86551329 | L25: 30.12424665 | M25: 19.45783416 | N25: 33.40194454 | O25: 43.0579661 | P25: 27.38512171 | Q25: 74.82099883 | R25: 19.30328131 | S25: 7.209917992 | T25: 9.970482682 | U25: 30.85142166 | V25: 46.27117576 | W25: 48.40543256
B26: Other
C27: NATIONAL wealth index quintile | H27: URBAN wealth index quintile | M27: RURAL wealth index quintile | R27: SUB-REGIONS: | BA27: Raw numbers of respondents: | BB27: Use of drinking water sources | BC27: NATIONAL wealth index quintile | BH27: URBAN wealth index quintile | BM27: RURAL wealth index quintile | BR27: SUB-REGIONS:
A28: Percentage based on weighted population | C28: Poorest | D28: Poor | E28: Middle | F28: Rich | G28: Richest | H28: Poorest | I28: Poor | J28: Middle | K28: Rich | L28: Richest | M28: Poorest | N28: Poor | O28: Middle | P28: Rich | Q28: Richest | R28: North central | S28: North east | T28: North west | U28: South east | V28: South south | W28: South west | BA28: Water data, raw numbers (weighted) | BC28: Poorest | BD28: Poor | BE28: Middle | BF28: Rich | BG28: Richest | BH28: Poorest | BI28: Poor | BJ28: Middle | BK28: Rich | BL28: Richest | BM28: Poorest | BN28: Poor | BO28: Middle | BP28: Rich | BQ28: Richest | BR28: North central | BS28: North east | BT28: North west | BU28: South east | BV28: South south | BW28: South west
A29: Piped water | B29: Yes | C29: 2.353990061 | D29: 4.743046538 | E29: 7.315179572 | F29: 19.15461958 | G29: 29.77587735 | H29: 2.208059087 | I29: 2.985371619 | J29: 4.037113272 | K29: 5.416573656 | L29: 12.2490783 | M29: 17.1221769 | N29: 28.26073597 | O29: 31.08663021 | P29: 33.1525117 | Q29: 36.64324466 | R29: 12.55217055 | S29: 3.317500379 | T29: 12.20580911 | U29: 7.308735177 | V29: 10.27094149 | W29: 24.5621785 | BA29: Piped water | BB29: Yes | BC29: N/A | BD29: N/A | BE29: N/A | BF29: N/A | BG29: N/A | BH29: N/A | BI29: N/A | BJ29: N/A | BK29: N/A | BL29: N/A | BM29: N/A | BN29: N/A | BO29: N/A | BP29: N/A | BQ29: N/A | BR29: N/A | BS29: N/A | BT29: N/A | BU29: N/A | BV29: N/A | BW29: N/A
B30: No | C30: 97.64600994 | D30: 95.25695346 | E30: 92.68482043 | F30: 80.84538042 | G30: 70.22412265 | H30: 97.79194091 | I30: 97.01462838 | J30: 95.96288673 | K30: 94.58342634 | L30: 87.7509217 | M30: 82.8778231 | N30: 71.73926403 | O30: 68.91336979 | P30: 66.8474883 | Q30: 63.35675534 | R30: 87.44782945 | S30: 96.68249962 | T30: 87.79419089 | U30: 92.69126482 | V30: 89.72905851 | W30: 75.4378215 | BB30: No | BC30: N/A | BD30: N/A | BE30: N/A | BF30: N/A | BG30: N/A | BH30: N/A | BI30: N/A | BJ30: N/A | BK30: N/A | BL30: N/A | BM30: N/A | BN30: N/A | BO30: N/A | BP30: N/A | BQ30: N/A | BR30: N/A | BS30: N/A | BT30: N/A | BU30: N/A | BV30: N/A | BW30: N/A
A31: Piped water on premises | B31: Yes | C31: 0.555316075 | D31: 1.077533453 | E31: 1.452213195 | F31: 6.38273286 | G31: 13.70287672 | H31: 0.3444141891 | I31: 0.6380604775 | J31: 0.6354044554 | K31: 0.8125132048 | L31: 2.974475632 | M31: 5.134530127 | N31: 10.56870798 | O31: 13.09219378 | P31: 14.54214019 | Q31: 20.25783029 | R31: 7.495119832 | S31: 1.797578914 | T31: 5.763395332 | U31: 2.878510259 | V31: 1.971175916 | W31: 6.393117937 | BA31: Piped water on premises | BB31: Yes | BC31: N/A | BD31: N/A | BE31: N/A | BF31: N/A | BG31: N/A | BH31: N/A | BI31: N/A | BJ31: N/A | BK31: N/A | BL31: N/A | BM31: N/A | BN31: N/A | BO31: N/A | BP31: N/A | BQ31: N/A | BR31: N/A | BS31: N/A | BT31: N/A | BU31: N/A | BV31: N/A | BW31: N/A
B32: No | C32: 99.44468392 | D32: 98.92246655 | E32: 98.5477868 | F32: 93.61726714 | G32: 86.29712328 | H32: 99.65558581 | I32: 99.36193952 | J32: 99.36459554 | K32: 99.1874868 | L32: 97.02552437 | M32: 94.86546987 | N32: 89.43129202 | O32: 86.90780622 | P32: 85.45785981 | Q32: 79.74216971 | R32: 92.50488017 | S32: 98.20242109 | T32: 94.23660467 | U32: 97.12148974 | V32: 98.02882408 | W32: 93.60688206 | BB32: No | BC32: N/A | BD32: N/A | BE32: N/A | BF32: N/A | BG32: N/A | BH32: N/A | BI32: N/A | BJ32: N/A | BK32: N/A | BL32: N/A | BM32: N/A | BN32: N/A | BO32: N/A | BP32: N/A | BQ32: N/A | BR32: N/A | BS32: N/A | BT32: N/A | BU32: N/A | BV32: N/A | BW32: N/A
A33: Piped water into dwelling | B33: Yes | C33: N/A | D33: N/A | E33: N/A | F33: N/A | G33: N/A | H33: N/A | I33: N/A | J33: N/A | K33: N/A | L33: N/A | M33: N/A | N33: N/A | O33: N/A | P33: N/A | Q33: N/A | R33: N/A | S33: N/A | T33: N/A | U33: N/A | V33: N/A | W33: N/A | BA33: Piped water into dwelling | BB33: Yes | BC33: N/A | BD33: N/A | BE33: N/A | BF33: N/A | BG33: N/A | BH33: N/A | BI33: N/A | BJ33: N/A | BK33: N/A | BL33: N/A | BM33: N/A | BN33: N/A | BO33: N/A | BP33: N/A | BQ33: N/A | BR33: N/A | BS33: N/A | BT33: N/A | BU33: N/A | BV33: N/A | BW33: N/A
B34: No | C34: N/A | D34: N/A | E34: N/A | F34: N/A | G34: N/A | H34: N/A | I34: N/A | J34: N/A | K34: N/A | L34: N/A | M34: N/A | N34: N/A | O34: N/A | P34: N/A | Q34: N/A | R34: N/A | S34: N/A | T34: N/A | U34: N/A | V34: N/A | W34: N/A | BB34: No | BC34: N/A | BD34: N/A | BE34: N/A | BF34: N/A | BG34: N/A | BH34: N/A | BI34: N/A | BJ34: N/A | BK34: N/A | BL34: N/A | BM34: N/A | BN34: N/A | BO34: N/A | BP34: N/A | BQ34: N/A | BR34: N/A | BS34: N/A | BT34: N/A | BU34: N/A | BV34: N/A | BW34: N/A
A35: Water source on premises | B35: Yes | C35: 7.860500412 | D35: 13.39075654 | E35: 18.72015356 | F35: 20.11414942 | G35: 29.71415981 | H35: 7.002537054 | I35: 9.917602884 | J35: 15.3191525 | K35: 16.20758386 | L35: 16.600119 | M35: 24.47409322 | N35: 24.99175177 | O35: 29.09274475 | P35: 26.80962249 | Q35: 40.75441346 | R35: 16.63167109 | S35: 15.54636 | T35: 26.68871952 | U35: 12.58669827 | V35: 11.76700061 | W35: 16.89742432 | BA35: Water source on premises | BB35: Yes | BC35: N/A | BD35: N/A | BE35: N/A | BF35: N/A | BG35: N/A | BH35: N/A | BI35: N/A | BJ35: N/A | BK35: N/A | BL35: N/A | BM35: N/A | BN35: N/A | BO35: N/A | BP35: N/A | BQ35: N/A | BR35: N/A | BS35: N/A | BT35: N/A | BU35: N/A | BV35: N/A | BW35: N/A
B36: No | C36: 92.13949959 | D36: 86.60924346 | E36: 81.27984644 | F36: 79.88585058 | G36: 70.28584019 | H36: 92.99746295 | I36: 90.08239712 | J36: 84.6808475 | K36: 83.79241614 | L36: 83.399881 | M36: 75.52590678 | N36: 75.00824823 | O36: 70.90725525 | P36: 73.19037751 | Q36: 59.24558654 | R36: 83.36832891 | S36: 84.45364 | T36: 73.31128048 | U36: 87.41330173 | V36: 88.23299939 | W36: 83.10257568 | BB36: No | BC36: N/A | BD36: N/A | BE36: N/A | BF36: N/A | BG36: N/A | BH36: N/A | BI36: N/A | BJ36: N/A | BK36: N/A | BL36: N/A | BM36: N/A | BN36: N/A | BO36: N/A | BP36: N/A | BQ36: N/A | BR36: N/A | BS36: N/A | BT36: N/A | BU36: N/A | BV36: N/A | BW36: N/A
A37: Improved Water source on premises | B37: Yes | C37: 12.40055082 | D37: 19.83064889 | E37: 23.47045221 | F37: 23.76175326 | G37: 32.61002553 | H37: 9.432380401 | I37: 16.60410607 | J37: 20.88204061 | K37: 21.40522365 | L37: 20.21503811 | M37: 27.20753186 | N37: 27.09818057 | O37: 29.43815898 | P37: 28.26326692 | Q37: 45.23646249 | R37: 32.51171583 | S37: 30.82543094 | T37: 33.72234779 | U37: 18.47658906 | V37: 17.22161307 | W37: 20.72131947 | BA37: Improved water source on premises | BB37: Yes | BC37: N/A | BD37: N/A | BE37: N/A | BF37: N/A | BG37: N/A | BH37: N/A | BI37: N/A | BJ37: N/A | BK37: N/A | BL37: N/A | BM37: N/A | BN37: N/A | BO37: N/A | BP37: N/A | BQ37: N/A | BR37: N/A | BS37: N/A | BT37: N/A | BU37: N/A | BV37: N/A | BW37: N/A
B38: No | C38: 87.59944918 | D38: 80.16935111 | E38: 76.52954779 | F38: 76.23824674 | G38: 67.38997447 | H38: 90.5676196 | I38: 83.39589393 | J38: 79.11795939 | K38: 78.59477635 | L38: 79.78496189 | M38: 72.79246814 | N38: 72.90181943 | O38: 70.56184102 | P38: 71.73673308 | Q38: 54.76353751 | R38: 67.48828417 | S38: 69.17456906 | T38: 66.27765221 | U38: 81.52341094 | V38: 82.77838693 | W38: 79.27868053 | BB38: No | BC38: N/A | BD38: N/A | BE38: N/A | BF38: N/A | BG38: N/A | BH38: N/A | BI38: N/A | BJ38: N/A | BK38: N/A | BL38: N/A | BM38: N/A | BN38: N/A | BO38: N/A | BP38: N/A | BQ38: N/A | BR38: N/A | BS38: N/A | BT38: N/A | BU38: N/A | BV38: N/A | BW38: N/A
A39: Piped water on premises available when needed | B39: Yes | C39: N/A | D39: N/A | E39: N/A | F39: N/A | G39: N/A | H39: N/A | I39: N/A | J39: N/A | K39: N/A | L39: N/A | M39: N/A | N39: N/A | O39: N/A | P39: N/A | Q39: N/A | R39: N/A | S39: N/A | T39: N/A | U39: N/A | V39: N/A | W39: N/A | BA39: Piped water on premises available when needed | BB39: Yes | BC39: N/A | BD39: N/A | BE39: N/A | BF39: N/A | BG39: N/A | BH39: N/A | BI39: N/A | BJ39: N/A | BK39: N/A | BL39: N/A | BM39: N/A | BN39: N/A | BO39: N/A | BP39: N/A | BQ39: N/A | BR39: N/A | BS39: N/A | BT39: N/A | BU39: N/A | BV39: N/A | BW39: N/A
B40: No | C40: N/A | D40: N/A | E40: N/A | F40: N/A | G40: N/A | H40: N/A | I40: N/A | J40: N/A | K40: N/A | L40: N/A | M40: N/A | N40: N/A | O40: N/A | P40: N/A | Q40: N/A | R40: N/A | S40: N/A | T40: N/A | U40: N/A | V40: N/A | W40: N/A | BB40: No | BC40: N/A | BD40: N/A | BE40: N/A | BF40: N/A | BG40: N/A | BH40: N/A | BI40: N/A | BJ40: N/A | BK40: N/A | BL40: N/A | BM40: N/A | BN40: N/A | BO40: N/A | BP40: N/A | BQ40: N/A | BR40: N/A | BS40: N/A | BT40: N/A | BU40: N/A | BV40: N/A | BW40: N/A
A41: Water point at more than 30 minutes | B41: Yes | C41: 30.11600663 | D41: 29.31558059 | E41: 25.2833615 | F41: 17.15260931 | G41: 8.684585249 | H41: 29.63102198 | I41: 32.08688703 | J41: 27.16971926 | K41: 24.94819045 | L41: 17.41555019 | M41: 24.38950586 | N41: 15.88323337 | O41: 11.11472057 | P41: 6.901455758 | Q41: 5.175206673 | R41: 30.85075146 | S41: 39.3864759 | T41: 11.19375592 | U41: 31.33690868 | V41: 21.51303245 | W41: 12.16227196 | BA41: Water point at more than 30 minutes | BB41: Yes | BC41: N/A | BD41: N/A | BE41: N/A | BF41: N/A | BG41: N/A | BH41: N/A | BI41: N/A | BJ41: N/A | BK41: N/A | BL41: N/A | BM41: N/A | BN41: N/A | BO41: N/A | BP41: N/A | BQ41: N/A | BR41: N/A | BS41: N/A | BT41: N/A | BU41: N/A | BV41: N/A | BW41: N/A
B42: No | C42: 69.88399337 | D42: 70.68441941 | E42: 74.7166385 | F42: 82.84739069 | G42: 91.31541475 | H42: 70.36897802 | I42: 67.91311297 | J42: 72.83028074 | K42: 75.05180955 | L42: 82.58444981 | M42: 75.61049414 | N42: 84.11676663 | O42: 88.88527943 | P42: 93.09854424 | Q42: 94.82479333 | R42: 69.14924854 | S42: 60.6135241 | T42: 88.80624408 | U42: 68.66309132 | V42: 78.48696755 | W42: 87.83772804 | BB42: No | BC42: N/A | BD42: N/A | BE42: N/A | BF42: N/A | BG42: N/A | BH42: N/A | BI42: N/A | BJ42: N/A | BK42: N/A | BL42: N/A | BM42: N/A | BN42: N/A | BO42: N/A | BP42: N/A | BQ42: N/A | BR42: N/A | BS42: N/A | BT42: N/A | BU42: N/A | BV42: N/A | BW42: N/A
A43: Water source available when needed | B43: Yes | C43: N/A | D43: N/A | E43: N/A | F43: N/A | G43: N/A | H43: N/A | I43: N/A | J43: N/A | K43: N/A | L43: N/A | M43: N/A | N43: N/A | O43: N/A | P43: N/A | Q43: N/A | R43: N/A | S43: N/A | T43: N/A | U43: N/A | V43: N/A | W43: N/A | BA43: Water source available when needed | BB43: Yes | BC43: N/A | BD43: N/A | BE43: N/A | BF43: N/A | BG43: N/A | BH43: N/A | BI43: N/A | BJ43: N/A | BK43: N/A | BL43: N/A | BM43: N/A | BN43: N/A | BO43: N/A | BP43: N/A | BQ43: N/A | BR43: N/A | BS43: N/A | BT43: N/A | BU43: N/A | BV43: N/A | BW43: N/A
B44: No | C44: N/A | D44: N/A | E44: N/A | F44: N/A | G44: N/A | H44: N/A | I44: N/A | J44: N/A | K44: N/A | L44: N/A | M44: N/A | N44: N/A | O44: N/A | P44: N/A | Q44: N/A | R44: N/A | S44: N/A | T44: N/A | U44: N/A | V44: N/A | W44: N/A | BB44: No | BC44: N/A | BD44: N/A | BE44: N/A | BF44: N/A | BG44: N/A | BH44: N/A | BI44: N/A | BJ44: N/A | BK44: N/A | BL44: N/A | BM44: N/A | BN44: N/A | BO44: N/A | BP44: N/A | BQ44: N/A | BR44: N/A | BS44: N/A | BT44: N/A | BU44: N/A | BV44: N/A | BW44: N/A
A45: Improved water source available when needed | B45: Yes | C45: N/A | D45: N/A | E45: N/A | F45: N/A | G45: N/A | H45: N/A | I45: N/A | J45: N/A | K45: N/A | L45: N/A | M45: N/A | N45: N/A | O45: N/A | P45: N/A | Q45: N/A | R45: N/A | S45: N/A | T45: N/A | U45: N/A | V45: N/A | W45: N/A | BA45: Improved water source available when needed | BB45: Yes | BC45: N/A | BD45: N/A | BE45: N/A | BF45: N/A | BG45: N/A | BH45: N/A | BI45: N/A | BJ45: N/A | BK45: N/A | BL45: N/A | BM45: N/A | BN45: N/A | BO45: N/A | BP45: N/A | BQ45: N/A | BR45: N/A | BS45: N/A | BT45: N/A | BU45: N/A | BV45: N/A | BW45: N/A
B46: No | C46: N/A | D46: N/A | E46: N/A | F46: N/A | G46: N/A | H46: N/A | I46: N/A | J46: N/A | K46: N/A | L46: N/A | M46: N/A | N46: N/A | O46: N/A | P46: N/A | Q46: N/A | R46: N/A | S46: N/A | T46: N/A | U46: N/A | V46: N/A | W46: N/A | BB46: No | BC46: N/A | BD46: N/A | BE46: N/A | BF46: N/A | BG46: N/A | BH46: N/A | BI46: N/A | BJ46: N/A | BK46: N/A | BL46: N/A | BM46: N/A | BN46: N/A | BO46: N/A | BP46: N/A | BQ46: N/A | BR46: N/A | BS46: N/A | BT46: N/A | BU46: N/A | BV46: N/A | BW46: N/A
A47: Microbiological quality at point of collection | B47: Not contaminated (No E. coli in 100 mL) | C47: N/A | D47: N/A | E47: N/A | F47: N/A | G47: N/A | H47: N/A | I47: N/A | J47: N/A | K47: N/A | L47: N/A | M47: N/A | N47: N/A | O47: N/A | P47: N/A | Q47: N/A | R47: N/A | S47: N/A | T47: N/A | U47: N/A | V47: N/A | W47: N/A | BA47: Microbiological quality at point of collection | BB47: Not contaminated (No E. coli in 100 mL) | BC47: N/A | BD47: N/A | BE47: N/A | BF47: N/A | BG47: N/A | BH47: N/A | BI47: N/A | BJ47: N/A | BK47: N/A | BL47: N/A | BM47: N/A | BN47: N/A | BO47: N/A | BP47: N/A | BQ47: N/A | BR47: N/A | BS47: N/A | BT47: N/A | BU47: N/A | BV47: N/A | BW47: N/A
B48: Contaminated (E. coli detected in 100 mL) | C48: N/A | D48: N/A | E48: N/A | F48: N/A | G48: N/A | H48: N/A | I48: N/A | J48: N/A | K48: N/A | L48: N/A | M48: N/A | N48: N/A | O48: N/A | P48: N/A | Q48: N/A | R48: N/A | S48: N/A | T48: N/A | U48: N/A | V48: N/A | W48: N/A | BB48: Contaminated (E. coli detected in 100 mL) | BC48: N/A | BD48: N/A | BE48: N/A | BF48: N/A | BG48: N/A | BH48: N/A | BI48: N/A | BJ48: N/A | BK48: N/A | BL48: N/A | BM48: N/A | BN48: N/A | BO48: N/A | BP48: N/A | BQ48: N/A | BR48: N/A | BS48: N/A | BT48: N/A | BU48: N/A | BV48: N/A | BW48: N/A
B49: Highly contaminated (>100 CFU/100 mL) | C49: N/A | D49: N/A | E49: N/A | F49: N/A | G49: N/A | H49: N/A | I49: N/A | J49: N/A | K49: N/A | L49: N/A | M49: N/A | N49: N/A | O49: N/A | P49: N/A | Q49: N/A | R49: N/A | S49: N/A | T49: N/A | U49: N/A | V49: N/A | W49: N/A | BB49: Highly contaminated (>100 CFU/100 mL) | BC49: N/A | BD49: N/A | BE49: N/A | BF49: N/A | BG49: N/A | BH49: N/A | BI49: N/A | BJ49: N/A | BK49: N/A | BL49: N/A | BM49: N/A | BN49: N/A | BO49: N/A | BP49: N/A | BQ49: N/A | BR49: N/A | BS49: N/A | BT49: N/A | BU49: N/A | BV49: N/A | BW49: N/A
A50: Microbiological quality of improved water sources at point of collection | B50: Not contaminated (No E. coli in 100 mL) | C50: N/A | D50: N/A | E50: N/A | F50: N/A | G50: N/A | H50: N/A | I50: N/A | J50: N/A | K50: N/A | L50: N/A | M50: N/A | N50: N/A | O50: N/A | P50: N/A | Q50: N/A | R50: N/A | S50: N/A | T50: N/A | U50: N/A | V50: N/A | W50: N/A | BA50: Microbiological quality of improved water sources at point of collection | BB50: Not contaminated (No E. coli in 100 mL) | BC50: N/A | BD50: N/A | BE50: N/A | BF50: N/A | BG50: N/A | BH50: N/A | BI50: N/A | BJ50: N/A | BK50: N/A | BL50: N/A | BM50: N/A | BN50: N/A | BO50: N/A | BP50: N/A | BQ50: N/A | BR50: N/A | BS50: N/A | BT50: N/A | BU50: N/A | BV50: N/A | BW50: N/A
B51: Contaminated (E. coli detected in 100 mL) | C51: N/A | D51: N/A | E51: N/A | F51: N/A | G51: N/A | H51: N/A | I51: N/A | J51: N/A | K51: N/A | L51: N/A | M51: N/A | N51: N/A | O51: N/A | P51: N/A | Q51: N/A | R51: N/A | S51: N/A | T51: N/A | U51: N/A | V51: N/A | W51: N/A | BB51: Contaminated (E. coli detected in 100 mL) | BC51: N/A | BD51: N/A | BE51: N/A | BF51: N/A | BG51: N/A | BH51: N/A | BI51: N/A | BJ51: N/A | BK51: N/A | BL51: N/A | BM51: N/A | BN51: N/A | BO51: N/A | BP51: N/A | BQ51: N/A | BR51: N/A | BS51: N/A | BT51: N/A | BU51: N/A | BV51: N/A | BW51: N/A
B52: Highly contaminated (>100 CFU/100 mL) | C52: N/A | D52: N/A | E52: N/A | F52: N/A | G52: N/A | H52: N/A | I52: N/A | J52: N/A | K52: N/A | L52: N/A | M52: N/A | N52: N/A | O52: N/A | P52: N/A | Q52: N/A | R52: N/A | S52: N/A | T52: N/A | U52: N/A | V52: N/A | W52: N/A | BB52: Highly contaminated (>100 CFU/100 mL) | BC52: N/A | BD52: N/A | BE52: N/A | BF52: N/A | BG52: N/A | BH52: N/A | BI52: N/A | BJ52: N/A | BK52: N/A | BL52: N/A | BM52: N/A | BN52: N/A | BO52: N/A | BP52: N/A | BQ52: N/A | BR52: N/A | BS52: N/A | BT52: N/A | BU52: N/A | BV52: N/A | BW52: N/A
A53: Microbiological quality of piped on premises at point of collection | B53: Not contaminated (No E. coli in 100 mL) | C53: N/A | D53: N/A | E53: N/A | F53: N/A | G53: N/A | H53: N/A | I53: N/A | J53: N/A | K53: N/A | L53: N/A | M53: N/A | N53: N/A | O53: N/A | P53: N/A | Q53: N/A | R53: N/A | S53: N/A | T53: N/A | U53: N/A | V53: N/A | W53: N/A | BA53: Microbiological quality of piped on premises at point of collection | BB53: Not contaminated (No E. coli in 100 mL) | BC53: N/A | BD53: N/A | BE53: N/A | BF53: N/A | BG53: N/A | BH53: N/A | BI53: N/A | BJ53: N/A | BK53: N/A | BL53: N/A | BM53: N/A | BN53: N/A | BO53: N/A | BP53: N/A | BQ53: N/A | BR53: N/A | BS53: N/A | BT53: N/A | BU53: N/A | BV53: N/A | BW53: N/A
B54: Contaminated (E. coli detected in 100 mL) | C54: N/A | D54: N/A | E54: N/A | F54: N/A | G54: N/A | H54: N/A | I54: N/A | J54: N/A | K54: N/A | L54: N/A | M54: N/A | N54: N/A | O54: N/A | P54: N/A | Q54: N/A | R54: N/A | S54: N/A | T54: N/A | U54: N/A | V54: N/A | W54: N/A | BB54: Contaminated (E. coli detected in 100 mL) | BC54: N/A | BD54: N/A | BE54: N/A | BF54: N/A | BG54: N/A | BH54: N/A | BI54: N/A | BJ54: N/A | BK54: N/A | BL54: N/A | BM54: N/A | BN54: N/A | BO54: N/A | BP54: N/A | BQ54: N/A | BR54: N/A | BS54: N/A | BT54: N/A | BU54: N/A | BV54: N/A | BW54: N/A
B55: Highly contaminated (>100 CFU/100 mL) | C55: N/A | D55: N/A | E55: N/A | F55: N/A | G55: N/A | H55: N/A | I55: N/A | J55: N/A | K55: N/A | L55: N/A | M55: N/A | N55: N/A | O55: N/A | P55: N/A | Q55: N/A | R55: N/A | S55: N/A | T55: N/A | U55: N/A | V55: N/A | W55: N/A | BB55: Highly contaminated (>100 CFU/100 mL) | BC55: N/A | BD55: N/A | BE55: N/A | BF55: N/A | BG55: N/A | BH55: N/A | BI55: N/A | BJ55: N/A | BK55: N/A | BL55: N/A | BM55: N/A | BN55: N/A | BO55: N/A | BP55: N/A | BQ55: N/A | BR55: N/A | BS55: N/A | BT55: N/A | BU55: N/A | BV55: N/A | BW55: N/A
C56: NATIONAL wealth index quintile | H56: URBAN wealth index quintile | M56: RURAL wealth index quintile | R56: SUB-REGIONS: | BA56: Raw numbers of respondents: | BB56: Use of drinking water sources | BC56: NATIONAL wealth index quintile | BH56: URBAN wealth index quintile | BM56: RURAL wealth index quintile | BR56: SUB-REGIONS:
A57: Percentage based on weighted population | C57: Poorest | D57: Poor | E57: Middle | F57: Rich | G57: Richest | H57: Poorest | I57: Poor | J57: Middle | K57: Rich | L57: Richest | M57: Poorest | N57: Poor | O57: Middle | P57: Rich | Q57: Richest | R57: North central | S57: North east | T57: North west | U57: South east | V57: South south | W57: South west | BA57: Water data, raw numbers (weighted) | BC57: Poorest | BD57: Poor | BE57: Middle | BF57: Rich | BG57: Richest | BH57: Poorest | BI57: Poor | BJ57: Middle | BK57: Rich | BL57: Richest | BM57: Poorest | BN57: Poor | BO57: Middle | BP57: Rich | BQ57: Richest | BR57: North central | BS57: North east | BT57: North west | BU57: South east | BV57: South south | BW57: South west
A58: Main source of drinking water | B58: Piped into dwelling | C58: 0.4295464841 | D58: 0.8277764642 | E58: 1.034798828 | F58: 3.765504558 | G58: 7.28768415 | H58: 0.2226213377 | I58: 0.6115932283 | J58: 0.4007908759 | K58: 0.4722382325 | L58: 1.664994582 | M58: 3.973477026 | N58: 6.559720325 | O58: 7.494205659 | P58: 7.438691693 | Q58: 10.57210898 | R58: 4.659790154 | S58: 1.374743747 | T58: 4.216769687 | U58: 1.520954839 | V58: 0.8911921255 | W58: 2.395695794
B59: Piped into yard or plot | C59: 0.1257695909 | D59: 0.2497569887 | E59: 0.4174143668 | F59: 2.579110155 | G59: 6.244179826 | H59: 0.1217928513 | I59: 0.02646724921 | J59: 0.2346135795 | K59: 0.3402749722 | L59: 1.304305742 | M59: 1.161053101 | N59: 4.00898765 | O59: 5.431314793 | P59: 7.103448499 | Q59: 9.178861126 | R59: 2.832286098 | S59: 0.3791792837 | T59: 1.546625645 | U59: 1.35755542 | V59: 1.059256118 | W59: 3.855392707
B60: Public tap/standpipe | C60: 1.798673986 | D60: 3.665513085 | E60: 5.862966377 | F60: 12.77188672 | G60: 15.91428322 | H60: 1.863644898 | I60: 2.347311141 | J60: 3.401708816 | K60: 4.604060451 | L60: 9.274602664 | M60: 11.98764677 | N60: 17.69202799 | O60: 17.79197456 | P60: 18.37963512 | Q60: 16.29898552 | R60: 5.057050721 | S60: 1.519921464 | T60: 6.436878112 | U60: 4.377581463 | V60: 8.271859837 | W60: 18.06963996
B61: Tubewell/borehole | C61: 12.56188415 | D61: 14.92993907 | E61: 19.64266038 | F61: 28.19292819 | G61: 35.80289241 | H61: 11.67250988 | I61: 14.01407025 | J61: 15.56375732 | K61: 19.75371758 | L61: 34.27290901 | M61: 21.59747835 | N61: 26.37368686 | O61: 29.56432524 | P61: 37.69674257 | Q61: 31.95345578 | R61: 13.95923131 | S61: 15.00911263 | T61: 15.28406407 | U61: 39.33437837 | V61: 33.73250127 | W61: 26.22418034
B62: Protected well | C62: 7.047852514 | D62: 10.92356457 | E62: 17.24607448 | F62: 18.30055933 | G62: 12.00588327 | H62: 6.874480493 | I62: 8.179134539 | J62: 13.3509338 | K62: 16.03280159 | L62: 14.64418005 | M62: 18.24203836 | N62: 22.60903631 | O62: 20.02831827 | P62: 10.42412529 | Q62: 8.874369239 | R62: 14.16225249 | S62: 8.625881331 | T62: 14.57394062 | U62: 4.517492883 | V62: 8.548775128 | W62: 20.92861459
B63: Unprotected well | C63: 41.34603814 | D63: 32.62647029 | E63: 22.5471319 | F63: 8.651025145 | G63: 2.270011931 | H63: 44.07106818 | I63: 34.12919748 | J63: 30.48550929 | K63: 21.79431474 | L63: 8.286792841 | M63: 23.23945693 | N63: 6.080720642 | O63: 4.175448002 | P63: 1.996358705 | Q63: 0.6758266117 | R63: 11.17103586 | S63: 41.19472696 | T63: 42.27870314 | U63: 2.061400999 | V63: 8.990191729 | W63: 4.050324011
B64: Protected spring | C64: 0.7383350931 | D64: 0.7575316911 | E64: 1.178540614 | F64: 0.7369850461 | G64: 0.5179646092 | H64: 0.8257307505 | I64: 0.7544606123 | J64: 0.8707654207 | K64: 1.367756853 | L64: 1.168782712 | M64: 0.2535551691 | N64: 0.4382589818 | O64: 0.2613152277 | P64: 0.1790340659 | Q64: 0.3900076288 | R64: 1.399662748 | S64: 0.3420940731 | T64: 0.3806830009 | U64: 2.618605799 | V64: 1.015970257 | W64: 0.3294874643
B65: Unprotected spring | C65: 5.250514954 | D65: 4.400412139 | E65: 3.359788038 | F65: 2.105944924 | G65: 0.6257912984 | H65: 5.800181232 | I65: 4.740944107 | J65: 4.226126434 | K65: 3.920198726 | L65: 2.711090952 | M65: 1.04954551 | N65: 0.8738172697 | O65: 0.3455764845 | P65: 0.4747299297 | Q65: 0.1312466112 | R65: 5.851243073 | S65: 4.402676581 | T65: 3.437417015 | U65: 5.869190413 | V65: 1.179716886 | W65: 0.3511953576
B66: Rainwater collection | C66: 0.03191572964 | D66: 0.03684577018 | E66: 0.05861084706 | F66: 0.1352377928 | G66: 0.1462108035 | H66: 0.04072023941 | I66: 0.006507249147 | J66: 0.009292384413 | K66: 0.07092687942 | L66: 0.2434309351 | M66: 0.1627771794 | N66: 0.08456666497 | O66: 0.08553552948 | P66: 0.1501653168 | Q66: 0.01186464983 | R66: 0 | S66: 0.0250902321 | T66: 0.04715762454 | U66: 0.2597505561 | V66: 0.2476861846 | W66: 0.03341228205
B67: Tanker-truck | C67: 0.6849981753 | D67: 1.020469565 | E67: 1.697185598 | F67: 2.548491339 | G67: 5.424542323 | H67: 0.3742639056 | I67: 0.7516549384 | J67: 0.8379615837 | K67: 0.8999791228 | L67: 1.6542144 | M67: 5.254872481 | N67: 4.06538169 | O67: 4.018712688 | P67: 6.671287687 | Q67: 6.966876424 | R67: 1.049215247 | S67: 4.289906675 | T67: 0.3207570359 | U67: 5.01306128 | V67: 1.657256716 | W67: 2.857350671
B68: Cart with small tank/drum | C68: 0.3214993133 | D68: 0.6126471524 | E68: 0.9662287496 | F68: 1.378862736 | G68: 1.103405248 | H68: 0.3431621977 | I68: 0.3635457115 | J68: 0.3760697394 | K68: 0.3692382785 | L68: 0.2285532728 | M68: 2.983603281 | N68: 3.10581791 | O68: 1.487306501 | P68: 1.843017285 | Q68: 1.110242745 | R68: 0.4838879071 | S68: 2.469115963 | T68: 0.9603154462 | U68: 0.7731216261 | V68: 0.2497345164 | W68: 0.177048239
B69: Surface water(iver, stream,dam etc) | C69: 29.42797014 | D69: 29.49255982 | E69: 25.24983411 | F69: 16.27099554 | G69: 4.571852667 | H69: 27.66544662 | I69: 33.76223887 | J69: 29.93440344 | K69: 29.87081207 | L69: 21.95458445 | M69: 7.886408879 | N69: 4.823430923 | O69: 3.479376096 | P69: 1.745100277 | Q69: 0.2387713927 | R69: 38.37415345 | S69: 19.38716777 | T69: 9.131883898 | U69: 31.44694457 | V69: 32.25500062 | W69: 14.1650188
B70: Bottled water | C70: 0.06653002807 | D70: 0.01129163375 | E70: 0.1457674015 | F70: 0.2947067014 | G70: 1.438105367 | H70: 0.04938866865 | I70: 0 | J70: 0.01043802645 | K70: 0.1031830411 | L70: 0.3766295885 | M70: 0.4086576405 | N70: 0.2623265398 | O70: 1.395674212 | P70: 1.242037293 | Q70: 1.870820766 | R70: 0.2094254195 | S70: 0.1654057253 | T70: 0.03267934928 | U70: 0.1123127997 | V70: 0.6144441879 | W70: 1.063891893
B71: Other | C71: 0.1684717003 | D71: 0.4452217576 | E71: 0.59299832 | F71: 2.267761818 | G71: 6.647192871 | H71: 0.07498874538 | I71: 0.3128746224 | J71: 0.2976292861 | K71: 0.4004974635 | L71: 2.214928799 | M71: 1.799429322 | N71: 3.022220244 | O71: 4.440916723 | P71: 4.655626266 | Q71: 11.72656253 | R71: 0.7907655218 | S71: 0.8149775535 | T71: 1.352125357 | U71: 0.7376489817 | V71: 1.286414425 | W71: 5.49874789
A108: =A1026 -> Nigeria
A109: =A1034 -> 2007
A110: Use of sanitation facilities
A111: by wealth quintile and sub-national region
A112: Notes:
A113: WHO/UNICEF JMP customised wealth index excludes water,
A114: sanitation and hygiene assets.
A115: Survey used for analysis: | B115: =A1025 -> MICS07
A116: =B1030 -> 
A117: =B1029 -> 
A120: Use of sanitation facilities | C120: NATIONAL wealth index quintile | H120: URBAN wealth index quintile | M120: RURAL wealth index quintile | R120: SUB-REGIONS: | BA120: Raw numbers of respondents: | BB120: Use of sanitation facilities | BC120: NATIONAL wealth index quintile | BH120: URBAN wealth index quintile | BM120: RURAL wealth index quintile | BR120: SUB-REGIONS:
A121: Weighted percentage (used in graphs) | C121: Poorest | D121: Poor | E121: Middle | F121: Rich | G121: Richest | H121: Poorest | I121: Poor | J121: Middle | K121: Rich | L121: Richest | M121: Poorest | N121: Poor | O121: Middle | P121: Rich | Q121: Richest | R121: North central | S121: North east | T121: North west | U121: South east | V121: South south | W121: South west | BA121: Sanitation data, raw numbers (weighted) | BC121: Poorest | BD121: Poor | BE121: Middle | BF121: Rich | BG121: Richest | BH121: Poorest | BI121: Poor | BJ121: Middle | BK121: Rich | BL121: Richest | BM121: Poorest | BN121: Poor | BO121: Middle | BP121: Rich | BQ121: Richest | BR121: North central | BS121: North east | BT121: North west | BU121: South east | BV121: South south | BW121: South west
A122: Sanitation | B122: Improved | C122: 15.94419213 | D122: 25.99151902 | E122: 34.20892603 | F122: 54.7167031 | G122: 83.82690643 | H122: 14.63970241 | I122: 20.96170603 | J122: 25.70351417 | K122: 34.92606139 | L122: 58.85351621 | M122: 41.75723937 | N122: 56.57353046 | O122: 73.07616697 | P122: 84.74545826 | Q122: 94.14070058 | R122: 29.56429766 | S122: 34.50858186 | T122: 34.0956488 | U122: 55.55483519 | V122: 54.35926973 | W122: 55.01161029 | BA122: Sanitation | BB122: Improved | BC122: 3980.280274 | BD122: 6491.841028 | BE122: 8537.235033 | BF122: 13664.97234 | BG122: 20930.58631 | BH122: 2539.514688 | BI122: 3634.424805 | BJ122: 4459.853755 | BK122: 6053.069936 | BL122: 10212.49572 | BM122: 3184.019534 | BN122: 4311.324566 | BO122: 5574.048232 | BP122: 6465.366442 | BQ122: 7170.797316 | BR122: 4686.936561 | BS122: 7524.972977 | BT122: 10619.8438 | BU122: 6353.798138 | BV122: 9465.472907 | BW122: 14953.8906
B123: Not Improved | C123: 84.05580787 | D123: 74.00848098 | E123: 65.79107397 | F123: 45.2832969 | G123: 16.17309357 | H123: 85.36029759 | I123: 79.03829397 | J123: 74.29648583 | K123: 65.07393861 | L123: 41.14648379 | M123: 58.24276063 | N123: 43.42646954 | O123: 26.92383303 | P123: 15.25454174 | Q123: 5.859299416 | R123: 70.43570234 | S123: 65.49141814 | T123: 65.9043512 | U123: 44.44516481 | V123: 45.64073027 | W123: 44.98838971 | BB123: Not Improved | BC123: 20983.54506 | BD123: 18484.92552 | BE123: 16418.92707 | BF123: 11309.06953 | BG123: 4038.23003 | BH123: 14807.24973 | BI123: 13703.97695 | BJ123: 12891.29024 | BK123: 11278.02809 | BL123: 7139.901172 | BM123: 4441.052387 | BN123: 3309.420561 | BO123: 2053.675639 | BP123: 1163.793368 | BQ123: 446.30907 | BR123: 11166.43028 | BS123: 14281.11864 | BT123: 20527.36758 | BU123: 5083.186809 | BV123: 7947.330748 | BW123: 12229.26314
A124: Sanitation ladder | B124: Basic | C124: 13.93548761 | D124: 21.60026082 | E124: 24.26214636 | F124: 26.56512527 | G124: 40.10522102 | H124: 13.08053723 | I124: 18.04279154 | J124: 21.20287827 | K124: 24.92375149 | L124: 35.37489669 | M124: 26.282353 | N124: 24.14345475 | O124: 24.81264419 | P124: 25.47932224 | Q124: 57.26884729 | R124: 15.20186272 | S124: 31.69316908 | T124: 29.09072076 | U124: 39.10053006 | V124: 27.35382356 | W124: 14.56775928 | BA124: Sanitation ladder | BB124: Basic | BC124: 3478.830786 | BD124: 5395.046718 | BE124: 6054.900574 | BF124: 6634.385507 | BG124: 10013.79898 | BH124: 2269.049978 | BI124: 3128.331684 | BJ124: 3678.941939 | BK124: 4319.559803 | BL124: 6138.392472 | BM124: 2004.048319 | BN124: 1839.911151 | BO124: 1892.639984 | BP124: 1943.858212 | BQ124: 4362.229024 | BR124: 2410.007063 | BS124: 6911.041487 | BT124: 9060.948288 | BU124: 4471.921737 | BV124: 4763.067588 | BW124: 3959.976403
B125: Limited | C125: 2.008704521 | D125: 4.391258204 | E125: 9.946779673 | F125: 28.15157783 | G125: 43.72168541 | H125: 1.559165176 | I125: 2.91891449 | J125: 4.500635902 | K125: 10.0023099 | L125: 23.47861953 | M125: 15.47488636 | N125: 32.43007572 | O125: 48.26352278 | P125: 59.26613602 | Q125: 36.8718533 | R125: 14.36243494 | S125: 2.815412779 | T125: 5.004928039 | U125: 16.45430513 | V125: 27.00544618 | W125: 40.44385101 | BB125: Limited | BC125: 501.449488 | BD125: 1096.79431 | BE125: 2482.334459 | BF125: 7030.586835 | BG125: 10916.78733 | BH125: 270.46471 | BI125: 506.093121 | BJ125: 780.911816 | BK125: 1733.510133 | BL125: 4074.103244 | BM125: 1179.971215 | BN125: 2471.413415 | BO125: 3681.408248 | BP125: 4521.50823 | BQ125: 2808.568292 | BR125: 2276.929498 | BS125: 613.93149 | BT125: 1558.895516 | BU125: 1881.876401 | BV125: 4702.405319 | BW125: 10993.9142
B126: Unimproved | C126: 41.8296389 | D126: 38.37779687 | E126: 35.80664237 | F126: 21.6602584 | G126: 8.900813268 | H126: 42.65326217 | I126: 40.4026624 | J126: 38.18626427 | K126: 34.97328921 | L126: 18.97896499 | M126: 32.44816102 | N126: 21.77802298 | O126: 14.67395014 | P126: 8.38682421 | Q126: 4.17766775 | R126: 14.42888896 | S126: 43.52830388 | T126: 52.06019926 | U126: 21.30798111 | V126: 27.74757079 | W126: 4.901700231 | BB126: Unimproved | BC126: 10442.27799 | BD126: 9585.532731 | BE126: 8935.963713 | BF126: 5409.442001 | BG126: 2222.427718 | BH126: 7398.960905 | BI126: 7005.175925 | BJ126: 6625.7537 | BK126: 6061.255037 | BL126: 3293.305331 | BM126: 2474.195615 | BN126: 1659.647625 | BO126: 1119.288398 | BP126: 639.844222 | BQ126: 318.217397 | BR126: 2287.464697 | BS126: 9491.821825 | BT126: 16215.30031 | BU126: 2436.990592 | BV126: 4831.63002 | BW126: 1332.43671
B127: Open defecation | C127: 42.22616897 | D127: 35.6306841 | E127: 29.9844316 | F127: 23.62303851 | G127: 7.2722803 | H127: 42.70703542 | I127: 38.63563157 | J127: 36.11022156 | K127: 30.1006494 | L127: 22.16751879 | M127: 25.79459961 | N127: 21.64844656 | O127: 12.24988289 | P127: 6.867717534 | Q127: 1.681631666 | R127: 56.00681339 | S127: 21.96311426 | T127: 13.84415194 | U127: 23.1371837 | V127: 17.89315948 | W127: 40.08668948 | BB127: Open defecation | BC127: 10541.26706 | BD127: 8899.392788 | BE127: 7482.963354 | BF127: 5899.627528 | BG127: 1815.802312 | BH127: 7408.288824 | BI127: 6698.80102 | BJ127: 6265.536539 | BK127: 5216.773054 | BL127: 3846.595841 | BM127: 1966.856772 | BN127: 1649.772936 | BO127: 934.387241 | BP127: 523.949146 | BQ127: 128.091673 | BR127: 8878.965581 | BS127: 4789.296817 | BT127: 4312.06727 | BU127: 2646.196217 | BV127: 3115.700728 | BW127: 10896.82643
A128: Shared among Improved Sanitation | B128: Yes | C128: 12.59834618 | D128: 16.89496562 | E128: 29.07656225 | F128: 51.44969678 | G128: 52.15710238 | H128: 10.65025185 | I128: 13.92498533 | J128: 17.5098077 | K128: 28.63852807 | L128: 39.89331655 | M128: 37.0591701 | N128: 57.32376158 | O128: 66.045504 | P128: 69.93429175 | Q128: 39.16675048 | R128: 48.58033533 | S128: 8.158587305 | T128: 14.67908139 | U128: 29.61813328 | V128: 49.67956028 | W128: 73.51875503 | BA128: Shared among improved sanitation facilities | BB128: Yes | BC128: N/A | BD128: N/A | BE128: N/A | BF128: N/A | BG128: N/A | BH128: N/A | BI128: N/A | BJ128: N/A | BK128: N/A | BL128: N/A | BM128: N/A | BN128: N/A | BO128: N/A | BP128: N/A | BQ128: N/A | BR128: N/A | BS128: N/A | BT128: N/A | BU128: N/A | BV128: N/A | BW128: N/A
B129: No | C129: 87.40165382 | D129: 83.10503438 | E129: 70.92343775 | F129: 48.55030322 | G129: 47.84289762 | H129: 89.34974815 | I129: 86.07501467 | J129: 82.4901923 | K129: 71.36147193 | L129: 60.10668345 | M129: 62.9408299 | N129: 42.67623842 | O129: 33.954496 | P129: 30.06570825 | Q129: 60.83324952 | R129: 51.41966467 | S129: 91.8414127 | T129: 85.32091861 | U129: 70.38186672 | V129: 50.32043972 | W129: 26.48124497 | BB129: No | BC129: N/A | BD129: N/A | BE129: N/A | BF129: N/A | BG129: N/A | BH129: N/A | BI129: N/A | BJ129: N/A | BK129: N/A | BL129: N/A | BM129: N/A | BN129: N/A | BO129: N/A | BP129: N/A | BQ129: N/A | BR129: N/A | BS129: N/A | BT129: N/A | BU129: N/A | BV129: N/A | BW129: N/A
A130: Manually calculated ratios | B130: Improved latrines | C130: =C159/(C159+C160)*100 -> 25.54151436 | D130: =D159/(D159+D160)*100 -> 39.25262403 | E130: 46.16102536 | F130: 66.51083052 | G130: 80.04960866 | H130: 23.77140451 | I130: 32.92917193 | J130: 39.69970075 | K130: 48.07416387 | L130: 70.15970449 | M130: 50.27325359 | N130: 65.4163546 | O130: 73.71805533 | P130: 84.80553609 | Q130: 81.10182425 | R130: 53.04902705 | S130: 38.07827269 | T130: 35.59200685 | U130: 66.66270983 | V130: 64.70086802 | W130: 86.82795974
B131: Other
B132: Other
C133: NATIONAL wealth index quintile | H133: URBAN wealth index quintile | M133: RURAL wealth index quintile | R133: SUB-REGIONS: | BA133: Raw numbers of respondents: | BB133: Use of sanitation facilities | BC133: NATIONAL wealth index quintile | BH133: URBAN wealth index quintile | BM133: RURAL wealth index quintile | BR133: SUB-REGIONS:
A134: Percentage based on weighted population | C134: Poorest | D134: Poor | E134: Middle | F134: Rich | G134: Richest | H134: Poorest | I134: Poor | J134: Middle | K134: Rich | L134: Richest | M134: Poorest | N134: Poor | O134: Middle | P134: Rich | Q134: Richest | R134: North central | S134: North east | T134: North west | U134: South east | V134: South south | W134: South west | BA134: Sanitation data, raw numbers (weighted) | BC134: Poorest | BD134: Poor | BE134: Middle | BF134: Rich | BG134: Richest | BH134: Poorest | BI134: Poor | BJ134: Middle | BK134: Rich | BL134: Richest | BM134: Poorest | BN134: Poor | BO134: Middle | BP134: Rich | BQ134: Richest | BR134: North central | BS134: North east | BT134: North west | BU134: South east | BV134: South south | BW134: South west
A135: Sanitation type | B135: Sewer connection | C135: 0.06354103103 | D135: 0.2145178596 | E135: 0.2026846828 | F135: 3.048116416 | G135: 16.01322086 | H135: 0.09144225182 | I135: 0 | J135: 0.2029607328 | K135: 0.2879979498 | L135: 4.869267032 | M135: 0.5655521475 | N135: 3.297810566 | O135: 7.985606549 | P135: 12.1963525 | Q135: 27.56436528 | R135: 4.193354697 | S135: 1.044875661 | T135: 1.582165006 | U135: 7.567325252 | V135: 2.976036779 | W135: 7.763829744 | BA135: Sanitation type | BB135: Sewer connection | BC135: N/A | BD135: N/A | BE135: N/A | BF135: N/A | BG135: N/A | BH135: N/A | BI135: N/A | BJ135: N/A | BK135: N/A | BL135: N/A | BM135: N/A | BN135: N/A | BO135: N/A | BP135: N/A | BQ135: N/A | BR135: N/A | BS135: N/A | BT135: N/A | BU135: N/A | BV135: N/A | BW135: N/A
B136: Septic tank connection | C136: 0.06434677293 | D136: 0.0462821878 | E136: 0.8306418478 | F136: 4.865998865 | G136: 25.63370873 | H136: 0.08108599772 | I136: 0.04914684827 | J136: 0.1435666836 | K136: 0.9458328015 | L136: 8.165767814 | M136: 0.6624006504 | N136: 3.636249046 | O136: 13.38085061 | P136: 23.41743991 | Q136: 40.53227556 | R136: 2.324040399 | S136: 0.4089175748 | T136: 0.1839479152 | U136: 11.45973646 | V136: 13.47453827 | W136: 13.53317704 | BB136: Septic tank connection | BC136: N/A | BD136: N/A | BE136: N/A | BF136: N/A | BG136: N/A | BH136: N/A | BI136: N/A | BJ136: N/A | BK136: N/A | BL136: N/A | BM136: N/A | BN136: N/A | BO136: N/A | BP136: N/A | BQ136: N/A | BR136: N/A | BS136: N/A | BT136: N/A | BU136: N/A | BV136: N/A | BW136: N/A
B137: Improved latrines | C137: 15.81630433 | D137: 25.73071897 | E137: 33.1755995 | F137: 46.80258782 | G137: 42.17997684 | H137: 14.46717416 | I137: 20.91255918 | J137: 25.35698675 | K137: 33.69223064 | L137: 45.81848137 | M137: 40.52928657 | N137: 49.63947085 | O137: 51.70970981 | P137: 49.13166585 | Q137: 26.04405974 | R137: 23.04690256 | S137: 33.05478862 | T137: 32.32953588 | U137: 36.52777348 | V137: 37.90869468 | W137: 33.71460351 | BB137: Improved latrines | BC137: N/A | BD137: N/A | BE137: N/A | BF137: N/A | BG137: N/A | BH137: N/A | BI137: N/A | BJ137: N/A | BK137: N/A | BL137: N/A | BM137: N/A | BN137: N/A | BO137: N/A | BP137: N/A | BQ137: N/A | BR137: N/A | BS137: N/A | BT137: N/A | BU137: N/A | BV137: N/A | BW137: N/A
B138: Unimproved facilities | C138: 41.8296389 | D138: 38.37779687 | E138: 35.80664237 | F138: 21.6602584 | G138: 8.900813268 | H138: 42.65326217 | I138: 40.4026624 | J138: 38.18626427 | K138: 34.97328921 | L138: 18.97896499 | M138: 32.44816102 | N138: 21.77802298 | O138: 14.67395014 | P138: 8.38682421 | Q138: 4.17766775 | R138: 14.42888896 | S138: 43.52830388 | T138: 52.06019926 | U138: 21.30798111 | V138: 27.74757079 | W138: 4.901700231 | BB138: Unimproved facilities | BC138: N/A | BD138: N/A | BE138: N/A | BF138: N/A | BG138: N/A | BH138: N/A | BI138: N/A | BJ138: N/A | BK138: N/A | BL138: N/A | BM138: N/A | BN138: N/A | BO138: N/A | BP138: N/A | BQ138: N/A | BR138: N/A | BS138: N/A | BT138: N/A | BU138: N/A | BV138: N/A | BW138: N/A
B139: Open defecation | C139: 42.22616897 | D139: 35.6306841 | E139: 29.9844316 | F139: 23.62303851 | G139: 7.2722803 | H139: 42.70703542 | I139: 38.63563157 | J139: 36.11022156 | K139: 30.1006494 | L139: 22.16751879 | M139: 25.79459961 | N139: 21.64844656 | O139: 12.24988289 | P139: 6.867717534 | Q139: 1.681631666 | R139: 56.00681339 | S139: 21.96311426 | T139: 13.84415194 | U139: 23.1371837 | V139: 17.89315948 | W139: 40.08668948 | BB139: Open defecation | BC139: N/A | BD139: N/A | BE139: N/A | BF139: N/A | BG139: N/A | BH139: N/A | BI139: N/A | BJ139: N/A | BK139: N/A | BL139: N/A | BM139: N/A | BN139: N/A | BO139: N/A | BP139: N/A | BQ139: N/A | BR139: N/A | BS139: N/A | BT139: N/A | BU139: N/A | BV139: N/A | BW139: N/A
A140: Septic tank emptying practices | B140: Not emptied/treated and disposed in situ | C140: N/A | D140: N/A | E140: N/A | F140: N/A | G140: N/A | H140: N/A | I140: N/A | J140: N/A | K140: N/A | L140: N/A | M140: N/A | N140: N/A | O140: N/A | P140: N/A | Q140: N/A | R140: N/A | S140: N/A | T140: N/A | U140: N/A | V140: N/A | W140: N/A | BA140: Septic tank emptying practices | BB140: Not emptied/treated and disposed in situ | BC140: N/A | BD140: N/A | BE140: N/A | BF140: N/A | BG140: N/A | BH140: N/A | BI140: N/A | BJ140: N/A | BK140: N/A | BL140: N/A | BM140: N/A | BN140: N/A | BO140: N/A | BP140: N/A | BQ140: N/A | BR140: N/A | BS140: N/A | BT140: N/A | BU140: N/A | BV140: N/A | BW140: N/A
B141: Emptied and buried on site | C141: N/A | D141: N/A | E141: N/A | F141: N/A | G141: N/A | H141: N/A | I141: N/A | J141: N/A | K141: N/A | L141: N/A | M141: N/A | N141: N/A | O141: N/A | P141: N/A | Q141: N/A | R141: N/A | S141: N/A | T141: N/A | U141: N/A | V141: N/A | W141: N/A | BB141: Emptied and buried on site | BC141: N/A | BD141: N/A | BE141: N/A | BF141: N/A | BG141: N/A | BH141: N/A | BI141: N/A | BJ141: N/A | BK141: N/A | BL141: N/A | BM141: N/A | BN141: N/A | BO141: N/A | BP141: N/A | BQ141: N/A | BR141: N/A | BS141: N/A | BT141: N/A | BU141: N/A | BV141: N/A | BW141: N/A
B142: Emptied and discharged locally | C142: N/A | D142: N/A | E142: N/A | F142: N/A | G142: N/A | H142: N/A | I142: N/A | J142: N/A | K142: N/A | L142: N/A | M142: N/A | N142: N/A | O142: N/A | P142: N/A | Q142: N/A | R142: N/A | S142: N/A | T142: N/A | U142: N/A | V142: N/A | W142: N/A | BB142: Emptied and discharged locally | BC142: N/A | BD142: N/A | BE142: N/A | BF142: N/A | BG142: N/A | BH142: N/A | BI142: N/A | BJ142: N/A | BK142: N/A | BL142: N/A | BM142: N/A | BN142: N/A | BO142: N/A | BP142: N/A | BQ142: N/A | BR142: N/A | BS142: N/A | BT142: N/A | BU142: N/A | BV142: N/A | BW142: N/A
B143: Emptied and removed offsite | C143: N/A | D143: N/A | E143: N/A | F143: N/A | G143: N/A | H143: N/A | I143: N/A | J143: N/A | K143: N/A | L143: N/A | M143: N/A | N143: N/A | O143: N/A | P143: N/A | Q143: N/A | R143: N/A | S143: N/A | T143: N/A | U143: N/A | V143: N/A | W143: N/A | BB143: Emptied and removed offsite | BC143: N/A | BD143: N/A | BE143: N/A | BF143: N/A | BG143: N/A | BH143: N/A | BI143: N/A | BJ143: N/A | BK143: N/A | BL143: N/A | BM143: N/A | BN143: N/A | BO143: N/A | BP143: N/A | BQ143: N/A | BR143: N/A | BS143: N/A | BT143: N/A | BU143: N/A | BV143: N/A | BW143: N/A
A144: Latrine emptying practices | B144: Not emptied/treated and disposed in situ | C144: N/A | D144: N/A | E144: N/A | F144: N/A | G144: N/A | H144: N/A | I144: N/A | J144: N/A | K144: N/A | L144: N/A | M144: N/A | N144: N/A | O144: N/A | P144: N/A | Q144: N/A | R144: N/A | S144: N/A | T144: N/A | U144: N/A | V144: N/A | W144: N/A | BA144: Latrine emptying practices | BB144: Not emptied/treated and disposed in situ | BC144: N/A | BD144: N/A | BE144: N/A | BF144: N/A | BG144: N/A | BH144: N/A | BI144: N/A | BJ144: N/A | BK144: N/A | BL144: N/A | BM144: N/A | BN144: N/A | BO144: N/A | BP144: N/A | BQ144: N/A | BR144: N/A | BS144: N/A | BT144: N/A | BU144: N/A | BV144: N/A | BW144: N/A
B145: Emptied and buried on site | C145: N/A | D145: N/A | E145: N/A | F145: N/A | G145: N/A | H145: N/A | I145: N/A | J145: N/A | K145: N/A | L145: N/A | M145: N/A | N145: N/A | O145: N/A | P145: N/A | Q145: N/A | R145: N/A | S145: N/A | T145: N/A | U145: N/A | V145: N/A | W145: N/A | BB145: Emptied and buried on site | BC145: N/A | BD145: N/A | BE145: N/A | BF145: N/A | BG145: N/A | BH145: N/A | BI145: N/A | BJ145: N/A | BK145: N/A | BL145: N/A | BM145: N/A | BN145: N/A | BO145: N/A | BP145: N/A | BQ145: N/A | BR145: N/A | BS145: N/A | BT145: N/A | BU145: N/A | BV145: N/A | BW145: N/A
B146: Emptied and discharged locally | C146: N/A | D146: N/A | E146: N/A | F146: N/A | G146: N/A | H146: N/A | I146: N/A | J146: N/A | K146: N/A | L146: N/A | M146: N/A | N146: N/A | O146: N/A | P146: N/A | Q146: N/A | R146: N/A | S146: N/A | T146: N/A | U146: N/A | V146: N/A | W146: N/A | BB146: Emptied and discharged locally | BC146: N/A | BD146: N/A | BE146: N/A | BF146: N/A | BG146: N/A | BH146: N/A | BI146: N/A | BJ146: N/A | BK146: N/A | BL146: N/A | BM146: N/A | BN146: N/A | BO146: N/A | BP146: N/A | BQ146: N/A | BR146: N/A | BS146: N/A | BT146: N/A | BU146: N/A | BV146: N/A | BW146: N/A
B147: Emptied and removed offsite | C147: N/A | D147: N/A | E147: N/A | F147: N/A | G147: N/A | H147: N/A | I147: N/A | J147: N/A | K147: N/A | L147: N/A | M147: N/A | N147: N/A | O147: N/A | P147: N/A | Q147: N/A | R147: N/A | S147: N/A | T147: N/A | U147: N/A | V147: N/A | W147: N/A | BB147: Emptied and removed offsite | BC147: N/A | BD147: N/A | BE147: N/A | BF147: N/A | BG147: N/A | BH147: N/A | BI147: N/A | BJ147: N/A | BK147: N/A | BL147: N/A | BM147: N/A | BN147: N/A | BO147: N/A | BP147: N/A | BQ147: N/A | BR147: N/A | BS147: N/A | BT147: N/A | BU147: N/A | BV147: N/A | BW147: N/A
A148: Shared among improved sanitation facilities | B148: Yes | C148: 2.008704521 | D148: 4.391258204 | E148: 9.946779673 | F148: 28.15157783 | G148: 43.72168541 | H148: 1.559165176 | I148: 2.91891449 | J148: 4.500635902 | K148: 10.0023099 | L148: 23.47861953 | M148: 15.47488636 | N148: 32.43007572 | O148: 48.26352278 | P148: 59.26613602 | Q148: 36.8718533 | R148: 14.36243494 | S148: 2.815412779 | T148: 5.004928039 | U148: 16.45430513 | V148: 27.00544618 | W148: 40.44385101 | BA148: Shared among improved sanitation facilities | BB148: Yes | BC148: N/A | BD148: N/A | BE148: N/A | BF148: N/A | BG148: N/A | BH148: N/A | BI148: N/A | BJ148: N/A | BK148: N/A | BL148: N/A | BM148: N/A | BN148: N/A | BO148: N/A | BP148: N/A | BQ148: N/A | BR148: N/A | BS148: N/A | BT148: N/A | BU148: N/A | BV148: N/A | BW148: N/A
B149: No | C149: 13.93548761 | D149: 21.60026082 | E149: 24.26214636 | F149: 26.56512527 | G149: 40.10522102 | H149: 13.08053723 | I149: 18.04279154 | J149: 21.20287827 | K149: 24.92375149 | L149: 35.37489669 | M149: 26.282353 | N149: 24.14345475 | O149: 24.81264419 | P149: 25.47932224 | Q149: 57.26884729 | R149: 15.20186272 | S149: 31.69316908 | T149: 29.09072076 | U149: 39.10053006 | V149: 27.35382356 | W149: 14.56775928 | BB149: No | BC149: N/A | BD149: N/A | BE149: N/A | BF149: N/A | BG149: N/A | BH149: N/A | BI149: N/A | BJ149: N/A | BK149: N/A | BL149: N/A | BM149: N/A | BN149: N/A | BO149: N/A | BP149: N/A | BQ149: N/A | BR149: N/A | BS149: N/A | BT149: N/A | BU149: N/A | BV149: N/A | BW149: N/A
B150: DK/missing | C150: 84.05580787 | D150: 74.00848098 | E150: 65.79107397 | F150: 45.2832969 | G150: 16.17309357 | H150: 85.36029759 | I150: 79.03829397 | J150: 74.29648583 | K150: 65.07393861 | L150: 41.14648379 | M150: 58.24276063 | N150: 43.42646954 | O150: 26.92383303 | P150: 15.25454174 | Q150: 5.859299416 | R150: 70.43570234 | S150: 65.49141814 | T150: 65.9043512 | U150: 44.44516481 | V150: 45.64073027 | W150: 44.98838971 | BB150: DK/missing | BC150: N/A | BD150: N/A | BE150: N/A | BF150: N/A | BG150: N/A | BH150: N/A | BI150: N/A | BJ150: N/A | BK150: N/A | BL150: N/A | BM150: N/A | BN150: N/A | BO150: N/A | BP150: N/A | BQ150: N/A | BR150: N/A | BS150: N/A | BT150: N/A | BU150: N/A | BV150: N/A | BW150: N/A
A151: Shared among all sanitation facilities | B151: Yes | C151: 15.85543871 | D151: 20.24237997 | E151: 31.59867299 | F151: 51.94171758 | G151: 52.85741121 | H151: 14.62371937 | I151: 19.71396446 | J151: 20.17807397 | K151: 32.38435307 | L151: 42.67021044 | M151: 35.91342608 | N151: 56.6981167 | O151: 64.70788924 | P151: 68.93199633 | Q151: 41.23336276 | R151: 44.55741515 | S151: 8.873956909 | T151: 19.18860993 | U151: 33.95716334 | V151: 59.10246469 | W151: 73.71922564 | BA151: Shared among all sanitation facilities | BB151: Yes | BC151: N/A | BD151: N/A | BE151: N/A | BF151: N/A | BG151: N/A | BH151: N/A | BI151: N/A | BJ151: N/A | BK151: N/A | BL151: N/A | BM151: N/A | BN151: N/A | BO151: N/A | BP151: N/A | BQ151: N/A | BR151: N/A | BS151: N/A | BT151: N/A | BU151: N/A | BV151: N/A | BW151: N/A
B152: No | C152: 84.14456129 | D152: 79.70570812 | E152: 68.40132701 | F152: 48.05828242 | G152: 47.14258879 | H152: 85.37628063 | I152: 80.20759207 | J152: 79.82192603 | K152: 67.61564693 | L152: 57.32978956 | M152: 64.08657392 | N152: 43.3018833 | O152: 35.29211076 | P152: 31.06800367 | Q152: 58.76663724 | R152: 55.44258485 | S152: 91.076997 | T152: 80.81139007 | U152: 66.04283666 | V152: 40.89753531 | W152: 26.28077436 | BB152: No | BC152: N/A | BD152: N/A | BE152: N/A | BF152: N/A | BG152: N/A | BH152: N/A | BI152: N/A | BJ152: N/A | BK152: N/A | BL152: N/A | BM152: N/A | BN152: N/A | BO152: N/A | BP152: N/A | BQ152: N/A | BR152: N/A | BS152: N/A | BT152: N/A | BU152: N/A | BV152: N/A | BW152: N/A
A153: Kind of toilet facility | B153: Flush to piped sewer system | C153: 0.06354103103 | D153: 0.2145178596 | E153: 0.2026846828 | F153: 3.048116416 | G153: 16.01322086 | H153: 0.09144225182 | I153: 0 | J153: 0.2029607328 | K153: 0.2879979498 | L153: 4.869267032 | M153: 0.5655521475 | N153: 3.297810566 | O153: 7.985606549 | P153: 12.1963525 | Q153: 27.56436528 | R153: 4.193354697 | S153: 1.044875661 | T153: 1.582165006 | U153: 7.567325252 | V153: 2.976036779 | W153: 7.763829744 | BA153: Kind of toilet facility | BB153: Flush to piped sewer system | BC153: 15.862272 | BD153: 53.579625 | BE153: 50.582318 | BF153: 761.23787 | BG153: 3998.311708 | BH153: 15.862272 | BI153: 0 | BJ153: 35.216009 | BK153: 49.913207 | BL153: 844.934541 | BM153: 43.123758 | BN153: 251.317738 | BO153: 609.120017 | BP153: 930.479223 | BQ153: 2099.607028 | BR153: 664.787903 | BS153: 227.846544 | BT153: 492.800279 | BU153: 865.47385 | BV153: 518.211441 | BW153: 2110.453776
B154: Flush to septic tank | C154: 0.06434677293 | D154: 0.0462821878 | E154: 0.8306418478 | F154: 4.865998865 | G154: 25.63370873 | H154: 0.08108599772 | I154: 0.04914684827 | J154: 0.1435666836 | K154: 0.9458328015 | L154: 8.165767814 | M154: 0.6624006504 | N154: 3.636249046 | O154: 13.38085061 | P154: 23.41743991 | Q154: 40.53227556 | R154: 2.324040399 | S154: 0.4089175748 | T154: 0.1839479152 | U154: 11.45973646 | V154: 13.47453827 | W154: 13.53317704 | BB154: Flush to septic tank | BC154: 16.063416 | BD154: 11.559794 | BE154: 207.296326 | BF154: 1215.236594 | BG154: 6400.433655 | BH154: 14.065797 | BI154: 8.521278 | BJ154: 24.910462 | BK154: 163.92321 | BL154: 1416.95644 | BM154: 50.508526 | BN154: 277.109272 | BO154: 1020.654336 | BP154: 1786.553914 | BQ154: 3087.38655 | BR154: 368.43865 | BS154: 89.168941 | BT154: 57.294646 | BU154: 1310.648334 | BV154: 2346.294893 | BW154: 3678.744321
B155: Flush to pit (latrine) | C155: 2.339512816 | D155: 2.465040452 | E155: 4.154498944 | F155: 8.886265369 | G155: 14.73592747 | H155: 1.985032129 | I155: 2.203157572 | J155: 1.91375114 | K155: 3.641382075 | L155: 8.90038363 | M155: 8.697872989 | N155: 11.27516353 | O155: 14.09837121 | P155: 18.46333534 | Q155: 11.74732299 | R155: 7.359171814 | S155: 6.10025515 | T155: 3.424919354 | U155: 4.767984093 | V155: 5.511186217 | W155: 11.2810046 | BB155: Flush to pit (latrine) | BC155: 584.031893 | BD155: 615.687399 | BE155: 1036.803491 | BF155: 2219.259634 | BG155: 3679.386667 | BH155: 344.338847 | BI155: 381.992311 | BJ155: 332.057716 | BK155: 631.091497 | BL155: 1544.429892 | BM155: 663.219071 | BN155: 859.251475 | BO155: 1075.384826 | BP155: 1408.597359 | BQ155: 894.80609 | BR155: 1166.676504 | BS155: 1330.227227 | BT155: 1066.766871 | BU155: 545.313623 | BV155: 959.652035 | BW155: 3066.532824
B156: Flush to somewhere else | C156: 0.1832581241 | D156: 0.04094061968 | E156: 0.04639100337 | F156: 0.2748413627 | G156: 0.4780586166 | H156: 0.2637277875 | I156: 0.05897684889 | J156: 0 | K156: 0.04577341255 | L156: 0.2315814712 | M156: 0.04779468361 | N156: 0.2079051029 | O156: 0.3234490317 | P156: 1.406497238 | Q156: 0 | R156: 0.02121285677 | S156: 0.1551673981 | T156: 0.1075792776 | U156: 0.05232204141 | V156: 0.4130268188 | W156: 0.3934253398 | BB156: Flush to somewhere else | BC156: 45.748238 | BD156: 10.225643 | BE156: 11.577414 | BF156: 68.638997 | BG156: 119.365578 | BH156: 45.748238 | BI156: 10.225643 | BJ156: 0 | BK156: 7.933035 | BL156: 40.184936 | BM156: 3.644379 | BN156: 15.843918 | BO156: 24.671799 | BP156: 107.303922 | BQ156: 0 | BR156: 3.362952 | BS156: 33.835945 | BT156: 33.507945 | BU156: 5.984064 | BV156: 71.919549 | BW156: 106.945415
B157: Flush to unknown place/not sure/DK where | C157: 0 | D157: 0.08894864337 | E157: 0.008996174937 | F157: 0 | G157: 0.03315588887 | H157: 0 | I157: 0.06794217351 | J157: 0.06014824154 | K157: 0.01295417057 | L157: 0 | M157: 0 | N157: 0 | O157: 0 | P157: 0 | Q157: 0.1086847496 | R157: 0 | S157: 0.09776375965 | T157: 0 | U157: 0.07238475034 | V157: 0.01805074049 | W157: 0 | BB157: Flush to unknown place/not sure/DK where | BC157: 0 | BD157: 22.216495 | BE157: 2.2451 | BF157: 0 | BG157: 8.278633 | BH157: 0 | BI157: 11.780087 | BJ157: 10.436408 | BK157: 2.2451 | BL157: 0 | BM157: 0 | BN157: 0 | BO157: 0 | BP157: 0 | BQ157: 8.278633 | BR157: 0 | BS157: 21.318455 | BT157: 0 | BU157: 8.278633 | BV157: 3.14314 | BW157: 0
B158: Ventilated Improved Pit latrine (VIP) | C158: 0.08357485571 | D158: 0.4199036284 | E158: 0.5257078972 | F158: 1.287477692 | G158: 1.563454265 | H158: 0.06311910243 | I158: 0.3505943101 | J158: 0.248825553 | K158: 0.4551039921 | L158: 1.085508897 | M158: 0.9141143418 | N158: 1.415746363 | O158: 2.607112113 | P158: 1.795566529 | Q158: 0.9617871838 | R158: 0.3537384113 | S158: 0.4726965327 | T158: 0.7307160894 | U158: 1.843807218 | V158: 0.9843443273 | W158: 0.7350799612 | BB158: Ventilated Improved Pit latrine (VIP) | BC158: 20.863481 | BD158: 104.878349 | BE158: 131.196515 | BF158: 321.535218 | BG158: 390.376024 | BH158: 10.949122 | BI158: 60.78745 | BJ158: 43.17408 | BK158: 78.874519 | BL158: 188.361812 | BM158: 69.701876 | BN158: 107.890422 | BO158: 198.863313 | BP158: 136.98664 | BQ158: 73.260353 | BR158: 56.079448 | BS158: 103.076639 | BT158: 227.597685 | BU158: 210.875954 | BV158: 171.401945 | BW158: 199.817916
B159: Pit latrine with slab | C159: 13.26616953 | D159: 22.69290856 | E159: 28.39854911 | F159: 36.49208039 | G159: 25.83146178 | H159: 12.30152017 | I159: 18.18943519 | J159: 23.07829353 | K159: 29.41792899 | L159: 35.66786749 | M159: 30.91729924 | N159: 36.9103376 | O159: 35.00422649 | P159: 28.87276399 | Q159: 13.22626482 | R159: 15.33399234 | S159: 26.3047455 | T159: 28.15101123 | U159: 29.24727879 | V159: 31.30827955 | W159: 21.69851895 | BB159: Pit latrine with slab | BC159: 3311.743389 | BD159: 5667.954795 | BE159: 7087.187951 | BF159: 9113.547435 | BG159: 6449.81025 | BH159: 2133.915723 | BI159: 3153.75735 | BJ159: 4004.347942 | BK159: 5098.450111 | BL159: 6189.229929 | BM159: 2357.466303 | BN159: 2812.842754 | BO159: 2670.02574 | BP159: 2202.749306 | BQ159: 1007.458662 | BR159: 2430.954056 | BS159: 5736.036904 | BT159: 8768.254975 | BU159: 3345.006873 | BV159: 5451.649246 | BW159: 5898.341766
B160: Pit latrine without slab/open pit | C160: 38.67346624 | D160: 35.11955398 | E160: 33.12207113 | F160: 18.37429265 | G160: 6.437854974 | H160: 39.44771561 | I160: 37.04862312 | J160: 35.05386639 | K160: 31.77487525 | L160: 15.17024215 | M160: 30.58120549 | N160: 19.51337758 | O160: 12.47969903 | P160: 5.173084099 | Q160: 3.081956285 | R160: 13.57133013 | S160: 42.77597597 | T160: 50.94262165 | U160: 14.6262434 | V160: 17.08099328 | W160: 3.291724994 | BB160: Pit latrine without slab/open pit | BC160: 9654.37656 | BD160: 8771.729009 | BE160: 8265.997763 | BF160: 4588.803541 | BG160: 1607.456185 | BH160: 6842.902294 | BI160: 6423.639119 | BJ160: 6082.246833 | BK160: 5506.934778 | BL160: 2632.400626 | BM160: 2331.838913 | BN160: 1487.064771 | BO160: 951.916982 | BP160: 394.662853 | BQ160: 234.755889 | BR160: 2151.512751 | BS160: 9327.768512 | BT160: 15867.20605 | BU160: 1672.801256 | BV160: 2974.279822 | BW160: 894.794666
B161: Composting toilet | C161: 0.1270471275 | D161: 0.06391768514 | E161: 0.08784736977 | F161: 0.1367643699 | G161: 0.01597743339 | H161: 0.1175027602 | I161: 0.1014299314 | J161: 0.05596828661 | K161: 0.1648614067 | L161: 0.1647213476 | M161: 0 | N161: 0.03822336204 | O161: 0 | P161: 0 | Q161: 0 | R161: 0 | S161: 0.07932768193 | T161: 0.02288920158 | U161: 0.5963186217 | V161: 0.08683384537 | W161: 0 | BB161: Composting toilet | BC161: 31.715823 | BD161: 15.964571 | BE161: 21.923332 | BF161: 34.155591 | BG161: 3.989376 | BH161: 20.382927 | BI161: 17.586329 | BJ161: 9.711138 | BK161: 28.572292 | BL161: 28.583102 | BM161: 0 | BN161: 2.912905 | BO161: 0 | BP161: 0 | BQ161: 0 | BR161: 0 | BS161: 17.298267 | BT161: 7.129348 | BU161: 68.200871 | BV161: 15.120207 | BW161: 0
B162: Bucket | C162: 0 | D162: 0 | E162: 0.01847348956 | F162: 0.02712186932 | G162: 0.02020856708 | H162: 0 | I162: 0 | J162: 0 | K162: 0 | L162: 0.06811316659 | M162: 0.06046203954 | N162: 0 | O162: 0 | P162: 0 | Q162: 0 | R162: 0 | S162: 0 | T162: 0 | U162: 0.05922388664 | V162: 0 | W162: 0.03552241984 | BB162: Bucket | BC162: 0 | BD162: 0 | BE162: 4.610274 | BF162: 6.773427 | BG162: 5.04584 | BH162: 0 | BI162: 0 | BJ162: 0 | BK162: 0 | BL162: 11.819267 | BM162: 4.610274 | BN162: 0 | BO162: 0 | BP162: 0 | BQ162: 0 | BR162: 0 | BS162: 0 | BT162: 0 | BU162: 6.773427 | BV162: 0 | BW162: 9.656114
B163: Hanging toilet/hanging latrine | C163: 0.8863530251 | D163: 1.652681708 | E163: 1.123514893 | F163: 1.301983959 | G163: 0.7686875315 | H163: 0.7611127691 | I163: 1.77964642 | J163: 1.309512463 | K163: 1.474250764 | L163: 1.692583791 | M163: 0.4995876681 | N163: 0.6421095993 | O163: 0.7537759884 | P163: 0.5240769232 | Q163: 0.3939897184 | R163: 0.04829044251 | S163: 0.1844282676 | T163: 0.07250130588 | U163: 5.102228496 | V163: 4.376617075 | W163: 0.05681177447 | BB163: Hanging toilet/hanging latrine | BC163: 221.267621 | BD163: 412.786452 | BE163: 280.386198 | BF163: 325.158019 | BG163: 191.932178 | BH163: 132.028439 | BI163: 308.562246 | BJ163: 227.215393 | BK163: 255.503845 | BL163: 293.703857 | BM163: 38.093919 | BN163: 48.933536 | BO163: 57.495951 | BP163: 39.982666 | BQ163: 30.010616 | BR163: 7.655661 | BS163: 40.216597 | BT163: 22.582135 | BU163: 583.541105 | BV163: 762.091738 | BW163: 15.443232
B164: No facilities or bush or field | C164: 42.22616897 | D164: 35.6306841 | E164: 29.9844316 | F164: 23.62303851 | G164: 7.2722803 | H164: 42.70703542 | I164: 38.63563157 | J164: 36.11022156 | K164: 30.1006494 | L164: 22.16751879 | M164: 25.79459961 | N164: 21.64844656 | O164: 12.24988289 | P164: 6.867717534 | Q164: 1.681631666 | R164: 56.00681339 | S164: 21.96311426 | T164: 13.84415194 | U164: 23.1371837 | V164: 17.89315948 | W164: 40.08668948 | BB164: No facilities or bush or field | BC164: 10541.26706 | BD164: 8899.392788 | BE164: 7482.963354 | BF164: 5899.627528 | BG164: 1815.802312 | BH164: 7408.288824 | BI164: 6698.80102 | BJ164: 6265.536539 | BK164: 5216.773054 | BL164: 3846.595841 | BM164: 1966.856772 | BN164: 1649.772936 | BO164: 934.387241 | BP164: 523.949146 | BQ164: 128.091673 | BR164: 8878.965581 | BS164: 4789.296817 | BT164: 4312.06727 | BU164: 2646.196217 | BV164: 3115.700728 | BW164: 10896.82643
B165: Other | C165: 2.086561519 | D165: 1.56462057 | E165: 1.496191852 | F165: 1.68201855 | G165: 1.196003579 | H165: 2.180706009 | I165: 1.515416016 | J165: 1.82288542 | K165: 1.678389785 | L165: 1.81644442 | M165: 1.25911114 | N165: 1.414630698 | O165: 1.117026094 | P165: 1.283165951 | Q165: 0.701721747 | R165: 0.7880555233 | S165: 0.4127322428 | T165: 0.9374970247 | U165: 1.467963286 | V165: 5.876933613 | W165: 1.124215703 | BB165: Other | BC165: 520.885573 | BD165: 390.791627 | BE165: 373.392064 | BF165: 420.068017 | BG165: 298.627937 | BH165: 378.281934 | BI165: 262.748917 | BJ165: 316.291474 | BK165: 290.883379 | BL165: 315.196645 | BM165: 96.00813 | BN165: 107.8054 | BO165: 85.203666 | BP165: 97.894781 | BQ165: 53.450892 | BR165: 124.933333 | BS165: 90.000771 | BT165: 292.00418 | BU165: 167.89074 | BV165: 1023.338911 | BW165: 305.597283
BB166: Total | BC166: 24963.82533 | BD166: 24976.76655 | BE166: 24956.1621 | BF166: 24974.04187 | BG166: 24968.81634 | BH166: 17346.76442 | BI166: 17338.40175 | BJ166: 17351.14399 | BK166: 17331.09803 | BL166: 17352.39689 | BM166: 7625.071921 | BN166: 7620.745127 | BO166: 7627.723871 | BP166: 7629.15981 | BQ166: 7617.106386 | BR166: 15853.36684 | BS166: 21806.09162 | BT166: 31147.21138 | BU166: 11436.98495 | BV166: 17412.80365 | BW166: 27183.15375
A208: =A1026 -> Nigeria
A209: =A1034 -> 2007
A210: Access to hygiene facilities
A211: by wealth quintile and sub-national region
A212: Notes:
A213: WHO/UNICEF JMP customised wealth index excludes water,
A214: sanitation and hygiene assets.
A215: Survey used for analysis: | B215: =A1025 -> MICS07
A220: Access to handwashing | C220: NATIONAL wealth index quintile | H220: URBAN wealth index quintile | M220: RURAL wealth index quintile | R220: SUB-REGIONS: | BA220: Raw numbers of respondents: | BB220: Access to handwashing | BC220: NATIONAL wealth index quintile | BH220: URBAN wealth index quintile | BM220: RURAL wealth index quintile | BR220: SUB-REGIONS:
A221: Weighted percentage (used in graphs) | C221: Poorest | D221: Poor | E221: Middle | F221: Rich | G221: Richest | H221: Poorest | I221: Poor | J221: Middle | K221: Rich | L221: Richest | M221: Poorest | N221: Poor | O221: Middle | P221: Rich | Q221: Richest | R221: North central | S221: North east | T221: North west | U221: South east | V221: South south | W221: South west | BA221: Hygiene data, raw numbers (weighted) | BC221: Poorest | BD221: Poor | BE221: Middle | BF221: Rich | BG221: Richest | BH221: Poorest | BI221: Poor | BJ221: Middle | BK221: Rich | BL221: Richest | BM221: Poorest | BN221: Poor | BO221: Middle | BP221: Rich | BQ221: Richest | BR221: North central | BS221: North east | BT221: North west | BU221: South east | BV221: South south | BW221: South west
A222: Hygiene ladder | B222: Basic | C222: N/A | D222: N/A | E222: N/A | F222: N/A | G222: N/A | H222: N/A | I222: N/A | J222: N/A | K222: N/A | L222: N/A | M222: N/A | N222: N/A | O222: N/A | P222: N/A | Q222: N/A | R222: N/A | S222: N/A | T222: N/A | U222: N/A | V222: N/A | W222: N/A | BA222: Hygiene ladder | BB222: Basic | BC222: N/A | BD222: N/A | BE222: N/A | BF222: N/A | BG222: N/A | BH222: N/A | BI222: N/A | BJ222: N/A | BK222: N/A | BL222: N/A | BM222: N/A | BN222: N/A | BO222: N/A | BP222: N/A | BQ222: N/A | BR222: N/A | BS222: N/A | BT222: N/A | BU222: N/A | BV222: N/A | BW222: N/A
B223: Limited | C223: N/A | D223: N/A | E223: N/A | F223: N/A | G223: N/A | H223: N/A | I223: N/A | J223: N/A | K223: N/A | L223: N/A | M223: N/A | N223: N/A | O223: N/A | P223: N/A | Q223: N/A | R223: N/A | S223: N/A | T223: N/A | U223: N/A | V223: N/A | W223: N/A | BB223: Limited | BC223: N/A | BD223: N/A | BE223: N/A | BF223: N/A | BG223: N/A | BH223: N/A | BI223: N/A | BJ223: N/A | BK223: N/A | BL223: N/A | BM223: N/A | BN223: N/A | BO223: N/A | BP223: N/A | BQ223: N/A | BR223: N/A | BS223: N/A | BT223: N/A | BU223: N/A | BV223: N/A | BW223: N/A
B224: No facility | C224: N/A | D224: N/A | E224: N/A | F224: N/A | G224: N/A | H224: N/A | I224: N/A | J224: N/A | K224: N/A | L224: N/A | M224: N/A | N224: N/A | O224: N/A | P224: N/A | Q224: N/A | R224: N/A | S224: N/A | T224: N/A | U224: N/A | V224: N/A | W224: N/A | BB224: No facility | BC224: N/A | BD224: N/A | BE224: N/A | BF224: N/A | BG224: N/A | BH224: N/A | BI224: N/A | BJ224: N/A | BK224: N/A | BL224: N/A | BM224: N/A | BN224: N/A | BO224: N/A | BP224: N/A | BQ224: N/A | BR224: N/A | BS224: N/A | BT224: N/A | BU224: N/A | BV224: N/A | BW224: N/A
BA225: Observed handwashing place | BB225: Fixed | BC225: N/A | BD225: N/A | BE225: N/A | BF225: N/A | BG225: N/A | BH225: N/A | BI225: N/A | BJ225: N/A | BK225: N/A | BL225: N/A | BM225: N/A | BN225: N/A | BO225: N/A | BP225: N/A | BQ225: N/A | BR225: N/A | BS225: N/A | BT225: N/A | BU225: N/A | BV225: N/A | BW225: N/A
BB226: Mobile | BC226: N/A | BD226: N/A | BE226: N/A | BF226: N/A | BG226: N/A | BH226: N/A | BI226: N/A | BJ226: N/A | BK226: N/A | BL226: N/A | BM226: N/A | BN226: N/A | BO226: N/A | BP226: N/A | BQ226: N/A | BR226: N/A | BS226: N/A | BT226: N/A | BU226: N/A | BV226: N/A | BW226: N/A
BA227: Water / Soap | BB227: Water and soap | BC227: N/A | BD227: N/A | BE227: N/A | BF227: N/A | BG227: N/A | BH227: N/A | BI227: N/A | BJ227: N/A | BK227: N/A | BL227: N/A | BM227: N/A | BN227: N/A | BO227: N/A | BP227: N/A | BQ227: N/A | BR227: N/A | BS227: N/A | BT227: N/A | BU227: N/A | BV227: N/A | BW227: N/A
BB228: Water only | BC228: N/A | BD228: N/A | BE228: N/A | BF228: N/A | BG228: N/A | BH228: N/A | BI228: N/A | BJ228: N/A | BK228: N/A | BL228: N/A | BM228: N/A | BN228: N/A | BO228: N/A | BP228: N/A | BQ228: N/A | BR228: N/A | BS228: N/A | BT228: N/A | BU228: N/A | BV228: N/A | BW228: N/A
BB229: Soap only | BC229: N/A | BD229: N/A | BE229: N/A | BF229: N/A | BG229: N/A | BH229: N/A | BI229: N/A | BJ229: N/A | BK229: N/A | BL229: N/A | BM229: N/A | BN229: N/A | BO229: N/A | BP229: N/A | BQ229: N/A | BR229: N/A | BS229: N/A | BT229: N/A | BU229: N/A | BV229: N/A | BW229: N/A
BB230: Neither | BC230: N/A | BD230: N/A | BE230: N/A | BF230: N/A | BG230: N/A | BH230: N/A | BI230: N/A | BJ230: N/A | BK230: N/A | BL230: N/A | BM230: N/A | BN230: N/A | BO230: N/A | BP230: N/A | BQ230: N/A | BR230: N/A | BS230: N/A | BT230: N/A | BU230: N/A | BV230: N/A | BW230: N/A
BA259: Raw numbers of respondents: | BB259: Menstrual health and hygiene | BC259: NATIONAL wealth index quintile | BH259: URBAN wealth index quintile | BM259: RURAL wealth index quintile | BR259: SUB-REGIONS:
BA260: MHH data, raw numbers (weighted) | BC260: Poorest | BD260: Poor | BE260: Middle | BF260: Rich | BG260: Richest | BH260: Poorest | BI260: Poor | BJ260: Middle | BK260: Rich | BL260: Richest | BM260: Poorest | BN260: Poor | BO260: Middle | BP260: Rich | BQ260: Richest | BR260: North central | BS260: North east | BT260: North west | BU260: South east | BV260: South south | BW260: South west
BA261: Private place to wash and change | BB261: Yes | BC261: N/A | BD261: N/A | BE261: N/A | BF261: N/A | BG261: N/A | BH261: N/A | BI261: N/A | BJ261: N/A | BK261: N/A | BL261: N/A | BM261: N/A | BN261: N/A | BO261: N/A | BP261: N/A | BQ261: N/A | BR261: N/A | BS261: N/A | BT261: N/A | BU261: N/A | BV261: N/A | BW261: N/A
BB262: No | BC262: N/A | BD262: N/A | BE262: N/A | BF262: N/A | BG262: N/A | BH262: N/A | BI262: N/A | BJ262: N/A | BK262: N/A | BL262: N/A | BM262: N/A | BN262: N/A | BO262: N/A | BP262: N/A | BQ262: N/A | BR262: N/A | BS262: N/A | BT262: N/A | BU262: N/A | BV262: N/A | BW262: N/A
BB263: DK/not sure/missing | BC263: N/A | BD263: N/A | BE263: N/A | BF263: N/A | BG263: N/A | BH263: N/A | BI263: N/A | BJ263: N/A | BK263: N/A | BL263: N/A | BM263: N/A | BN263: N/A | BO263: N/A | BP263: N/A | BQ263: N/A | BR263: N/A | BS263: N/A | BT263: N/A | BU263: N/A | BV263: N/A | BW263: N/A
BA264: Use of menstrual materials | BB264: Materials reusable | BC264: N/A | BD264: N/A | BE264: N/A | BF264: N/A | BG264: N/A | BH264: N/A | BI264: N/A | BJ264: N/A | BK264: N/A | BL264: N/A | BM264: N/A | BN264: N/A | BO264: N/A | BP264: N/A | BQ264: N/A | BR264: N/A | BS264: N/A | BT264: N/A | BU264: N/A | BV264: N/A | BW264: N/A
BB265: Materials not reusable | BC265: N/A | BD265: N/A | BE265: N/A | BF265: N/A | BG265: N/A | BH265: N/A | BI265: N/A | BJ265: N/A | BK265: N/A | BL265: N/A | BM265: N/A | BN265: N/A | BO265: N/A | BP265: N/A | BQ265: N/A | BR265: N/A | BS265: N/A | BT265: N/A | BU265: N/A | BV265: N/A | BW265: N/A
BB266: No materials used | BC266: N/A | BD266: N/A | BE266: N/A | BF266: N/A | BG266: N/A | BH266: N/A | BI266: N/A | BJ266: N/A | BK266: N/A | BL266: N/A | BM266: N/A | BN266: N/A | BO266: N/A | BP266: N/A | BQ266: N/A | BR266: N/A | BS266: N/A | BT266: N/A | BU266: N/A | BV266: N/A | BW266: N/A
BB267: DK/not sure/missing | BC267: N/A | BD267: N/A | BE267: N/A | BF267: N/A | BG267: N/A | BH267: N/A | BI267: N/A | BJ267: N/A | BK267: N/A | BL267: N/A | BM267: N/A | BN267: N/A | BO267: N/A | BP267: N/A | BQ267: N/A | BR267: N/A | BS267: N/A | BT267: N/A | BU267: N/A | BV267: N/A | BW267: N/A
BA268: Use of menstrual materials with private place to wash and change | BB268: Materials reusable | BC268: N/A | BD268: N/A | BE268: N/A | BF268: N/A | BG268: N/A | BH268: N/A | BI268: N/A | BJ268: N/A | BK268: N/A | BL268: N/A | BM268: N/A | BN268: N/A | BO268: N/A | BP268: N/A | BQ268: N/A | BR268: N/A | BS268: N/A | BT268: N/A | BU268: N/A | BV268: N/A | BW268: N/A
BB269: Materials not reusable | BC269: N/A | BD269: N/A | BE269: N/A | BF269: N/A | BG269: N/A | BH269: N/A | BI269: N/A | BJ269: N/A | BK269: N/A | BL269: N/A | BM269: N/A | BN269: N/A | BO269: N/A | BP269: N/A | BQ269: N/A | BR269: N/A | BS269: N/A | BT269: N/A | BU269: N/A | BV269: N/A | BW269: N/A
BB270: No materials used | BC270: N/A | BD270: N/A | BE270: N/A | BF270: N/A | BG270: N/A | BH270: N/A | BI270: N/A | BJ270: N/A | BK270: N/A | BL270: N/A | BM270: N/A | BN270: N/A | BO270: N/A | BP270: N/A | BQ270: N/A | BR270: N/A | BS270: N/A | BT270: N/A | BU270: N/A | BV270: N/A | BW270: N/A
BA271: Awareness of menstruation before menarche | BB271: Yes | BC271: N/A | BD271: N/A | BE271: N/A | BF271: N/A | BG271: N/A | BH271: N/A | BI271: N/A | BJ271: N/A | BK271: N/A | BL271: N/A | BM271: N/A | BN271: N/A | BO271: N/A | BP271: N/A | BQ271: N/A | BR271: N/A | BS271: N/A | BT271: N/A | BU271: N/A | BV271: N/A | BW271: N/A
BB272: No | BC272: N/A | BD272: N/A | BE272: N/A | BF272: N/A | BG272: N/A | BH272: N/A | BI272: N/A | BJ272: N/A | BK272: N/A | BL272: N/A | BM272: N/A | BN272: N/A | BO272: N/A | BP272: N/A | BQ272: N/A | BR272: N/A | BS272: N/A | BT272: N/A | BU272: N/A | BV272: N/A | BW272: N/A
BB273: DK/not sure/missing | BC273: N/A | BD273: N/A | BE273: N/A | BF273: N/A | BG273: N/A | BH273: N/A | BI273: N/A | BJ273: N/A | BK273: N/A | BL273: N/A | BM273: N/A | BN273: N/A | BO273: N/A | BP273: N/A | BQ273: N/A | BR273: N/A | BS273: N/A | BT273: N/A | BU273: N/A | BV273: N/A | BW273: N/A
BA274: Participation in (all) activities during menstruation | BB274: Yes | BC274: N/A | BD274: N/A | BE274: N/A | BF274: N/A | BG274: N/A | BH274: N/A | BI274: N/A | BJ274: N/A | BK274: N/A | BL274: N/A | BM274: N/A | BN274: N/A | BO274: N/A | BP274: N/A | BQ274: N/A | BR274: N/A | BS274: N/A | BT274: N/A | BU274: N/A | BV274: N/A | BW274: N/A
BB275: No | BC275: N/A | BD275: N/A | BE275: N/A | BF275: N/A | BG275: N/A | BH275: N/A | BI275: N/A | BJ275: N/A | BK275: N/A | BL275: N/A | BM275: N/A | BN275: N/A | BO275: N/A | BP275: N/A | BQ275: N/A | BR275: N/A | BS275: N/A | BT275: N/A | BU275: N/A | BV275: N/A | BW275: N/A
BB276: DK/not sure/missing/no such activity | BC276: N/A | BD276: N/A | BE276: N/A | BF276: N/A | BG276: N/A | BH276: N/A | BI276: N/A | BJ276: N/A | BK276: N/A | BL276: N/A | BM276: N/A | BN276: N/A | BO276: N/A | BP276: N/A | BQ276: N/A | BR276: N/A | BS276: N/A | BT276: N/A | BU276: N/A | BV276: N/A | BW276: N/A
BA277: Participation in specific activities during menstruation | BB277: Did not go to school (amongst those usually attending school) | BC277: N/A | BD277: N/A | BE277: N/A | BF277: N/A | BG277: N/A | BH277: N/A | BI277: N/A | BJ277: N/A | BK277: N/A | BL277: N/A | BM277: N/A | BN277: N/A | BO277: N/A | BP277: N/A | BQ277: N/A | BR277: N/A | BS277: N/A | BT277: N/A | BU277: N/A | BV277: N/A | BW277: N/A
BB278: Did not go to work (amongst those who usually work) | BC278: N/A | BD278: N/A | BE278: N/A | BF278: N/A | BG278: N/A | BH278: N/A | BI278: N/A | BJ278: N/A | BK278: N/A | BL278: N/A | BM278: N/A | BN278: N/A | BO278: N/A | BP278: N/A | BQ278: N/A | BR278: N/A | BS278: N/A | BT278: N/A | BU278: N/A | BV278: N/A | BW278: N/A
BB279: Did not participate in social activities | BC279: N/A | BD279: N/A | BE279: N/A | BF279: N/A | BG279: N/A | BH279: N/A | BI279: N/A | BJ279: N/A | BK279: N/A | BL279: N/A | BM279: N/A | BN279: N/A | BO279: N/A | BP279: N/A | BQ279: N/A | BR279: N/A | BS279: N/A | BT279: N/A | BU279: N/A | BV279: N/A | BW279: N/A
BB280: Did not cook food | BC280: N/A | BD280: N/A | BE280: N/A | BF280: N/A | BG280: N/A | BH280: N/A | BI280: N/A | BJ280: N/A | BK280: N/A | BL280: N/A | BM280: N/A | BN280: N/A | BO280: N/A | BP280: N/A | BQ280: N/A | BR280: N/A | BS280: N/A | BT280: N/A | BU280: N/A | BV280: N/A | BW280: N/A
BB281: Did not eat with others | BC281: N/A | BD281: N/A | BE281: N/A | BF281: N/A | BG281: N/A | BH281: N/A | BI281: N/A | BJ281: N/A | BK281: N/A | BL281: N/A | BM281: N/A | BN281: N/A | BO281: N/A | BP281: N/A | BQ281: N/A | BR281: N/A | BS281: N/A | BT281: N/A | BU281: N/A | BV281: N/A | BW281: N/A
BB282: Did not bathe in regular place | BC282: N/A | BD282: N/A | BE282: N/A | BF282: N/A | BG282: N/A | BH282: N/A | BI282: N/A | BJ282: N/A | BK282: N/A | BL282: N/A | BM282: N/A | BN282: N/A | BO282: N/A | BP282: N/A | BQ282: N/A | BR282: N/A | BS282: N/A | BT282: N/A | BU282: N/A | BV282: N/A | BW282: N/A
BB283: Did not participate in other activities | BC283: N/A | BD283: N/A | BE283: N/A | BF283: N/A | BG283: N/A | BH283: N/A | BI283: N/A | BJ283: N/A | BK283: N/A | BL283: N/A | BM283: N/A | BN283: N/A | BO283: N/A | BP283: N/A | BQ283: N/A | BR283: N/A | BS283: N/A | BT283: N/A | BU283: N/A | BV283: N/A | BW283: N/A
BB284: DK/not sure/missing/no such activity | BC284: N/A | BD284: N/A | BE284: N/A | BF284: N/A | BG284: N/A | BH284: N/A | BI284: N/A | BJ284: N/A | BK284: N/A | BL284: N/A | BM284: N/A | BN284: N/A | BO284: N/A | BP284: N/A | BQ284: N/A | BR284: N/A | BS284: N/A | BT284: N/A | BU284: N/A | BV284: N/A | BW284: N/A
BA339: Raw numbers of respondents: | BB339: Basic water, sanitation and hygiene | BC339: NATIONAL wealth index quintile | BH339: URBAN wealth index quintile | BM339: RURAL wealth index quintile | BR339: SUB-REGIONS:
BA340: WatSan data, raw numbers (weighted) | BC340: Poorest | BD340: Poor | BE340: Middle | BF340: Rich | BG340: Richest | BH340: Poorest | BI340: Poor | BJ340: Middle | BK340: Rich | BL340: Richest | BM340: Poorest | BN340: Poor | BO340: Middle | BP340: Rich | BQ340: Richest | BR340: North central | BS340: North east | BT340: North west | BU340: South east | BV340: South south | BW340: South west
BA341: Use of Basic Water Sanitation and Hygiene | BB341: Yes | BC341: N/A | BD341: N/A | BE341: N/A | BF341: N/A | BG341: N/A | BH341: N/A | BI341: N/A | BJ341: N/A | BK341: N/A | BL341: N/A | BM341: N/A | BN341: N/A | BO341: N/A | BP341: N/A | BQ341: N/A | BR341: N/A | BS341: N/A | BT341: N/A | BU341: N/A | BV341: N/A | BW341: N/A
BB342: No | BC342: N/A | BD342: N/A | BE342: N/A | BF342: N/A | BG342: N/A | BH342: N/A | BI342: N/A | BJ342: N/A | BK342: N/A | BL342: N/A | BM342: N/A | BN342: N/A | BO342: N/A | BP342: N/A | BQ342: N/A | BR342: N/A | BS342: N/A | BT342: N/A | BU342: N/A | BV342: N/A | BW342: N/A
BA343: Use of Basic Water and Sanitation | BB343: Yes | BC343: N/A | BD343: N/A | BE343: N/A | BF343: N/A | BG343: N/A | BH343: N/A | BI343: N/A | BJ343: N/A | BK343: N/A | BL343: N/A | BM343: N/A | BN343: N/A | BO343: N/A | BP343: N/A | BQ343: N/A | BR343: N/A | BS343: N/A | BT343: N/A | BU343: N/A | BV343: N/A | BW343: N/A
BB344: No | BC344: N/A | BD344: N/A | BE344: N/A | BF344: N/A | BG344: N/A | BH344: N/A | BI344: N/A | BJ344: N/A | BK344: N/A | BL344: N/A | BM344: N/A | BN344: N/A | BO344: N/A | BP344: N/A | BQ344: N/A | BR344: N/A | BS344: N/A | BT344: N/A | BU344: N/A | BV344: N/A | BW344: N/A
BA345: Use of Basic Water and Hygiene | BB345: Yes | BC345: N/A | BD345: N/A | BE345: N/A | BF345: N/A | BG345: N/A | BH345: N/A | BI345: N/A | BJ345: N/A | BK345: N/A | BL345: N/A | BM345: N/A | BN345: N/A | BO345: N/A | BP345: N/A | BQ345: N/A | BR345: N/A | BS345: N/A | BT345: N/A | BU345: N/A | BV345: N/A | BW345: N/A
BB346: No | BC346: N/A | BD346: N/A | BE346: N/A | BF346: N/A | BG346: N/A | BH346: N/A | BI346: N/A | BJ346: N/A | BK346: N/A | BL346: N/A | BM346: N/A | BN346: N/A | BO346: N/A | BP346: N/A | BQ346: N/A | BR346: N/A | BS346: N/A | BT346: N/A | BU346: N/A | BV346: N/A | BW346: N/A
BA347: Use of Basic Sanitation and Hygiene | BB347: Yes | BC347: N/A | BD347: N/A | BE347: N/A | BF347: N/A | BG347: N/A | BH347: N/A | BI347: N/A | BJ347: N/A | BK347: N/A | BL347: N/A | BM347: N/A | BN347: N/A | BO347: N/A | BP347: N/A | BQ347: N/A | BR347: N/A | BS347: N/A | BT347: N/A | BU347: N/A | BV347: N/A | BW347: N/A
BB348: No | BC348: N/A | BD348: N/A | BE348: N/A | BF348: N/A | BG348: N/A | BH348: N/A | BI348: N/A | BJ348: N/A | BK348: N/A | BL348: N/A | BM348: N/A | BN348: N/A | BO348: N/A | BP348: N/A | BQ348: N/A | BR348: N/A | BS348: N/A | BT348: N/A | BU348: N/A | BV348: N/A | BW348: N/A
BA349: Use of Basic Water | BB349: Yes | BC349: N/A | BD349: N/A | BE349: N/A | BF349: N/A | BG349: N/A | BH349: N/A | BI349: N/A | BJ349: N/A | BK349: N/A | BL349: N/A | BM349: N/A | BN349: N/A | BO349: N/A | BP349: N/A | BQ349: N/A | BR349: N/A | BS349: N/A | BT349: N/A | BU349: N/A | BV349: N/A | BW349: N/A
BB350: No | BC350: N/A | BD350: N/A | BE350: N/A | BF350: N/A | BG350: N/A | BH350: N/A | BI350: N/A | BJ350: N/A | BK350: N/A | BL350: N/A | BM350: N/A | BN350: N/A | BO350: N/A | BP350: N/A | BQ350: N/A | BR350: N/A | BS350: N/A | BT350: N/A | BU350: N/A | BV350: N/A | BW350: N/A
BA351: Use of Basic Sanitation | BB351: Yes | BC351: N/A | BD351: N/A | BE351: N/A | BF351: N/A | BG351: N/A | BH351: N/A | BI351: N/A | BJ351: N/A | BK351: N/A | BL351: N/A | BM351: N/A | BN351: N/A | BO351: N/A | BP351: N/A | BQ351: N/A | BR351: N/A | BS351: N/A | BT351: N/A | BU351: N/A | BV351: N/A | BW351: N/A
BB352: No | BC352: N/A | BD352: N/A | BE352: N/A | BF352: N/A | BG352: N/A | BH352: N/A | BI352: N/A | BJ352: N/A | BK352: N/A | BL352: N/A | BM352: N/A | BN352: N/A | BO352: N/A | BP352: N/A | BQ352: N/A | BR352: N/A | BS352: N/A | BT352: N/A | BU352: N/A | BV352: N/A | BW352: N/A
BA353: Access to Basic Hygiene | BB353: Yes | BC353: N/A | BD353: N/A | BE353: N/A | BF353: N/A | BG353: N/A | BH353: N/A | BI353: N/A | BJ353: N/A | BK353: N/A | BL353: N/A | BM353: N/A | BN353: N/A | BO353: N/A | BP353: N/A | BQ353: N/A | BR353: N/A | BS353: N/A | BT353: N/A | BU353: N/A | BV353: N/A | BW353: N/A
BB354: No | BC354: N/A | BD354: N/A | BE354: N/A | BF354: N/A | BG354: N/A | BH354: N/A | BI354: N/A | BJ354: N/A | BK354: N/A | BL354: N/A | BM354: N/A | BN354: N/A | BO354: N/A | BP354: N/A | BQ354: N/A | BR354: N/A | BS354: N/A | BT354: N/A | BU354: N/A | BV354: N/A | BW354: N/A
C399: INITIAL (national) Wealth Index | H399: URBAN Wealth Index | M399: RURAL Wealth Index
C400: Component Matrix | H400: Component Matrix | M400: Component Matrix
E401: Component | J401: Component | O401: Component
B402: Note: The INITIAL (national) Wealth Index is based on the first component of the Principal Component Analysis (PCA) which has been obtained at national level. The final national-level (NATIONAL) Wealth Index is based on the URBAN and RURAL specific wealth indexes. Regression procedures are used to establish the relationships between the two sets of scores (urban and rural) and the initial (national) wealth factors. This allows best use of the available information for each area and a better precision of the FINAL (NATIONAL) Wealth Index. For dependency reasons, all WASH variables (contained in the generic MICS and DHS scripts) have been excluded from the sets of asset variables used in the PCAs. The PCA can extracts as many components as there are asset variables in the input. Only the first of the components is used to represent the Wealth Index. The scores represent the weights of the asset variables on the Wealth Index (correlations between the variables and the component). The communalities are the proportion of each variable's variance that can be explained by the component. Proportion of explained variance is the part of the model's total variance that is explained by the component. For more information on the procedure used: The DHS Wealth Index, DHS Comparative Reports No. 6, Shea Oscar Rutstein, Kiersten Johnson, ORC Macro International Inc., 2004. The DHS Wealth Index: Approaches for Rural and Urban Areas, Shea O. Rutstein, ORC Macro International Inc., 2008. MICS Methodological Paper No. 4, Review of options for reporting water, sanitation and hygiene coverage by wealth quintile, UNICEF, 2016. | E402: 1 | J402: 1 | O402: 1
C403: Fan | E403: 0.7943931803 | H403: Television | J403: 0.7792787703 | M403: Television | O403: 0.7191706711
C404: Television | E404: 0.7943326936 | H404: Fan | J404: 0.7708856911 | M404: Fan | O404: 0.7053972379
C405: Mobile phone | E405: 0.7385611379 | H405: VCR\VCD | J405: 0.7238178357 | M405: Mobile phone | O405: 0.6859356338
C406: VCR\VCD | E406: 0.7348019588 | H406: Mobile phone | J406: 0.6927163636 | M406: VCR\VCD | O406: 0.6718268982
C407: Electricity | E407: 0.6987454827 | H407: Electricity | J407: 0.6434187743 | M407: Household fuel type: wood | O407: 0.6477260118
C408: Household fuel type: kerosene | E408: -0.6579839734 | H408: Has earth/sand floor | J408: 0.6202140404 | M408: Refrigerator | O408: 0.6299906114
C409: Refrigerator | E409: 0.6427623796 | H409: Refrigerator | J409: 0.5863781981 | M409: Household fuel type: kerosene | O409: -0.5941982215
C410: Has earth/sand floor | E410: 0.6292951193 | H410: Has cement floor | J410: -0.574497747 | M410: Household cooks at open sky | O410: 0.5835186536
C411: Household cooks at open sky | E411: 0.6151671385 | H411: Clock | J411: 0.5707498334 | M411: Clock | O411: 0.5637285006
C412: Household fuel type: wood | E412: 0.6101009727 | H412: Has corrugated iron roof | J412: -0.5542669778 | M412: Blender\Mixer\Food processor | O412: 0.5243069467
... 280 more rows

Sheet DHS08
A2: =A1026 -> Nigeria
A3: =A1034 -> 2008
A4: Use of drinking water sources
A5: by wealth quintile and sub-national region
A6: Notes:
A7: WHO/UNICEF JMP customised wealth index excludes water,
A8: sanitation and hygiene assets.
A9: Survey used for analysis: | B9: =A1025 -> DHS08
A10: =B1028 -> 
A11: =B1027 -> 
A14: Use of drinking water sources | C14: NATIONAL wealth index quintile | H14: URBAN wealth index quintile | M14: RURAL wealth index quintile | R14: SUB-REGIONS: | BA14: Raw numbers of respondents: | BB14: Use of drinking water sources | BC14: NATIONAL wealth index quintile | BH14: URBAN wealth index quintile | BM14: RURAL wealth index quintile | BR14: SUB-REGIONS:
A15: Weighted percentage (used in graphs) | C15: Poorest | D15: Poor | E15: Middle | F15: Rich | G15: Richest | H15: Poorest | I15: Poor | J15: Middle | K15: Rich | L15: Richest | M15: Poorest | N15: Poor | O15: Middle | P15: Rich | Q15: Richest | R15: North Central | S15: North East | T15: North West | U15: South East | V15: South South | W15: South West | BA15: Water data, raw numbers (weighted) | BC15: Poorest | BD15: Poor | BE15: Middle | BF15: Rich | BG15: Richest | BH15: Poorest | BI15: Poor | BJ15: Middle | BK15: Rich | BL15: Richest | BM15: Poorest | BN15: Poor | BO15: Middle | BP15: Rich | BQ15: Richest | BR15: North Central | BS15: North East | BT15: North West | BU15: South East | BV15: South South | BW15: South West
A16: Water | B16: Improved | C16: 32.15620428 | D16: 35.08920679 | E16: 52.86939463 | F16: 77.06066972 | G16: 92.55213325 | H16: 58.37788656 | I16: 81.07594116 | J16: 89.17110313 | K16: 94.11010991 | L16: 96.27132956 | M16: 30.87973928 | N16: 32.6305381 | O16: 36.02742666 | P16: 50.67577355 | Q16: 74.99900389 | R16: 51.29926133 | S16: 34.54385515 | T16: 51.1216787 | U16: 72.54880746 | V16: 59.92262778 | W16: 77.71373806 | BA16: Water | BB16: Improved | BC16: N/A | BD16: N/A | BE16: N/A | BF16: N/A | BG16: N/A | BH16: N/A | BI16: N/A | BJ16: N/A | BK16: N/A | BL16: N/A | BM16: N/A | BN16: N/A | BO16: N/A | BP16: N/A | BQ16: N/A | BR16: N/A | BS16: N/A | BT16: N/A | BU16: N/A | BV16: N/A | BW16: N/A
B17: Not Improved | C17: 67.84379572 | D17: 64.91079321 | E17: 47.13060537 | F17: 22.93933028 | G17: 7.447866753 | H17: 41.62211344 | I17: 18.92405884 | J17: 10.82889687 | K17: 5.889890086 | L17: 3.728670441 | M17: 69.12026072 | N17: 67.3694619 | O17: 63.97257334 | P17: 49.32422645 | Q17: 25.00099611 | R17: 48.70073867 | S17: 65.45614485 | T17: 48.8783213 | U17: 27.45119254 | V17: 40.07737222 | W17: 22.28626194 | BB17: Not Improved | BC17: N/A | BD17: N/A | BE17: N/A | BF17: N/A | BG17: N/A | BH17: N/A | BI17: N/A | BJ17: N/A | BK17: N/A | BL17: N/A | BM17: N/A | BN17: N/A | BO17: N/A | BP17: N/A | BQ17: N/A | BR17: N/A | BS17: N/A | BT17: N/A | BU17: N/A | BV17: N/A | BW17: N/A
A18: Water ladder | B18: Basic | C18: =C16*C23/100 -> 27.55786707 | D18: =D16*D23/100 -> 31.68555373 | E18: =E16*E23/100 -> 48.11114911 | F18: 71.20405882 | G18: 88.29473512 | H18: 52.54009791 | I18: 74.42771398 | J18: 83.37498143 | K18: 88.83994376 | L18: 92.70929037 | M18: 25.87722152 | N18: 29.2043316 | O18: 32.74893083 | P18: 46.3683328 | Q18: 70.34906565 | R18: 47.91351008 | S18: 29.8804347 | T18: 46.72521433 | U18: 63.98804818 | V18: 57.46580004 | W18: 72.97320004 | BA18: Water ladder | BB18: Basic | BC18: N/A | BD18: N/A | BE18: N/A | BF18: N/A | BG18: N/A | BH18: N/A | BI18: N/A | BJ18: N/A | BK18: N/A | BL18: N/A | BM18: N/A | BN18: N/A | BO18: N/A | BP18: N/A | BQ18: N/A | BR18: N/A | BS18: N/A | BT18: N/A | BU18: N/A | BV18: N/A | BW18: N/A
B19: Limited | C19: =C16*C22/100 -> 4.598337213 | D19: =D16*D22/100 -> 3.403653059 | E19: =E16*E22/100 ->  | F19: 5.856610898 | G19: 4.257398129 | H19: 5.837788656 | I19: 6.648227175 | J19: 5.796121704 | K19: 5.270166155 | L19: 3.562039194 | M19: 5.002517764 | N19: 3.426206501 | O19: 3.278495826 | P19: 4.307440752 | Q19: 4.649938241 | R19: 3.385751248 | S19: 4.663420445 | T19: 4.396464368 | U19: 8.56075928 | V19: 2.456827739 | W19: 4.740538022 | BB19: Limited | BC19: N/A | BD19: N/A | BE19: N/A | BF19: N/A | BG19: N/A | BH19: N/A | BI19: N/A | BJ19: N/A | BK19: N/A | BL19: N/A | BM19: N/A | BN19: N/A | BO19: N/A | BP19: N/A | BQ19: N/A | BR19: N/A | BS19: N/A | BT19: N/A | BU19: N/A | BV19: N/A | BW19: N/A
B20: Unimproved | C20: =100-C18-C19-C21 -> 43.43398959 | D20: =100-D18-D19-D21 -> 36.5678955 | E20: =100-E18-E19-E21 ->  | F20: 10.77699594 | G20: 5.168107891 | H20: 28.85647774 | I20: 11.9093279 | J20: 7.810092771 | K20: 4.548610021 | L20: 3.534239837 | M20: 44.51771309 | N20: 41.33721563 | O20: 31.52457407 | P20: 20.1559586 | Q20: 10.36042516 | R20: 17.59030858 | S20: 45.95492098 | T20: 40.4174829 | U20: 11.43797777 | V20: 11.3406951 | W20: 6.568892054 | BB20: Unimproved | BC20: N/A | BD20: N/A | BE20: N/A | BF20: N/A | BG20: N/A | BH20: N/A | BI20: N/A | BJ20: N/A | BK20: N/A | BL20: N/A | BM20: N/A | BN20: N/A | BO20: N/A | BP20: N/A | BQ20: N/A | BR20: N/A | BS20: N/A | BT20: N/A | BU20: N/A | BV20: N/A | BW20: N/A
B21: Surface water | C21: 24.40980612 | D21: 28.34289771 | E21: 25.6389965 | F21: 12.16233435 | G21: 2.279758862 | H21: 12.7656357 | I21: 7.014730942 | J21: 3.018804094 | K21: 1.341280065 | L21: 0.1944306038 | M21: 24.60254763 | N21: 26.03224627 | O21: 32.44799928 | P21: 29.16826785 | Q21: 14.64057096 | R21: 31.11043009 | S21: 19.50122387 | T21: 8.460838405 | U21: 16.01321477 | V21: 28.73667711 | W21: 15.71736989 | BB21: Surface water | BC21: N/A | BD21: N/A | BE21: N/A | BF21: N/A | BG21: N/A | BH21: N/A | BI21: N/A | BJ21: N/A | BK21: N/A | BL21: N/A | BM21: N/A | BN21: N/A | BO21: N/A | BP21: N/A | BQ21: N/A | BR21: N/A | BS21: N/A | BT21: N/A | BU21: N/A | BV21: N/A | BW21: N/A
A22: Improved water point at more than 30 minutes | B22: Yes | C22: 14.3 | D22: 9.7 | E22: missing | F22: 7.6 | G22: 4.6 | H22: 10 | I22: 8.2 | J22: 6.5 | K22: 5.6 | L22: 3.7 | M22: 16.2 | N22: 10.5 | O22: 9.1 | P22: 8.5 | Q22: 6.2 | R22: 6.6 | S22: 13.5 | T22: 8.6 | U22: 11.8 | V22: 4.1 | W22: 6.1 | BA22: Improved water point at more than 30 minutes | BB22: Yes | BC22: N/A | BD22: N/A | BE22: N/A | BF22: N/A | BG22: N/A | BH22: N/A | BI22: N/A | BJ22: N/A | BK22: N/A | BL22: N/A | BM22: N/A | BN22: N/A | BO22: N/A | BP22: N/A | BQ22: N/A | BR22: N/A | BS22: N/A | BT22: N/A | BU22: N/A | BV22: N/A | BW22: N/A
B23: No | C23: 85.7 | D23: 90.3 | E23: 91 | F23: 92.4 | G23: 95.4 | H23: 90 | I23: 91.8 | J23: 93.5 | K23: 94.4 | L23: 96.3 | M23: 83.8 | N23: 89.5 | O23: 90.9 | P23: 91.5 | Q23: 93.8 | R23: 93.4 | S23: 86.5 | T23: 91.4 | U23: 88.2 | V23: 95.9 | W23: 93.9 | BB23: No | BC23: N/A | BD23: N/A | BE23: N/A | BF23: N/A | BG23: N/A | BH23: N/A | BI23: N/A | BJ23: N/A | BK23: N/A | BL23: N/A | BM23: N/A | BN23: N/A | BO23: N/A | BP23: N/A | BQ23: N/A | BR23: N/A | BS23: N/A | BT23: N/A | BU23: N/A | BV23: N/A | BW23: N/A
A24: Manually calculated ratios | B24: Improved wells
B25: Improved springs
B26: Other
C27: NATIONAL wealth index quintile | H27: URBAN wealth index quintile | M27: RURAL wealth index quintile | R27: SUB-REGIONS: | BA27: Raw numbers of respondents: | BB27: Use of drinking water sources | BC27: NATIONAL wealth index quintile | BH27: URBAN wealth index quintile | BM27: RURAL wealth index quintile | BR27: SUB-REGIONS:
A28: Percentage based on weighted population | C28: Poorest | D28: Poor | E28: Middle | F28: Rich | G28: Richest | H28: Poorest | I28: Poor | J28: Middle | K28: Rich | L28: Richest | M28: Poorest | N28: Poor | O28: Middle | P28: Rich | Q28: Richest | R28: North Central | S28: North East | T28: North West | U28: South East | V28: South South | W28: South West | BA28: Water data, raw numbers (weighted) | BC28: Poorest | BD28: Poor | BE28: Middle | BF28: Rich | BG28: Richest | BH28: Poorest | BI28: Poor | BJ28: Middle | BK28: Rich | BL28: Richest | BM28: Poorest | BN28: Poor | BO28: Middle | BP28: Rich | BQ28: Richest | BR28: North Central | BS28: North East | BT28: North West | BU28: South East | BV28: South South | BW28: South West
A29: Piped water | B29: Yes | C29: 2.5 | D29: 3.7 | E29: 7 | F29: 16.8 | G29: 21.9 | H29: 11 | I29: 20.5 | J29: 25.1 | K29: 22.3 | L29: 24.8 | M29: 2 | N29: 3.1 | O29: 2.8 | P29: 5.9 | Q29: 12.2 | R29: 9.7 | S29: 5.4 | T29: 12.4 | U29: 4.3 | V29: 10.7 | W29: 15 | BA29: Piped water | BB29: Yes | BC29: N/A | BD29: N/A | BE29: N/A | BF29: N/A | BG29: N/A | BH29: N/A | BI29: N/A | BJ29: N/A | BK29: N/A | BL29: N/A | BM29: N/A | BN29: N/A | BO29: N/A | BP29: N/A | BQ29: N/A | BR29: N/A | BS29: N/A | BT29: N/A | BU29: N/A | BV29: N/A | BW29: N/A
B30: No | C30: 97.5 | D30: 96.3 | E30: 93 | F30: 83.2 | G30: 78.1 | H30: 89 | I30: 79.5 | J30: 74.9 | K30: 77.7 | L30: 75.2 | M30: 98 | N30: 96.9 | O30: 97.2 | P30: 94.1 | Q30: 87.8 | R30: 90.3 | S30: 94.6 | T30: 87.6 | U30: 95.7 | V30: 89.3 | W30: 85 | BB30: No | BC30: N/A | BD30: N/A | BE30: N/A | BF30: N/A | BG30: N/A | BH30: N/A | BI30: N/A | BJ30: N/A | BK30: N/A | BL30: N/A | BM30: N/A | BN30: N/A | BO30: N/A | BP30: N/A | BQ30: N/A | BR30: N/A | BS30: N/A | BT30: N/A | BU30: N/A | BV30: N/A | BW30: N/A
A31: Piped water on premises | B31: Yes | C31: 0.4 | D31: 0.6 | E31: 1.5 | F31: 5.7 | G31: 10.6 | H31: 1.6 | I31: 6.6 | J31: 9.9 | K31: 8.4 | L31: 14.6 | M31: 0.3 | N31: 0.7 | O31: 0.5 | P31: 1.4 | Q31: 4.8 | R31: 4.2 | S31: 2 | T31: 6.4 | U31: 0.7 | V31: 2.4 | W31: 4.1 | BA31: Piped water on premises | BB31: Yes | BC31: N/A | BD31: N/A | BE31: N/A | BF31: N/A | BG31: N/A | BH31: N/A | BI31: N/A | BJ31: N/A | BK31: N/A | BL31: N/A | BM31: N/A | BN31: N/A | BO31: N/A | BP31: N/A | BQ31: N/A | BR31: N/A | BS31: N/A | BT31: N/A | BU31: N/A | BV31: N/A | BW31: N/A
B32: No | C32: 99.6 | D32: 99.4 | E32: 98.5 | F32: 94.3 | G32: 89.4 | H32: 98.4 | I32: 93.4 | J32: 90.1 | K32: 91.6 | L32: 85.4 | M32: 99.7 | N32: 99.3 | O32: 99.5 | P32: 98.6 | Q32: 95.2 | R32: 95.8 | S32: 98 | T32: 93.6 | U32: 99.3 | V32: 97.6 | W32: 95.9 | BB32: No | BC32: N/A | BD32: N/A | BE32: N/A | BF32: N/A | BG32: N/A | BH32: N/A | BI32: N/A | BJ32: N/A | BK32: N/A | BL32: N/A | BM32: N/A | BN32: N/A | BO32: N/A | BP32: N/A | BQ32: N/A | BR32: N/A | BS32: N/A | BT32: N/A | BU32: N/A | BV32: N/A | BW32: N/A
A33: Piped water into dwelling | B33: Yes | C33: N/A | D33: N/A | E33: N/A | F33: N/A | G33: N/A | H33: N/A | I33: N/A | J33: N/A | K33: N/A | L33: N/A | M33: N/A | N33: N/A | O33: N/A | P33: N/A | Q33: N/A | R33: N/A | S33: N/A | T33: N/A | U33: N/A | V33: N/A | W33: N/A | BA33: Piped water into dwelling | BB33: Yes | BC33: N/A | BD33: N/A | BE33: N/A | BF33: N/A | BG33: N/A | BH33: N/A | BI33: N/A | BJ33: N/A | BK33: N/A | BL33: N/A | BM33: N/A | BN33: N/A | BO33: N/A | BP33: N/A | BQ33: N/A | BR33: N/A | BS33: N/A | BT33: N/A | BU33: N/A | BV33: N/A | BW33: N/A
B34: No | C34: N/A | D34: N/A | E34: N/A | F34: N/A | G34: N/A | H34: N/A | I34: N/A | J34: N/A | K34: N/A | L34: N/A | M34: N/A | N34: N/A | O34: N/A | P34: N/A | Q34: N/A | R34: N/A | S34: N/A | T34: N/A | U34: N/A | V34: N/A | W34: N/A | BB34: No | BC34: N/A | BD34: N/A | BE34: N/A | BF34: N/A | BG34: N/A | BH34: N/A | BI34: N/A | BJ34: N/A | BK34: N/A | BL34: N/A | BM34: N/A | BN34: N/A | BO34: N/A | BP34: N/A | BQ34: N/A | BR34: N/A | BS34: N/A | BT34: N/A | BU34: N/A | BV34: N/A | BW34: N/A
A35: Water source on premises | B35: Yes | C35: 15.8 | D35: 23.6 | E35: 26.2 | F35: 28.7 | G35: 34.7 | H35: 29.4 | I35: 28.5 | J35: 31 | K35: 27.6 | L35: 40.4 | M35: 13.8 | N35: 20.4 | O35: 23.2 | P35: 26.2 | Q35: 31.3 | R35: 27.2 | S35: 17.1 | T35: 34.1 | U35: 26.4 | V35: 22.4 | W35: 21.9 | BA35: Water source on premises | BB35: Yes | BC35: N/A | BD35: N/A | BE35: N/A | BF35: N/A | BG35: N/A | BH35: N/A | BI35: N/A | BJ35: N/A | BK35: N/A | BL35: N/A | BM35: N/A | BN35: N/A | BO35: N/A | BP35: N/A | BQ35: N/A | BR35: N/A | BS35: N/A | BT35: N/A | BU35: N/A | BV35: N/A | BW35: N/A
B36: No | C36: 84.2 | D36: 76.4 | E36: 73.8 | F36: 71.3 | G36: 65.3 | H36: 70.6 | I36: 71.5 | J36: 69 | K36: 72.4 | L36: 59.6 | M36: 86.2 | N36: 79.6 | O36: 76.8 | P36: 73.8 | Q36: 68.7 | R36: 72.8 | S36: 82.9 | T36: 65.9 | U36: 73.6 | V36: 77.6 | W36: 78.1 | BB36: No | BC36: N/A | BD36: N/A | BE36: N/A | BF36: N/A | BG36: N/A | BH36: N/A | BI36: N/A | BJ36: N/A | BK36: N/A | BL36: N/A | BM36: N/A | BN36: N/A | BO36: N/A | BP36: N/A | BQ36: N/A | BR36: N/A | BS36: N/A | BT36: N/A | BU36: N/A | BV36: N/A | BW36: N/A
A37: Improved Water source on premises | B37: Yes | C37: 5.2 | D37: 9.8 | E37: 17.6 | F37: 25 | G37: 33.5 | H37: 16.2 | I37: 23.8 | J37: 28.9 | K37: 26.3 | L37: 39.7 | M37: 4.3 | N37: 6.9 | O37: 11.1 | P37: 18.8 | Q37: 28.2 | R37: 20.6 | S37: 7.2 | T37: 17.8 | U37: 23.7 | V37: 19.3 | W37: 20.6 | BA37: Improved water source on premises | BB37: Yes | BC37: N/A | BD37: N/A | BE37: N/A | BF37: N/A | BG37: N/A | BH37: N/A | BI37: N/A | BJ37: N/A | BK37: N/A | BL37: N/A | BM37: N/A | BN37: N/A | BO37: N/A | BP37: N/A | BQ37: N/A | BR37: N/A | BS37: N/A | BT37: N/A | BU37: N/A | BV37: N/A | BW37: N/A
B38: No | C38: 94.8 | D38: 90.2 | E38: 82.4 | F38: 75 | G38: 66.5 | H38: 83.8 | I38: 76.2 | J38: 71.1 | K38: 73.7 | L38: 60.3 | M38: 95.7 | N38: 93.1 | O38: 88.9 | P38: 81.2 | Q38: 71.8 | R38: 79.4 | S38: 92.8 | T38: 82.2 | U38: 76.3 | V38: 80.7 | W38: 79.4 | BB38: No | BC38: N/A | BD38: N/A | BE38: N/A | BF38: N/A | BG38: N/A | BH38: N/A | BI38: N/A | BJ38: N/A | BK38: N/A | BL38: N/A | BM38: N/A | BN38: N/A | BO38: N/A | BP38: N/A | BQ38: N/A | BR38: N/A | BS38: N/A | BT38: N/A | BU38: N/A | BV38: N/A | BW38: N/A
A39: Piped water on premises available when needed | B39: Yes | C39: N/A | D39: N/A | E39: N/A | F39: N/A | G39: N/A | H39: N/A | I39: N/A | J39: N/A | K39: N/A | L39: N/A | M39: N/A | N39: N/A | O39: N/A | P39: N/A | Q39: N/A | R39: N/A | S39: N/A | T39: N/A | U39: N/A | V39: N/A | W39: N/A | BA39: Piped water on premises available when needed | BB39: Yes | BC39: N/A | BD39: N/A | BE39: N/A | BF39: N/A | BG39: N/A | BH39: N/A | BI39: N/A | BJ39: N/A | BK39: N/A | BL39: N/A | BM39: N/A | BN39: N/A | BO39: N/A | BP39: N/A | BQ39: N/A | BR39: N/A | BS39: N/A | BT39: N/A | BU39: N/A | BV39: N/A | BW39: N/A
B40: No | C40: N/A | D40: N/A | E40: N/A | F40: N/A | G40: N/A | H40: N/A | I40: N/A | J40: N/A | K40: N/A | L40: N/A | M40: N/A | N40: N/A | O40: N/A | P40: N/A | Q40: N/A | R40: N/A | S40: N/A | T40: N/A | U40: N/A | V40: N/A | W40: N/A | BB40: No | BC40: N/A | BD40: N/A | BE40: N/A | BF40: N/A | BG40: N/A | BH40: N/A | BI40: N/A | BJ40: N/A | BK40: N/A | BL40: N/A | BM40: N/A | BN40: N/A | BO40: N/A | BP40: N/A | BQ40: N/A | BR40: N/A | BS40: N/A | BT40: N/A | BU40: N/A | BV40: N/A | BW40: N/A
A41: Water point at more than 30 minutes | B41: Yes | C41: 20.7 | D41: 15.4 | E41: 15.4 | F41: 10.9 | G41: 5.2 | H41: 13.3 | I41: 9.3 | J41: 7.1 | K41: 5.7 | L41: 3.7 | M41: 21.9 | N41: 17.8 | O41: 15.1 | P41: 16.1 | Q41: 10.8 | R41: 15 | S41: 20.1 | T41: 10.1 | U41: 20.4 | V41: 11.9 | W41: 9.5 | BA41: Water point at more than 30 minutes | BB41: Yes | BC41: N/A | BD41: N/A | BE41: N/A | BF41: N/A | BG41: N/A | BH41: N/A | BI41: N/A | BJ41: N/A | BK41: N/A | BL41: N/A | BM41: N/A | BN41: N/A | BO41: N/A | BP41: N/A | BQ41: N/A | BR41: N/A | BS41: N/A | BT41: N/A | BU41: N/A | BV41: N/A | BW41: N/A
B42: No | C42: 79.3 | D42: 84.6 | E42: 84.6 | F42: 89.1 | G42: 94.8 | H42: 86.7 | I42: 90.7 | J42: 92.9 | K42: 94.3 | L42: 96.3 | M42: 78.1 | N42: 82.2 | O42: 84.9 | P42: 83.9 | Q42: 89.2 | R42: 85 | S42: 79.9 | T42: 89.9 | U42: 79.6 | V42: 88.1 | W42: 90.5 | BB42: No | BC42: N/A | BD42: N/A | BE42: N/A | BF42: N/A | BG42: N/A | BH42: N/A | BI42: N/A | BJ42: N/A | BK42: N/A | BL42: N/A | BM42: N/A | BN42: N/A | BO42: N/A | BP42: N/A | BQ42: N/A | BR42: N/A | BS42: N/A | BT42: N/A | BU42: N/A | BV42: N/A | BW42: N/A
A43: Water source available when needed | B43: Yes | C43: N/A | D43: N/A | E43: N/A | F43: N/A | G43: N/A | H43: N/A | I43: N/A | J43: N/A | K43: N/A | L43: N/A | M43: N/A | N43: N/A | O43: N/A | P43: N/A | Q43: N/A | R43: N/A | S43: N/A | T43: N/A | U43: N/A | V43: N/A | W43: N/A | BA43: Water source available when needed | BB43: Yes | BC43: N/A | BD43: N/A | BE43: N/A | BF43: N/A | BG43: N/A | BH43: N/A | BI43: N/A | BJ43: N/A | BK43: N/A | BL43: N/A | BM43: N/A | BN43: N/A | BO43: N/A | BP43: N/A | BQ43: N/A | BR43: N/A | BS43: N/A | BT43: N/A | BU43: N/A | BV43: N/A | BW43: N/A
